Workbook

Sheet ReadMe
A1: Table ID | B1: File Names | C1: File Identity
A2: Table S1 | B2: P14-PROT | C2: P14 hemibrain proteomic scan data MUT vs WT (N = 3)
A3: Table S2 | B3: P40-PROT | C3: P40 cortical proteomic scan data MUT vs WT (N = 3)
A4: Table S3 | B4: P14-pSpT | C4: P14 hemibrain pSpT phosphoproteomic scan data MUT vs WT (N = 3)
A5: Table S4 | B5: P40-pSpT | C5: P40 cortical pSpT phosphoproteomic scan data MUT vs WT (N = 3)
A6: Table S5 | B6: P14-P40-pY | C6: P14 and P40 pY phosphoproteomic scan data MUT vs WT (N = 3)
A7: Table S6 | B7: P14-RNA | C7: P14 hemibrain transcriptome data from Tilot et al., 2016
A8: Table S7 | B8: P40-RNA | C8: P40 cortical transcriptome data from Tilot et al., 2016

Sheet P14-PROT
A1: T: Protein names | B1: T: Majority protein IDs | C1: T: Gene names | D1: LFQ intensity lane 1 | E1: LFQ intensity lane 2 | F1: LFQ intensity lane 3 | G1: LFQ intensity lane 4 | H1: LFQ intensity lane 5 | I1: LFQ intensity lane 6
A2: Protein | B2: accession | C2: Gene | E2: WT | H2: Mutant | J2: Average LFQ | L2: LFQ ratio | M2: T test
C3: ID | D3: 1 | E3: 2 | F3: 3 | G3: 4 | H3: 5 | I3: 6 | J3: WT | K3: Mut | L3: Mut/WT | M3: p-value
A4: UPF0587 protein C1orf123 homolog | B4: Q8BHG2 | C4: 0610037L13Rik | D4: 12538000 | E4: 7949000 | F4: 8649100 | G4: 12501000 | H4: 8532000 | I4: 9395300 | J4: =AVERAGE(D4:F4) -> 9712033.333 | K4: =AVERAGE(G4:I4) -> 10142766.67 | L4: =K4/J4 -> 1.04 | M4: =_xlfn.T.TEST(D4:F4,G4:I4,2,2) -> 0.8289590914
A5: Uncharacterized protein C6orf203 homolog | B5: Q9CQF4 | C5: 1700021F05Rik | D5: 0 | E5: 4201000 | F5: 5340800 | G5: 4213900 | H5: 3822500 | I5: 4915900 | J5: 3180600 | K5: 4317433.333 | L5: =K5/J5 -> 1.36 | M5: 0.5299352938
A6: UPF0687 protein C20orf27 homolog | B6: Q9D1K7 | C6: 1700037H04Rik | D6: 4316300 | E6: 10065000 | F6: 5971200 | G6: 5888900 | H6: 7270300 | I6: 4564600 | J6: 6784166.667 | K6: 5907933.333 | L6: =K6/J6 -> 0.87 | M6: 0.6651872722
A7: LisH domain and HEAT repeat-containing protein KIAA1468 | B7: A0A087WSS1 | C7: 2310035C23Rik | D7: 8487200 | E7: 5259100 | F7: 5865400 | G7: 6631000 | H7: 6776100 | I7: 5408500 | J7: 6537233.333 | K7: 6271866.667 | L7: =K7/J7 -> 0.96 | M7: 0.8182219106
A8: RIKEN cDNA 2310061I04 gene | B8: F6W3U3 | C8: 2310061I04Rik | D8: 0 | E8: 0 | F8: 0 | G8: 201740 | H8: 0 | I8: 0 | J8: 0 | K8: 67246.66667 | L8: Mut only | M8: 0.3739009663
A9: 2410002F23Rik protein | B9: Q3TE80 | C9: 2410002F23Rik | D9: 775440 | E9: 727790 | F9: 742710 | G9: 764780 | H9: 583850 | I9: 734510 | J9: 748646.6667 | K9: 694380 | L9: =K9/J9 -> 0.93 | M9: 0.4001683265
A10: Protein C8orf37 homolog | B10: Q3UJP5 | C10: 2610301B20Rik | D10: 0 | E10: 388050 | F10: 0 | G10: 0 | H10: 388540 | I10: 0 | J10: 129350 | K10: 129513.3333 | L10: 1.00 | M10: 0.9993307623
A11: UPF0568 protein C14orf166 homolog | B11: Q4VA29 | C11: 2700060E02Rik | D11: 1035800 | E11: 2418200 | F11: 1488000 | G11: 1737700 | H11: 773390 | I11: 1836200 | J11: 1647333.333 | K11: 1449096.667 | L11: 0.88 | M11: 0.7272037753
A12: Uncharacterized protein C16orf45 homolog | B12: Q8R1Y2 | C12: 2900011O08Rik | D12: 2299100 | E12: 1719700 | F12: 1075900 | G12: 2017700 | H12: 1821500 | I12: 1761100 | J12: 1698233.333 | K12: 1866766.667 | L12: 1.10 | M12: 0.6654618733
A13: UPF0505 protein C16orf62 homolog | B13: D3YW20 | C13: 9030624J02Rik | D13: 82540 | E13: 0 | F13: 207140 | G13: 0 | H13: 113010 | I13: 117680 | J13: 96560 | K13: 76896.66667 | L13: 0.80 | M13: 0.7967846379
A14: Alpha-2-macroglobulin | B14: Q61838 | C14: A2m | D14: 3081100 | E14: 5547200 | F14: 4156400 | G14: 5949900 | H14: 12550000 | I14: 31661000 | J14: 4261566.667 | K14: 16720300 | L14: 3.92 | M14: 0.1828694771
A15: Acetoacetyl-CoA synthetase | B15: Q9D2R0 | C15: Aacs | D15: 3041500 | E15: 2789700 | F15: 2908200 | G15: 4033800 | H15: 3571600 | I15: 3998100 | J15: 2913133.333 | K15: 3867833.333 | L15: 1.33 | M15: 0.004465862316
A16: AP2-associated protein kinase 1 | B16: Q3UHJ0-2 | C16: Aak1 | D16: 3096800 | E16: 4918500 | F16: 5348800 | G16: 5973900 | H16: 8057000 | I16: 8980400 | J16: 4454700 | K16: 7670433.333 | L16: 1.72 | M16: 0.04607525566
A17: Alanine--tRNA ligase, cytoplasmic | B17: Q3UD67 | C17: Aars | D17: 24841000 | E17: 22118000 | F17: 22643000 | G17: 23490000 | H17: 24801000 | I17: 27242000 | J17: 23200666.67 | K17: 25177666.67 | L17: 1.09 | M17: 0.2252307348
A18: Alanyl-tRNA editing protein Aarsd1 | B18: A2A4P3 | C18: Aarsd1 | D18: 290840 | E18: 203640 | F18: 0 | G18: 0 | H18: 262620 | I18: 0 | J18: 164826.6667 | K18: 87540 | L18: 0.53 | M18: 0.5633749085
A19: 4-aminobutyrate aminotransferase, mitochondrial | B19: P61922 | C19: Abat | D19: 17432000 | E19: 18846000 | F19: 18149000 | G19: 19707000 | H19: 27535000 | I19: 20312000 | J19: 18142333.33 | K19: 22518000 | L19: 1.24 | M19: 0.1609943571
A20: ATP-binding cassette sub-family A member 2 | B20: A2AJ26 | C20: Abca2 | D20: 0 | E20: 539430 | F20: 0 | G20: 498390 | H20: 638530 | I20: 338760 | J20: 179810 | K20: 491893.3333 | L20: 2.74 | M20: 0.1929238762
A21: ATP-binding cassette sub-family A member 3 | B21: Q6AXE3 | C21: Abca3 | D21: 0 | E21: 341660 | F21: 0 | G21: 279200 | H21: 336590 | I21: 322060 | J21: 113886.6667 | K21: 312616.6667 | L21: 2.74 | M21: 0.1595473795
A22: ATP-binding cassette sub-family A member 5 | B22: Q8K448 | C22: Abca5 | D22: 0 | E22: 0 | F22: 0 | G22: 0 | H22: 0 | I22: 974320 | J22: 0 | K22: 324773.3333 | L22: Mut only | M22: 0.3739009663
A23: Multidrug resistance protein 1A | B23: B2RUR3 | C23: Abcb1b | D23: 370250 | E23: 399880 | F23: 392170 | G23: 407480 | H23: 101920 | I23: 197860 | J23: 387433.3333 | K23: 235753.3333 | L23: =K23/J23 -> 0.61 | M23: 0.1696114431
A24: ATP-binding cassette sub-family B member 6, mitochondrial | B24: Q9DC29 | C24: Abcb6 | D24: 0 | E24: 0 | F24: 164720 | G24: 0 | H24: 0 | I24: 0 | J24: 54906.66667 | K24: 0 | L24: =K24/J24 -> 0.00 | M24: 0.3739009663
A25: ATP-binding cassette sub-family B member 9 | B25: Q9JJ59-2 | C25: Abcb9 | D25: 0 | E25: 0 | F25: 0 | G25: 246290 | H25: 274590 | I25: 459910 | J25: 0 | K25: 326930 | L25: Mut only | M25: 0.008158962217
A26: ATP-binding cassette sub-family D member 2 | B26: Q3TU16 | C26: Abcd2 | D26: 0 | E26: 0 | F26: 0 | G26: 0 | H26: 191450 | I26: 0 | J26: 0 | K26: 63816.66667 | L26: Mut only | M26: 0.3739009663
A27: ATP-binding cassette sub-family D member 3 | B27: Q91VT3 | C27: Abcd3 | D27: 4526600 | E27: 4535200 | F27: 6301900 | G27: 4694900 | H27: 5298600 | I27: 5276200 | J27: 5121233.333 | K27: 5089900 | L27: =K27/J27 -> 0.99 | M27: 0.9622709231
A28: ATP-binding cassette sub-family E member 1 | B28: Q6NXX7 | C28: Abce1 | D28: 2512400 | E28: 2466600 | F28: 3810100 | G28: 3661800 | H28: 2518800 | I28: 2028000 | J28: 2929700 | K28: 2736200 | L28: 0.93 | M28: 0.782173334
A29: ATP-binding cassette sub-family F member 1 | B29: Q3U6P1 | C29: Abcf1 | D29: 193890 | E29: 101990 | F29: 108830 | G29: 175300 | H29: 134260 | I29: 135550 | J29: 134903.3333 | K29: 148370 | L29: 1.10 | M29: 0.6997287467
A30: ATP-binding cassette sub-family F member 2 | B30: Q3UVI9 | C30: Abcf2 | D30: 763500 | E30: 823310 | F30: 670060 | G30: 888100 | H30: 935270 | I30: 862280 | J30: 752290 | K30: 895216.6667 | L30: 1.19 | M30: 0.04454476883
A31: ATP-binding cassette sub-family F member 3 | B31: Q8K268 | C31: Abcf3 | D31: 271680 | E31: 331180 | F31: 813340 | G31: 499880 | H31: 0 | I31: 0 | J31: 472066.6667 | K31: 166626.6667 | L31: 0.35 | M31: 0.2705746893
A32: Monoacylglycerol lipase ABHD12 | B32: Q99LR1 | C32: Abhd12 | D32: 1743100 | E32: 1656200 | F32: 1349600 | G32: 2073900 | H32: 2330100 | I32: 2134200 | J32: 1582966.667 | K32: 2179400 | L32: 1.38 | M32: 0.01376318084
A33: Abhydrolase domain-containing protein 16A | B33: Q9Z1Q2 | C33: Abhd16a | D33: 254000 | E33: 0 | F33: 189530 | G33: 323870 | H33: 426920 | I33: 336580 | J33: 147843.3333 | K33: 362456.6667 | L33: 2.45 | M33: 0.06064725114
A34: Monoacylglycerol lipase ABHD6 | B34: Q9D375 | C34: Abhd6 | D34: 4014600 | E34: 4128200 | F34: 4362300 | G34: 3955100 | H34: 5684900 | I34: 5219000 | J34: 4168366.667 | K34: 4953000 | L34: 1.19 | M34: 0.2106130406
A35: Abl interactor 1 | B35: B7ZCU2 | C35: Abi1 | D35: 944510 | E35: 582380 | F35: 680820 | G35: 1151500 | H35: 965330 | I35: 933150 | J35: 735903.3333 | K35: 1016660 | L35: 1.38 | M35: 0.09287911066
A36: Abl interactor 2 | B36: A0A087WPP8 | C36: Abi2 | D36: 1848200 | E36: 2078800 | F36: 2537200 | G36: 1559400 | H36: 2875900 | I36: 1712400 | J36: 2154733.333 | K36: 2049233.333 | L36: 0.95 | M36: 0.8307060875
A37: Actin-binding LIM protein 1 | B37: Q3UP03 | C37: Ablim1 | D37: 939970 | E37: 970230 | F37: 869730 | G37: 1410500 | H37: 801380 | I37: 929840 | J37: 926643.3333 | K37: 1047240 | L37: 1.13 | M37: 0.5556290125
A38: Actin-binding LIM protein 2 | B38: E9Q0W6 | C38: Ablim2 | D38: 1427300 | E38: 2677700 | F38: 2188800 | G38: 2468500 | H38: 2502200 | I38: 2063400 | J38: 2097933.333 | K38: 2344700 | L38: 1.12 | M38: 0.5614361557
A39: Actin-binding LIM protein 3 | B39: Q69ZX8 | C39: Ablim3 | D39: 0 | E39: 0 | F39: 133960 | G39: 89574 | H39: 94902 | I39: 0 | J39: 44653.33333 | K39: 61492 | L39: 1.38 | M39: 0.7717101901
A40: Active breakpoint cluster region-related protein | B40: E9PUE7 | C40: Abr | D40: 7032600 | E40: 9834300 | F40: 6433900 | G40: 8765000 | H40: 8754200 | I40: 6493200 | J40: 7766933.333 | K40: 8004133.333 | L40: 1.03 | M40: 0.8632587315
A41: Costars family protein ABRACL | B41: E9QMV2 | C41: Abracl | D41: 358120 | E41: 278610 | F41: 254980 | G41: 700490 | H41: 622650 | I41: 0 | J41: 297236.6667 | K41: 441046.6667 | L41: 1.48 | M41: 0.5555585496
A42: 3-ketoacyl-CoA thiolase A, peroxisomal | B42: Q921H8 | C42: Acaa1a | D42: 4396200 | E42: 3263100 | F42: 4161800 | G42: 5535700 | H42: 5114600 | I42: 4777100 | J42: 3940366.667 | K42: 5142466.667 | L42: 1.31 | M42: 0.04247104026
A43: 3-ketoacyl-CoA thiolase, mitochondrial | B43: Q8BWT1 | C43: Acaa2 | D43: 7981900 | E43: 7946800 | F43: 7706600 | G43: 7484700 | H43: 6928900 | I43: 6609400 | J43: 7878433.333 | K43: 7007666.667 | L43: 0.89 | M43: 0.03211305609
A44: Acetyl-CoA carboxylase 1 | B44: Q5SWU9 | C44: Acaca | D44: 16271000 | E44: 13476000 | F44: 13711000 | G44: 14040000 | H44: 12059000 | I44: 13247000 | J44: 14486000 | K44: 13115333.33 | L44: 0.91 | M44: 0.2672133417
A45: Isobutyryl-CoA dehydrogenase, mitochondrial | B45: D3YTT4 | C45: Acad8 | D45: 745290 | E45: 548390 | F45: 0 | G45: 631480 | H45: 628610 | I45: 714360 | J45: 431226.6667 | K45: 658150 | L45: 1.53 | M45: 0.3697606217
A46: Acyl-CoA dehydrogenase family member 9, mitochondrial | B46: Q8JZN5 | C46: Acad9 | D46: 2208400 | E46: 2399500 | F46: 2389600 | G46: 1947500 | H46: 2697200 | I46: 2254300 | J46: 2332500 | K46: 2299666.667 | L46: 0.99 | M46: 0.8916575174
A47: Long-chain specific acyl-CoA dehydrogenase, mitochondrial | B47: A0A0R4J083 | C47: Acadl | D47: 7380700 | E47: 6586100 | F47: 6584400 | G47: 7424900 | H47: 6818000 | I47: 5372700 | J47: 6850400 | K47: 6538533.333 | L47: 0.95 | M47: 0.6630080743
A48: Medium-chain specific acyl-CoA dehydrogenase, mitochondrial | B48: Q91WS8 | C48: Acadm | D48: 6266000 | E48: 5340900 | F48: 6007900 | G48: 6062200 | H48: 5057800 | I48: 5856300 | J48: 5871600 | K48: 5658766.667 | L48: 0.96 | M48: 0.6327323925
A49: Short-chain specific acyl-CoA dehydrogenase, mitochondrial | B49: Q07417 | C49: Acads | D49: 730240 | E49: 692660 | F49: 804780 | G49: 578440 | H49: 656160 | I49: 790790 | J49: 742560 | K49: 675130 | L49: 0.91 | M49: 0.3914016471
A50: Short/branched chain specific acyl-CoA dehydrogenase, mitochondrial | B50: Q7TMY2 | C50: Acadsb | D50: 882460 | E50: 989610 | F50: 1008100 | G50: 757020 | H50: 1067800 | I50: 887200 | J50: 960056.6667 | K50: 904006.6667 | L50: 0.94 | M50: 0.5988685868
A51: Very long-chain specific acyl-CoA dehydrogenase, mitochondrial | B51: P50544 | C51: Acadvl | D51: 1541500 | E51: 2430200 | F51: 1716800 | G51: 2800900 | H51: 2560500 | I51: 3863400 | J51: 1896166.667 | K51: 3074933.333 | L51: 1.62 | M51: 0.07149259181
A52: ArfGAP with coiled-coil, ankyrin repeat and PH domains 3 | B52: A2ADA6 | C52: Acap3 | D52: 0 | E52: 0 | F52: 0 | G52: 0 | H52: 136190 | I52: 0 | J52: 0 | K52: 45396.66667 | L52: Mut only | M52: 0.3739009663
A53: Acetyl-CoA acetyltransferase, mitochondrial | B53: Q8QZT1 | C53: Acat1 | D53: 65874000 | E53: 52465000 | F53: 54974000 | G53: 61343000 | H53: 53275000 | I53: 53973000 | J53: 57771000 | K53: 56197000 | L53: =K53/J53 -> 0.97 | M53: 0.7621708498
A54: Acetyl-CoA acetyltransferase, cytosolic | B54: Q8CAY6 | C54: Acat2 | D54: 22263000 | E54: 16901000 | F54: 18407000 | G54: 25960000 | H54: 17419000 | I54: 20485000 | J54: 19190333.33 | K54: 21288000 | L54: 1.11 | M54: 0.5182752767
A55: Golgi resident protein GCP60 | B55: Q6P9T6 | C55: Acbd3 | D55: 1039400 | E55: 1277900 | F55: 1387100 | G55: 1307700 | H55: 1644000 | I55: 1308500 | J55: 1234800 | K55: 1420066.667 | L55: 1.15 | M55: 0.2896064054
A56: Acyl-CoA-binding domain-containing protein 6 | B56: Q14BV7 | C56: Acbd6 | D56: 1338000 | E56: 1374400 | F56: 1246600 | G56: 1480800 | H56: 1080700 | I56: 1071300 | J56: 1319666.667 | K56: 1210933.333 | L56: 0.92 | M56: 0.481344562
A57: Angiotensin-converting enzyme | B57: Q8K233 | C57: Ace | D57: 743210 | E57: 179270 | F57: 0 | G57: 381750 | H57: 86446 | I57: 142590 | J57: 307493.3333 | K57: 203595.3333 | L57: 0.66 | M57: 0.6892399823
A58: Carboxylic ester hydrolase | B58: A0A0G2JDM6 | C58: Ache | D58: 103250 | E58: 210000 | F58: 348350 | G58: 175260 | H58: 223290 | I58: 220730 | J58: 220533.3333 | K58: 206426.6667 | L58: 0.94 | M58: 0.8554931065
A59: ATP-citrate synthase | B59: Q3V117 | C59: Acly | D59: 36114000 | E59: 36724000 | F59: 41810000 | G59: 43897000 | H59: 44092000 | I59: 36735000 | J59: 38216000 | K59: 41574666.67 | L59: 1.09 | M59: 0.3283775261
A60: Aconitate hydratase | B60: Q8VDC3 | C60: aco1 | D60: 4429000 | E60: 4347400 | F60: 3780900 | G60: 5420400 | H60: 6862700 | I60: 6556100 | J60: 4185766.667 | K60: 6279733.333 | L60: 1.50 | M60: 0.01236024612
A61: Aconitate hydratase, mitochondrial | B61: Q99KI0 | C61: Aco2 | D61: 138850000 | E61: 137860000 | F61: 128330000 | G61: 133130000 | H61: 154870000 | I61: 154930000 | J61: 135013333.3 | K61: 147643333.3 | L61: 1.09 | M61: 0.1892828062
A62: Acyl-coenzyme A thioesterase 1 | B62: Q99L15 | C62: Acot1 | D62: 4702800 | E62: 2816000 | F62: 1145300 | G62: 2865300 | H62: 2809900 | I62: 2253600 | J62: 2888033.333 | K62: 2642933.333 | L62: 0.92 | M62: 0.8262394497
A63: Acyl-coenzyme A thioesterase 13 | B63: Q4VA32 | C63: Acot13 | D63: 657350 | E63: 508100 | F63: 871320 | G63: 980220 | H63: 923820 | I63: 0 | J63: 678923.3333 | K63: 634680 | L63: 0.93 | M63: 0.9012427764
A64: Acyl-coenzyme A thioesterase 2, mitochondrial | B64: Q6P2K2 | C64: Acot2 | D64: 150500 | E64: 130050 | F64: 0 | G64: 0 | H64: 0 | I64: 188570 | J64: 93516.66667 | K64: 62856.66667 | L64: 0.67 | M64: 0.7162355332
A65: Cytosolic acyl coenzyme A thioester hydrolase | B65: Q91V12-2 | C65: Acot7 | D65: 128380000 | E65: 111500000 | F65: 124800000 | G65: 154520000 | H65: 138890000 | I65: 138450000 | J65: 121560000 | K65: 143953333.3 | L65: 1.18 | M65: 0.03844160341
A66: Acyl-coenzyme A thioesterase 9, mitochondrial | B66: Q9R0X4 | C66: Acot9 | D66: 377620 | E66: 765220 | F66: 1020400 | G66: 809480 | H66: 557370 | I66: 674740 | J66: 721080 | K66: 680530 | L66: 0.94 | M66: 0.8496366221
A67: Peroxisomal acyl-coenzyme A oxidase 1 | B67: Q9R0H0-2 | C67: Acox1 | D67: 1529300 | E67: 1383100 | F67: 1798500 | G67: 1814000 | H67: 1836400 | I67: 2295200 | J67: 1570300 | K67: 1981866.667 | L67: 1.26 | M67: 0.1067691235
A68: Long-chain-fatty-acid--CoA ligase ACSBG1 | B68: Q99PU5 | C68: Acsbg1 | D68: 22799000 | E68: 25848000 | F68: 18436000 | G68: 22749000 | H68: 28774000 | I68: 29022000 | J68: =AVERAGE(D68:F68) -> 22361000 | K68: =AVERAGE(G68:I68) -> 26848333.33 | L68: 1.20 | M68: =_xlfn.T.TEST(D68:F68,G68:I68,2,2) -> 0.2055799955
A69: Acyl-CoA synthetase family member 2, mitochondrial | B69: Q8VCW8 | C69: Acsf2 | D69: 1678300 | E69: 1737400 | F69: 1629800 | G69: 1466400 | H69: 1444800 | I69: 1478700 | J69: 1681833.333 | K69: 1463300 | L69: 0.87 | M69: 0.002592152037
A70: Acyl-CoA synthetase family member 3, mitochondrial | B70: Q3URE1 | C70: Acsf3 | D70: 150110 | E70: 135640 | F70: 110860 | G70: 168110 | H70: 163380 | I70: 139680 | J70: 132203.3333 | K70: 157056.6667 | L70: 1.19 | M70: 0.160467314
A71: Long-chain-fatty-acid--CoA ligase 1 | B71: D3Z041 | C71: Acsl1 | D71: 1851600 | E71: 2568800 | F71: 2580200 | G71: 2807500 | H71: 2838700 | I71: 3657900 | J71: 2333533.333 | K71: 3101366.667 | L71: 1.33 | M71: 0.1053973159
A72: Long-chain-fatty-acid--CoA ligase 3 | B72: Q9CZW4 | C72: Acsl3 | D72: 828920 | E72: 363060 | F72: 229730 | G72: 698160 | H72: 665890 | I72: 240460 | J72: 473903.3333 | K72: 534836.6667 | L72: 1.13 | M72: 0.8073872469
A73: Long-chain-fatty-acid--CoA ligase 4 | B73: Q91YN3 | C73: Acsl4 | D73: 535660 | E73: 142770 | F73: 0 | G73: 255930 | H73: 349990 | I73: 65542 | J73: 226143.3333 | K73: 223820.6667 | L73: 0.99 | M73: 0.9903595371
A74: Long-chain-fatty-acid--CoA ligase 6 | B74: Q5ICG4 | C74: Acsl6 | D74: 8200700 | E74: 10210000 | F74: 9389000 | G74: 7807700 | H74: 11988000 | I74: 11133000 | J74: 9266566.667 | K74: 10309566.67 | L74: 1.11 | M74: 0.4982746364
A75: Acetyl-coenzyme A synthetase | B75: Q3TZ45 | C75: Acss1 | D75: 550950 | E75: 0 | F75: 535860 | G75: 713050 | H75: 771460 | I75: 419710 | J75: 362270 | K75: 634740 | L75: 1.75 | M75: 0.2668495905
A76: Acetyl-coenzyme A synthetase, cytoplasmic | B76: Q8N9U3 | C76: Acss2 | D76: 469470 | E76: 1298600 | F76: 752000 | G76: 1095200 | H76: 1710200 | I76: 1462300 | J76: 840023.3333 | K76: 1422566.667 | L76: 1.69 | M76: 0.1258668651
A77: Actin-like protein 6A | B77: D3YVN1 | C77: Actl6a | D77: 0 | E77: 0 | F77: 0 | G77: 152030 | H77: 286910 | I77: 359210 | J77: 0 | K77: 266050 | L77: Mut only | M77: 0.0118537566
A78: Actin-like protein 6B | B78: Q99MR0 | C78: Actl6b | D78: 945130 | E78: 813360 | F78: 815520 | G78: 641410 | H78: 772460 | I78: 771830 | J78: 858003.3333 | K78: 728566.6667 | L78: =K78/J78 -> 0.85 | M78: 0.1035950049
A79: Alpha-actinin-2 | B79: Q9JI91 | C79: Actn2 | D79: 1190700 | E79: 1417200 | F79: 822680 | G79: 1353000 | H79: 1575500 | I79: 1295600 | J79: 1143526.667 | K79: 1408033.333 | L79: 1.23 | M79: 0.242658487
A80: Alpha-actinin-4 | B80: Q3ULT2 | C80: Actn4 | D80: 47498000 | E80: 55941000 | F80: 48946000 | G80: 50034000 | H80: 44409000 | I80: 45596000 | J80: 50795000 | K80: 46679666.67 | L80: 0.92 | M80: 0.2574192581
A81: Actin-related protein 10 | B81: Q9QZB7 | C81: Actr10 | D81: 1317400 | E81: 1190800 | F81: 1200200 | G81: 1608700 | H81: 2957000 | I81: 1852600 | J81: 1236133.333 | K81: 2139433.333 | L81: 1.73 | M81: 0.09610619965
A82: Alpha-centractin | B82: P61164 | C82: Actr1a | D82: 14614000 | E82: 19809000 | F82: 22121000 | G82: 22416000 | H82: 16780000 | I82: 16558000 | J82: 18848000 | K82: 18584666.67 | L82: 0.99 | M82: 0.932769927
A83: Beta-centractin | B83: Q8R5C5 | C83: Actr1b | D83: 816180 | E83: 1784100 | F83: 1536300 | G83: 1839500 | H83: 2089200 | I83: 1798400 | J83: 1378860 | K83: 1909033.333 | L83: 1.38 | M83: 0.1562958257
A84: Actin-related protein 2 | B84: Q5SW83 | C84: Actr2 | D84: 53031000 | E84: 52545000 | F84: 51012000 | G84: 49175000 | H84: 45532000 | I84: 52404000 | J84: 52196000 | K84: 49037000 | L84: 0.94 | M84: 0.2027626313
A85: Actin-related protein 3 | B85: Q3ULF7 | C85: Actr3 | D85: 22762000 | E85: 20134000 | F85: 21013000 | G85: 26828000 | H85: 25734000 | I85: 22415000 | J85: 21303000 | K85: 24992333.33 | L85: 1.17 | M85: 0.07410662169
A86: Actin-related protein 3B | B86: Q641P0 | C86: Actr3b | D86: 1083100 | E86: 1341800 | F86: 1662700 | G86: 1895600 | H86: 1426600 | I86: 1451500 | J86: 1362533.333 | K86: 1591233.333 | L86: 1.17 | M86: 0.3697985554
A87: Aminoacylase-1 | B87: Q99JW2 | C87: Acy1 | D87: 0 | E87: 423310 | F87: 430230 | G87: 0 | H87: 500570 | I87: 460470 | J87: 284513.3333 | K87: 320346.6667 | L87: 1.13 | M87: 0.8754587951
A88: Acylphosphatase | B88: Q4VAF0 | C88: Acyp1 | D88: 455470 | E88: 519870 | F88: 793620 | G88: 927350 | H88: 911080 | I88: 840480 | J88: 589653.3333 | K88: 892970 | L88: 1.51 | M88: 0.04716601502
A89: Disintegrin and metalloproteinase domain-containing protein 22 | B89: A4FUT9 | C89: Adam22 | D89: 3842200 | E89: 3949600 | F89: 3466800 | G89: 4087700 | H89: 3529600 | I89: 4108500 | J89: 3752866.667 | K89: 3908600 | L89: 1.04 | M89: 0.5510121669
A90: Disintegrin and metalloproteinase domain-containing protein 23 | B90: Q5SRA0 | C90: Adam23 | D90: 1321700 | E90: 1142700 | F90: 1251000 | G90: 1128300 | H90: 2128500 | I90: 1778900 | J90: 1238466.667 | K90: 1678566.667 | L90: 1.36 | M90: 0.213325864
A91: ArfGAP with dual PH domains 1 | B91: E9PY16 | C91: Adap1 | D91: 5923600 | E91: 5744000 | F91: 4480400 | G91: 6686400 | H91: 5994700 | I91: 5865400 | J91: 5382666.667 | K91: 6182166.667 | L91: 1.15 | M91: 0.1994994472
A92: Adenylate cyclase type 1 | B92: O88444 | C92: Adcy1 | D92: 993230 | E92: 1044200 | F92: 996540 | G92: 943320 | H92: 1437900 | I92: 1361600 | J92: 1011323.333 | K92: 1247606.667 | L92: 1.23 | M92: 0.2011699874
A93: Adenylate cyclase type 2 | B93: Q3V1Q3 | C93: Adcy2 | D93: 0 | E93: 723860 | F93: 283580 | G93: 443870 | H93: 0 | I93: 431400 | J93: 335813.3333 | K93: 291756.6667 | L93: 0.87 | M93: 0.8718183918
A94: Adenylate cyclase type 5 | B94: P84309 | C94: Adcy5 | D94: 1977900 | E94: 2387200 | F94: 1879700 | G94: 1401600 | H94: 2792700 | I94: 2744100 | J94: 2081600 | K94: 2312800 | L94: 1.11 | M94: 0.6562395654
A95: Adenylate cyclase type 9 | B95: E9Q706 | C95: Adcy9 | D95: 706280 | E95: 0 | F95: 546740 | G95: 0 | H95: 928460 | I95: 2487100 | J95: 417673.3333 | K95: 1138520 | L95: 2.73 | M95: 0.3945938517
A96: Pituitary adenylate cyclase-activating polypeptide type I receptor | B96: E9Q3E8 | C96: Adcyap1r1 | D96: 1527800 | E96: 2266300 | F96: 1715700 | G96: 1728900 | H96: 3143200 | I96: 2942300 | J96: 1836600 | K96: 2604800 | L96: 1.42 | M96: 0.1950757557
A97: Alpha-adducin | B97: F8WHZ9 | C97: Add1 | D97: 24899000 | E97: 24735000 | F97: 20187000 | G97: 25998000 | H97: 19573000 | I97: 20014000 | J97: 23273666.67 | K97: 21861666.67 | L97: 0.94 | M97: 0.6138294411
A98: Beta-adducin | B98: Q8C0Y2 | C98: Add2 | D98: 7821100 | E98: 10810000 | F98: 10679000 | G98: 9005700 | H98: 11081000 | I98: 9540500 | J98: 9770033.333 | K98: 9875733.333 | L98: 1.01 | M98: 0.9315850507
A99: Gamma-adducin | B99: Q8BM29 | C99: Add3 | D99: 5819200 | E99: 7264200 | F99: 5983700 | G99: 8429000 | H99: 7501600 | I99: 8194800 | J99: 6355700 | K99: 8041800 | L99: 1.27 | M99: 0.03444272817
A100: Brain-specific angiogenesis inhibitor 1 | B100: A0A087WQV8 | C100: Adgrb1 | D100: 900550 | E100: 468670 | F100: 0 | G100: 482950 | H100: 0 | I100: 0 | J100: 456406.6667 | K100: 160983.3333 | L100: 0.35 | M100: 0.388768153
A101: Latrophilin-1 | B101: H7BX15 | C101: Adgrl1 | D101: 2199400 | E101: 1254500 | F101: 1578900 | G101: 1253000 | H101: 2578200 | I101: 1332000 | J101: 1677600 | K101: 1721066.667 | L101: 1.03 | M101: 0.9362881818
A102: Latrophilin-3 | B102: D3YU23 | C102: Adgrl3 | D102: 1232600 | E102: 1751100 | F102: 1514400 | G102: 2531400 | H102: 2035600 | I102: 1189200 | J102: 1499366.667 | K102: 1918733.333 | L102: 1.28 | M102: 0.3740609797
A103: S-(hydroxymethyl)glutathione dehydrogenase | B103: Q6P5I3 | C103: Adh5 | D103: 4021600 | E103: 4321700 | F103: 3755100 | G103: 6019400 | H103: 3729300 | I103: 4455900 | J103: 4032800 | K103: 4734866.667 | L103: 1.17 | M103: 0.3696739491
A104: 1,2-dihydroxy-3-keto-5-methylthiopentene dioxygenase | B104: Q99JT9 | C104: Adi1 | D104: 1683800 | E104: 1442700 | F104: 2196800 | G104: 3452200 | H104: 4037400 | I104: 3924500 | J104: 1774433.333 | K104: 3804700 | L104: 2.14 | M104: 0.002068994085
A105: Adenosine kinase | B105: P55264 | C105: Adk | D105: 806920 | E105: 1144000 | F105: 896850 | G105: 1055200 | H105: 1149700 | I105: 1069400 | J105: 949256.6667 | K105: 1091433.333 | L105: 1.15 | M105: 0.2470853339
A106: Activity-dependent neuroprotector homeobox protein | B106: Q6ZQ47 | C106: Adnp | D106: 779600 | E106: 0 | F106: 0 | G106: 0 | H106: 0 | I106: 0 | J106: 259866.6667 | K106: 0 | L106: 0.00 | M106: 0.3739009663
A107: 2-aminoethanethiol dioxygenase | B107: Q6PDY2 | C107: Ado | D107: 0 | E107: 1151100 | F107: 0 | G107: 0 | H107: 1405600 | I107: 1006000 | J107: 383700 | K107: 803866.6667 | L107: 2.10 | M107: 0.5001880917
A108: [Protein ADP-ribosylarginine] hydrolase | B108: Q3U5N4 | C108: Adprh | D108: 3819200 | E108: 2929100 | F108: 4032600 | G108: 4891600 | H108: 3363300 | I108: 3319800 | J108: 3593633.333 | K108: 3858233.333 | L108: 1.07 | M108: 0.6903557811
A109: Poly(ADP-ribose) glycohydrolase ARH3 | B109: Q8CG72 | C109: Adprhl2 | D109: 1261700 | E109: 998630 | F109: 1162300 | G109: 904680 | H109: 657340 | I109: 1013700 | J109: 1140876.667 | K109: 858573.3333 | L109: 0.75 | M109: 0.09630271253
A110: Beta-adrenergic receptor kinase 1 | B110: Q3U1V3 | C110: Adrbk1 | D110: 4037000 | E110: 4696100 | F110: 4518700 | G110: 4121900 | H110: 4329100 | I110: 3584000 | J110: 4417266.667 | K110: 4011666.667 | L110: 0.91 | M110: 0.2435014067
A111: Proteasomal ubiquitin receptor ADRM1 | B111: Q9JKV1 | C111: Adrm1 | D111: 851800 | E111: 489600 | F111: 481190 | G111: 785980 | H111: 650300 | I111: 726790 | J111: 607530 | K111: 721023.3333 | L111: 1.19 | M111: 0.4264014567
A112: Adenylosuccinate lyase | B112: Q3TMB8 | C112: Adsl | D112: 861700 | E112: 868180 | F112: 684270 | G112: 965430 | H112: 818450 | I112: 927400 | J112: 804716.6667 | K112: 903760 | L112: 1.12 | M112: 0.255176333
A113: Adenylosuccinate synthetase isozyme 2 | B113: B9EIE9 | C113: Adss | D113: 662010 | E113: 1395000 | F113: 1002700 | G113: 1607600 | H113: 1546700 | I113: 1115600 | J113: 1019903.333 | K113: 1423300 | L113: 1.40 | M113: 0.1989540337
A114: Adenylosuccinate synthetase isozyme 1 | B114: Q3UBP0 | C114: Adssl1 | D114: 0 | E114: 0 | F114: 117770 | G114: 0 | H114: 109790 | I114: 0 | J114: 39256.66667 | K114: 36596.66667 | L114: 0.93 | M114: 0.9628469744
A115: AFG3-like protein 2 | B115: Q3UDQ7 | C115: Afg3l2 | D115: 575340 | E115: 1507000 | F115: 340790 | G115: 241000 | H115: 1935200 | I115: 156290 | J115: 807710 | K115: 777496.6667 | L115: 0.96 | M115: 0.9666938871
A116: Alpha-fetoprotein | B116: Q3TGA3 | C116: Afp | D116: 0 | E116: 0 | F116: 0 | G116: 1129800 | H116: 0 | I116: 0 | J116: 0 | K116: 376600 | L116: Mut only | M116: 0.3739009663
A117: Arf-GAP with GTPase, ANK repeat and PH domain-containing protein 1 | B117: A0A087WRF2 | C117: Agap1 | D117: 1459800 | E117: 1520200 | F117: 796240 | G117: 996870 | H117: 980520 | I117: 980980 | J117: 1258746.667 | K117: 986123.3333 | L117: =K117/J117 -> 0.78 | M117: 0.3050780022
A118: Arf-GAP with GTPase, ANK repeat and PH domain-containing protein 2 | B118: Q3UHD9 | C118: Agap2 | D118: 2665700 | E118: 2293500 | F118: 2640300 | G118: 2760000 | H118: 4024400 | I118: 3184900 | J118: 2533166.667 | K118: 3323100 | L118: 1.31 | M118: 0.1130614503
A119: Arf-GAP with GTPase, ANK repeat and PH domain-containing protein 3 | B119: F8VQE9 | C119: Agap3 | D119: 2132800 | E119: 2869200 | F119: 2318200 | G119: 1714000 | H119: 1948900 | I119: 1750000 | J119: 2440066.667 | K119: 1804300 | L119: 0.74 | M119: 0.05244943687
A120: Arf-GAP domain and FG repeat-containing protein 1 | B120: A0A087WNV1 | C120: Agfg1 | D120: 757060 | E120: 494040 | F120: 968460 | G120: 839040 | H120: 574900 | I120: 670130 | J120: 739853.3333 | K120: 694690 | L120: 0.94 | M120: 0.788497189
A121: Acylglycerol kinase, mitochondrial | B121: Q9ESW4 | C121: Agk | D121: 1064700 | E121: 932360 | F121: 1170000 | G121: 1298600 | H121: 0 | I121: 1012100 | J121: 1055686.667 | K121: 770233.3333 | L121: 0.73 | M121: 0.5147344098
A122: Amylo-1,6-glucosidase, 4-alpha-glucanotransferase | B122: F8VPN4 | C122: Agl | D122: 4912800 | E122: 5754000 | F122: 5154400 | G122: 5700400 | H122: 6302100 | I122: 6078300 | J122: 5273733.333 | K122: 6026933.333 | L122: 1.14 | M122: 0.06931061408
A123: Protein argonaute-2 | B123: Q8CJG0 | C123: Ago2 | D123: 409100 | E123: 362060 | F123: 185880 | G123: 254890 | H123: 521670 | I123: 178090 | J123: 319013.3333 | K123: 318216.6667 | L123: 1.00 | M123: 0.9951938786
A124: 1-acyl-sn-glycerol-3-phosphate acyltransferase delta | B124: Q8K4X7 | C124: Agpat4 | D124: 0 | E124: 961180 | F124: 692500 | G124: 0 | H124: 1201600 | I124: 1802100 | J124: 551226.6667 | K124: 1001233.333 | L124: 1.82 | M124: 0.4964344186
A125: Alkyldihydroxyacetonephosphate synthase, peroxisomal | B125: A2AL50 | C125: Agps | D125: 381590 | E125: 220710 | F125: 489600 | G125: 522800 | H125: 342770 | I125: 207800 | J125: 363966.6667 | K125: 357790 | L125: 0.98 | M125: 0.9614544725
A126: Agrin | B126: Z4YK85 | C126: Agrn | D126: 3398800 | E126: 1273800 | F126: 1252600 | G126: 2907600 | H126: 1915200 | I126: 4042300 | J126: 1975066.667 | K126: 2955033.333 | L126: 1.50 | M126: 0.356226865
A127: Cytosolic carboxypeptidase 1 | B127: Q641K1-2 | C127: Agtpbp1 | D127: 486010 | E127: 0 | F127: 178360 | G127: 354490 | H127: 407170 | I127: 199380 | J127: 221456.6667 | K127: 320346.6667 | L127: 1.45 | M127: 0.5582666129
A128: Adenosylhomocysteinase | B128: Q3U5U5 | C128: Ahcy | D128: 12882000 | E128: 14393000 | F128: 11727000 | G128: 8487600 | H128: 13183000 | I128: 13467000 | J128: 13000666.67 | K128: 11712533.33 | L128: 0.90 | M128: 0.5114635627
A129: Putative adenosylhomocysteinase 2 | B129: Q80SW1 | C129: Ahcyl1 | D129: 32826000 | E129: 37682000 | F129: 30359000 | G129: 43079000 | H129: 46630000 | I129: 36385000 | J129: 33622333.33 | K129: 42031333.33 | L129: 1.25 | M129: 0.08514674785
A130: Putative adenosylhomocysteinase 3 | B130: F8WGT1 | C130: Ahcyl2 | D130: 1843100 | E130: 1564000 | F130: 1502200 | G130: 2259600 | H130: 1986600 | I130: 2195400 | J130: 1636433.333 | K130: 2147200 | L130: 1.31 | M130: 0.01862301959
A131: Jouberin | B131: E9QP54 | C131: Ahi1 | D131: 3093400 | E131: 1721700 | F131: 2192200 | G131: 2461000 | H131: 1909000 | I131: 1545600 | J131: 2335766.667 | K131: 1971866.667 | L131: 0.84 | M131: 0.4926641618
A132: AHNAK nucleoprotein | B132: E9Q616 | C132: Ahnak | D132: 0 | E132: 618400 | F132: 821830 | G132: 1043900 | H132: 929250 | I132: 1081900 | J132: =AVERAGE(D132:F132) -> 480076.6667 | K132: =AVERAGE(G132:I132) -> 1018350 | L132: 2.12 | M132: =_xlfn.T.TEST(D132:F132,G132:I132,2,2) -> 0.09890885086
A133: Activator of 90 kDa heat shock protein ATPase homolog 1 | B133: Q3TL79 | C133: Ahsa1 | D133: 5507100 | E133: 5897800 | F133: 5965600 | G133: 6552700 | H133: 6384200 | I133: 7377800 | J133: 5790166.667 | K133: 6771566.667 | L133: 1.17 | M133: 0.04419446242
A134: Alpha-2-HS-glycoprotein | B134: Q3UEK9 | C134: Ahsg | D134: 642270 | E134: 619300 | F134: 890410 | G134: 1083400 | H134: 984540 | I134: 4162400 | J134: 717326.6667 | K134: 2076780 | L134: 2.90 | M134: 0.2638654728
A135: Axin interactor, dorsalization-associated protein | B135: Q8C4Q6 | C135: Aida | D135: 736210 | E135: 774600 | F135: 768830 | G135: 1016000 | H135: 742620 | I135: 813060 | J135: 759880 | K135: 857226.6667 | L135: 1.13 | M135: 0.3050036313
A136: Apoptosis-inducing factor 1, mitochondrial | B136: B1AU25 | C136: Aifm1 | D136: 1585900 | E136: 1553600 | F136: 1130100 | G136: 1141600 | H136: 1424500 | I136: 1656800 | J136: 1423200 | K136: 1407633.333 | L136: 0.99 | M136: 0.9442498195
A137: Aminoacyl tRNA synthase complex-interacting multifunctional protein 1 | B137: Q8C2U7 | C137: Aimp1 | D137: 5674900 | E137: 5172200 | F137: 6156800 | G137: 6065900 | H137: 6919000 | I137: 6117200 | J137: 5667966.667 | K137: 6367366.667 | L137: 1.12 | M137: 0.1523954662
A138: Aminoacyl tRNA synthase complex-interacting multifunctional protein 2 | B138: Q8R3V2 | C138: Aimp2 | D138: 473650 | E138: 504840 | F138: 432960 | G138: 608900 | H138: 1743600 | I138: 723650 | J138: 470483.3333 | K138: 1025383.333 | L138: 2.18 | M138: 0.1993112199
A139: AH receptor-interacting protein | B139: O08915 | C139: Aip | D139: 0 | E139: 0 | F139: 0 | G139: 2182600 | H139: 0 | I139: 1404000 | J139: 0 | K139: 1195533.333 | L139: Mut only | M139: 0.1345133747
A140: Adenylate kinase isoenzyme 1 | B140: Q9R0Y5 | C140: Ak1 | D140: 133130000 | E140: 146310000 | F140: 91032000 | G140: 126170000 | H140: 157130000 | I140: 144350000 | J140: 123490666.7 | K140: 142550000 | L140: =K140/J140 -> 1.15 | M140: 0.3711030217
A141: Adenylate kinase 2, mitochondrial | B141: Q9WTP6-2 | C141: Ak2 | D141: 6803800 | E141: 5705600 | F141: 5487000 | G141: 8542600 | H141: 6774100 | I141: 5973400 | J141: 5998800 | K141: 7096700 | L141: 1.18 | M141: 0.2714923321
A142: GTP:AMP phosphotransferase AK3, mitochondrial | B142: Q9WTP7 | C142: Ak3 | D142: 2399300 | E142: 1823600 | F142: 1506300 | G142: 1608900 | H142: 3531200 | I142: 1730000 | J142: 1909733.333 | K142: 2290033.333 | L142: 1.20 | M142: 0.6028701426
A143: Adenylate kinase 4, mitochondrial | B143: Q3U489 | C143: Ak4 | D143: 1308000 | E143: 1684800 | F143: 1171100 | G143: 1361900 | H143: 1351900 | I143: 1232600 | J143: 1387966.667 | K143: 1315466.667 | L143: 0.95 | M143: 0.6722646762
A144: Adenylate kinase isoenzyme 5 | B144: Q920P5 | C144: Ak5 | D144: 1017800 | E144: 1404800 | F144: 2237500 | G144: 1946000 | H144: 1502700 | I144: 1328100 | J144: 1553366.667 | K144: 1592266.667 | L144: 1.03 | M144: 0.9279450372
A145: A-kinase anchor protein 12 | B145: B2RRE0 | C145: Akap12 | D145: 7655000 | E145: 5825300 | F145: 6959000 | G145: 6276400 | H145: 5167900 | I145: 6259200 | J145: 6813100 | K145: 5901166.667 | L145: 0.87 | M145: 0.2315565457
A146: A-kinase anchor protein 5 | B146: H3BIV5 | C146: Akap5 | D146: 12516000 | E146: 14472000 | F146: 13941000 | G146: 9969600 | H146: 15274000 | I146: 13097000 | J146: 13643000 | K146: 12780200 | L146: 0.94 | M146: 0.6279510366
A147: A-kinase anchor protein 7 isoform alpha | B147: O55074 | C147: Akap7 | D147: 2304000 | E147: 0 | F147: 0 | G147: 2132300 | H147: 2201100 | I147: 0 | J147: 768000 | K147: 1444466.667 | L147: 1.88 | M147: 0.5560853703
A148: A-kinase anchor protein 8 | B148: Q059U9 | C148: Akap8 | D148: 1494200 | E148: 0 | F148: 1882800 | G148: 0 | H148: 127300 | I148: 1354400 | J148: 1125666.667 | K148: 493900 | L148: 0.44 | M148: 0.4287292977
A149: A-kinase anchor protein 9 | B149: E9QQ10 | C149: Akap9 | D149: 0 | E149: 4440400 | F149: 4088500 | G149: 0 | H149: 2764800 | I149: 2393300 | J149: 2842966.667 | K149: 1719366.667 | L149: 0.60 | M149: 0.5374212899
A150: Alcohol dehydrogenase [NADP(+)] | B150: Q540D7 | C150: Akr1a1 | D150: 13610000 | E150: 12427000 | F150: 10635000 | G150: 14401000 | H150: 14574000 | I150: 16507000 | J150: 12224000 | K150: 15160666.67 | L150: 1.24 | M150: 0.05540714626
A151: Aldo-keto reductase family 1, member B10 | B151: D3Z494 | C151: Akr1b10 | D151: 751970 | E151: 1160000 | F151: 502250 | G151: 933420 | H151: 179180 | I151: 818210 | J151: 804740 | K151: 643603.3333 | L151: 0.80 | M151: 0.6229677193
A152: Aldose reductase | B152: Q5U415 | C152: Akr1b3 | D152: 8331300 | E152: 9274700 | F152: 7890600 | G152: 9834000 | H152: 10483000 | I152: 9545100 | J152: 8498866.667 | K152: 9954033.333 | L152: 1.17 | M152: 0.04203228854
A153: 1,5-anhydro-D-fructose reductase | B153: Q9DCT1 | C153: Akr1e2 | D153: 0 | E153: 565710 | F153: 0 | G153: 330110 | H153: 619130 | I153: 595560 | J153: 188570 | K153: 514933.3333 | L153: 2.73 | M153: 0.1953074703
A154: Aflatoxin B1 aldehyde reductase member 2 | B154: Q8CG76 | C154: Akr7a2 | D154: 4276600 | E154: 3312000 | F154: 3102000 | G154: 4570100 | H154: 4163300 | I154: 4418300 | J154: 3563533.333 | K154: 4383900 | L154: 1.23 | M154: 0.09740088506
A155: RAC-alpha serine/threonine-protein kinase | B155: Q8BS26 | C155: Akt1 | D155: 796210 | E155: 836650 | F155: 793400 | G155: 968700 | H155: 931800 | I155: 739930 | J155: 808753.3333 | K155: 880143.3333 | L155: 1.09 | M155: 0.3791882157
A156: RAC-beta serine/threonine-protein kinase | B156: Q3TY95 | C156: Akt2 | D156: 450200 | E156: 703430 | F156: 837890 | G156: 439050 | H156: 562180 | I156: 624710 | J156: 663840 | K156: 541980 | L156: 0.82 | M156: 0.3884509474
A157: RAC-gamma serine/threonine-protein kinase | B157: Q6NXW0 | C157: Akt3 | D157: 1446000 | E157: 1181800 | F157: 1964200 | G157: 1615900 | H157: 1445800 | I157: 1644200 | J157: 1530666.667 | K157: 1568633.333 | L157: 1.02 | M157: 0.8809865498
A158: AKT-interacting protein | B158: D3Z2J4 | C158: Aktip | D158: 0 | E158: 350430 | F158: 1160400 | G158: 0 | H158: 341180 | I158: 333570 | J158: 503610 | K158: 224916.6667 | L158: 0.45 | M158: 0.4838285289
A159: Delta-aminolevulinic acid dehydratase | B159: Q9DD05 | C159: Alad | D159: 6188900 | E159: 8431300 | F159: 9581400 | G159: 6712300 | H159: 7957200 | I159: 7263100 | J159: 8067200 | K159: 7310866.667 | L159: 0.91 | M159: 0.5146516274
A160: Serum albumin | B160: Q546G4 | C160: Alb | D160: 254130000 | E160: 291750000 | F160: 238600000 | G160: 329580000 | H160: 345020000 | I160: 641320000 | J160: 261493333.3 | K160: 438640000 | L160: 1.68 | M160: 0.1595007836
A161: CD166 antigen | B161: E9Q3Q6 | C161: Alcam | D161: 7132100 | E161: 6094200 | F161: 6444600 | G161: 7001600 | H161: 5517500 | I161: 6044500 | J161: 6556966.667 | K161: 6187866.667 | L161: 0.94 | M161: 0.5250127056
A162: Aldehyde dehydrogenase family 16 member A1 | B162: D3Z0B9 | C162: Aldh16a1 | D162: 29312 | E162: 0 | F162: 31009 | G162: 0 | H162: 0 | I162: 0 | J162: 20107 | K162: 0 | L162: 0.00 | M162: 0.1164312296
A163: Delta-1-pyrroline-5-carboxylate synthase | B163: Q3TWN8 | C163: Aldh18a1 | D163: 654830 | E163: 465390 | F163: 479040 | G163: 394840 | H163: 593970 | I163: 450770 | J163: 533086.6667 | K163: 479860 | L163: 0.90 | M163: 0.5654499019
A164: Retinal dehydrogenase 1 | B164: P24549 | C164: Aldh1a1 | D164: 0 | E164: 714220 | F164: 709730 | G164: 0 | H164: 396450 | I164: 742420 | J164: 474650 | K164: 379623.3333 | L164: 0.80 | M164: 0.7812061673
A165: Aldehyde dehydrogenase X, mitochondrial | B165: Q9CZS1 | C165: Aldh1b1 | D165: 2280000 | E165: 1356600 | F165: 1565400 | G165: 1816000 | H165: 1745600 | I165: 1281700 | J165: 1734000 | K165: 1614433.333 | L165: 0.93 | M165: 0.7323421515
A166: Cytosolic 10-formyltetrahydrofolate dehydrogenase | B166: Q8R0Y6 | C166: Aldh1l1 | D166: 35478000 | E166: 32225000 | F166: 24125000 | G166: 34180000 | H166: 29823000 | I166: 32750000 | J166: 30609333.33 | K166: 32251000 | L166: 1.05 | M166: 0.672936532
A167: Mitochondrial 10-formyltetrahydrofolate dehydrogenase | B167: Q8K009 | C167: Aldh1l2 | D167: 548320 | E167: 371760 | F167: 0 | G167: 0 | H167: 326490 | I167: 236060 | J167: 306693.3333 | K167: 187516.6667 | L167: 0.61 | M167: 0.5618447645
A168: Aldehyde dehydrogenase, mitochondrial | B168: Q544B1 | C168: Aldh2 | D168: 10806000 | E168: 8334200 | F168: 8987200 | G168: 8564300 | H168: 8034100 | I168: 7212000 | J168: 9375800 | K168: 7936800 | L168: 0.85 | M168: 0.1609459148
A169: Aldehyde dehydrogenase | B169: Q8C5J1 | C169: Aldh3a2 | D169: 633540 | E169: 319740 | F169: 438930 | G169: 0 | H169: 593470 | I169: 0 | J169: 464070 | K169: 197823.3333 | L169: 0.43 | M169: 0.2889129748
A170: Delta-1-pyrroline-5-carboxylate dehydrogenase, mitochondrial | B170: Q8CHT0 | C170: Aldh4a1 | D170: 256120 | E170: 270550 | F170: 375410 | G170: 65248 | H170: 217740 | I170: 148010 | J170: 300693.3333 | K170: 143666 | L170: 0.48 | M170: 0.05349402165
A171: Succinate-semialdehyde dehydrogenase, mitochondrial | B171: B2RS41 | C171: Aldh5a1 | D171: 14460000 | E171: 13769000 | F171: 12800000 | G171: 12229000 | H171: 9569100 | I171: 9458800 | J171: 13676333.33 | K171: 10418966.67 | L171: 0.76 | M171: 0.03366158534
A172: Methylmalonate-semialdehyde dehydrogenase [acylating], mitochondrial | B172: Q9EQ20 | C172: Aldh6a1 | D172: 2311900 | E172: 2776000 | F172: 1885200 | G172: 2571100 | H172: 2562700 | I172: 2213900 | J172: 2324366.667 | K172: 2449233.333 | L172: 1.05 | M172: 0.6817191208
A173: Alpha-aminoadipic semialdehyde dehydrogenase | B173: Q9DBF1-2 | C173: Aldh7a1 | D173: 1630400 | E173: 2374500 | F173: 1547900 | G173: 2057900 | H173: 1874200 | I173: 1520800 | J173: 1850933.333 | K173: 1817633.333 | L173: 0.98 | M173: 0.9187131517
A174: 4-trimethylaminobutyraldehyde dehydrogenase | B174: Q3TMT4 | C174: Aldh9a1 | D174: 666160 | E174: 992660 | F174: 942940 | G174: 1397000 | H174: 2521000 | I174: 1480700 | J174: 867253.3333 | K174: 1799566.667 | L174: 2.08 | M174: 0.0680125761
A175: Fructose-bisphosphate aldolase | B175: Q5FWB7 | C175: Aldoa | D175: 396280000 | E175: 442400000 | F175: 492300000 | G175: 388570000 | H175: 390110000 | I175: 441920000 | J175: 443660000 | K175: 406866666.7 | L175: 0.92 | M175: 0.324806645
A176: Fructose-bisphosphate aldolase C | B176: P05063 | C176: Aldoc | D176: 188030000 | E176: 258470000 | F176: 241370000 | G176: 218200000 | H176: 232710000 | I176: 257320000 | J176: 229290000 | K176: 236076666.7 | L176: 1.03 | M176: 0.792131578
A177: Alpha-1,3/1,6-mannosyltransferase ALG2 | B177: Q9DBE8 | C177: Alg2 | D177: 11110000 | E177: 8955800 | F177: 9796200 | G177: 12723000 | H177: 11757000 | I177: 11468000 | J177: 9954000 | K177: 11982666.67 | L177: 1.20 | M177: 0.05040512135
A178: Alkaline phosphatase | B178: Q9EQ79 | C178: Alpl | D178: 49270 | E178: 0 | F178: 183340 | G178: 57790 | H178: 0 | I178: 89780 | J178: 77536.66667 | K178: 49190 | L178: 0.63 | M178: 0.6650792007
A179: THO complex subunit 4 | B179: O08583 | C179: Alyref | D179: 0 | E179: 588940 | F179: 0 | G179: 0 | H179: 389950 | I179: 0 | J179: 196313.3333 | K179: 129983.3333 | L179: 0.66 | M179: 0.7921314542
A180: AMP deaminase 2 | B180: A2AE27 | C180: Ampd2 | D180: 0 | E180: 156570 | F180: 0 | G180: 218500 | H180: 0 | I180: 0 | J180: 52190 | K180: 72833.33333 | L180: 1.40 | M180: 0.8290923191
A181: AMP deaminase 3 | B181: Q922J7 | C181: Ampd3 | D181: 371290 | E181: 412520 | F181: 218930 | G181: 388810 | H181: 364790 | I181: 393170 | J181: 334246.6667 | K181: 382256.6667 | L181: 1.14 | M181: 0.4651913072
A182: Amphiphysin | B182: A0A0G2JEG8 | C182: Amph | D182: 19407000 | E182: 25801000 | F182: 22859000 | G182: 15899000 | H182: 17825000 | I182: 16905000 | J182: 22689000 | K182: 16876333.33 | L182: 0.74 | M182: 0.03946035847
A183: Anaphase-promoting complex subunit 1 | B183: B7ZNX2 | C183: Anapc1 | D183: 2918000 | E183: 993620 | F183: 3513700 | G183: 21112000 | H183: 0 | I183: 599280 | J183: 2475106.667 | K183: 7237093.333 | L183: 2.92 | M183: 0.5326149598
A184: Ankyrin-1 | B184: G5E8J2 | C184: Ank1 | D184: 261500 | E184: 502870 | F184: 0 | G184: 0 | H184: 431810 | I184: 5168300 | J184: 254790 | K184: 1866703.333 | L184: 7.33 | M184: 0.3869972334
A185: Ankyrin-2 | B185: Q8C8R3-2 | C185: Ank2 | D185: 185700000 | E185: 200260000 | F185: 207440000 | G185: 228220000 | H185: 210560000 | I185: 193700000 | J185: 197800000 | K185: 210826666.7 | L185: 1.07 | M185: 0.3330469328
A186: Ankyrin-3 | B186: W6PPA1 | C186: Ank3 | D186: 3880300 | E186: 4996600 | F186: 4994400 | G186: 4987300 | H186: 6721200 | I186: 5755600 | J186: 4623766.667 | K186: 5821366.667 | L186: 1.26 | M186: 0.127538037
A187: Rabankyrin-5 | B187: Q810B6 | C187: Ankfy1 | D187: 2191100 | E187: 2266100 | F187: 2431800 | G187: 3001700 | H187: 4664700 | I187: 1934100 | J187: 2296333.333 | K187: 3200166.667 | L187: 1.39 | M187: 0.3204790965
A188: Ankyrin repeat and LEM domain-containing protein 2 | B188: Q6P1H6-3 | C188: Ankle2 | D188: 0 | E188: 0 | F188: 181500 | G188: 0 | H188: 0 | I188: 0 | J188: 60500 | K188: 0 | L188: 0.00 | M188: 0.3739009663
A189: Ankyrin repeat and MYND domain-containing protein 2 | B189: Q3TPE9-2 | C189: Ankmy2 | D189: 0 | E189: 653920 | F189: 693550 | G189: 400970 | H189: 369820 | I189: 388900 | J189: 449156.6667 | K189: 386563.3333 | L189: 0.86 | M189: 0.7946988151
A190: Ankyrin repeat domain-containing protein 17 | B190: E9QKG6 | C190: Ankrd17 | D190: 450590 | E190: 0 | F190: 0 | G190: 0 | H190: 0 | I190: 0 | J190: 150196.6667 | K190: 0 | L190: 0.00 | M190: 0.3739009663
A191: Ankyrin repeat domain-containing protein 24 | B191: Q8VD21 | C191: Ankrd24 | D191: 0 | E191: 0 | F191: 0 | G191: 1196300 | H191: 2079300 | I191: 2220600 | J191: 0 | K191: 1832066.667 | L191: Mut only | M191: 0.004632936603
A192: Serine/threonine-protein phosphatase 6 regulatory ankyrin repeat subunit A | B192: Q505D1 | C192: Ankrd28 | D192: 121350 | E192: 0 | F192: 102200 | G192: 111370 | H192: 52752 | I192: 87520 | J192: 74516.66667 | K192: 83880.66667 | L192: =K192/J192 -> 1.13 | M192: 0.8318789156
A193: Ankyrin repeat domain-containing protein 46 | B193: Q8BTZ5 | C193: Ankrd46 | D193: 835260 | E193: 914920 | F193: 0 | G193: 1638000 | H193: 898330 | I193: 1011000 | J193: 583393.3333 | K193: 1182443.333 | L193: =K193/J193 -> 2.03 | M193: 0.1828256137
A194: Acidic leucine-rich nuclear phosphoprotein 32 family member A | B194: O35381 | C194: Anp32a | D194: 25347000 | E194: 25329000 | F194: 26572000 | G194: 27157000 | H194: 29420000 | I194: 28493000 | J194: 25749333.33 | K194: 28356666.67 | L194: =K194/J194 -> 1.10 | M194: 0.02819276087
A195: Acidic leucine-rich nuclear phosphoprotein 32 family member B | B195: Q3UW32 | C195: Anp32b | D195: 3090900 | E195: 2502200 | F195: 1971200 | G195: 2296300 | H195: 1560200 | I195: 1788200 | J195: 2521433.333 | K195: 1881566.667 | L195: =K195/J195 -> 0.75 | M195: 0.175986468
A196: Acidic leucine-rich nuclear phosphoprotein 32 family member E | B196: E9Q5H2 | C196: Anp32e | D196: 5376200 | E196: 3558800 | F196: 4510600 | G196: 2570100 | H196: 3528600 | I196: 3251900 | J196: =AVERAGE(D196:F196) -> 4481866.667 | K196: =AVERAGE(G196:I196) -> 3116866.667 | L196: =K196/J196 -> 0.70 | M196: =_xlfn.T.TEST(D196:F196,G196:I196,2,2) -> 0.08423539493
A197: Aminopeptidase N | B197: Q3TB69 | C197: Anpep | D197: 0 | E197: 0 | F197: 0 | G197: 2207400 | H197: 0 | I197: 4262400 | J197: 0 | K197: 2156600 | L197: Mut only | M197: 0.1545966966
A198: Annexin A1 | B198: P10107 | C198: Anxa1 | D198: 163390 | E198: 0 | F198: 9404800 | G198: 142930 | H198: 102790 | I198: 109230 | J198: 3189396.667 | K198: 118316.6667 | L198: =K198/J198 -> 0.04 | M198: 0.3790429374
A199: Annexin A11 | B199: P97384 | C199: Anxa11 | D199: 0 | E199: 0 | F199: 0 | G199: 0 | H199: 217610 | I199: 0 | J199: 0 | K199: 72536.66667 | L199: Mut only | M199: 0.3739009663
A200: Annexin A2 | B200: Q9CZI7 | C200: Anxa2 | D200: 14105000 | E200: 15913000 | F200: 14320000 | G200: 14628000 | H200: 12047000 | I200: 14406000 | J200: 14779333.33 | K200: 13693666.67 | L200: =K200/J200 -> 0.93 | M200: 0.3401964058
... 3010 more rows

Sheet P40-PROT
A1: Protein | B1: accession | C1: Gene | D1: MW | F1: Lane 1-WT | I1: Lane 2-Mut | K1: Average SC | M1: Abund | O1: NSAF:WT | R1: NSAF: Mut | U1: average NSAF | X1: average NSAF | Z1: NSAF ratio | AA1: T-Test
C2: ID | E2: WT1 | F2: WT2 | G2: WT3 | H2: Mut1 | I2: Mut2 | J2: Mut3 | K2: WT | L2: Mut | N2: WT1 | O2: WT2 | P2: WT3 | Q2: Mut1 | R2: Mut2 | S2: Mut3 | U2: WT | X2: Mut | Z2: Mut-WT | AA2: P-value
A3: Heterogeneous nuclear ribonucleoprotein A3 | B3: Q8BG05 | C3: Hnrnpa3 | D3: 40 | E3: 96 | F3: 100 | G3: 150 | H3: 70 | I3: 72 | J3: 48 | K3: =AVERAGE(E3:G3) -> 115.3 | L3: =AVERAGE(H3:J3) -> 63.3 | M3: H | N3: 0.000671 | O3: 0.000692 | P3: 0.000996 | Q3: 0.000433 | R3: 0.000499 | S3: 0.000392 | T3: =AVERAGE(N3:P3) -> 0.0008 | U3: ± | V3: =STDEV(N3:P3) -> 0.0002 | W3: =AVERAGE(Q3:S3) -> 0.0004 | X3: ± | Y3: =STDEV(Q3:S3) -> 0.0001 | Z3: =W3/T3 -> 0.56 | AA3: =_xlfn.T.TEST(N3:P3,Q3:S3,2,2) -> 0.03453
A4: Serine protease inhibitor A3K | B4: P07759 | C4: Serpina3k | D4: 47 | E4: 115 | F4: 81 | G4: 135 | H4: 46 | I4: 70 | J4: 70 | K4: 110.3 | L4: 62.0 | M4: H | N4: 0.000702 | O4: 0.0005 | P4: 0.000708 | Q4: 0.000276 | R4: 0.000435 | S4: 0.000405 | T4: 0.0006 | U4: ± | V4: 0.0001 | W4: 0.0004 | X4: ± | Y4: 0.0001 | Z4: 0.58 | AA4: 0.03445
A5: N(G),N(G)-dimethylarginine dimethylaminohydrolase 1 | B5: Q9CWS0 | C5: Ddah1 | D5: 31 | E5: 105 | F5: 70 | G5: 99 | H5: 69 | I5: 68 | J5: 41 | K5: 91.3 | L5: 59.3 | M5: H | N5: 0.000971 | O5: 0.000641 | P5: 0.000841 | Q5: 0.000551 | R5: 0.000581 | S5: 0.000384 | T5: 0.0008 | U5: ± | V5: 0.0002 | W5: 0.0005 | X5: ± | Y5: 0.0001 | Z5: 0.62 | AA5: 0.05175
A6: Spectrin beta chain, erythrocytic | B6: P15508 | C6: Sptb | D6: 245 | E6: 76 | F6: 108 | G6: 112 | H6: 81 | I6: 70 | J6: 36 | K6: 98.7 | L6: 62.3 | M6: H | N6: 9.4e-05 | O6: 0.000131 | P6: 0.000125 | Q6: 9.62e-05 | R6: 8.08e-05 | S6: 4.52e-05 | T6: 0.0001 | U6: ± | V6: 0.0000 | W6: 0.0001 | X6: ± | Y6: 0.0000 | Z6: 0.63 | AA6: 0.08797
A7: Isoform 2 of Cell adhesion molecule 2 | B7: Q8BLQ9-2 | C7: Cadm2 | D7: 44 | E7: 98 | F7: 61 | G7: 96 | H7: 60 | I7: 49 | J7: 50 | K7: 85.0 | L7: 53.0 | M7: H | N7: 0.00068 | O7: 0.000385 | P7: 0.000623 | Q7: 0.000359 | R7: 0.00029 | S7: 0.000451 | T7: 0.0006 | U7: ± | V7: 0.0002 | W7: 0.0004 | X7: ± | Y7: 0.0001 | Z7: 0.65 | AA7: 0.12613
A8: Mitochondrial proton/calcium exchanger protein | B8: Q9Z2I0 | C8: Letm1 | D8: 83 | E8: 101 | F8: 73 | G8: 108 | H8: 67 | I8: 72 | J8: 62 | K8: 94.0 | L8: 67.0 | M8: H | N8: 0.000375 | O8: 0.000262 | P8: 0.00036 | Q8: 0.000213 | R8: 0.000233 | S8: 0.000212 | T8: 0.0003 | U8: ± | V8: 0.0001 | W8: 0.0002 | X8: ± | Y8: 0.0000 | Z8: 0.66 | AA8: 0.03514
A9: Sodium/calcium exchanger 2 | B9: Q8K596 | C9: Slc8a2 | D9: 101 | E9: 84 | F9: 79 | G9: 92 | H9: 72 | I9: 67 | J9: 41 | K9: 85.0 | L9: 60.0 | M9: H | N9: 0.000262 | O9: 0.000221 | P9: 0.000244 | Q9: 0.00018 | R9: 0.000178 | S9: 0.000128 | T9: 0.0002 | U9: ± | V9: 0.0000 | W9: 0.0002 | X9: ± | Y9: 0.0000 | Z9: 0.669 | AA9: 0.01794
A10: Homer protein homolog 1 | B10: Q9Z2Y3 | C10: Homer1 | D10: 41 | E10: 88 | F10: 87 | G10: 109 | H10: 63 | I10: 70 | J10: 55 | K10: 94.7 | L10: 62.7 | M10: H | N10: 0.000658 | O10: 0.000626 | P10: 0.000758 | Q10: 0.00041 | R10: 0.000488 | S10: 0.000478 | T10: 0.0007 | U10: ± | V10: 0.0001 | W10: 0.0005 | X10: ± | Y10: 0.0000 | Z10: 0.67 | AA10: 0.00895
A11: cAMP-dependent protein kinase type II-beta regulatory subunit | B11: P31324 | C11: Prkar2b | D11: 46 | E11: 177 | F11: 152 | G11: 203 | H11: 123 | I11: 159 | J11: 80 | K11: 177.3 | L11: 120.7 | M11: H | N11: 0.00104 | O11: 0.000984 | P11: 0.00116 | Q11: 0.000687 | R11: 0.000922 | S11: 0.000544 | T11: 0.0011 | U11: ± | V11: 0.0001 | W11: 0.0007 | X11: ± | Y11: 0.0002 | Z11: 0.68 | AA11: 0.04776
A12: Synaptopodin | B12: Q8CC35 | C12: Synpo | D12: 100 | E12: 73 | F12: 104 | G12: 96 | H12: 71 | I12: 70 | J12: 48 | K12: 91.0 | L12: 63.0 | M12: H | N12: 0.000229 | O12: 0.000293 | P12: 0.000244 | Q12: 0.000192 | R12: 0.0002 | S12: 0.000126 | T12: 0.0003 | U12: ± | V12: 0.0000 | W12: 0.0002 | X12: ± | Y12: 0.0000 | Z12: 0.68 | AA12: 0.05295
A13: PHD finger protein 24 | B13: Q80TL4 | C13: Phf24 | D13: 45 | E13: 80 | F13: 74 | G13: 102 | H13: 66 | I13: 55 | J13: 63 | K13: 85.3 | L13: 61.3 | M13: H | N13: 0.00058 | O13: 0.000471 | P13: 0.000686 | Q13: 0.000422 | R13: 0.000321 | S13: 0.000436 | T13: 0.0006 | U13: ± | V13: 0.0001 | W13: 0.0004 | X13: ± | Y13: 0.0001 | Z13: 0.68 | AA13: 0.06080
A14: V-type proton ATPase subunit E 1 | B14: P50518 | C14: Atp6v1e1 | D14: 26 | E14: 220 | F14: 172 | G14: 156 | H14: 157 | I14: 141 | J14: 103 | K14: 182.7 | L14: 133.7 | M14: H | N14: 0.00268 | O14: 0.00194 | P14: 0.00152 | Q14: 0.00163 | R14: 0.00147 | S14: 0.00123 | T14: 0.0020 | U14: ± | V14: 0.0006 | W14: 0.0014 | X14: ± | Y14: 0.0002 | Z14: 0.71 | AA14: 0.16763
A15: Rabphilin-3A | B15: P47708 | C15: Rph3a | D15: 75 | E15: 94 | F15: 114 | G15: 105 | H15: 70 | I15: 78 | J15: 70 | K15: 104.3 | L15: 72.7 | M15: H | N15: 0.000349 | O15: 0.000441 | P15: 0.000369 | Q15: 0.00026 | R15: 0.000277 | S15: 0.000287 | T15: 0.0004 | U15: ± | V15: 0.0000 | W15: 0.0003 | X15: ± | Y15: 0.0000 | Z15: 0.71 | AA15: 0.01835
A16: ATP-dependent RNA helicase DDX3X | B16: Q62167 | C16: Ddx3x | D16: 73 | E16: 96 | F16: 76 | G16: 80 | H16: 68 | I16: 65 | J16: 49 | K16: 84.0 | L16: 60.7 | M16: H | N16: 0.00036 | O16: 0.000297 | P16: 0.000286 | Q16: 0.000244 | R16: 0.000238 | S16: 0.000198 | T16: 0.0003 | U16: ± | V16: 0.0000 | W16: 0.0002 | X16: ± | Y16: 0.0000 | Z16: 0.72 | AA16: 0.03219
A17: Heterogeneous nuclear ribonucleoprotein M | B17: Q9D0E1 | C17: Hnrnpm | D17: 78 | E17: 87 | F17: 115 | G17: 96 | H17: 67 | I17: 89 | J17: 60 | K17: 99.3 | L17: 72.0 | M17: H | N17: 0.000288 | O17: 0.000399 | P17: 0.000305 | Q17: 0.00022 | R17: 0.000294 | S17: 0.000202 | T17: 0.0003 | U17: ± | V17: 0.0001 | W17: 0.0002 | X17: ± | Y17: 0.0000 | Z17: 0.72 | AA17: 0.10778
A18: Excitatory amino acid transporter 1 | B18: P56564 | C18: Slc1a3 | D18: 60 | E18: 271 | F18: 235 | G18: 283 | H18: 103 | I18: 221 | J18: 190 | K18: 263.0 | L18: 171.3 | M18: H | N18: 0.00127 | O18: 0.00104 | P18: 0.00123 | Q18: 0.000475 | R18: 0.000945 | S18: 0.00115 | T18: 0.0012 | U18: ± | V18: 0.0001 | W18: 0.0009 | X18: ± | Y18: 0.0003 | Z18: 0.73 | AA18: 0.20195
A19: Matrin-3 | B19: Q8K310 | C19: Matr3 | D19: 95 | E19: 164 | F19: 112 | G19: 140 | H19: 120 | I19: 108 | J19: 92 | K19: 138.7 | L19: 106.7 | M19: H | N19: 0.000551 | O19: 0.000351 | P19: 0.000438 | Q19: 0.000342 | R19: 0.000316 | S19: 0.000323 | T19: 0.0004 | U19: ± | V19: 0.0001 | W19: 0.0003 | X19: ± | Y19: 0.0000 | Z19: 0.73 | AA19: 0.10987
A20: Voltage-dependent anion-selective channel protein 2 | B20: Q60930 | C20: Vdac2 | D20: 32 | E20: 129 | F20: 99 | G20: 94 | H20: 85 | I20: 87 | J20: 43 | K20: 107.3 | L20: 71.7 | M20: H | N20: 0.00103 | O20: 0.00085 | P20: 0.000726 | Q20: 0.000678 | R20: 0.000737 | S20: 0.000506 | T20: 0.0009 | U20: ± | V20: 0.0002 | W20: 0.0006 | X20: ± | Y20: 0.0001 | Z20: 0.74 | AA20: 0.11158
A21: UDP-N-acetylglucosamine--peptide N-acetylglucosaminyltransferase 110 kDa subunit | B21: Q8CGY8 | C21: Ogt | D21: 117 | E21: 116 | F21: 92 | G21: 79 | H21: 82 | I21: 76 | J21: 59 | K21: 95.7 | L21: 72.3 | M21: H | N21: 0.000288 | O21: 0.000223 | P21: 0.000172 | Q21: 0.000184 | R21: 0.00017 | S21: 0.000154 | T21: 0.0002 | U21: ± | V21: 0.0001 | W21: 0.0002 | X21: ± | Y21: 0.0000 | Z21: 0.74 | AA21: 0.16774
A22: Isoform 3 of Catenin alpha-2 | B22: Q61301-3 | C22: Ctnna2 | D22: 102 | E22: 138 | F22: 162 | G22: 175 | H22: 123 | I22: 132 | J22: 101 | K22: 158.3 | L22: 118.7 | M22: H | N22: 0.000441 | O22: 0.000457 | P22: 0.00048 | Q22: 0.000312 | R22: 0.000349 | S22: 0.000365 | T22: 0.0005 | U22: ± | V22: 0.0000 | W22: 0.0003 | X22: ± | Y22: 0.0000 | Z22: 0.74 | AA22: 0.00374
A23: Serine/threonine-protein kinase PAK 1 | B23: O88643 | C23: Pak1 | D23: 61 | E23: 98 | F23: 104 | G23: 110 | H23: 92 | I23: 79 | J23: 59 | K23: 104.0 | L23: 76.7 | M23: H | N23: 0.000423 | O23: 0.000509 | P23: 0.000454 | Q23: 0.000406 | R23: 0.000342 | S23: 0.000286 | T23: 0.0005 | U23: ± | V23: 0.0000 | W23: 0.0003 | X23: ± | Y23: 0.0001 | Z23: 0.75 | AA23: 0.05192
A24: Ras-related protein Rab-1A | B24: P62821 | C24: Rab1A | D24: 23 | E24: 107 | F24: 98 | G24: 122 | H24: 99 | I24: 81 | J24: 54 | K24: 109.0 | L24: 78.0 | M24: H | N24: 0.00135 | O24: 0.00122 | P24: 0.00137 | Q24: 0.00115 | R24: 0.000939 | S24: 0.000854 | T24: 0.0013 | U24: ± | V24: 0.0001 | W24: 0.0010 | X24: ± | Y24: 0.0002 | Z24: 0.75 | AA24: 0.02908
A25: Coronin-1A | B25: O89053 | C25: Coro1a | D25: 51 | E25: 75 | F25: 70 | G25: 112 | H25: 67 | I25: 68 | J25: 61 | K25: 85.7 | L25: 65.3 | M25: H | N25: 0.000474 | O25: 0.000393 | P25: 0.000635 | Q25: 0.000354 | R25: 0.000356 | S25: 0.000427 | T25: 0.0005 | U25: ± | V25: 0.0001 | W25: 0.0004 | X25: ± | Y25: 0.0000 | Z25: 0.76 | AA25: 0.18036
A26: 1-phosphatidylinositol 4,5-bisphosphate phosphodiesterase beta-1 | B26: Q9Z1B3 | C26: Plcb1 | D26: 138 | E26: 210 | F26: 188 | G26: 200 | H26: 148 | I26: 180 | J26: 128 | K26: 199.3 | L26: 152.0 | M26: H | N26: 0.000448 | O26: 0.000397 | P26: 0.000392 | Q26: 0.000298 | R26: 0.000375 | S26: 0.000278 | T26: 0.0004 | U26: ± | V26: 0.0000 | W26: 0.0003 | X26: ± | Y26: 0.0001 | Z26: 0.77 | AA26: 0.05093
A27: Brain acid soluble protein 1 | B27: Q91XV3 | C27: Basp1 | D27: 22 | E27: 546 | F27: 384 | G27: 523 | H27: 301 | I27: 305 | J27: 435 | K27: 484.3 | L27: 347.0 | M27: H | N27: 0.0083 | O27: 0.00472 | P27: 0.00676 | Q27: 0.00309 | R27: 0.00357 | S27: 0.00872 | T27: 0.0066 | U27: ± | V27: 0.0018 | W27: 0.0051 | X27: ± | Y27: 0.0031 | Z27: 0.78 | AA27: 0.51943
A28: Pyruvate carboxylase, mitochondrial | B28: Q05920 | C28: Pc | D28: 130 | E28: 109 | F28: 120 | G28: 128 | H28: 93 | I28: 98 | J28: 87 | K28: 119.0 | L28: 92.7 | M28: H | N28: 0.000234 | O28: 0.000272 | P28: 0.00026 | Q28: 0.000199 | R28: 0.000204 | S28: 0.000193 | T28: 0.0003 | U28: ± | V28: 0.0000 | W28: 0.0002 | X28: ± | Y28: 0.0000 | Z28: 0.78 | AA28: 0.00827
A29: Syntaxin-1A | B29: O35526 | C29: Stx1a | D29: 33 | E29: 166 | F29: 159 | G29: 167 | H29: 124 | I29: 141 | J29: 140 | K29: 164.0 | L29: 135.0 | M29: H | N29: 0.00179 | O29: 0.00146 | P29: 0.00146 | Q29: 0.00103 | R29: 0.00125 | S29: 0.00139 | T29: 0.0016 | U29: ± | V29: 0.0002 | W29: 0.0012 | X29: ± | Y29: 0.0002 | Z29: 0.78 | AA29: 0.08460
A30: Prelamin-A/C | B30: P48678 | C30: Lmna | D30: 74 | E30: 105 | F30: 109 | G30: 90 | H30: 96 | I30: 81 | J30: 73 | K30: 101.3 | L30: 83.3 | M30: H | N30: 0.000485 | O30: 0.00044 | P30: 0.000367 | Q30: 0.000367 | R30: 0.000314 | S30: 0.000334 | T30: 0.0004 | U30: ± | V30: 0.0001 | W30: 0.0003 | X30: ± | Y30: 0.0000 | Z30: 0.79 | AA30: 0.07048
A31: Myristoylated alanine-rich C-kinase substrate | B31: P26645 | C31: Marcks | D31: 30 | E31: 148 | F31: 101 | G31: 156 | H31: 81 | I31: 86 | J31: 125 | K31: 135.0 | L31: 97.3 | M31: H | N31: 0.00165 | O31: 0.000875 | P31: 0.00146 | Q31: 0.000612 | R31: 0.000679 | S31: 0.00184 | T31: 0.0013 | U31: ± | V31: 0.0004 | W31: 0.0010 | X31: ± | Y31: 0.0007 | Z31: 0.79 | AA31: 0.57100
A32: Secernin-1 | B32: Q9CZC8 | C32: Scrn1 | D32: 46 | E32: 79 | F32: 103 | G32: 113 | H32: 80 | I32: 92 | J32: 68 | K32: 98.3 | L32: 80.0 | M32: H | N32: 0.000537 | O32: 0.000623 | P32: 0.00068 | Q32: 0.000479 | R32: 0.000542 | S32: 0.000441 | T32: 0.0006 | U32: ± | V32: 0.0001 | W32: 0.0005 | X32: ± | Y32: 0.0001 | Z32: 0.79 | AA32: 0.06869
A33: Glycerol-3-phosphate dehydrogenase, mitochondrial | B33: Q64521 | C33: Gpd2 | D33: 81 | E33: 145 | F33: 190 | G33: 193 | H33: 158 | I33: 140 | J33: 121 | K33: 176.0 | L33: 139.7 | M33: H | N33: 0.000571 | O33: 0.000679 | P33: 0.000661 | Q33: 0.000511 | R33: 0.00047 | S33: 0.000545 | T33: 0.0006 | U33: ± | V33: 0.0001 | W33: 0.0005 | X33: ± | Y33: 0.0000 | Z33: 0.80 | AA33: 0.03221
A34: Isoform 2 of ATP-dependent RNA helicase A | B34: O70133-2 | C34: Dhx9 | D34: 150 | E34: 90 | F34: 85 | G34: 108 | H34: 84 | I34: 87 | J34: 61 | K34: 94.3 | L34: 77.3 | M34: H | N34: 0.000185 | O34: 0.00016 | P34: 0.000194 | Q34: 0.000153 | R34: 0.000159 | S34: 0.00012 | T34: 0.0002 | U34: ± | V34: 0.0000 | W34: 0.0001 | X34: ± | Y34: 0.0000 | Z34: 0.80 | AA34: 0.08728
A35: Isoform 2 of Solute carrier family 12 member 5 | B35: Q91V14-2 | C35: Slc12a5 | D35: 124 | E35: 217 | F35: 277 | G35: 251 | H35: 159 | I35: 199 | J35: 196 | K35: 248.3 | L35: 184.7 | M35: H | N35: 0.000477 | O35: 0.000637 | P35: 0.00055 | Q35: 0.000342 | R35: 0.000439 | S35: 0.000554 | T35: 0.0006 | U35: ± | V35: 0.0001 | W35: 0.0004 | X35: ± | Y35: 0.0001 | Z35: 0.80 | AA35: 0.22632
A36: Calcium/calmodulin-dependent protein kinase type II subunit alpha | B36: P11798 | C36: Camk2a | D36: 54 | E36: 505 | F36: 516 | G36: 524 | H36: 469 | I36: 471 | J36: 235 | K36: 515.0 | L36: 391.7 | M36: H | N36: 0.00255 | O36: 0.00282 | P36: 0.00246 | Q36: 0.00231 | R36: 0.00229 | S36: 0.0017 | T36: 0.0026 | U36: ± | V36: 0.0002 | W36: 0.0021 | X36: ± | Y36: 0.0003 | Z36: 0.80 | AA36: 0.08840
A37: Transgelin-3 | B37: Q9R1Q8 | C37: Tagln3 | D37: 22 | E37: 137 | F37: 121 | G37: 150 | H37: 117 | I37: 115 | J37: 81 | K37: 136.0 | L37: 104.3 | M37: H | N37: 0.00189 | O37: 0.00159 | P37: 0.00198 | Q37: 0.00138 | R37: 0.0015 | S37: 0.00152 | T37: 0.0018 | U37: ± | V37: 0.0002 | W37: 0.0015 | X37: ± | Y37: 0.0001 | Z37: 0.81 | AA37: 0.04832
A38: Elongation factor Tu, mitochondrial | B38: Q8BFR5 | C38: Tufm | D38: 50 | E38: 81 | F38: 103 | G38: 135 | H38: 104 | I38: 96 | J38: 68 | K38: 106.3 | L38: 89.3 | M38: H | N38: 0.000509 | O38: 0.000599 | P38: 0.000778 | Q38: 0.000533 | R38: 0.000514 | S38: 0.000477 | T38: 0.0006 | U38: ± | V38: 0.0001 | W38: 0.0005 | X38: ± | Y38: 0.0000 | Z38: 0.81 | AA38: 0.20940
A39: Myc box-dependent-interacting protein 1 | B39: O08539 | C39: Bin1 | D39: 64 | E39: 94 | F39: 124 | G39: 134 | H39: 89 | I39: 119 | J39: 79 | K39: 117.3 | L39: 95.7 | M39: H | N39: 0.000387 | O39: 0.000556 | P39: 0.000554 | Q39: 0.000358 | R39: 0.000498 | S39: 0.000354 | T39: 0.0005 | U39: ± | V39: 0.0001 | W39: 0.0004 | X39: ± | Y39: 0.0001 | Z39: 0.81 | AA39: 0.26206
A40: Myotubularin-related protein 5 | B40: Q6ZPE2 | C40: Sbf1 | D40: 209 | E40: 72 | F40: 86 | G40: 84 | H40: 79 | I40: 81 | J40: 44 | K40: 80.7 | L40: 68.0 | M40: H | N40: 9.84e-05 | O40: 0.000118 | P40: 0.000108 | Q40: 9.82e-05 | R40: 0.000105 | S40: 5.93e-05 | T40: 0.0001 | U40: ± | V40: 0.0000 | W40: 0.0001 | X40: ± | Y40: 0.0000 | Z40: 0.81 | AA40: 0.24927
A41: Heterogeneous nuclear ribonucleoprotein L | B41: Q8R081 | C41: Hnrnpl | D41: 64 | E41: 85 | F41: 92 | G41: 119 | H41: 74 | I41: 91 | J41: 76 | K41: 98.7 | L41: 80.3 | M41: H | N41: 0.000431 | O41: 0.000425 | P41: 0.000475 | Q41: 0.000313 | R41: 0.000382 | S41: 0.000383 | T41: 0.0004 | U41: ± | V41: 0.0000 | W41: 0.0004 | X41: ± | Y41: 0.0000 | Z41: 0.81 | AA41: 0.03957
A42: Plasma membrane calcium-transporting ATPase 1 | B42: G5E829 | C42: Atp2b1 | D42: 135 | E42: 134 | F42: 168 | G42: 159 | H42: 148 | I42: 117 | J42: 112 | K42: 153.7 | L42: 125.7 | M42: H | N42: 0.000292 | O42: 0.000358 | P42: 0.000316 | Q42: 0.000292 | R42: 0.000244 | S42: 0.000253 | T42: 0.0003 | U42: ± | V42: 0.0000 | W42: 0.0003 | X42: ± | Y42: 0.0000 | Z42: 0.82 | AA42: 0.07190
A43: Ryanodine receptor 2 | B43: E9Q401 | C43: Ryr2 | D43: 565 | E43: 127 | F43: 133 | G43: 184 | H43: 139 | I43: 161 | J43: 71 | K43: 148.0 | L43: 123.7 | M43: H | N43: 6.6e-05 | O43: 7.15e-05 | P43: 8.9e-05 | Q43: 6.43e-05 | R43: 7.66e-05 | S43: 4.41e-05 | T43: 0.0001 | U43: ± | V43: 0.0000 | W43: 0.0001 | X43: ± | Y43: 0.0000 | Z43: 0.82 | AA43: 0.30400
A44: Isoform 2 of Caskin-1 | B44: Q6P9K8-2 | C44: Caskin1 | D44: 143 | E44: 89 | F44: 91 | G44: 72 | H44: 56 | I44: 63 | J44: 76 | K44: 84.0 | L44: 65.0 | M44: H | N44: 0.00016 | O44: 0.00017 | P44: 0.000124 | Q44: 0.000104 | R44: 0.000111 | S44: 0.000156 | T44: 0.0002 | U44: ± | V44: 0.0000 | W44: 0.0001 | X44: ± | Y44: 0.0000 | Z44: 0.82 | AA44: 0.26683
A45: Isoform 2 of Tyrosine-protein phosphatase non-receptor type substrate 1 | B45: P97797-2 | C45: Sirpa | D45: 56 | E45: 103 | F45: 95 | G45: 120 | H45: 90 | I45: 78 | J45: 92 | K45: 106.0 | L45: 86.7 | M45: H | N45: 0.000551 | O45: 0.000502 | P45: 0.000531 | Q45: 0.000459 | R45: 0.000385 | S45: 0.000451 | T45: 0.0005 | U45: ± | V45: 0.0000 | W45: 0.0004 | X45: ± | Y45: 0.0000 | Z45: 0.82 | AA45: 0.02461
A46: Isoform 5 of Regulating synaptic membrane exocytosis protein 1 | B46: Q99NE5-5 | C46: Rims1 | D46: 151 | E46: 63 | F46: 97 | G46: 103 | H46: 72 | I46: 79 | J46: 51 | K46: 87.7 | L46: 67.3 | M46: H | N46: 0.000109 | O46: 0.000184 | P46: 0.000175 | Q46: 0.000132 | R46: 0.000137 | S46: 0.000114 | T46: 0.0002 | U46: ± | V46: 0.0000 | W46: 0.0001 | X46: ± | Y46: 0.0000 | Z46: 0.82 | AA46: 0.31449
A47: Fascin | B47: Q61553 | C47: Fscn1 | D47: 55 | E47: 258 | F47: 184 | G47: 251 | H47: 146 | I47: 201 | J47: 166 | K47: 231.0 | L47: 171.0 | M47: H | N47: 0.00121 | O47: 0.000958 | P47: 0.00113 | Q47: 0.000696 | R47: 0.000942 | S47: 0.00107 | T47: 0.0011 | U47: ± | V47: 0.0001 | W47: 0.0009 | X47: ± | Y47: 0.0002 | Z47: 0.82 | AA47: 0.21205
A48: Guanine deaminase | B48: Q9R111 | C48: Gda | D48: 51 | E48: 146 | F48: 159 | G48: 188 | H48: 176 | I48: 149 | J48: 77 | K48: 164.3 | L48: 134.0 | M48: H | N48: 0.000832 | O48: 0.000941 | P48: 0.000972 | Q48: 0.000864 | R48: 0.000785 | S48: 0.000605 | T48: 0.0009 | U48: ± | V48: 0.0001 | W48: 0.0008 | X48: ± | Y48: 0.0001 | Z48: 0.82 | AA48: 0.13513
A49: Tropomyosin alpha-1 chain | B49: P58771 | C49: Tpm1 | D49: 33 | E49: 104 | F49: 92 | G49: 66 | H49: 63 | I49: 100 | J49: 60 | K49: 87.3 | L49: 74.3 | M49: H | N49: 0.00106 | O49: 0.000922 | P49: 0.0006 | Q49: 0.000593 | R49: 0.000887 | S49: 0.00065 | T49: 0.0009 | U49: ± | V49: 0.0002 | W49: 0.0007 | X49: ± | Y49: 0.0002 | Z49: 0.82 | AA49: 0.40849
A50: AP-1 complex subunit beta-1 | B50: O35643 | C50: Ap1b1 | D50: 104 | E50: 88 | F50: 82 | G50: 92 | H50: 80 | I50: 59 | J50: 68 | K50: 87.3 | L50: 69.0 | M50: H | N50: 0.000224 | O50: 0.000228 | P50: 0.000227 | Q50: 0.000193 | R50: 0.000145 | S50: 0.000223 | T50: 0.0002 | U50: ± | V50: 0.0000 | W50: 0.0002 | X50: ± | Y50: 0.0000 | Z50: 0.83 | AA50: 0.15884
A51: Cytochrome c oxidase subunit 2 | B51: P00405 | C51: Mtco2 | D51: 26 | E51: 192 | F51: 140 | G51: 171 | H51: 137 | I51: 143 | J51: 107 | K51: 167.7 | L51: 129.0 | M51: H | N51: 0.00206 | O51: 0.00147 | P51: 0.00179 | Q51: 0.00151 | R51: 0.00148 | S51: 0.00143 | T51: 0.0018 | U51: ± | V51: 0.0003 | W51: 0.0015 | X51: ± | Y51: 0.0000 | Z51: 0.83 | AA51: 0.15628
A52: Band 4.1-like protein 2 | B52: O70318 | C52: Epb41l2 | D52: 110 | E52: 98 | F52: 78 | G52: 107 | H52: 87 | I52: 80 | J52: 71 | K52: 94.3 | L52: 79.3 | M52: H | N52: 0.0003 | O52: 0.000206 | P52: 0.000281 | Q52: 0.000214 | R52: 0.000204 | S52: 0.000238 | T52: 0.0003 | U52: ± | V52: 0.0000 | W52: 0.0002 | X52: ± | Y52: 0.0000 | Z52: 0.83 | AA52: 0.22446
A53: Actin-related protein 2/3 complex subunit 2 | B53: Q9CVB6 | C53: Arpc2 | D53: 34 | E53: 100 | F53: 78 | G53: 107 | H53: 74 | I53: 88 | J53: 67 | K53: 95.0 | L53: 76.3 | M53: H | N53: 0.00101 | O53: 0.000656 | P53: 0.000886 | Q53: 0.000589 | R53: 0.000683 | S53: 0.000864 | T53: 0.0009 | U53: ± | V53: 0.0002 | W53: 0.0007 | X53: ± | Y53: 0.0001 | Z53: 0.84 | AA53: 0.35083
A54: Dynactin subunit 1 | B54: O08788 | C54: Dctn1 | D54: 142 | E54: 127 | F54: 156 | G54: 129 | H54: 142 | I54: 112 | J54: 104 | K54: 137.3 | L54: 119.3 | M54: H | N54: 0.000302 | O54: 0.000329 | P54: 0.000243 | Q54: 0.00027 | R54: 0.000225 | S54: 0.000239 | T54: 0.0003 | U54: ± | V54: 0.0000 | W54: 0.0002 | X54: ± | Y54: 0.0000 | Z54: 0.84 | AA54: 0.17883
A55: T-complex protein 1 subunit alpha | B55: P11983 | C55: Tcp1 | D55: 60 | E55: 101 | F55: 105 | G55: 88 | H55: 95 | I55: 88 | J55: 64 | K55: 98.0 | L55: 82.3 | M55: H | N55: 0.000443 | O55: 0.000479 | P55: 0.000378 | Q55: 0.0004 | R55: 0.00037 | S55: 0.000324 | T55: 0.0004 | U55: ± | V55: 0.0001 | W55: 0.0004 | X55: ± | Y55: 0.0000 | Z55: 0.84 | AA55: 0.13629
A56: Protein NDRG2 | B56: Q9QYG0 | C56: Ndrg2 | D56: 41 | E56: 165 | F56: 134 | G56: 215 | H56: 167 | I56: 123 | J56: 112 | K56: 171.3 | L56: 134.0 | M56: H | N56: 0.00113 | O56: 0.000918 | P56: 0.00136 | Q56: 0.0011 | R56: 0.000824 | S56: 0.000945 | T56: 0.0011 | U56: ± | V56: 0.0002 | W56: 0.0010 | X56: ± | Y56: 0.0001 | Z56: 0.84 | AA56: 0.29869
A57: Ras-related protein Rab-14 | B57: Q91V41 | C57: Rab14 | D57: 24 | E57: 89 | F57: 68 | G57: 87 | H57: 76 | I57: 83 | J57: 42 | K57: 81.3 | L57: 67.0 | M57: H | N57: 0.00102 | O57: 0.000828 | P57: 0.00092 | Q57: 0.000837 | R57: 0.000935 | S57: 0.000559 | T57: 0.0009 | U57: ± | V57: 0.0001 | W57: 0.0008 | X57: ± | Y57: 0.0002 | Z57: 0.84 | AA57: 0.31038
A58: Protein bassoon | B58: O88737 | C58: Bsn | D58: 419 | E58: 374 | F58: 413 | G58: 409 | H58: 330 | I58: 346 | J58: 309 | K58: 398.7 | L58: 328.3 | M58: H | N58: 0.000269 | O58: 0.000276 | P58: 0.000254 | Q58: 0.000209 | R58: 0.000222 | S58: 0.000242 | T58: 0.0003 | U58: ± | V58: 0.0000 | W58: 0.0002 | X58: ± | Y58: 0.0000 | Z58: 0.84 | AA58: 0.02225
A59: Visinin-like protein 1 | B59: P62761 | C59: Vsnl1 | D59: 22 | E59: 157 | F59: 175 | G59: 168 | H59: 153 | I59: 170 | J59: 92 | K59: 166.7 | L59: 138.3 | M59: H | N59: 0.00223 | O59: 0.00241 | P59: 0.00226 | Q59: 0.00186 | R59: 0.0022 | S59: 0.00177 | T59: 0.0023 | U59: ± | V59: 0.0001 | W59: 0.0019 | X59: ± | Y59: 0.0002 | Z59: 0.84 | AA59: 0.06629
A60: SH3 and multiple ankyrin repeat domains protein 1 | B60: D3YZU1 | C60: Shank1 | D60: 226 | E60: 76 | F60: 115 | G60: 91 | H60: 90 | I60: 84 | J60: 61 | K60: 94.0 | L60: 78.3 | M60: H | N60: 8.66e-05 | O60: 0.000137 | P60: 0.000101 | Q60: 9.88e-05 | R60: 9.45e-05 | S60: 8.1e-05 | T60: 0.0001 | U60: ± | V60: 0.0000 | W60: 0.0001 | X60: ± | Y60: 0.0000 | Z60: 0.85 | AA60: 0.35163
A61: Serine/threonine-protein phosphatase 2B catalytic subunit alpha isoform | B61: P63328 | C61: Ppp3ca | D61: 59 | E61: 266 | F61: 293 | G61: 272 | H61: 267 | I61: 262 | J61: 149 | K61: 277.0 | L61: 226.0 | M61: H | N61: 0.00141 | O61: 0.00153 | P61: 0.00129 | Q61: 0.00127 | R61: 0.00124 | S61: 0.00107 | T61: 0.0014 | U61: ± | V61: 0.0001 | W61: 0.0012 | X61: ± | Y61: 0.0001 | Z61: 0.85 | AA61: 0.08061
A62: Isoform 4 of Nesprin-1 | B62: Q6ZWR6-4 | C62: Syne1 | D62: 1010 | E62: 126 | F62: 122 | G62: 145 | H62: 105 | I62: 137 | J62: 79 | K62: 131.0 | L62: 107.0 | M62: H | N62: 3.63e-05 | O62: 3.57e-05 | P62: 3.77e-05 | Q62: 2.85e-05 | R62: 3.99e-05 | S62: 2.45e-05 | T62: 0.0000 | U62: ± | V62: 0.0000 | W62: 0.0000 | X62: ± | Y62: 0.0000 | Z62: 0.85 | AA62: 0.29499
A63: Neurotrimin | B63: Q99PJ0 | C63: Ntm | D63: 38 | E63: 85 | F63: 71 | G63: 104 | H63: 61 | I63: 92 | J63: 52 | K63: 86.7 | L63: 68.3 | M63: H | N63: 0.000579 | O63: 0.00052 | P63: 0.000661 | Q63: 0.000439 | R63: 0.000627 | S63: 0.000427 | T63: 0.0006 | U63: ± | V63: 0.0001 | W63: 0.0005 | X63: ± | Y63: 0.0001 | Z63: 0.85 | AA63: 0.30980
A64: Cullin-associated NEDD8-dissociated protein 1 | B64: Q6ZQ38 | C64: Cand1 | D64: 136 | E64: 138 | F64: 126 | G64: 160 | H64: 125 | I64: 137 | J64: 111 | K64: 141.3 | L64: 124.3 | M64: H | N64: 0.000303 | O64: 0.000264 | P64: 0.000319 | Q64: 0.000238 | R64: 0.000259 | S64: 0.000257 | T64: 0.0003 | U64: ± | V64: 0.0000 | W64: 0.0003 | X64: ± | Y64: 0.0000 | Z64: 0.85 | AA64: 0.06728
A65: Neural cell adhesion molecule 1 | B65: P13595 | C65: Ncam1 | D65: 119 | E65: 364 | F65: 293 | G65: 366 | H65: 285 | I65: 291 | J65: 232 | K65: 341.0 | L65: 269.3 | M65: H | N65: 0.000817 | O65: 0.000676 | P65: 0.00076 | Q65: 0.000617 | R65: 0.000627 | S65: 0.000675 | T65: 0.0008 | U65: ± | V65: 0.0001 | W65: 0.0006 | X65: ± | Y65: 0.0000 | Z65: 0.85 | AA65: 0.06741
A66: 10 kDa heat shock protein, mitochondrial | B66: Q64433 | C66: Hspe1 | D66: 11 | E66: 116 | F66: 79 | G66: 63 | H66: 75 | I66: 78 | J66: 37 | K66: 86.0 | L66: 63.3 | M66: H | N66: 0.00298 | O66: 0.00206 | P66: 0.0015 | Q66: 0.0017 | R66: 0.00181 | S66: 0.00207 | T66: 0.0022 | U66: ± | V66: 0.0007 | W66: 0.0019 | X66: ± | Y66: 0.0002 | Z66: 0.85 | AA66: 0.51199
A67: Synaptophysin | B67: Q62277 | C67: Syp | D67: 34 | E67: 94 | F67: 65 | G67: 81 | H67: 62 | I67: 77 | J67: 57 | K67: =AVERAGE(E67:G67) -> 80.0 | L67: =AVERAGE(H67:J67) -> 65.3 | M67: H | N67: 0.000778 | O67: 0.000542 | P67: 0.000613 | Q67: 0.000483 | R67: 0.000594 | S67: 0.000574 | T67: =AVERAGE(N67:P67) -> 0.0006 | U67: ± | V67: =STDEV(N67:P67) -> 0.0001 | W67: =AVERAGE(Q67:S67) -> 0.0006 | X67: ± | Y67: =STDEV(Q67:S67) -> 0.0001 | Z67: =W67/T67 -> 0.85 | AA67: =_xlfn.T.TEST(N67:P67,Q67:S67,2,2) -> 0.29353
A68: Kinesin heavy chain isoform 5C | B68: P28738 | C68: Kif5c | D68: 109 | E68: 138 | F68: 108 | G68: 127 | H68: 120 | I68: 114 | J68: 85 | K68: 124.3 | L68: 106.3 | M68: H | N68: 0.000384 | O68: 0.000294 | P68: 0.000313 | Q68: 0.000305 | R68: 0.000293 | S68: 0.000249 | T68: 0.0003 | U68: ± | V68: 0.0000 | W68: 0.0003 | X68: ± | Y68: 0.0000 | Z68: 0.85 | AA68: 0.21085
A69: Guanine nucleotide-binding protein G(I)/G(S)/G(T) subunit beta-2 | B69: P62880 | C69: Gnb2 | D69: 37 | E69: 145 | F69: 188 | G69: 176 | H69: 168 | I69: 196 | J69: 84 | K69: 169.7 | L69: 149.3 | M69: H | N69: 0.00114 | O69: 0.00137 | P69: 0.00123 | Q69: 0.00117 | R69: 0.00138 | S69: 0.000652 | T69: 0.0012 | U69: ± | V69: 0.0001 | W69: 0.0011 | X69: ± | Y69: 0.0004 | Z69: 0.86 | AA69: 0.47271
A70: Dynamin-3 | B70: Q8BZ98 | C70: Dnm3 | D70: 97 | E70: 93 | F70: 86 | G70: 92 | H70: 85 | I70: 87 | J70: 63 | K70: 90.3 | L70: 78.3 | M70: H | N70: 0.000286 | O70: 0.00026 | P70: 0.000254 | Q70: 0.000229 | R70: 0.000254 | S70: 0.000202 | T70: 0.0003 | U70: ± | V70: 0.0000 | W70: 0.0002 | X70: ± | Y70: 0.0000 | Z70: 0.86 | AA70: 0.09947
A71: Huntingtin | B71: P42859 | C71: Htt | D71: 345 | E71: 85 | F71: 79 | G71: 87 | H71: 93 | I71: 74 | J71: 55 | K71: 83.7 | L71: 74.0 | M71: H | N71: 7.31e-05 | O71: 6.61e-05 | P71: 6.57e-05 | Q71: 7.04e-05 | R71: 5.57e-05 | S71: 4.97e-05 | T71: 0.0001 | U71: ± | V71: 0.0000 | W71: 0.0001 | X71: ± | Y71: 0.0000 | Z71: 0.86 | AA71: 0.21568
A72: Cytochrome c, somatic | B72: P62897 | C72: Cycs | D72: 12 | E72: 87 | F72: 74 | G72: 96 | H72: 79 | I72: 95 | J72: 42 | K72: 85.7 | L72: 72.0 | M72: H | N72: 0.00199 | O72: 0.00185 | P72: 0.00213 | Q72: 0.00177 | R72: 0.00222 | S72: 0.00114 | T72: 0.0020 | U72: ± | V72: 0.0001 | W72: 0.0017 | X72: ± | Y72: 0.0005 | Z72: 0.86 | AA72: 0.43553
A73: Isoform 4 of Glutamate receptor 2 | B73: P23819-4 | C73: Gria2 | D73: 103 | E73: 101 | F73: 124 | G73: 108 | H73: 103 | I73: 128 | J73: 62 | K73: 111.0 | L73: 97.7 | M73: H | N73: 0.000292 | O73: 0.000346 | P73: 0.000275 | Q73: 0.000275 | R73: 0.000343 | S73: 0.000168 | T73: 0.0003 | U73: ± | V73: 0.0000 | W73: 0.0003 | X73: ± | Y73: 0.0001 | Z73: 0.86 | AA73: 0.48626
A74: Glyceraldehyde-3-phosphate dehydrogenase | B74: P16858 | C74: Gapdh | D74: 36 | E74: 1236 | F74: 906 | G74: 1372 | H74: 1242 | I74: 943 | J74: 621 | K74: 1171.3 | L74: 935.3 | M74: H | N74: 0.00932 | O74: 0.00676 | P74: 0.00933 | Q74: 0.00884 | R74: 0.00659 | S74: 0.00647 | T74: 0.0085 | U74: ± | V74: 0.0015 | W74: 0.0073 | X74: ± | Y74: 0.0013 | Z74: 0.86 | AA74: 0.36693
A75: L-lactate dehydrogenase A chain | B75: P06151 | C75: Ldha | D75: 36 | E75: 141 | F75: 133 | G75: 130 | H75: 133 | I75: 119 | J75: 142 | K75: 134.7 | L75: 131.3 | M75: H | N75: 0.00149 | O75: 0.00105 | P75: 0.000987 | Q75: 0.000992 | R75: 0.000958 | S75: 0.00109 | T75: 0.0012 | U75: ± | V75: 0.0003 | W75: 0.0010 | X75: ± | Y75: 0.0001 | Z75: 0.86 | AA75: 0.37589
A76: Histone H4 | B76: P62806 | C76: Hist1h4a | D76: 11 | E76: 150 | F76: 128 | G76: 213 | H76: 119 | I76: 114 | J76: 122 | K76: 163.7 | L76: 118.3 | M76: H | N76: 0.00349 | O76: 0.00329 | P76: 0.00476 | Q76: 0.00278 | R76: 0.00256 | S76: 0.00461 | T76: 0.0038 | U76: ± | V76: 0.0008 | W76: 0.0033 | X76: ± | Y76: 0.0011 | Z76: 0.86 | AA76: 0.54210
A77: Dihydrolipoyllysine-residue acetyltransferase component of pyruvate dehydrogenase complex, mitochondrial | B77: Q8BMF4 | C77: Dlat | D77: 68 | E77: 83 | F77: 99 | G77: 109 | H77: 114 | I77: 105 | J77: 45 | K77: 97.0 | L77: 88.0 | M77: H | N77: 0.000356 | O77: 0.000403 | P77: 0.00043 | Q77: 0.000386 | R77: 0.000385 | S77: 0.000256 | T77: 0.0004 | U77: ± | V77: 0.0000 | W77: 0.0003 | X77: ± | Y77: 0.0001 | Z77: 0.86 | AA77: 0.32599
A78: Hemoglobin subunit alpha | B78: P01942 | C78: Hba | D78: 15 | E78: 495 | F78: 556 | G78: 508 | H78: 347 | I78: 296 | J78: 463 | K78: 519.7 | L78: 368.7 | M78: H | N78: 0.00868 | O78: 0.0105 | P78: 0.00847 | Q78: 0.00613 | R78: 0.00497 | S78: 0.0128 | T78: 0.0092 | U78: ± | V78: 0.0011 | W78: 0.0080 | X78: ± | Y78: 0.0042 | Z78: 0.86 | AA78: 0.64633
A79: Nck-associated protein 1 | B79: P28660 | C79: Nckap1 | D79: 129 | E79: 117 | F79: 126 | G79: 146 | H79: 124 | I79: 137 | J79: 78 | K79: 129.7 | L79: 113.0 | M79: H | N79: 0.000251 | O79: 0.000288 | P79: 0.000308 | Q79: 0.000253 | R79: 0.000294 | S79: 0.000186 | T79: 0.0003 | U79: ± | V79: 0.0000 | W79: 0.0002 | X79: ± | Y79: 0.0001 | Z79: 0.87 | AA79: 0.34629
A80: Paralemmin-1 | B80: Q9Z0P4 | C80: Palm | D80: 42 | E80: 84 | F80: 79 | G80: 80 | H80: 60 | I80: 68 | J80: 72 | K80: 81.0 | L80: 66.7 | M80: H | N80: 0.000695 | O80: 0.000537 | P80: 0.000503 | Q80: 0.000396 | R80: 0.000496 | S80: 0.000611 | T80: 0.0006 | U80: ± | V80: 0.0001 | W80: 0.0005 | X80: ± | Y80: 0.0001 | Z80: 0.87 | AA80: 0.41826
A81: Isocitrate dehydrogenase [NAD] subunit alpha, mitochondrial | B81: Q9D6R2 | C81: Idh3a | D81: 40 | E81: 265 | F81: 157 | G81: 215 | H81: 221 | I81: 178 | J81: 177 | K81: 212.3 | L81: 192.0 | M81: H | N81: 0.00204 | O81: 0.0011 | P81: 0.00136 | Q81: 0.00145 | R81: 0.00114 | S81: 0.00131 | T81: 0.0015 | U81: ± | V81: 0.0005 | W81: 0.0013 | X81: ± | Y81: 0.0002 | Z81: 0.87 | AA81: 0.53396
A82: Succinate dehydrogenase [ubiquinone] flavoprotein subunit, mitochondrial | B82: Q8K2B3 | C82: Sdha | D82: 73 | E82: 165 | F82: 148 | G82: 210 | H82: 168 | I82: 167 | J82: 104 | K82: 174.3 | L82: 146.3 | M82: H | N82: 0.00061 | O82: 0.000592 | P82: 0.000731 | Q82: 0.000621 | R82: 0.000614 | S82: 0.000446 | T82: 0.0006 | U82: ± | V82: 0.0001 | W82: 0.0006 | X82: ± | Y82: 0.0001 | Z82: 0.87 | AA82: 0.30787
A83: Eukaryotic initiation factor 4A-II | B83: P10630 | C83: Eif4a2 | D83: 46 | E83: 117 | F83: 121 | G83: 148 | H83: 119 | I83: 119 | J83: 93 | K83: 128.7 | L83: 110.3 | M83: H | N83: 0.00074 | O83: 0.000755 | P83: 0.000831 | Q83: 0.000704 | R83: 0.000692 | S83: 0.000632 | T83: 0.0008 | U83: ± | V83: 0.0000 | W83: 0.0007 | X83: ± | Y83: 0.0000 | Z83: 0.87 | AA83: 0.05052
A84: Isoform Mt-VDAC1 of Voltage-dependent anion-selective channel protein 1 | B84: Q60932-2 | C84: Vdac1 | D84: 31 | E84: 516 | F84: 398 | G84: 570 | H84: 386 | I84: 411 | J84: 440 | K84: 494.7 | L84: 412.3 | M84: H | N84: 0.00527 | O84: 0.00365 | P84: 0.00467 | Q84: 0.00328 | R84: 0.00345 | S84: 0.00517 | T84: 0.0045 | U84: ± | V84: 0.0008 | W84: 0.0040 | X84: ± | Y84: 0.0010 | Z84: 0.88 | AA84: 0.50330
A85: Glutamine synthetase | B85: P15105 | C85: Glul | D85: 42 | E85: 187 | F85: 211 | G85: 265 | H85: 204 | I85: 193 | J85: 133 | K85: 221.0 | L85: 176.7 | M85: H | N85: 0.0014 | O85: 0.00146 | P85: 0.00166 | Q85: 0.00127 | R85: 0.00127 | S85: 0.00142 | T85: 0.0015 | U85: ± | V85: 0.0001 | W85: 0.0013 | X85: ± | Y85: 0.0001 | Z85: 0.88 | AA85: 0.11561
A86: Protein phosphatase 1 regulatory subunit 7 | B86: Q3UM45 | C86: Ppp1r7 | D86: 41 | E86: 88 | F86: 87 | G86: 83 | H86: 73 | I86: 81 | J86: 71 | K86: 86.0 | L86: 75.0 | M86: H | N86: 0.000638 | O86: 0.000602 | P86: 0.000544 | Q86: 0.000509 | R86: 0.000523 | S86: 0.000536 | T86: 0.0006 | U86: ± | V86: 0.0000 | W86: 0.0005 | X86: ± | Y86: 0.0000 | Z86: 0.88 | AA86: 0.06474
A87: Dihydropyrimidinase-related protein 2 | B87: O08553 | C87: Dpysl2 | D87: 62 | E87: 902 | F87: 891 | G87: 982 | H87: 904 | I87: 792 | J87: 681 | K87: 925.0 | L87: 792.3 | M87: H | N87: 0.00428 | O87: 0.00392 | P87: 0.00409 | Q87: 0.00392 | R87: 0.00335 | S87: 0.00357 | T87: 0.0041 | U87: ± | V87: 0.0002 | W87: 0.0036 | X87: ± | Y87: 0.0003 | Z87: 0.88 | AA87: 0.06910
A88: Hypoxia up-regulated protein 1 | B88: Q9JKR6 | C88: Hyou1 | D88: 111 | E88: 84 | F88: 105 | G88: 105 | H88: 95 | I88: 99 | J88: 71 | K88: 98.0 | L88: 88.3 | M88: H | N88: 0.00022 | O88: 0.000274 | P88: 0.000249 | Q88: 0.000225 | R88: 0.000239 | S88: 0.000192 | T88: 0.0002 | U88: ± | V88: 0.0000 | W88: 0.0002 | X88: ± | Y88: 0.0000 | Z88: 0.88 | AA88: 0.23790
A89: Isoform 7 of Disks large homolog 2 | B89: Q91XM9-7 | C89: Dlg2 | D89: 109 | E89: 75 | F89: 92 | G89: 119 | H89: 76 | I89: 98 | J89: 79 | K89: 95.3 | L89: 84.3 | M89: H | N89: 0.000209 | O89: 0.000244 | P89: 0.000282 | Q89: 0.000182 | R89: 0.000247 | S89: 0.000222 | T89: 0.0002 | U89: ± | V89: 0.0000 | W89: 0.0002 | X89: ± | Y89: 0.0000 | Z89: 0.89 | AA89: 0.37895
A90: Fatty acid-binding protein, epidermal | B90: Q05816 | C90: Fabp5 | D90: 15 | E90: 143 | F90: 108 | G90: 109 | H90: 112 | I90: 147 | J90: 71 | K90: 120.0 | L90: 110.0 | M90: H | N90: 0.00296 | O90: 0.00205 | P90: 0.00192 | Q90: 0.0019 | R90: 0.00266 | S90: 0.0016 | T90: 0.0023 | U90: ± | V90: 0.0006 | W90: 0.0021 | X90: ± | Y90: 0.0005 | Z90: 0.89 | AA90: 0.60241
A91: Cytochrome b-c1 complex subunit Rieske, mitochondrial | B91: Q9CR68 | C91: Uqcrfs1 | D91: 29 | E91: 131 | F91: 99 | G91: 159 | H91: 105 | I91: 115 | J91: 97 | K91: 129.7 | L91: 105.7 | M91: H | N91: 0.00116 | O91: 0.000921 | P91: 0.00136 | Q91: 0.000932 | R91: 0.0011 | S91: 0.00103 | T91: 0.0011 | U91: ± | V91: 0.0002 | W91: 0.0010 | X91: ± | Y91: 0.0001 | Z91: 0.89 | AA91: 0.40528
A92: Cytosolic 10-formyltetrahydrofolate dehydrogenase | B92: Q8R0Y6 | C92: Aldh1l1 | D92: 99 | E92: 152 | F92: 133 | G92: 126 | H92: 190 | I92: 105 | J92: 79 | K92: 137.0 | L92: 124.7 | M92: H | N92: 0.000432 | O92: 0.000385 | P92: 0.000342 | Q92: 0.000508 | R92: 0.000291 | S92: 0.000233 | T92: 0.0004 | U92: ± | V92: 0.0000 | W92: 0.0003 | X92: ± | Y92: 0.0001 | Z92: 0.89 | AA92: 0.65430
A93: Isoform 3 of ATP-dependent 6-phosphofructokinase, muscle type | B93: P47857-3 | C93: Pfkm | D93: 102 | E93: 202 | F93: 164 | G93: 200 | H93: 222 | I93: 186 | J93: 71 | K93: 188.7 | L93: 159.7 | M93: H | N93: 0.000502 | O93: 0.000451 | P93: 0.000485 | Q93: 0.000545 | R93: 0.000471 | S93: 0.000265 | T93: 0.0005 | U93: ± | V93: 0.0000 | W93: 0.0004 | X93: ± | Y93: 0.0001 | Z93: 0.89 | AA93: 0.57184
A94: SRC kinase signaling inhibitor 1 | B94: Q9QWI6 | C94: Srcin1 | D94: 135 | E94: 140 | F94: 149 | G94: 160 | H94: 126 | I94: 116 | J94: 151 | K94: 149.7 | L94: 131.0 | M94: H | N94: 0.000293 | O94: 0.000309 | P94: 0.00031 | Q94: 0.000249 | R94: 0.000231 | S94: 0.000333 | T94: 0.0003 | U94: ± | V94: 0.0000 | W94: 0.0003 | X94: ± | Y94: 0.0001 | Z94: 0.89 | AA94: 0.35950
A95: Gamma-soluble NSF attachment protein | B95: Q9CWZ7 | C95: Napg | D95: 35 | E95: 90 | F95: 74 | G95: 93 | H95: 65 | I95: 76 | J95: 96 | K95: 85.7 | L95: 79.0 | M95: H | N95: 0.000836 | O95: 0.000594 | P95: 0.000741 | Q95: 0.000539 | R95: 0.000597 | S95: 0.000804 | T95: 0.0007 | U95: ± | V95: 0.0001 | W95: 0.0006 | X95: ± | Y95: 0.0001 | Z95: 0.89 | AA95: 0.51113
A96: Mitochondrial import receptor subunit TOM70 | B96: Q9CZW5 | C96: Tomm70 | D96: 68 | E96: 111 | F96: 130 | G96: 127 | H96: 129 | I96: 120 | J96: 70 | K96: 122.7 | L96: 106.3 | M96: H | N96: 0.000415 | O96: 0.000566 | P96: 0.000468 | Q96: 0.000491 | R96: 0.000474 | S96: 0.000332 | T96: 0.0005 | U96: ± | V96: 0.0001 | W96: 0.0004 | X96: ± | Y96: 0.0001 | Z96: 0.90 | AA96: 0.49198
A97: Prolow-density lipoprotein receptor-related protein 1 | B97: Q91ZX7 | C97: Lrp1 | D97: 505 | E97: 159 | F97: 136 | G97: 151 | H97: 162 | I97: 140 | J97: 105 | K97: 148.7 | L97: 135.7 | M97: H | N97: 8.86e-05 | O97: 7.75e-05 | P97: 7.92e-05 | Q97: 8.48e-05 | R97: 7.61e-05 | S97: 5.87e-05 | T97: 0.0001 | U97: ± | V97: 0.0000 | W97: 0.0001 | X97: ± | Y97: 0.0000 | Z97: 0.90 | AA97: 0.36615
A98: Glucose-6-phosphate isomerase | B98: P06745 | C98: Gpi | D98: 63 | E98: 281 | F98: 231 | G98: 320 | H98: 265 | I98: 260 | J98: 253 | K98: 277.3 | L98: 259.3 | M98: H | N98: 0.00157 | O98: 0.00109 | P98: 0.00141 | Q98: 0.0011 | R98: 0.00113 | S98: 0.00142 | T98: 0.0014 | U98: ± | V98: 0.0002 | W98: 0.0012 | X98: ± | Y98: 0.0002 | Z98: 0.90 | AA98: 0.46647
A99: Ankyrin-3 | B99: G5E8K5 | C99: Ank3 | D99: 214 | E99: 102 | F99: 99 | G99: 109 | H99: 87 | I99: 103 | J99: 80 | K99: 103.3 | L99: 90.0 | M99: H | N99: 0.00013 | O99: 0.000127 | P99: 0.000131 | Q99: 0.000109 | R99: 0.000126 | S99: 0.000113 | T99: 0.0001 | U99: ± | V99: 0.0000 | W99: 0.0001 | X99: ± | Y99: 0.0000 | Z99: 0.90 | AA99: 0.06468
A100: Ubiquitin carboxyl-terminal hydrolase 5 | B100: P56399 | C100: Usp5 | D100: 96 | E100: 120 | F100: 112 | G100: 151 | H100: 136 | I100: 134 | J100: 67 | K100: 127.7 | L100: 112.3 | M100: H | N100: 0.00038 | O100: 0.000332 | P100: 0.000408 | Q100: 0.000377 | R100: 0.00038 | S100: 0.000248 | T100: 0.0004 | U100: ± | V100: 0.0000 | W100: 0.0003 | X100: ± | Y100: 0.0001 | Z100: 0.90 | AA100: 0.47641
A101: Alpha-actinin-1 | B101: Q7TPR4 | C101: Actn1 | D101: 103 | E101: 298 | F101: 333 | G101: 287 | H101: 327 | I101: 303 | J101: 201 | K101: 306.0 | L101: 277.0 | M101: H | N101: 0.000908 | O101: 0.00098 | P101: 0.000753 | Q101: 0.000895 | R101: 0.000863 | S101: 0.000612 | T101: 0.0009 | U101: ± | V101: 0.0001 | W101: 0.0008 | X101: ± | Y101: 0.0002 | Z101: 0.90 | AA101: 0.46428
A102: Glutathione S-transferase Mu 1 | B102: P10649 | C102: Gstm1 | D102: 26 | E102: 106 | F102: 97 | G102: 102 | H102: 76 | I102: 112 | J102: 80 | K102: 101.7 | L102: 89.3 | M102: H | N102: 0.0012 | O102: 0.00115 | P102: 0.00111 | Q102: 0.000856 | R102: 0.00126 | S102: 0.00099 | T102: 0.0012 | U102: ± | V102: 0.0000 | W102: 0.0010 | X102: ± | Y102: 0.0002 | Z102: 0.90 | AA102: 0.38689
A103: AP-3 complex subunit delta-1 | B103: O54774 | C103: Ap3d1 | D103: 135 | E103: 94 | F103: 103 | G103: 98 | H103: 107 | I103: 99 | J103: 65 | K103: 98.3 | L103: 90.3 | M103: H | N103: 0.000204 | O103: 0.000223 | P103: 0.000198 | Q103: 0.000211 | R103: 0.000202 | S103: 0.000149 | T103: 0.0002 | U103: ± | V103: 0.0000 | W103: 0.0002 | X103: ± | Y103: 0.0000 | Z103: 0.90 | AA103: 0.36892
A104: Spectrin alpha chain, non-erythrocytic 1 | B104: P16546 | C104: Sptan1 | D104: 285 | E104: 1392 | F104: 1525 | G104: 1394 | H104: 1229 | I104: 1285 | J104: 1324 | K104: 1437.0 | L104: 1279.3 | M104: H | N104: 0.00159 | O104: 0.00163 | P104: 0.00135 | Q104: 0.00125 | R104: 0.00133 | S104: 0.00153 | T104: 0.0015 | U104: ± | V104: 0.0002 | W104: 0.0014 | X104: ± | Y104: 0.0001 | Z104: 0.90 | AA104: 0.27295
A105: IQ motif and SEC7 domain-containing protein 2 | B105: Q5DU25 | C105: Iqsec2 | D105: 162 | E105: 95 | F105: 98 | G105: 104 | H105: 64 | I105: 92 | J105: 95 | K105: 99.0 | L105: 83.7 | M105: H | N105: 0.000172 | O105: 0.00017 | P105: 0.000175 | Q105: 0.000112 | R105: 0.000155 | S105: 0.000198 | T105: 0.0002 | U105: ± | V105: 0.0000 | W105: 0.0002 | X105: ± | Y105: 0.0000 | Z105: 0.90 | AA105: 0.52419
A106: Phosphate carrier protein, mitochondrial | B106: Q8VEM8 | C106: Slc25a3 | D106: 40 | E106: 106 | F106: 89 | G106: 117 | H106: 131 | I106: 90 | J106: 69 | K106: 104.0 | L106: 96.7 | M106: H | N106: 0.000828 | O106: 0.00064 | P106: 0.000785 | Q106: 0.000876 | R106: 0.000616 | S106: 0.000537 | T106: 0.0008 | U106: ± | V106: 0.0001 | W106: 0.0007 | X106: ± | Y106: 0.0002 | Z106: 0.90 | AA106: 0.55850
A107: Protein kinase C gamma type | B107: P63318 | C107: Prkcg | D107: 78 | E107: 103 | F107: 114 | G107: 79 | H107: 89 | I107: 94 | J107: 71 | K107: 98.7 | L107: 84.7 | M107: H | N107: 0.000373 | O107: 0.000409 | P107: 0.00026 | Q107: 0.000311 | R107: 0.000343 | S107: 0.000286 | T107: 0.0003 | U107: ± | V107: 0.0001 | W107: 0.0003 | X107: ± | Y107: 0.0000 | Z107: 0.90 | AA107: 0.51636
A108: Disks large homolog 4 | B108: Q62108 | C108: Dlg4 | D108: 80 | E108: 71 | F108: 89 | G108: 109 | H108: 81 | I108: 96 | J108: 65 | K108: 89.7 | L108: 80.7 | M108: H | N108: 0.00024 | O108: 0.000326 | P108: 0.000348 | Q108: 0.000273 | R108: 0.000317 | S108: 0.000236 | T108: 0.0003 | U108: ± | V108: 0.0001 | W108: 0.0003 | X108: ± | Y108: 0.0000 | Z108: 0.90 | AA108: 0.50821
A109: ATP synthase F(0) complex subunit B1, mitochondrial | B109: Q9CQQ7 | C109: Atp5f1 | D109: 29 | E109: 90 | F109: 97 | G109: 109 | H109: 82 | I109: 88 | J109: 70 | K109: 98.7 | L109: 80.0 | M109: H | N109: 0.000889 | O109: 0.00105 | P109: 0.001 | Q109: 0.000815 | R109: 0.000866 | S109: 0.000983 | T109: 0.0010 | U109: ± | V109: 0.0001 | W109: 0.0009 | X109: ± | Y109: 0.0001 | Z109: 0.91 | AA109: 0.25370
A110: Neurofascin | B110: Q810U3 | C110: Nfasc | D110: 138 | E110: 144 | F110: 154 | G110: 137 | H110: 136 | I110: 156 | J110: 102 | K110: 145.0 | L110: 131.3 | M110: H | N110: 0.00031 | O110: 0.00032 | P110: 0.000262 | Q110: 0.000265 | R110: 0.000313 | S110: 0.000231 | T110: 0.0003 | U110: ± | V110: 0.0000 | W110: 0.0003 | X110: ± | Y110: 0.0000 | Z110: 0.91 | AA110: 0.40531
A111: Pyruvate dehydrogenase E1 component subunit alpha, somatic form, mitochondrial | B111: P35486 | C111: Pdha1 | D111: 43 | E111: 137 | F111: 133 | G111: 174 | H111: 159 | I111: 145 | J111: 101 | K111: 148.0 | L111: 135.0 | M111: H | N111: 0.000901 | O111: 0.000894 | P111: 0.00103 | Q111: 0.000969 | R111: 0.000915 | S111: 0.000683 | T111: 0.0009 | U111: ± | V111: 0.0001 | W111: 0.0009 | X111: ± | Y111: 0.0002 | Z111: 0.91 | AA111: 0.43077
A112: Cytoplasmic FMR1-interacting protein 2 | B112: Q5SQX6 | C112: Cyfip2 | D112: 146 | E112: 133 | F112: 136 | G112: 152 | H112: 122 | I112: 137 | J112: 103 | K112: 140.3 | L112: 120.7 | M112: H | N112: 0.000264 | O112: 0.000277 | P112: 0.000281 | Q112: 0.000237 | R112: 0.000262 | S112: 0.000248 | T112: 0.0003 | U112: ± | V112: 0.0000 | W112: 0.0002 | X112: ± | Y112: 0.0000 | Z112: 0.91 | AA112: 0.04789
A113: Neuromodulin | B113: P06837 | C113: Gap43 | D113: 24 | E113: 190 | F113: 154 | G113: 173 | H113: 111 | I113: 111 | J113: 174 | K113: 172.3 | L113: 132.0 | M113: H | N113: 0.00279 | O113: 0.0019 | P113: 0.00203 | Q113: 0.00108 | R113: 0.0012 | S113: 0.00383 | T113: 0.0022 | U113: ± | V113: 0.0005 | W113: 0.0020 | X113: ± | Y113: 0.0016 | Z113: 0.91 | AA113: 0.83921
A114: Serine/threonine-protein phosphatase 2A 65 kDa regulatory subunit A alpha isoform | B114: Q76MZ3 | C114: Ppp2r1a | D114: 65 | E114: 219 | F114: 202 | G114: 221 | H114: 202 | I114: 199 | J114: 151 | K114: 214.0 | L114: 184.0 | M114: H | N114: 0.00097 | O114: 0.000879 | P114: 0.000906 | Q114: 0.000811 | R114: 0.00082 | S114: 0.000875 | T114: 0.0009 | U114: ± | V114: 0.0000 | W114: 0.0008 | X114: ± | Y114: 0.0000 | Z114: 0.91 | AA114: 0.06887
A115: Pyruvate dehydrogenase E1 component subunit beta, mitochondrial | B115: Q9D051 | C115: Pdhb | D115: 39 | E115: 183 | F115: 206 | G115: 247 | H115: 240 | I115: 233 | J115: 125 | K115: 212.0 | L115: 199.3 | M115: H | N115: 0.00134 | O115: 0.00149 | P115: 0.00169 | Q115: 0.00158 | R115: 0.00156 | S115: 0.000972 | T115: 0.0015 | U115: ± | V115: 0.0002 | W115: 0.0014 | X115: ± | Y115: 0.0003 | Z115: 0.91 | AA115: 0.57605
A116: Band 4.1-like protein 3 | B116: Q9WV92 | C116: Epb41l3 | D116: 103 | E116: 174 | F116: 186 | G116: 195 | H116: 141 | I116: 160 | J116: 167 | K116: 185.0 | L116: 156.0 | M116: H | N116: 0.000498 | O116: 0.000523 | P116: 0.000488 | Q116: 0.000381 | R116: 0.000428 | S116: 0.000565 | T116: 0.0005 | U116: ± | V116: 0.0000 | W116: 0.0005 | X116: ± | Y116: 0.0001 | Z116: 0.91 | AA116: 0.46791
A117: NADP-dependent malic enzyme, mitochondrial | B117: Q8BMF3 | C117: Me3 | D117: 67 | E117: 122 | F117: 132 | G117: 172 | H117: 134 | I117: 129 | J117: 89 | K117: 142.0 | L117: 117.3 | M117: H | N117: 0.000494 | O117: 0.000565 | P117: 0.000643 | Q117: 0.000517 | R117: 0.000493 | S117: 0.000542 | T117: 0.0006 | U117: ± | V117: 0.0001 | W117: 0.0005 | X117: ± | Y117: 0.0000 | Z117: 0.91 | AA117: 0.33158
A118: NADH dehydrogenase [ubiquinone] 1 alpha subcomplex subunit 9, mitochondrial | B118: Q9DC69 | C118: Ndufa9 | D118: 43 | E118: 67 | F118: 89 | G118: 85 | H118: 83 | I118: 70 | J118: 56 | K118: 80.3 | L118: 69.7 | M118: H | N118: 0.00047 | O118: 0.0006 | P118: 0.00053 | Q118: 0.000519 | R118: 0.000435 | S118: 0.000506 | T118: 0.0005 | U118: ± | V118: 0.0001 | W118: 0.0005 | X118: ± | Y118: 0.0000 | Z118: 0.91 | AA118: 0.36533
A119: Glucose 1,6-bisphosphate synthase | B119: Q8CAA7 | C119: Pgm2l1 | D119: 70 | E119: 102 | F119: 84 | G119: 97 | H119: 89 | I119: 106 | J119: 66 | K119: 94.3 | L119: 87.0 | M119: H | N119: 0.000445 | O119: 0.000347 | P119: 0.000373 | Q119: 0.000348 | R119: 0.000425 | S119: 0.000291 | T119: 0.0004 | U119: ± | V119: 0.0001 | W119: 0.0004 | X119: ± | Y119: 0.0001 | Z119: 0.91 | AA119: 0.52698
A120: Disks large homolog 3 | B120: P70175 | C120: Dlg3 | D120: 93 | E120: 74 | F120: 66 | G120: 102 | H120: 84 | I120: 74 | J120: 49 | K120: 80.7 | L120: 69.0 | M120: H | N120: 0.000218 | O120: 0.00021 | P120: 0.000276 | Q120: 0.000243 | R120: 0.000214 | S120: 0.000186 | T120: 0.0002 | U120: ± | V120: 0.0000 | W120: 0.0002 | X120: ± | Y120: 0.0000 | Z120: 0.91 | AA120: 0.48597
A121: ATP synthase subunit gamma, mitochondrial | B121: Q91VR2 | C121: Atp5c1 | D121: 33 | E121: 90 | F121: 110 | G121: 120 | H121: 111 | I121: 115 | J121: 55 | K121: 106.7 | L121: 93.7 | M121: H | N121: 0.000704 | O121: 0.000962 | P121: 0.00088 | Q121: 0.000835 | R121: 0.000915 | S121: 0.000578 | T121: 0.0008 | U121: ± | V121: 0.0001 | W121: 0.0008 | X121: ± | Y121: 0.0002 | Z121: 0.91 | AA121: 0.59780
A122: Isoform 3 of Inositol 1,4,5-trisphosphate receptor type 1 | B122: P11881-3 | C122: Itpr1 | D122: 313 | E122: 102 | F122: 93 | G122: 104 | H122: 72 | I122: 121 | J122: 80 | K122: 99.7 | L122: 91.0 | M122: H | N122: 9.47e-05 | O122: 8.78e-05 | P122: 8.65e-05 | Q122: 6.46e-05 | R122: 0.000104 | S122: 7.77e-05 | T122: 0.0001 | U122: ± | V122: 0.0000 | W122: 0.0001 | X122: ± | Y122: 0.0000 | Z122: 0.92 | AA122: 0.55819
A123: Ras/Rap GTPase-activating protein SynGAP | B123: F6SEU4 | C123: Syngap1 | D123: 148 | E123: 174 | F123: 186 | G123: 203 | H123: 164 | I123: 175 | J123: 154 | K123: 187.7 | L123: 164.3 | M123: H | N123: 0.000322 | O123: 0.000363 | P123: 0.00036 | Q123: 0.000306 | R123: 0.000322 | S123: 0.000329 | T123: 0.0003 | U123: ± | V123: 0.0000 | W123: 0.0003 | X123: ± | Y123: 0.0000 | Z123: 0.92 | AA123: 0.11939
A124: Isoform 2 of Kinesin-like protein KIF21A | B124: Q9QXL2-2 | C124: Kif21a | D124: 176 | E124: 101 | F124: 89 | G124: 105 | H124: 116 | I124: 90 | J124: 68 | K124: 98.3 | L124: 91.3 | M124: H | N124: 0.000163 | O124: 0.000147 | P124: 0.000163 | Q124: 0.000175 | R124: 0.000146 | S124: 0.000113 | T124: 0.0002 | U124: ± | V124: 0.0000 | W124: 0.0001 | X124: ± | Y124: 0.0000 | Z124: 0.92 | AA124: 0.52495
A125: Isoform 2 of Dynamin-like 120 kDa protein, mitochondrial | B125: P58281-2 | C125: Opa1 | D125: 116 | E125: 135 | F125: 127 | G125: 174 | H125: 148 | I125: 154 | J125: 115 | K125: 145.3 | L125: 139.0 | M125: H | N125: 0.000372 | O125: 0.000328 | P125: 0.000418 | Q125: 0.000358 | R125: 0.000367 | S125: 0.000301 | T125: 0.0004 | U125: ± | V125: 0.0000 | W125: 0.0003 | X125: ± | Y125: 0.0000 | Z125: 0.92 | AA125: 0.40790
A126: Neuroplastin | B126: P97300 | C126: Nptn | D126: 44 | E126: 106 | F126: 92 | G126: 96 | H126: 71 | I126: 75 | J126: 105 | K126: 98.0 | L126: 83.7 | M126: H | N126: 0.000673 | O126: 0.000569 | P126: 0.000551 | Q126: 0.000446 | R126: 0.000427 | S126: 0.000776 | T126: 0.0006 | U126: ± | V126: 0.0001 | W126: 0.0005 | X126: ± | Y126: 0.0002 | Z126: 0.92 | AA126: 0.70848
A127: Dihydropyrimidinase-related protein 5 | B127: Q9EQF6 | C127: Dpysl5 | D127: 62 | E127: 110 | F127: 123 | G127: 125 | H127: 101 | I127: 117 | J127: 111 | K127: 119.3 | L127: 109.7 | M127: H | N127: 0.000471 | O127: 0.000553 | P127: 0.000502 | Q127: 0.000422 | R127: 0.000483 | S127: 0.0005 | T127: 0.0005 | U127: ± | V127: 0.0000 | W127: 0.0005 | X127: ± | Y127: 0.0000 | Z127: 0.92 | AA127: 0.29682
A128: Beta-adducin | B128: Q9QYB8 | C128: Add2 | D128: 81 | E128: 132 | F128: 109 | G128: 145 | H128: 126 | I128: 117 | J128: 95 | K128: 128.7 | L128: 112.7 | M128: H | N128: 0.000474 | O128: 0.000387 | P128: 0.000472 | Q128: 0.000414 | R128: 0.0004 | S128: 0.000414 | T128: 0.0004 | U128: ± | V128: 0.0000 | W128: 0.0004 | X128: ± | Y128: 0.0000 | Z128: 0.92 | AA128: 0.29468
A129: T-complex protein 1 subunit beta | B129: P80314 | C129: Cct2 | D129: 57 | E129: 106 | F129: 117 | G129: 142 | H129: 124 | I129: 124 | J129: 72 | K129: 121.7 | L129: 106.7 | M129: H | N129: 0.000459 | O129: 0.000571 | P129: 0.000609 | Q129: 0.000531 | R129: 0.000559 | S129: 0.000422 | T129: 0.0005 | U129: ± | V129: 0.0001 | W129: 0.0005 | X129: ± | Y129: 0.0001 | Z129: 0.92 | AA129: 0.52862
A130: Vacuolar protein sorting-associated protein 35 | B130: Q9EQH3 | C130: Vps35 | D130: 92 | E130: 92 | F130: 89 | G130: 96 | H130: 105 | I130: 88 | J130: 68 | K130: 92.3 | L130: 87.0 | M130: H | N130: 0.000325 | O130: 0.000296 | P130: 0.000292 | Q130: 0.000327 | R130: 0.000268 | S130: 0.000249 | T130: 0.0003 | U130: ± | V130: 0.0000 | W130: 0.0003 | X130: ± | Y130: 0.0000 | Z130: 0.92 | AA130: 0.42110
A131: A-kinase anchor protein 12 | B131: Q9WTQ5 | C131: Akap12 | D131: 181 | E131: 81 | F131: 84 | G131: 79 | H131: 81 | I131: 73 | J131: 72 | K131: =AVERAGE(E131:G131) -> 81.3 | L131: =AVERAGE(H131:J131) -> 75.3 | M131: H | N131: 0.00013 | O131: 0.000133 | P131: 0.000124 | Q131: 0.000118 | R131: 0.000116 | S131: 0.000124 | T131: =AVERAGE(N131:P131) -> 0.0001 | U131: ± | V131: =STDEV(N131:P131) -> 0.0000 | W131: =AVERAGE(Q131:S131) -> 0.0001 | X131: ± | Y131: =STDEV(Q131:S131) -> 0.0000 | Z131: =W131/T131 -> 0.93 | AA131: =_xlfn.T.TEST(N131:P131,Q131:S131,2,2) -> 0.05386
A132: Sarcoplasmic/endoplasmic reticulum calcium ATPase 2 | B132: O55143 | C132: Atp2a2 | D132: 115 | E132: 273 | F132: 276 | G132: 384 | H132: 241 | I132: 306 | J132: 269 | K132: 311.0 | L132: 272.0 | M132: H | N132: 0.000639 | O132: 0.000669 | P132: 0.000817 | Q132: 0.000566 | R132: 0.000703 | S132: 0.000709 | T132: 0.0007 | U132: ± | V132: 0.0001 | W132: 0.0007 | X132: ± | Y132: 0.0001 | Z132: 0.93 | AA132: 0.53440
A133: Plasma membrane calcium-transporting ATPase 2 | B133: Q9R0K7 | C133: Atp2b2 | D133: 133 | E133: 285 | F133: 314 | G133: 341 | H133: 249 | I133: 286 | J133: 320 | K133: 313.3 | L133: 285.0 | M133: H | N133: 0.000632 | O133: 0.000693 | P133: 0.000669 | Q133: 0.000522 | R133: 0.000609 | S133: 0.00073 | T133: 0.0007 | U133: ± | V133: 0.0000 | W133: 0.0006 | X133: ± | Y133: 0.0001 | Z133: 0.93 | AA133: 0.51959
A134: Dynamin-1-like protein | B134: Q8K1M6 | C134: Dnm1l | D134: 83 | E134: 180 | F134: 165 | G134: 232 | H134: 200 | I134: 190 | J134: 150 | K134: 192.3 | L134: 180.0 | M134: H | N134: 0.00064 | O134: 0.000567 | P134: 0.000758 | Q134: 0.000653 | R134: 0.000611 | S134: 0.000572 | T134: 0.0007 | U134: ± | V134: 0.0001 | W134: 0.0006 | X134: ± | Y134: 0.0000 | Z134: 0.93 | AA134: 0.51557
A135: Isoform 3 of Cytoskeleton-associated protein 5 | B135: A2AGT5-3 | C135: Ckap5 | D135: 224 | E135: 78 | F135: 87 | G135: 90 | H135: 80 | I135: 100 | J135: 62 | K135: 85.0 | L135: 80.7 | M135: H | N135: 0.000104 | O135: 0.00011 | P135: 0.000106 | Q135: 9.73e-05 | R135: 0.000124 | S135: 7.81e-05 | T135: 0.0001 | U135: ± | V135: 0.0000 | W135: 0.0001 | X135: ± | Y135: 0.0000 | Z135: 0.94 | AA135: 0.63596
A136: DmX-like protein 2 | B136: Q8BPN8 | C136: Dmxl2 | D136: 338 | E136: 188 | F136: 209 | G136: 251 | H136: 223 | I136: 227 | J136: 148 | K136: 216.0 | L136: 199.3 | M136: H | N136: 0.000159 | O136: 0.00018 | P136: 0.000193 | Q136: 0.000174 | R136: 0.000182 | S136: 0.000142 | T136: 0.0002 | U136: ± | V136: 0.0000 | W136: 0.0002 | X136: ± | Y136: 0.0000 | Z136: 0.94 | AA136: 0.51109
A137: Catenin beta-1 | B137: Q02248 | C137: Ctnnb1 | D137: 85 | E137: 97 | F137: 120 | G137: 138 | H137: 102 | I137: 125 | J137: 80 | K137: 118.3 | L137: 102.3 | M137: H | N137: 0.000308 | O137: 0.000395 | P137: 0.000411 | Q137: 0.000313 | R137: 0.000398 | S137: 0.000332 | T137: 0.0004 | U137: ± | V137: 0.0001 | W137: 0.0003 | X137: ± | Y137: 0.0000 | Z137: 0.94 | AA137: 0.59540
A138: Actin-related protein 2 | B138: P61161 | C138: Actr2 | D138: 45 | E138: 109 | F138: 89 | G138: 104 | H138: 93 | I138: 95 | J138: 77 | K138: 100.7 | L138: 88.3 | M138: H | N138: 0.000664 | O138: 0.000586 | P138: 0.000613 | Q138: 0.000544 | R138: 0.000616 | S138: 0.000585 | T138: 0.0006 | U138: ± | V138: 0.0000 | W138: 0.0006 | X138: ± | Y138: 0.0000 | Z138: 0.94 | AA138: 0.27263
A139: Serotransferrin | B139: Q921I1 | C139: Tf | D139: 77 | E139: 126 | F139: 149 | G139: 142 | H139: 130 | I139: 179 | J139: 99 | K139: 139.0 | L139: 136.0 | M139: H | N139: 0.000511 | O139: 0.000571 | P139: 0.000502 | Q139: 0.000451 | R139: 0.000654 | S139: 0.000379 | T139: 0.0005 | U139: ± | V139: 0.0000 | W139: 0.0005 | X139: ± | Y139: 0.0001 | Z139: 0.94 | AA139: 0.71536
A140: WD repeat-containing protein 7 | B140: Q920I9 | C140: Wdr7 | D140: 163 | E140: 110 | F140: 115 | G140: 131 | H140: 153 | I140: 110 | J140: 70 | K140: 118.7 | L140: 111.0 | M140: H | N140: 0.000174 | O140: 0.000201 | P140: 0.000199 | Q140: 0.000242 | R140: 0.000173 | S140: 0.000124 | T140: 0.0002 | U140: ± | V140: 0.0000 | W140: 0.0002 | X140: ± | Y140: 0.0001 | Z140: 0.94 | AA140: 0.75768
A141: Actin-related protein 3 | B141: Q99JY9 | C141: Actr3 | D141: 47 | E141: 111 | F141: 101 | G141: 99 | H141: 107 | I141: 107 | J141: 81 | K141: 103.7 | L141: 98.3 | M141: H | N141: 0.000742 | O141: 0.000646 | P141: 0.000578 | Q141: 0.000637 | R141: 0.000638 | S141: 0.000573 | T141: 0.0007 | U141: ± | V141: 0.0001 | W141: 0.0006 | X141: ± | Y141: 0.0000 | Z141: 0.94 | AA141: 0.49311
A142: Heterogeneous nuclear ribonucleoprotein K | B142: P61979 | C142: Hnrnpk | D142: 51 | E142: 228 | F142: 169 | G142: 192 | H142: 169 | I142: 178 | J142: 159 | K142: 196.3 | L142: 168.7 | M142: H | N142: 0.00134 | O142: 0.000932 | P142: 0.00107 | Q142: 0.000895 | R142: 0.00096 | S142: 0.00129 | T142: 0.0011 | U142: ± | V142: 0.0002 | W142: 0.0010 | X142: ± | Y142: 0.0002 | Z142: 0.94 | AA142: 0.72081
A143: AP-2 complex subunit beta | B143: Q9DBG3 | C143: Ap2b1 | D143: 105 | E143: 351 | F143: 316 | G143: 343 | H143: 374 | I143: 311 | J143: 259 | K143: 336.7 | L143: 314.7 | M143: H | N143: 0.000967 | O143: 0.000871 | P143: 0.000845 | Q143: 0.000928 | R143: 0.00081 | S143: 0.000787 | T143: 0.0009 | U143: ± | V143: 0.0001 | W143: 0.0008 | X143: ± | Y143: 0.0001 | Z143: 0.94 | AA143: 0.41007
A144: Band 4.1-like protein 1 | B144: Q9Z2H5 | C144: Epb41l1 | D144: 98 | E144: 127 | F144: 138 | G144: 162 | H144: 144 | I144: 123 | J144: 110 | K144: 142.3 | L144: 125.7 | M144: H | N144: 0.000369 | O144: 0.000414 | P144: 0.000428 | Q144: 0.000415 | R144: 0.000366 | S144: 0.00036 | T144: 0.0004 | U144: ± | V144: 0.0000 | W144: 0.0004 | X144: ± | Y144: 0.0000 | Z144: 0.94 | AA144: 0.40184
A145: Alpha-enolase | B145: P17182 | C145: Eno1 | D145: 47 | E145: 591 | F145: 491 | G145: 692 | H145: 589 | I145: 561 | J145: 374 | K145: 591.3 | L145: 508.0 | M145: H | N145: 0.00317 | O145: 0.0029 | P145: 0.0035 | Q145: 0.00329 | R145: 0.00304 | S145: 0.00269 | T145: 0.0032 | U145: ± | V145: 0.0003 | W145: 0.0030 | X145: ± | Y145: 0.0003 | Z145: 0.94 | AA145: 0.49706
A146: Rho-associated protein kinase 2 | B146: P70336 | C146: Rock2 | D146: 161 | E146: 108 | F146: 114 | G146: 120 | H146: 113 | I146: 102 | J146: 109 | K146: 114.0 | L146: 108.0 | M146: H | N146: 0.000222 | O146: 0.000213 | P146: 0.00021 | Q146: 0.000207 | R146: 0.000188 | S146: 0.000213 | T146: 0.0002 | U146: ± | V146: 0.0000 | W146: 0.0002 | X146: ± | Y146: 0.0000 | Z146: 0.94 | AA146: 0.21387
A147: ATP synthase subunit O, mitochondrial | B147: Q9DB20 | C147: Atp5o | D147: 23 | E147: 140 | F147: 77 | G147: 160 | H147: 113 | I147: 113 | J147: 119 | K147: 125.7 | L147: 115.0 | M147: H | N147: 0.00161 | O147: 0.000933 | P147: 0.00178 | Q147: 0.00128 | R147: 0.00127 | S147: 0.00153 | T147: 0.0014 | U147: ± | V147: 0.0004 | W147: 0.0014 | X147: ± | Y147: 0.0001 | Z147: 0.94 | AA147: 0.78093
A148: Brevican core protein | B148: Q61361 | C148: Bcan | D148: 96 | E148: 98 | F148: 103 | G148: 111 | H148: 88 | I148: 107 | J148: 87 | K148: 104.0 | L148: 94.0 | M148: H | N148: 0.000272 | O148: 0.000296 | P148: 0.000287 | Q148: 0.000246 | R148: 0.00029 | S148: 0.000272 | T148: 0.0003 | U148: ± | V148: 0.0000 | W148: 0.0003 | X148: ± | Y148: 0.0000 | Z148: 0.95 | AA148: 0.34261
A149: Septin-11 | B149: Q8C1B7 | C149: 2020-09-11 | D149: 50 | E149: 106 | F149: 96 | G149: 103 | H149: 101 | I149: 104 | J149: 73 | K149: 101.7 | L149: 92.7 | M149: H | N149: 0.000641 | O149: 0.000573 | P149: 0.000567 | Q149: 0.000587 | R149: 0.0006 | S149: 0.0005 | T149: 0.0006 | U149: ± | V149: 0.0000 | W149: 0.0006 | X149: ± | Y149: 0.0001 | Z149: 0.95 | AA149: 0.47048
A150: Probable ubiquitin carboxyl-terminal hydrolase FAF-X | B150: P70398 | C150: Usp9x | D150: 291 | E150: 99 | F150: 88 | G150: 95 | H150: 104 | I150: 92 | J150: 76 | K150: 94.0 | L150: 90.7 | M150: H | N150: 0.000109 | O150: 8.7e-05 | P150: 9.48e-05 | Q150: 9.97e-05 | R150: 9.01e-05 | S150: 8.61e-05 | T150: 0.0001 | U150: ± | V150: 0.0000 | W150: 0.0001 | X150: ± | Y150: 0.0000 | Z150: 0.95 | AA150: 0.54908
A151: Gamma-enolase | B151: P17183 | C151: Eno2 | D151: 47 | E151: 187 | F151: 233 | G151: 241 | H151: 247 | I151: 261 | J151: 133 | K151: 220.3 | L151: 213.7 | M151: H | N151: 0.0011 | O151: 0.00137 | P151: 0.00132 | Q151: 0.0013 | R151: 0.00138 | S151: 0.000918 | T151: 0.0013 | U151: ± | V151: 0.0001 | W151: 0.0012 | X151: ± | Y151: 0.0002 | Z151: 0.95 | AA151: 0.71773
A152: Isoform Short of Tripeptidyl-peptidase 2 | B152: Q64514-2 | C152: Tpp2 | D152: 138 | E152: 93 | F152: 77 | G152: 89 | H152: 102 | I152: 90 | J152: 58 | K152: 86.3 | L152: 83.3 | M152: H | N152: 0.000211 | O152: 0.000159 | P152: 0.000171 | Q152: 0.000194 | R152: 0.000185 | S152: 0.000135 | T152: 0.0002 | U152: ± | V152: 0.0000 | W152: 0.0002 | X152: ± | Y152: 0.0000 | Z152: 0.95 | AA152: 0.72845
A153: WD repeat-containing protein 1 | B153: O88342 | C153: Wdr1 | D153: 66 | E153: 134 | F153: 100 | G153: 129 | H153: 121 | I153: 105 | J153: 90 | K153: 121.0 | L153: 105.3 | M153: H | N153: 0.000548 | O153: 0.000426 | P153: 0.000485 | Q153: 0.000486 | R153: 0.000429 | S153: 0.000472 | T153: 0.0005 | U153: ± | V153: 0.0001 | W153: 0.0005 | X153: ± | Y153: 0.0000 | Z153: 0.95 | AA153: 0.57326
A154: Clathrin heavy chain 1 | B154: Q68FD5 | C154: Cltc | D154: 192 | E154: 1124 | F154: 1108 | G154: 1210 | H154: 1194 | I154: 1067 | J154: 765 | K154: 1147.3 | L154: 1008.7 | M154: H | N154: 0.00163 | O154: 0.00171 | P154: 0.00166 | Q154: 0.00169 | R154: 0.00152 | S154: 0.00156 | T154: 0.0017 | U154: ± | V154: 0.0000 | W154: 0.0016 | X154: ± | Y154: 0.0001 | Z154: 0.95 | AA154: 0.24543
A155: AP-2 complex subunit mu | B155: P84091 | C155: Ap2m1 | D155: 50 | E155: 151 | F155: 146 | G155: 165 | H155: 147 | I155: 149 | J155: 105 | K155: 154.0 | L155: 133.7 | M155: H | N155: 0.000866 | O155: 0.000851 | P155: 0.000863 | Q155: 0.000796 | R155: 0.000824 | S155: 0.000843 | T155: 0.0009 | U155: ± | V155: 0.0000 | W155: 0.0008 | X155: ± | Y155: 0.0000 | Z155: 0.95 | AA155: 0.05362
A156: Succinate--CoA ligase [ADP-forming] subunit beta, mitochondrial | B156: Q9Z2I9 | C156: Sucla2 | D156: 50 | E156: 119 | F156: 106 | G156: 110 | H156: 125 | I156: 124 | J156: 64 | K156: 111.7 | L156: 104.3 | M156: H | N156: 0.000655 | O156: 0.000603 | P156: 0.000556 | Q156: 0.000625 | R156: 0.00069 | S156: 0.000418 | T156: 0.0006 | U156: ± | V156: 0.0000 | W156: 0.0006 | X156: ± | Y156: 0.0001 | Z156: 0.96 | AA156: 0.77142
A157: Heat shock 70 kDa protein 4 | B157: Q61316 | C157: Hspa4 | D157: 94 | E157: 229 | F157: 244 | G157: 257 | H157: 261 | I157: 225 | J157: 191 | K157: 243.3 | L157: 225.7 | M157: H | N157: 0.000749 | O157: 0.00076 | P157: 0.000771 | Q157: 0.000744 | R157: 0.000675 | S157: 0.00076 | T157: 0.0008 | U157: ± | V157: 0.0000 | W157: 0.0007 | X157: ± | Y157: 0.0000 | Z157: 0.96 | AA157: 0.27803
A158: 26S proteasome non-ATPase regulatory subunit 2 | B158: Q8VDM4 | C158: Psmd2 | D158: 100 | E158: 81 | F158: 91 | G158: 110 | H158: 100 | I158: 89 | J158: 89 | K158: 94.0 | L158: 92.7 | M158: H | N158: 0.00024 | O158: 0.000262 | P158: 0.000292 | Q158: 0.000264 | R158: 0.00024 | S158: 0.000255 | T158: 0.0003 | U158: ± | V158: 0.0000 | W158: 0.0003 | X158: ± | Y158: 0.0000 | Z158: 0.96 | AA158: 0.52132
A159: Tubulin beta-2A chain | B159: Q7TMM9 | C159: Tubb2a | D159: 50 | E159: 644 | F159: 556 | G159: 631 | H159: 598 | I159: 573 | J159: 472 | K159: 610.3 | L159: 547.7 | M159: H | N159: 0.0037 | O159: 0.0032 | P159: 0.00339 | Q159: 0.00319 | R159: 0.0031 | S159: 0.00355 | T159: 0.0034 | U159: ± | V159: 0.0003 | W159: 0.0033 | X159: ± | Y159: 0.0002 | Z159: 0.96 | AA159: 0.49563
A160: Alpha-internexin | B160: P46660 | C160: Ina | D160: 55 | E160: 181 | F160: 229 | G160: 264 | H160: 211 | I160: 231 | J160: 214 | K160: 224.7 | L160: 218.7 | M160: H | N160: 0.00102 | O160: 0.00122 | P160: 0.00129 | Q160: 0.00104 | R160: 0.00112 | S160: 0.00123 | T160: 0.0012 | U160: ± | V160: 0.0001 | W160: 0.0011 | X160: ± | Y160: 0.0001 | Z160: 0.96 | AA160: 0.65836
A161: A-kinase anchor protein 5 | B161: D3YVF0 | C161: Akap5 | D161: 79 | E161: 85 | F161: 81 | G161: 99 | H161: 90 | I161: 76 | J161: 76 | K161: 88.3 | L161: 80.7 | M161: H | N161: 0.000302 | O161: 0.000275 | P161: 0.000317 | Q161: 0.000307 | R161: 0.000257 | S161: 0.000295 | T161: 0.0003 | U161: ± | V161: 0.0000 | W161: 0.0003 | X161: ± | Y161: 0.0000 | Z161: 0.96 | AA161: 0.58085
A162: MAP kinase-activating death domain protein | B162: Q80U28 | C162: Madd | D162: 175 | E162: 91 | F162: 90 | G162: 129 | H162: 105 | I162: 101 | J162: 84 | K162: 103.3 | L162: 96.7 | M162: H | N162: 0.000162 | O162: 0.000149 | P162: 0.000205 | Q162: 0.000157 | R162: 0.00016 | S162: 0.000179 | T162: 0.0002 | U162: ± | V162: 0.0000 | W162: 0.0002 | X162: ± | Y162: 0.0000 | Z162: 0.96 | AA162: 0.73366
A163: Talin-2 | B163: Q71LX4 | C163: Tln2 | D163: 254 | E163: 202 | F163: 202 | G163: 186 | H163: 172 | I163: 169 | J163: 169 | K163: 196.7 | L163: 170.0 | M163: H | N163: 0.000217 | O163: 0.00022 | P163: 0.000185 | Q163: 0.000178 | R163: 0.000177 | S163: 0.000243 | T163: 0.0002 | U163: ± | V163: 0.0000 | W163: 0.0002 | X163: ± | Y163: 0.0000 | Z163: 0.96 | AA163: 0.76077
A164: CaM kinase-like vesicle-associated protein | B164: Q3UHL1 | C164: Camkv | D164: 55 | E164: 93 | F164: 74 | G164: 76 | H164: 74 | I164: 66 | J164: 72 | K164: 81.0 | L164: 70.7 | M164: H | N164: 0.000454 | O164: 0.000382 | P164: 0.00035 | Q164: 0.000356 | R164: 0.00032 | S164: 0.000465 | T164: 0.0004 | U164: ± | V164: 0.0001 | W164: 0.0004 | X164: ± | Y164: 0.0001 | Z164: 0.96 | AA164: 0.79252
A165: Adenylyl cyclase-associated protein 1 | B165: P40124 | C165: Cap1 | D165: 52 | E165: 115 | F165: 65 | G165: 134 | H165: 97 | I165: 91 | J165: 111 | K165: 104.7 | L165: 99.7 | M165: H | N165: 0.000712 | O165: 0.000371 | P165: 0.000692 | Q165: 0.000523 | R165: 0.000518 | S165: 0.00067 | T165: 0.0006 | U165: ± | V165: 0.0002 | W165: 0.0006 | X165: ± | Y165: 0.0001 | Z165: 0.96 | AA165: 0.86884
A166: Alpha-actinin-4 | B166: P57780 | C166: Actn4 | D166: 105 | E166: 95 | F166: 97 | G166: 119 | H166: 120 | I166: 106 | J166: 77 | K166: 103.7 | L166: 101.0 | M166: H | N166: 0.00028 | O166: 0.000283 | P166: 0.000306 | Q166: 0.000326 | R166: 0.000302 | S166: 0.00021 | T166: 0.0003 | U166: ± | V166: 0.0000 | W166: 0.0003 | X166: ± | Y166: 0.0001 | Z166: 0.96 | AA166: 0.78999
A167: Protein kinase C and casein kinase substrate in neurons protein 1 | B167: Q61644 | C167: Pacsin1 | D167: 51 | E167: 202 | F167: 176 | G167: 224 | H167: 170 | I167: 192 | J167: 207 | K167: 200.7 | L167: 189.7 | M167: H | N167: 0.00137 | O167: 0.00106 | P167: 0.00118 | Q167: 0.000963 | R167: 0.00107 | S167: 0.00145 | T167: 0.0012 | U167: ± | V167: 0.0002 | W167: 0.0012 | X167: ± | Y167: 0.0003 | Z167: 0.96 | AA167: 0.81887
A168: Histone H2B type 1-F/J/L | B168: P10853 | C168: Hist1h2bf | D168: 14 | E168: 107 | F168: 101 | G168: 143 | H168: 128 | I168: 102 | J168: 81 | K168: 117.0 | L168: 103.7 | M168: H | N168: 0.00244 | O168: 0.00198 | P168: 0.00283 | Q168: 0.00253 | R168: 0.00194 | S168: 0.00253 | T168: 0.0024 | U168: ± | V168: 0.0004 | W168: 0.0023 | X168: ± | Y168: 0.0003 | Z168: 0.97 | AA168: 0.80423
A169: SH3 and multiple ankyrin repeat domains protein 2 | B169: Q80Z38 | C169: Shank2 | D169: 159 | E169: 78 | F169: 85 | G169: 90 | H169: 79 | I169: 94 | J169: 65 | K169: 84.3 | L169: 79.3 | M169: H | N169: 0.00013 | O169: 0.000151 | P169: 0.000142 | Q169: 0.000132 | R169: 0.00016 | S169: 0.000117 | T169: 0.0001 | U169: ± | V169: 0.0000 | W169: 0.0001 | X169: ± | Y169: 0.0000 | Z169: 0.97 | AA169: 0.75549
A170: 60 kDa heat shock protein, mitochondrial | B170: P63038 | C170: Hspd1 | D170: 61 | E170: 386 | F170: 325 | G170: 484 | H170: 434 | I170: 363 | J170: 318 | K170: 398.3 | L170: 371.7 | M170: H | N170: 0.00178 | O170: 0.00151 | P170: 0.0019 | Q170: 0.00177 | R170: 0.00151 | S170: 0.00174 | T170: 0.0017 | U170: ± | V170: 0.0002 | W170: 0.0017 | X170: ± | Y170: 0.0001 | Z170: 0.97 | AA170: 0.70943
A171: Septin-5 | B171: Q9Z2Q6 | C171: 2020-09-05 | D171: 43 | E171: 68 | F171: 89 | G171: 100 | H171: 95 | I171: 85 | J171: 69 | K171: 85.7 | L171: 83.0 | M171: H | N171: 0.000455 | O171: 0.000628 | P171: 0.000659 | Q171: 0.000608 | R171: 0.000544 | S171: 0.000535 | T171: 0.0006 | U171: ± | V171: 0.0001 | W171: 0.0006 | X171: ± | Y171: 0.0000 | Z171: 0.97 | AA171: 0.79937
A172: Alpha-adducin | B172: Q9QYC0 | C172: Add1 | D172: 81 | E172: 121 | F172: 132 | G172: 152 | H172: 155 | I172: 114 | J172: 125 | K172: 135.0 | L172: 131.3 | M172: H | N172: 0.000456 | O172: 0.000469 | P172: 0.000509 | Q172: 0.000516 | R172: 0.000378 | S172: 0.000495 | T172: 0.0005 | U172: ± | V172: 0.0000 | W172: 0.0005 | X172: ± | Y172: 0.0001 | Z172: 0.97 | AA172: 0.75969
A173: Rab GDP dissociation inhibitor beta | B173: Q61598 | C173: Gdi2 | D173: 51 | E173: 195 | F173: 166 | G173: 172 | H173: 171 | I173: 222 | J173: 106 | K173: 177.7 | L173: 166.3 | M173: H | N173: 0.00115 | O173: 0.000961 | P173: 0.000906 | Q173: 0.000956 | R173: 0.00124 | S173: 0.000727 | T173: 0.0010 | U173: ± | V173: 0.0001 | W173: 0.0010 | X173: ± | Y173: 0.0003 | Z173: 0.97 | AA173: 0.85927
A174: Tubulin beta-3 chain | B174: Q9ERD7 | C174: Tubb3 | D174: 50 | E174: 350 | F174: 346 | G174: 416 | H174: 439 | I174: 377 | J174: 259 | K174: 370.7 | L174: 358.3 | M174: H | N174: 0.00217 | O174: 0.00205 | P174: 0.00221 | Q174: 0.00237 | R174: 0.0021 | S174: 0.00176 | T174: 0.0021 | U174: ± | V174: 0.0001 | W174: 0.0021 | X174: ± | Y174: 0.0003 | Z174: 0.97 | AA174: 0.73395
A175: Glutamate dehydrogenase 1, mitochondrial | B175: P26443 | C175: Glud1 | D175: 61 | E175: 262 | F175: 235 | G175: 304 | H175: 260 | I175: 263 | J175: 205 | K175: 267.0 | L175: 242.7 | M175: H | N175: 0.00121 | O175: 0.00109 | P175: 0.00128 | Q175: 0.00114 | R175: 0.00116 | S175: 0.00117 | T175: 0.0012 | U175: ± | V175: 0.0001 | W175: 0.0012 | X175: ± | Y175: 0.0000 | Z175: 0.97 | AA175: 0.54954
A176: Cytochrome b-c1 complex subunit 2, mitochondrial | B176: Q9DB77 | C176: Uqcrc2 | D176: 48 | E176: 157 | F176: 145 | G176: 191 | H176: 175 | I176: 185 | J176: 122 | K176: 164.3 | L176: 160.7 | M176: H | N176: 0.000907 | O176: 0.00082 | P176: 0.000976 | Q176: 0.000956 | R176: 0.000983 | S176: 0.000681 | T176: 0.0009 | U176: ± | V176: 0.0001 | W176: 0.0009 | X176: ± | Y176: 0.0002 | Z176: 0.97 | AA176: 0.80789
A177: NADH-ubiquinone oxidoreductase 75 kDa subunit, mitochondrial | B177: Q91VD9 | C177: Ndufs1 | D177: 80 | E177: 216 | F177: 228 | G177: 253 | H177: 268 | I177: 233 | J177: 162 | K177: 232.3 | L177: 221.0 | M177: H | N177: 0.000779 | O177: 0.000827 | P177: 0.00082 | Q177: 0.000848 | R177: 0.000807 | S177: 0.000699 | T177: 0.0008 | U177: ± | V177: 0.0000 | W177: 0.0008 | X177: ± | Y177: 0.0001 | Z177: 0.97 | AA177: 0.63574
A178: Contactin-1 | B178: P12960 | C178: Cntn1 | D178: 113 | E178: 266 | F178: 285 | G178: 277 | H178: 283 | I178: 273 | J178: 206 | K178: 276.0 | L178: 254.0 | M178: H | N178: 0.000616 | O178: 0.000735 | P178: 0.000607 | Q178: 0.000657 | R178: 0.000669 | S178: 0.000575 | T178: 0.0007 | U178: ± | V178: 0.0001 | W178: 0.0006 | X178: ± | Y178: 0.0001 | Z178: 0.97 | AA178: 0.72704
A179: Spectrin beta chain, non-erythrocytic 1 | B179: Q62261 | C179: Sptbn1 | D179: 274 | E179: 786 | F179: 833 | G179: 842 | H179: 768 | I179: 858 | J179: 674 | K179: 820.3 | L179: 766.7 | M179: H | N179: 0.000906 | O179: 0.000928 | P179: 0.000851 | Q179: 0.00079 | R179: 0.000913 | S179: 0.000904 | T179: 0.0009 | U179: ± | V179: 0.0000 | W179: 0.0009 | X179: ± | Y179: 0.0001 | Z179: 0.97 | AA179: 0.60007
A180: Guanine nucleotide-binding protein G(o) subunit alpha | B180: P18872 | C180: Gnao1 | D180: 40 | E180: 397 | F180: 392 | G180: 420 | H180: 381 | I180: 436 | J180: 285 | K180: 403.0 | L180: 367.3 | M180: H | N180: 0.00299 | O180: 0.00287 | P180: 0.00276 | Q180: 0.00253 | R180: 0.00303 | S180: 0.00282 | T180: 0.0029 | U180: ± | V180: 0.0001 | W180: 0.0028 | X180: ± | Y180: 0.0003 | Z180: 0.97 | AA180: 0.64221
A181: Synaptic vesicle glycoprotein 2A | B181: Q9JIS5 | C181: Sv2a | D181: 83 | E181: 115 | F181: 135 | G181: 111 | H181: 131 | I181: 93 | J181: 103 | K181: 120.3 | L181: 109.0 | M181: H | N181: 0.00048 | O181: 0.000474 | P181: 0.000376 | Q181: 0.000442 | R181: 0.000339 | S181: 0.000512 | T181: 0.0004 | U181: ± | V181: 0.0001 | W181: 0.0004 | X181: ± | Y181: 0.0001 | Z181: 0.97 | AA181: 0.84843
A182: Transitional endoplasmic reticulum ATPase | B182: Q01853 | C182: Vcp | D182: 89 | E182: 327 | F182: 311 | G182: 339 | H182: 325 | I182: 315 | J182: 284 | K182: 325.7 | L182: 308.0 | M182: H | N182: 0.00115 | O182: 0.000984 | P182: 0.000992 | Q182: 0.000944 | R182: 0.000936 | S182: 0.00116 | T182: 0.0010 | U182: ± | V182: 0.0001 | W182: 0.0010 | X182: ± | Y182: 0.0001 | Z182: 0.97 | AA182: 0.76881
A183: Isoform 2E of Voltage-dependent calcium channel subunit alpha-2/delta-1 | B183: O08532-5 | C183: Cacna2d1 | D183: 123 | E183: 123 | F183: 137 | G183: 146 | H183: 129 | I183: 129 | J183: 112 | K183: 135.3 | L183: 123.3 | M183: H | N183: 0.000292 | O183: 0.000327 | P183: 0.000308 | Q183: 0.000296 | R183: 0.000303 | S183: 0.000303 | T183: 0.0003 | U183: ± | V183: 0.0000 | W183: 0.0003 | X183: ± | Y183: 0.0000 | Z183: 0.97 | AA183: 0.46713
A184: Heat shock 70 kDa protein 4L | B184: P48722 | C184: Hspa4l | D184: 94 | E184: 154 | F184: 154 | G184: 140 | H184: 162 | I184: 155 | J184: 108 | K184: 149.3 | L184: 141.7 | M184: H | N184: 0.000484 | O184: 0.000476 | P184: 0.000384 | Q184: 0.000448 | R184: 0.000444 | S184: 0.000418 | T184: 0.0004 | U184: ± | V184: 0.0001 | W184: 0.0004 | X184: ± | Y184: 0.0000 | Z184: 0.97 | AA184: 0.75167
A185: Serum albumin | B185: P07724 | C185: Alb | D185: 69 | E185: 421 | F185: 340 | G185: 380 | H185: 383 | I185: 316 | J185: 346 | K185: 380.3 | L185: 348.3 | M185: H | N185: 0.00187 | O185: 0.00145 | P185: 0.00144 | Q185: 0.00157 | R185: 0.00126 | S185: 0.00181 | T185: 0.0016 | U185: ± | V185: 0.0002 | W185: 0.0015 | X185: ± | Y185: 0.0003 | Z185: 0.97 | AA185: 0.86026
A186: Catenin delta-2 | B186: O35927 | C186: Ctnnd2 | D186: 135 | E186: 85 | F186: 92 | G186: 103 | H186: 87 | I186: 95 | J186: 76 | K186: 93.3 | L186: 86.0 | M186: H | N186: 0.000172 | O186: 0.000189 | P186: 0.000195 | Q186: 0.000179 | R186: 0.000193 | S186: 0.00017 | T186: 0.0002 | U186: ± | V186: 0.0000 | W186: 0.0002 | X186: ± | Y186: 0.0000 | Z186: 0.97 | AA186: 0.65242
A187: Isoform 3 of Triple functional domain protein | B187: Q0KL02-3 | C187: Trio | D187: 289 | E187: 102 | F187: 97 | G187: 105 | H187: 131 | I187: 91 | J187: 71 | K187: 101.3 | L187: 97.7 | M187: H | N187: 0.000101 | O187: 9.44e-05 | P187: 9.52e-05 | Q187: 0.000123 | R187: 8.47e-05 | S187: 7.59e-05 | T187: 0.0001 | U187: ± | V187: 0.0000 | W187: 0.0001 | X187: ± | Y187: 0.0000 | Z187: 0.98 | AA187: 0.88083
A188: Reticulon-1 | B188: Q8K0T0 | C188: Rtn1 | D188: 84 | E188: 79 | F188: 90 | G188: 78 | H188: 96 | I188: 70 | J188: 64 | K188: 82.3 | L188: 76.7 | M188: H | N188: 0.000235 | O188: 0.000293 | P188: 0.000222 | Q188: 0.000315 | R188: 0.000216 | S188: 0.000201 | T188: 0.0003 | U188: ± | V188: 0.0000 | W188: 0.0002 | X188: ± | Y188: 0.0001 | Z188: 0.98 | AA188: 0.89305
A189: Syntaxin-binding protein 1 | B189: O08599 | C189: Stxbp1 | D189: 68 | E189: 562 | F189: 575 | G189: 613 | H189: 600 | I189: 577 | J189: 397 | K189: 583.3 | L189: 524.7 | M189: H | N189: 0.00253 | O189: 0.00252 | P189: 0.00244 | Q189: 0.00242 | R189: 0.00234 | S189: 0.00256 | T189: 0.0025 | U189: ± | V189: 0.0000 | W189: 0.0024 | X189: ± | Y189: 0.0001 | Z189: 0.98 | AA189: 0.46549
A190: Synapsin-1 | B190: O88935 | C190: Syn1 | D190: 74 | E190: 412 | F190: 568 | G190: 526 | H190: 522 | I190: 418 | J190: 431 | K190: 502.0 | L190: 457.0 | M190: H | N190: 0.0016 | O190: 0.00213 | P190: 0.00177 | Q190: 0.00182 | R190: 0.00155 | S190: 0.00201 | T190: 0.0018 | U190: ± | V190: 0.0003 | W190: 0.0018 | X190: ± | Y190: 0.0002 | Z190: 0.98 | AA190: 0.85514
A191: 4-aminobutyrate aminotransferase, mitochondrial | B191: P61922 | C191: Abat | D191: 56 | E191: 205 | F191: 159 | G191: 206 | H191: 216 | I191: 182 | J191: 143 | K191: 190.0 | L191: 180.3 | M191: H | N191: 0.00103 | O191: 0.000813 | P191: 0.000976 | Q191: 0.00105 | R191: 0.000879 | S191: 0.000832 | T191: 0.0009 | U191: ± | V191: 0.0001 | W191: 0.0009 | X191: ± | Y191: 0.0001 | Z191: 0.98 | AA191: 0.84541
A192: Tenascin-R | B192: Q8BYI9 | C192: Tnr | D192: 150 | E192: 178 | F192: 224 | G192: 218 | H192: 204 | I192: 191 | J192: 173 | K192: 206.7 | L192: 189.3 | M192: H | N192: 0.000337 | O192: 0.000435 | P192: 0.000373 | Q192: 0.000346 | R192: 0.000347 | S192: 0.000429 | T192: 0.0004 | U192: ± | V192: 0.0000 | W192: 0.0004 | X192: ± | Y192: 0.0000 | Z192: 0.98 | AA192: 0.85625
A193: Ras-related protein Rab-7a | B193: P51150 | C193: Rab7a | D193: 23 | E193: 76 | F193: 98 | G193: 76 | H193: 95 | I193: 104 | J193: 55 | K193: 83.3 | L193: 84.7 | M193: H | N193: 0.00103 | O193: 0.00126 | P193: 0.00087 | Q193: 0.00106 | R193: 0.00122 | S193: 0.000821 | T193: 0.0011 | U193: ± | V193: 0.0002 | W193: 0.0010 | X193: ± | Y193: 0.0002 | Z193: 0.98 | AA193: 0.90924
A194: Rab GDP dissociation inhibitor alpha | B194: P50396 | C194: Gdi1 | D194: 51 | E194: 397 | F194: 391 | G194: 416 | H194: 418 | I194: 423 | J194: 305 | K194: 401.3 | L194: 382.0 | M194: H | N194: 0.00225 | O194: 0.00225 | P194: 0.00216 | Q194: 0.00227 | R194: 0.00225 | S194: 0.00202 | T194: 0.0022 | U194: ± | V194: 0.0001 | W194: 0.0022 | X194: ± | Y194: 0.0001 | Z194: 0.98 | AA194: 0.66474
A195: Isoform Cytoplasmic of Fumarate hydratase, mitochondrial | B195: P97807-2 | C195: Fh | D195: 50 | E195: 164 | F195: 136 | G195: 166 | H195: 145 | I195: 163 | J195: 110 | K195: =AVERAGE(E195:G195) -> 155.3 | L195: =AVERAGE(H195:J195) -> 139.3 | M195: H | N195: 0.000831 | O195: 0.000734 | P195: 0.000823 | Q195: 0.000727 | R195: 0.000843 | S195: 0.000779 | T195: =AVERAGE(N195:P195) -> 0.0008 | U195: ± | V195: =STDEV(N195:P195) -> 0.0001 | W195: =AVERAGE(Q195:S195) -> 0.0008 | X195: ± | Y195: =STDEV(Q195:S195) -> 0.0001 | Z195: =W195/T195 -> 0.98 | AA195: =_xlfn.T.TEST(N195:P195,Q195:S195,2,2) -> 0.79033
A196: Trifunctional enzyme subunit alpha, mitochondrial | B196: Q8BMS1 | C196: Hadha | D196: 83 | E196: 102 | F196: 84 | G196: 115 | H196: 124 | I196: 97 | J196: 79 | K196: 100.3 | L196: 100.0 | M196: H | N196: 0.000331 | O196: 0.000291 | P196: 0.000363 | Q196: 0.000372 | R196: 0.000308 | S196: 0.000289 | T196: 0.0003 | U196: ± | V196: 0.0000 | W196: 0.0003 | X196: ± | Y196: 0.0000 | Z196: 0.98 | AA196: 0.87806
A197: Neurogranin | B197: P60761 | C197: Nrgn | D197: 7 | E197: 87 | F197: 87 | G197: 72 | H197: 103 | I197: 56 | J197: 82 | K197: 82.0 | L197: 80.3 | M197: H | N197: 0.00313 | O197: 0.0032 | P197: 0.00224 | Q197: 0.00367 | R197: 0.00191 | S197: 0.00287 | T197: 0.0029 | U197: ± | V197: 0.0005 | W197: 0.0028 | X197: ± | Y197: 0.0009 | Z197: 0.99 | AA197: 0.94965
A198: Nucleolin | B198: P09405 | C198: Ncl | D198: 77 | E198: 86 | F198: 87 | G198: 74 | H198: 74 | I198: 76 | J198: 80 | K198: 82.3 | L198: 76.7 | M198: H | N198: 0.000297 | O198: 0.000321 | P198: 0.000249 | Q198: 0.000277 | R198: 0.000268 | S198: 0.000311 | T198: 0.0003 | U198: ± | V198: 0.0000 | W198: 0.0003 | X198: ± | Y198: 0.0000 | Z198: 0.99 | AA198: 0.89000
A199: Glutathione S-transferase P 1 | B199: P19157 | C199: Gstp1 | D199: 24 | E199: 144 | F199: 145 | G199: 131 | H199: 144 | I199: 147 | J199: 89 | K199: 140.0 | L199: 126.7 | M199: H | N199: 0.00164 | O199: 0.0018 | P199: 0.00148 | Q199: 0.00162 | R199: 0.00182 | S199: 0.00142 | T199: 0.0016 | U199: ± | V199: 0.0002 | W199: 0.0016 | X199: ± | Y199: 0.0002 | Z199: 0.99 | AA199: 0.89895
A200: Liprin-alpha-3 | B200: P60469 | C200: Ppfia3 | D200: 133 | E200: 79 | F200: 89 | G200: 110 | H200: 103 | I200: 89 | J200: 76 | K200: 92.7 | L200: 89.3 | M200: H | N200: 0.000175 | O200: 0.000194 | P200: 0.000219 | Q200: 0.000215 | R200: 0.000187 | S200: 0.000179 | T200: 0.0002 | U200: ± | V200: 0.0000 | W200: 0.0002 | X200: ± | Y200: 0.0000 | Z200: 0.99 | AA200: 0.89610
... 2050 more rows

Sheet P14-pSpT
A1: Protein | B1: Gene | C1: Accession | D1: [M+H] | E1: m/z | F1: z | G1: Ret. Time | H1: Sequence | I1: Site | K1: WT | N1: Mutant | P1: Ratio | Q1: p-value
B2: ID | G2: min | J2: CN23-2-7 | K2: CN23-2-9 | L2: CN23-2-11 | M2: CN23-2-6 | N2: CN23-2-8 | O2: CN23-2-10 | P2: Mut/WT
A3: (E3-independent) E2 ubiquitin-conjugating enzyme UBE2O | B3: Ube2o | C3: Q6ZPJ3 | D3: 1093.64 | E3: 365.2181 | F3: 3 | G3: 17.08 | H3: KKSIPLSIK | I3: S3 | J3: - | K3: 2.56 | L3: 2.56 | M3: - | N3: 2.52 | O3: 2.54 | P3: 1.0 | Q3: 0.8795749359
A4: (E3-independent) E2 ubiquitin-conjugating enzyme UBE2O | B4: Ube2o | C4: Q6ZPJ3 | D4: 1477.73 | E4: 493.2489 | F4: 3 | G4: 8.70 | H4: KEEKPEVQSPVK | I4: S9 | J4: - | K4: - | L4: - | M4: - | N4: 2.47 | O4: - | P4: 0.4 | Q4: 0.4115575246
A5: (E3-independent) E2 ubiquitin-conjugating enzyme UBE2O | B5: Ube2o | C5: Q6ZPJ3 | D5: 2692.30 | E5: 898.1036 | F5: 3 | G5: 52.53 | H5: NMTVEQLLTGSPTSPTVEPEKPTR | I5: T13 | J5: 3.24 | K5: 3.25 | L5: 3.73 | M5: 3.66 | N5: 2.58 | O5: 2.78 | P5: 0.7 | Q5: 0.3852714707
A6: (E3-independent) E2 ubiquitin-conjugating enzyme UBE2O | B6: Ube2o | C6: Q6ZPJ3 | D6: 2708.29 | E6: 903.4338 | F6: 3 | G6: 46.21 | H6: NMoTVEQLLTGSPTSPTVEPEKPTR | I6: S14 | J6: 2.71 | K6: 3.36 | L6: 2.84 | M6: 3.20 | N6: 2.92 | O6: 3.40 | P6: 0.7 | Q6: 0.2379490102
A7: (E3-independent) E2 ubiquitin-conjugating enzyme UBE2O | B7: Ube2o | C7: Q6ZPJ3 | D7: 2772.26 | E7: 924.7581 | F7: 3 | G7: 58.79 | H7: NMTVEQLLTGSPTSPTVEPEKPTR | I7: S11; S14 | J7: 3.12 | K7: 3.15 | L7: 3.56 | M7: 2.96 | N7: - | O7: 2.56 | P7: 0.2 | Q7: 0.04096486281
A8: (E3-independent) E2 ubiquitin-conjugating enzyme UBE2O | B8: Ube2o | C8: Q6ZPJ3 | D8: 2788.25 | E8: 930.0884 | F8: 3 | G8: 50.65 | H8: NMoTVEQLLTGSPTSPTVEPEKPTR | I8: S11; S14 | J8: - | K8: 2.25 | L8: - | M8: - | N8: - | O8: - | P8: 0.2 | Q8: 0.08416909227
A9: (E3-independent) E2 ubiquitin-conjugating enzyme UBE2O | B9: Ube2o | C9: Q6ZPJ3 | D9: 1876.63 | E9: 938.8190 | F9: 2 | G9: 15.33 | H9: LIHGEDSDSEGDDDGR | I9: S7; S9 | J9: 3.28 | K9: 3.78 | L9: 3.29 | M9: 2.80 | N9: 3.52 | O9: 2.79 | P9: 0.9 | Q9: 0.4891072516
A10: (E3-independent) E2 ubiquitin-conjugating enzyme UBE2O | B10: Ube2o | C10: Q6ZPJ3 | D10: 3040.22 | E10: 1014.0768 | F10: 3 | G10: 32.47 | H10: EEPEDVGMAPGEASQGSDSEGGAQGPASASR | I10: S17 | J10: 3.45 | K10: 3.66 | L10: 4.18 | M10: 3.65 | N10: 4.00 | O10: 2.51 | P10: 0.3 | Q10: 0.2303739486
A11: [3-methyl-2-oxobutanoate dehydrogenase [lipoamide]] kinase, mitochondrial | B11: Bckdk | C11: D3Z7R0 | D11: 1604.71 | E11: 802.8588 | F11: 2 | G11: 13.69 | H11: STSATDTHHVELAR | I11: S3 | J11: 2.25 | K11: 2.43 | L11: 2.11 | M11: 2.19 | N11: 2.23 | O11: 2.10 | P11: 0.8 | Q11: 0.3437118453
A12: 14-3-3 protein theta | B12: Ywhaq | C12: P68254 | D12: 2534.95 | E12: 1267.9779 | F12: 2 | G12: 63.31 | H12: DNLTLWTSDSAGEECDAAEGAEN | I12: S10 | J12: 3.39 | K12: 2.74 | L12: - | M12: - | N12: 2.80 | O12: - | P12: 0.4 | Q12: 0.08045389848
A13: 1-phosphatidylinositol 3-phosphate 5-kinase | B13: Pikfyve | C13: D3Z5N5 | D13: 1878.91 | E13: 626.9749 | F13: 3 | G13: 37.15 | H13: SSSPIRLPEISGGQTNR | I13: S3 | J13: - | K13: - | L13: 2.36 | M13: - | N13: - | O13: - | P13: 0.3 | Q13: 0.2133099433
A14: 1-phosphatidylinositol 4,5-bisphosphate phosphodiesterase beta-1 | B14: Plcb1 | C14: Q9Z1B3 | D14: 1567.74 | E14: 523.2512 | F14: 3 | G14: 22.51 | H14: VNLKSPSSEEIER | I14: S5 | J14: 2.45 | K14: 2.67 | L14: 2.85 | M14: 2.70 | N14: 2.31 | O14: 2.47 | P14: 0.7 | Q14: 0.1403712781
A15: 1-phosphatidylinositol 4,5-bisphosphate phosphodiesterase beta-1 | B15: Plcb1 | C15: Q9Z1B3 | D15: 1647.71 | E15: 824.3554 | F15: 2 | G15: 26.91 | H15: VNLKSPSSEEIER | I15: S5; S7 | J15: 2.59 | K15: 2.59 | L15: 2.83 | M15: 2.46 | N15: 2.71 | O15: 2.75 | P15: 0.7 | Q15: 0.09688356596
A16: 1-phosphatidylinositol 4,5-bisphosphate phosphodiesterase beta-1 | B16: Plcb1 | C16: Q9Z1B3 | D16: 2894.24 | E16: 965.4218 | F16: 3 | G16: 68.50 | H16: SEPSSPDHGSSAIEQDLAALDAEMTQK | I16: S11 | J16: 4.10 | K16: 3.89 | L16: 4.50 | M16: 4.05 | N16: - | O16: - | P16: 0.1 | Q16: 0.003327977177
A17: 1-phosphatidylinositol 4,5-bisphosphate phosphodiesterase beta-1 | B17: Plcb1 | C17: Q9Z1B3 | D17: 2910.24 | E17: 970.7517 | F17: 3 | G17: 54.48 | H17: SEPSSPDHGSSAIEQDLAALDAEMoTQK | I17: S11 | J17: - | K17: - | L17: - | M17: 3.19 | N17: - | O17: - | P17: 0.2 | Q17: 0.1715830884
A18: 2',3'-cyclic-nucleotide 3'-phosphodiesterase | B18: Cnp | C18: Q09J73 | D18: 1525.70 | E18: 763.3561 | F18: 2 | G18: 34.54 | H18: NQWQLSADDLKK | I18: S6 | J18: - | K18: 2.20 | L18: 2.94 | M18: - | N18: 2.45 | O18: - | P18: 0.6 | Q18: 0.1612852708
A19: 2010300C02Rik protein | B19: 2010300C02Rik | C19: Q6GQT3 | D19: 1563.68 | E19: 521.8981 | F19: 3 | G19: 15.43 | H19: DMoSPPEGDVAPPKK | I19: S3 | J19: 3.19 | K19: 3.49 | L19: 3.61 | M19: 3.01 | N19: 3.05 | O19: 3.04 | P19: 0.7 | Q19: 0.04700495672
A20: 2010300C02Rik protein | B20: 2010300C02Rik | C20: Q6GQT3 | D20: 1391.61 | E20: 696.3101 | F20: 2 | G20: 28.94 | H20: DLSPSEGDVAPPK | I20: S3 | J20: 2.39 | K20: 2.24 | L20: 2.31 | M20: 2.54 | N20: 2.94 | O20: 2.22 | P20: 1.0 | Q20: 0.8487913082
A21: 2010300C02Rik protein | B21: 2010300C02Rik | C21: Q6GQT3 | D21: 1409.57 | E21: 705.2873 | F21: 2 | G21: 26.01 | H21: DMSPSEGDVAPPK | I21: S3 | J21: 2.64 | K21: 2.51 | L21: - | M21: - | N21: - | O21: - | P21: 0.3 | Q21: 0.3024462391
A22: 2010300C02Rik protein | B22: 2010300C02Rik | C22: Q6GQT3 | D22: 1419.59 | E22: 710.2969 | F22: 2 | G22: 29.64 | H22: DMSPPEGDVAPPK | I22: S3 | J22: - | K22: - | L22: 2.56 | M22: - | N22: - | O22: - | P22: 0.5 | Q22: 0.1664809729
A23: 2010300C02Rik protein | B23: 2010300C02Rik | C23: Q6GQT3 | D23: 1435.58 | E23: 718.2955 | F23: 2 | G23: 22.41 | H23: DMoSPPEGDVAPPK | I23: S3 | J23: 2.79 | K23: 3.15 | L23: 3.42 | M23: 3.13 | N23: 2.99 | O23: 2.68 | P23: 0.9 | Q23: 0.1703421117
A24: 2010300C02Rik protein | B24: 2010300C02Rik | C24: Q6GQT3 | D24: 1537.66 | E24: 769.3353 | F24: 2 | G24: 18.43 | H24: DMSPSEGDVAPPKK | I24: S3 | J24: 2.05 | K24: - | L24: - | M24: - | N24: - | O24: - | P24: 0.1 | Q24: 0.143155
A25: 2010300C02Rik protein | B25: 2010300C02Rik | C25: Q6GQT3 | D25: 1547.68 | E25: 774.3443 | F25: 2 | G25: 21.80 | H25: DMSPPEGDVAPPKK | I25: S3 | J25: 2.04 | K25: 2.26 | L25: 2.15 | M25: 2.03 | N25: 2.18 | O25: - | P25: 0.5 | Q25: 0.0525460072
A26: 2010300C02Rik protein | B26: 2010300C02Rik | C26: Q6GQT3 | D26: 1553.66 | E26: 777.3320 | F26: 2 | G26: 13.31 | H26: DMoSPSEGDVAPPKK | I26: S3 | J26: 2.81 | K26: - | L26: - | M26: - | N26: - | O26: - | P26: 0.3 | Q26: 0.2114387281
A27: 2010300C02Rik protein | B27: 2010300C02Rik | C27: Q6GQT3 | D27: 2437.12 | E27: 813.0436 | F27: 3 | G27: 26.29 | H27: ILVSSSRPQSPDHMSDASISSR | I27: S10 | J27: 2.26 | K27: - | L27: 2.65 | M27: - | N27: - | O27: 2.92 | P27: 0.4 | Q27: 0.2368095183
A28: 2010300C02Rik protein | B28: 2010300C02Rik | C28: Q6GQT3 | D28: 1958.93 | E28: 979.9722 | F28: 2 | G28: 52.58 | H28: SPPEMSLLHDVGPGTTIK | I28: S1 | J28: - | K28: 2.19 | L28: - | M28: - | N28: 2.35 | O28: - | P28: 0.4 | Q28: 0.3025681303
A29: 26S proteasome non-ATPase regulatory subunit 2 | B29: Psmd2 | C29: E9Q2S8 | D29: 2252.01 | E29: 751.3414 | F29: 3 | G29: 15.33 | H29: DKTPVQSQQPSATTPSGADEK | I29: S16 | J29: 4.51 | K29: 4.23 | L29: 4.21 | M29: 3.97 | N29: 4.11 | O29: 3.98 | P29: 0.6 | Q29: 0.2853140481
A30: 26S proteasome non-ATPase regulatory subunit 2 | B30: Psmd2 | C30: E9Q2S8 | D30: 2008.89 | E30: 1004.9512 | F30: 2 | G30: 16.32 | H30: TPVQSQQPSATTPSGADEK | I30: T12 | J30: 3.22 | K30: - | L30: 2.67 | M30: - | N30: 2.77 | O30: 2.74 | P30: 0.6 | Q30: 0.3058631379
A31: 26S proteasome non-ATPase regulatory subunit 4 isoform 4 | B31: Psmd4 | C31: O35226-4 | D31: 2396.10 | E31: 1198.5503 | F31: 2 | G31: 45.92 | H31: AAAASAAEAGIATPGTEDSDDALLK | I31: T13 | J31: - | K31: 2.72 | L31: 3.36 | M31: 2.86 | N31: 3.31 | O31: 2.91 | P31: 1.3 | Q31: 0.6376947518
A32: 28 kDa heat- and acid-stable phosphoprotein | B32: Pdap1 | C32: Q3UHX2 | D32: 2225.83 | E32: 742.6137 | F32: 3 | G32: 17.67 | H32: KSLDSDESEDEDDDYQQK | I32: S5 | J32: - | K32: - | L32: 4.06 | M32: - | N32: - | O32: - | P32: 0.4 | Q32: 0.07974351311
A33: 28 kDa heat- and acid-stable phosphoprotein | B33: Pdap1 | C33: Q3UHX2 | D33: 2097.73 | E33: 1049.3690 | F33: 2 | G33: 23.52 | H33: SLDSDESEDEDDDYQQK | I33: S4 | J33: 3.89 | K33: 4.16 | L33: 4.44 | M33: 4.39 | N33: 4.48 | O33: 4.29 | P33: 0.6 | Q33: 0.241060351
A34: 28 kDa heat- and acid-stable phosphoprotein | B34: Pdap1 | C34: Q3UHX2 | D34: 2177.70 | E34: 1089.3534 | F34: 2 | G34: 27.58 | H34: SLDSDESEDEDDDYQQK | I34: S4; S7 | J34: 4.82 | K34: 4.39 | L34: 4.15 | M34: 4.91 | N34: 4.87 | O34: 4.51 | P34: 0.8 | Q34: 0.5107637291
A35: 28 kDa heat- and acid-stable phosphoprotein | B35: Pdap1 | C35: Q3UHX2 | D35: 2305.79 | E35: 1153.3990 | F35: 2 | G35: 21.26 | H35: KSLDSDESEDEDDDYQQK | I35: S5; S8 | J35: 4.39 | K35: 3.91 | L35: 4.34 | M35: 4.32 | N35: 3.77 | O35: 3.77 | P35: 0.5 | Q35: 0.01607930964
A36: 28S ribosomal protein S36, mitochondrial | B36: Mrps36 | C36: Q9D6T9 | D36: 2287.07 | E36: 763.0281 | F36: 3 | G36: 49.33 | H36: GSTSPDLLMHQGPPDTAEIIK | I36: S4 | J36: - | K36: - | L36: 2.44 | M36: - | N36: - | O36: - | P36: 0.3 | Q36: 0.196642646
A37: 3-phosphoinositide-dependent protein kinase 1 | B37: Pdpk1 | C37: F2Z3Z9 | D37: 2134.01 | E37: 712.0094 | F37: 3 | G37: 59.86 | H37: ANSFVGTAQYVSPELLTEK | I37: S3 | J37: 3.32 | K37: 2.99 | L37: 3.98 | M37: 3.63 | N37: 3.00 | O37: - | P37: 0.5 | Q37: 0.1844896132
A38: 40S ribosomal protein S3 | B38: Rps3 | C38: P62908 | D38: 1550.74 | E38: 775.8719 | F38: 2 | G38: 40.93 | H38: DEILPTTPISEQK | I38: T7 | J38: 2.39 | K38: 2.46 | L38: 2.62 | M38: 2.16 | N38: 2.65 | O38: 2.34 | P38: 0.7 | Q38: 0.3887517888
A39: 5'-3' exoribonuclease 2 isoform 2 | B39: Xrn2 | C39: Q9DBR1-2 | D39: 2484.13 | E39: 828.7150 | F39: 3 | G39: 52.28 | H39: NSSPSISPNTSFASDGSPSPLGGIK | I39: S2 | J39: 3.69 | K39: 3.38 | L39: 3.10 | M39: 3.38 | N39: 3.33 | O39: 3.87 | P39: 0.5 | Q39: 0.2105652494
A40: 5'-3' exoribonuclease 2 isoform 2 | B40: Xrn2 | C40: Q9DBR1-2 | D40: 1848.63 | E40: 924.8162 | F40: 2 | G40: 24.06 | H40: AEDSDSEPEPEDNVR | I40: S4; S6 | J40: 3.51 | K40: - | L40: 3.20 | M40: 3.44 | N40: 2.67 | O40: - | P40: 0.9 | Q40: 0.7923478746
A41: 5'-3' exoribonuclease 2 isoform 2 | B41: Xrn2 | C41: Q9DBR1-2 | D41: 1976.72 | E41: 988.8634 | F41: 2 | G41: 17.05 | H41: KAEDSDSEPEPEDNVR | I41: S5; S7 | J41: 3.69 | K41: 3.63 | L41: 3.70 | M41: 3.43 | N41: 3.51 | O41: 3.61 | P41: 0.6 | Q41: 0.1214423092
A42: 5'-3' exoribonuclease 2 isoform 2 | B42: Xrn2 | C42: Q9DBR1-2 | D42: 2564.09 | E42: 1282.5563 | F42: 2 | G42: 58.90 | H42: NSSPSISPNTSFASDGSPSPLGGIK | I42: S3; S5 | J42: 2.95 | K42: 3.17 | L42: 3.43 | M42: 3.10 | N42: 2.98 | O42: 2.96 | P42: 0.4 | Q42: 0.1499697681
A43: 5'-AMP-activated protein kinase subunit beta-2 | B43: Prkab2 | C43: D6RH98 | D43: 1974.88 | E43: 987.9481 | F43: 2 | G43: 59.15 | H43: IMVGSTDDPSVFSLPDSK | I43: S5 | J43: 2.33 | K43: - | L43: 3.32 | M43: 2.73 | N43: - | O43: 2.39 | P43: 0.5 | Q43: 0.1075192316
A44: 5'-AMP-activated protein kinase subunit beta-2 | B44: Prkab2 | C44: D6RH98 | D44: 1990.87 | E44: 995.9415 | F44: 2 | G44: 55.62 | H44: IMoVGSTDDPSVFSLPDSK | I44: S5 | J44: 2.21 | K44: 3.02 | L44: 3.10 | M44: 2.24 | N44: - | O44: 3.18 | P44: 0.8 | Q44: 0.7448388795
A45: 60S acidic ribosomal protein P0 | B45: Rplp0 | C45: P14869 | D45: 2394.83 | E45: 1197.9169 | F45: 2 | G45: 74.22 | H45: AEAKEESEESDEDMGFGLFD | I45: S7; S10 | J45: 3.46 | K45: 3.93 | L45: 3.51 | M45: 3.55 | N45: 3.46 | O45: 3.81 | P45: 0.4 | Q45: 0.101753
A46: 60S acidic ribosomal protein P0 | B46: Rplp0 | C46: P14869 | D46: 2410.83 | E46: 1205.9155 | F46: 2 | G46: 65.32 | H46: AEAKEESEESDEDMoGFGLFD | I46: S7; S10 | J46: 3.73 | K46: 3.86 | L46: 3.68 | M46: 3.62 | N46: 3.57 | O46: 3.95 | P46: 0.5 | Q46: 0.05224109178
A47: 60S acidic ribosomal protein P1 | B47: Rplp1 | C47: P47955 | D47: 1915.65 | E47: 958.3265 | F47: 2 | G47: 80.05 | H47: EESEESEDDMGFGLFD | I47: S6 | J47: - | K47: - | L47: - | M47: - | N47: 2.50 | O47: - | P47: 1.3 | Q47: 0.6668254317
A48: 60S acidic ribosomal protein P1 | B48: Rplp1 | C48: P47955 | D48: 1931.65 | E48: 966.3270 | F48: 2 | G48: 70.45 | H48: EESEESEDDMoGFGLFD | I48: S6 | J48: - | K48: - | L48: 2.13 | M48: 2.15 | N48: 2.34 | O48: - | P48: 1.3 | Q48: 0.6694975925
A49: 60S acidic ribosomal protein P1 | B49: Rplp1 | C49: P47955 | D49: 1995.62 | E49: 998.3125 | F49: 2 | G49: 100.05 | H49: EESEESEDDMGFGLFD | I49: S3; S6 | J49: 2.38 | K49: 2.17 | L49: 2.45 | M49: 2.34 | N49: - | O49: - | P49: 0.2 | Q49: 0.06338929215
A50: 60S acidic ribosomal protein P1 | B50: Rplp1 | C50: P47955 | D50: 2011.61 | E50: 1006.3098 | F50: 2 | G50: 90.16 | H50: EESEESEDDMoGFGLFD | I50: S3; S6 | J50: 3.12 | K50: 3.29 | L50: 3.19 | M50: 3.20 | N50: 2.51 | O50: 3.02 | P50: 0.4 | Q50: 0.1809590467
A51: 60S acidic ribosomal protein P1 | B51: Rplp1 | C51: P47955 | D51: 2059.74 | E51: 1030.3757 | F51: 2 | G51: 55.84 | H51: KEESEESEDDMoGFGLFD | I51: S4 | J51: 2.56 | K51: 2.77 | L51: 2.61 | M51: - | N51: 2.80 | O51: 2.58 | P51: 0.8 | Q51: 0.5346712964
A52: 60S acidic ribosomal protein P1 | B52: Rplp1 | C52: P47955 | D52: 2123.71 | E52: 1062.3579 | F52: 2 | G52: 76.46 | H52: KEESEESEDDMGFGLFD | I52: S4; S7 | J52: 2.57 | K52: 2.81 | L52: 2.11 | M52: 2.73 | N52: 2.82 | O52: 2.62 | P52: 0.4 | Q52: 0.14685
A53: 60S acidic ribosomal protein P1 | B53: Rplp1 | C53: P47955 | D53: 2139.70 | E53: 1070.3558 | F53: 2 | G53: 66.41 | H53: KEESEESEDDMoGFGLFD | I53: S4; S7 | J53: 3.24 | K53: 2.69 | L53: 3.47 | M53: 3.20 | N53: 3.36 | O53: 2.95 | P53: 0.5 | Q53: 0.07198987064
A54: 60S acidic ribosomal protein P2 | B54: Rplp2 | C54: P99027 | D54: 1948.94 | E54: 974.9761 | F54: 2 | G54: 69.08 | H54: YVASYLLAALGGNSSPSAK | I54: S14 | J54: - | K54: - | L54: 2.92 | M54: - | N54: - | O54: - | P54: 0.5 | Q54: 0.5907652929
A55: 60S acidic ribosomal protein P2 | B55: Rplp2 | C55: P99027 | D55: 1997.60 | E55: 999.3025 | F55: 2 | G55: 89.41 | H55: EESEESDDDMoGFGLFD | I55: S3; S6 | J55: 2.98 | K55: - | L55: - | M55: - | N55: - | O55: - | P55: 0.3 | Q55: 0.2064060208
A56: 60S acidic ribosomal protein P2 | B56: Rplp2 | C56: P99027 | D56: 2029.73 | E56: 1015.3675 | F56: 2 | G56: 64.93 | H56: KEESEESDDDMGFGLFD | I56: S4 | J56: 2.70 | K56: 2.38 | L56: 2.09 | M56: 3.22 | N56: 2.57 | O56: - | P56: 0.7 | Q56: 0.4364598047
A57: 60S acidic ribosomal protein P2 | B57: Rplp2 | C57: P99027 | D57: 2045.73 | E57: 1023.3657 | F57: 2 | G57: 55.66 | H57: KEESEESDDDMoGFGLFD | I57: S7 | J57: 2.95 | K57: 2.45 | L57: 3.19 | M57: 2.83 | N57: 3.48 | O57: 2.51 | P57: 0.9 | Q57: 0.8249790186
A58: 60S acidic ribosomal protein P2 | B58: Rplp2 | C58: P99027 | D58: 2109.69 | E58: 1055.3497 | F58: 2 | G58: 76.17 | H58: KEESEESDDDMGFGLFD | I58: S4; S7 | J58: 3.39 | K58: 2.74 | L58: 3.01 | M58: 2.81 | N58: 2.77 | O58: 3.02 | P58: 0.4 | Q58: 0.1407
A59: 60S acidic ribosomal protein P2 | B59: Rplp2 | C59: P99027 | D59: 2125.69 | E59: 1063.3506 | F59: 2 | G59: 68.06 | H59: KEESEESDDDMoGFGLFD | I59: S4; S7 | J59: 3.56 | K59: 3.36 | L59: 3.16 | M59: 3.40 | N59: 3.53 | O59: 3.11 | P59: 0.4 | Q59: 0.1076648498
A60: 60S ribosomal protein L22-like 1 isoform 2 | B60: Rpl22l1 | C60: Q9D7S7-2 | D60: 1828.65 | E60: 914.8257 | F60: 2 | G60: 44.70 | H60: YFQISQDEDGSESED | I60: S11 | J60: 3.04 | K60: 3.14 | L60: 2.68 | M60: 2.78 | N60: 3.01 | O60: 2.66 | P60: 0.5 | Q60: 0.2695674128
A61: 60S ribosomal protein L22-like 1 isoform 2 | B61: Rpl22l1 | C61: Q9D7S7-2 | D61: 1908.61 | E61: 954.8107 | F61: 2 | G61: 55.50 | H61: YFQISQDEDGSESED | I61: S11; S13 | J61: - | K61: - | L61: - | M61: - | N61: 2.41 | O61: - | P61: 0.5 | Q61: 0.06991761273
A62: 6-phosphofructo-2-kinase/fructose-2, 6-bisphosphatase 2 transcript variant 2 | B62: Pfkfb2 | C62: B0FLL3 | D62: 1503.68 | E62: 752.3457 | F62: 2 | G62: 38.45 | H62: NSFTPLSSSNTIR | I62: S2 | J62: - | K62: 2.17 | L62: 2.38 | M62: - | N62: 2.43 | O62: - | P62: 0.9 | Q62: 0.6809795868
A63: 6-phosphofructo-2-kinase/fructose-2, 6-bisphosphatase 2 transcript variant 2 | B63: Pfkfb2 | C63: B0FLL3 | D63: 1659.79 | E63: 830.3975 | F63: 2 | G63: 30.17 | H63: RNSFTPLSSSNTIR | I63: S3 | J63: - | K63: 2.12 | L63: - | M63: - | N63: - | O63: - | P63: 1.7 | Q63: 0.6305732839
A64: 7SK snRNA methylphosphate capping enzyme | B64: Mepce | C64: Q8K3A9 | D64: 1683.78 | E64: 842.3917 | F64: 2 | G64: 22.95 | H64: ALNAETPKSSPLPAK | I64: T6; S10 | J64: 2.47 | K64: 3.12 | L64: 2.76 | M64: 2.76 | N64: 2.77 | O64: 2.10 | P64: 0.7 | Q64: 0.2094417145
A65: 7SK snRNA methylphosphate capping enzyme | B65: Mepce | C65: Q8K3A9 | D65: 3551.68 | E65: 1184.5647 | F65: 3 | G65: 56.52 | H65: DEVVSPLPSALQGSSGSLSAPPAASVTSAPSTSSSSR | I65: S5 | J65: - | K65: - | L65: 2.62 | M65: - | N65: - | O65: - | P65: 0.9 | Q65: 0.9354855225
A66: A kinase (PRKA) anchor protein 8-like | B66: Akap8l | C66: Q5RL57 | D66: 2288.00 | E66: 763.3384 | F66: 3 | G66: 11.68 | H66: EGKEDSEKGALTAQDESSQAK | I66: S6 | J66: - | K66: 3.13 | L66: - | M66: - | N66: - | O66: - | P66: 0.5 | Q66: 0.367310225
A67: Abl interactor 1 | B67: Abi1 | C67: Q3UBL3 | D67: 1739.85 | E67: 870.4296 | F67: 2 | G67: 17.80 | H67: TNPPTQKPPSPPVSGR | I67: S10 | J67: - | K67: - | L67: - | M67: 2.11 | N67: - | O67: 2.11 | P67: 0.7 | Q67: 0.3506963559
A68: Abscission/NoCut checkpoint regulator | B68: Zfyve19 | C68: Q4KL52 | D68: 2554.10 | E68: 852.0372 | F68: 3 | G68: 46.42 | H68: VTLQDYHLPDSDEDEETAIQR | I68: S11 | J68: - | K68: 2.62 | L68: 2.63 | M68: - | N68: 2.51 | O68: - | P68: 0.5 | Q68: 0.175166042
A69: Acap3 protein | B69: Acap3 | C69: Q4QQN0 | D69: 1692.70 | E69: 846.8526 | F69: 2 | G69: 19.21 | H69: TASPSTSSIDSTTDSR | I69: S3 | J69: - | K69: 2.85 | L69: - | M69: 2.80 | N69: - | O69: - | P69: 1.0 | Q69: 0.8925466518
A70: Ace protein | B70: Ace | C70: Q7TSV8 | D70: 1298.58 | E70: 649.7939 | F70: 2 | G70: 39.78 | H70: GPQFGSEVELR | I70: S6 | J70: - | K70: - | L70: 2.22 | M70: - | N70: - | O70: - | P70: 0.5 | Q70: 0.1742780512
A71: Acetyl-CoA carboxylase 1 | B71: Acaca | C71: V9GWR9 | D71: 2275.04 | E71: 1138.0234 | F71: 2 | G71: 65.23 | H71: FIIGSVSEDNSEDEISNLVK | I71: S11 | J71: 4.06 | K71: 4.15 | L71: 4.06 | M71: 3.69 | N71: 3.40 | O71: 2.77 | P71: 0.6 | Q71: 0.2652988094
A72: Acetyl-CoA carboxylase 1 | B72: Acaca | C72: V9GWR9 | D72: 2355.00 | E72: 1178.0059 | F72: 2 | G72: 74.77 | H72: FIIGSVSEDNSEDEISNLVK | I72: S7; S11 | J72: 4.02 | K72: 3.73 | L72: 3.50 | M72: 3.61 | N72: - | O72: - | P72: 0.3 | Q72: 0.1743644334
A73: Acetyl-coenzyme A synthetase, cytoplasmic | B73: Acss2 | C73: Q9QXG4 | D73: 1104.49 | E73: 552.7477 | F73: 2 | G73: 35.82 | H73: GWSPPPEVR | I73: S3 | J73: - | K73: - | L73: 2.13 | M73: - | N73: - | O73: - | P73: 0.3 | Q73: 0.1538837002
A74: Acetyl-coenzyme A synthetase, cytoplasmic | B74: Acss2 | C74: Q9QXG4 | D74: 1736.76 | E74: 868.8846 | F74: 2 | G74: 30.74 | H74: AELGMNDSPSQSPPVK | I74: S10 | J74: - | K74: 2.28 | L74: 2.81 | M74: - | N74: - | O74: - | P74: 0.4 | Q74: 0.3592773506
A75: Actin filament-associated protein 1 | B75: Afap1 | C75: Q80YS6 | D75: 2517.06 | E75: 839.6906 | F75: 3 | G75: 20.08 | H75: LSSERPSSDGEGGVENGVTTCNGK | I75: S7 | J75: - | K75: 2.51 | L75: - | M75: 3.01 | N75: - | O75: - | P75: 0.7 | Q75: 0.1507347606
A76: Actin filament-associated protein 1 | B76: Afap1 | C76: Q80YS6 | D76: 2952.36 | E76: 984.7915 | F76: 3 | G76: 55.59 | H76: TLENSPISSCDTSDAEGPLPVNSAAVLK | I76: T1 | J76: 3.16 | K76: - | L76: - | M76: - | N76: - | O76: 3.09 | P76: 0.5 | Q76: 0.2408165522
A77: Actin, cytoplasmic 1 | B77: Actb | C77: P60710 | D77: 1870.86 | E77: 935.9362 | F77: 2 | G77: 58.06 | H77: SYELPDGQVITIGNER | I77: Y2 | J77: 2.88 | K77: 3.12 | L77: 2.94 | M77: 2.97 | N77: 2.66 | O77: 2.20 | P77: 0.7 | Q77: 0.2578035459
A78: Actin-binding LIM protein 1 | B78: Ablim1 | C78: E9Q9C7 | D78: 1700.75 | E78: 850.8815 | F78: 2 | G78: 32.32 | H78: TLSPTPSAEGYQDVR | I78: S3 | J78: 2.38 | K78: 2.39 | L78: 2.70 | M78: 2.59 | N78: 2.64 | O78: - | P78: 0.5 | Q78: 0.1025634356
A79: Actin-binding LIM protein 1 | B79: Ablim1 | C79: E9Q9C7 | D79: 2659.24 | E79: 887.0861 | F79: 3 | G79: 33.87 | H79: TSSESIYSRPGSSIPGSPGHTIYAK | I79: S5 | J79: - | K79: 2.79 | L79: - | M79: - | N79: - | O79: - | P79: 0.1 | Q79: 0.011751
A80: Actin-binding LIM protein 1 | B80: Ablim1 | C80: E9Q9C7 | D80: 1961.77 | E80: 981.3885 | F80: 2 | G80: 39.27 | H80: DCLCQLCAQPMSSSPK | I80: S14 | J80: 3.46 | K80: 2.58 | L80: 3.22 | M80: 2.94 | N80: 2.83 | O80: 2.74 | P80: 0.6 | Q80: 0.2029710734
A81: Actin-binding LIM protein 2 | B81: Ablim2 | C81: F6VVW4 | D81: 2655.18 | E81: 885.7341 | F81: 3 | G81: 47.32 | H81: TNSPDLDSQSLSLSSGTDQEPLQR | I81: S3 | J81: 3.05 | K81: 3.28 | L81: 3.78 | M81: 2.88 | N81: 3.34 | O81: 3.31 | P81: 0.7 | Q81: 0.3223288566
A82: Actin-binding LIM protein 2 | B82: Ablim2 | C82: F6VVW4 | D82: 2002.90 | E82: 1001.9559 | F82: 2 | G82: 31.49 | H82: TSSESIVSVPASSTSGSPSR | I82: S17 | J82: 2.17 | K82: 2.27 | L82: 2.37 | M82: 2.36 | N82: 2.45 | O82: 2.33 | P82: 0.6 | Q82: 0.3629881054
A83: Actin-binding LIM protein 2 | B83: Ablim2 | C83: F6VVW4 | D83: 2082.87 | E83: 1041.9352 | F83: 2 | G83: 38.53 | H83: TSSESIVSVPASSTSGSPSR | I83: T1; S19 | J83: 2.30 | K83: 2.71 | L83: 2.79 | M83: 2.36 | N83: 2.78 | O83: 2.65 | P83: 0.9 | Q83: 0.6957832629
A84: Actin-related protein 3 | B84: Actr3 | C84: Q9ERF8 | D84: 1067.44 | E84: 534.2235 | F84: 2 | G84: 43.78 | H84: HNPVFGVMS | I84: S9 | J84: 2.04 | K84: 2.30 | L84: 2.43 | M84: - | N84: - | O84: - | P84: 0.3 | Q84: 0.2518921668
A85: Actin-related protein 3 | B85: Actr3 | C85: Q9ERF8 | D85: 1083.43 | E85: 542.2208 | F85: 2 | G85: 31.34 | H85: HNPVFGVMoS | I85: S9 | J85: - | K85: - | L85: 2.24 | M85: - | N85: - | O85: - | P85: 0.6 | Q85: 0.2737594916
A86: Acylamino-acid-releasing enzyme | B86: Apeh | C86: A0A0R4J107 | D86: 1698.74 | E86: 849.8752 | F86: 2 | G86: 28.25 | H86: ALDVSASDEEMARPK | I86: S7 | J86: - | K86: - | L86: 3.26 | M86: - | N86: 2.94 | O86: - | P86: 0.7 | Q86: 0.3116975771
A87: Acyl-CoA-binding domain-containing protein 5 isoform 2 | B87: Acbd5 | C87: Q5XG73-2 | D87: 3416.31 | E87: 1139.4429 | F87: 3 | G87: 38.81 | H87: AESSDSGAESEEEEAQEELKGAEQSGSDDKK | I87: S6; S10 | J87: - | K87: 3.10 | L87: 3.26 | M87: - | N87: - | O87: - | P87: 0.3 | Q87: 0.1980749708
A88: Adapter molecule crk | B88: Crk | C88: Q3TQV3 | D88: 1979.83 | E88: 660.6144 | F88: 3 | G88: 49.40 | H88: DSSTSPGDYVLSVSENSR | I88: Y9 | J88: 3.04 | K88: 3.47 | L88: 3.58 | M88: 2.93 | N88: 2.80 | O88: 3.38 | P88: 0.6 | Q88: 0.1873205236
A89: Add3 protein | B89: Add3 | C89: Q05C56 | D89: 1952.93 | E89: 651.6467 | F89: 3 | G89: 12.98 | H89: TEEVLSPDGSPSKSPSKK | I89: S12 | J89: - | K89: - | L89: - | M89: 2.69 | N89: 2.29 | O89: 2.34 | P89: 0.8 | Q89: 0.348313096
A90: Add3 protein | B90: Add3 | C90: Q05C56 | D90: 2112.86 | E90: 704.9574 | F90: 3 | G90: 18.78 | H90: TEEVLSPDGSPSKSPSKK | I90: S6; S10; S12 | J90: 3.13 | K90: 2.65 | L90: 2.59 | M90: 2.65 | N90: - | O90: 2.79 | P90: 0.7 | Q90: 0.1604706176
A91: Add3 protein | B91: Add3 | C91: Q05C56 | D91: 1425.62 | E91: 713.3110 | F91: 2 | G91: 21.79 | H91: TEEVLSPDGSPSK | I91: S6 | J91: 3.05 | K91: 3.62 | L91: 2.55 | M91: 2.92 | N91: 2.96 | O91: 2.82 | P91: 0.7 | Q91: 0.1786747122
A92: Add3 protein | B92: Add3 | C92: Q05C56 | D92: 1505.59 | E92: 753.2964 | F92: 2 | G92: 26.75 | H92: TEEVLSPDGSPSK | I92: S6; S10 | J92: - | K92: - | L92: - | M92: 3.13 | N92: - | O92: - | P92: 0.5 | Q92: 0.2770150718
A93: Add3 protein | B93: Add3 | C93: Q05C56 | D93: 1824.83 | E93: 912.9177 | F93: 2 | G93: 18.01 | H93: TEEVLSPDGSPSKSPSK | I93: S14 | J93: 3.23 | K93: 3.12 | L93: 3.46 | M93: 2.67 | N93: 3.62 | O93: 3.58 | P93: 0.7 | Q93: 0.3005976486
A94: Add3 protein | B94: Add3 | C94: Q05C56 | D94: 1904.80 | E94: 952.9024 | F94: 2 | G94: 21.31 | H94: TEEVLSPDGSPSKSPSK | I94: S12; S14 | J94: 2.50 | K94: 2.89 | L94: 3.05 | M94: 2.75 | N94: 2.88 | O94: 2.83 | P94: 0.8 | Q94: 0.2927079248
A95: Add3 protein | B95: Add3 | C95: Q05C56 | D95: 1984.76 | E95: 992.8832 | F95: 2 | G95: 26.06 | H95: TEEVLSPDGSPSKSPSK | I95: S6; S10; S12 | J95: 2.78 | K95: 3.35 | L95: 2.57 | M95: 2.71 | N95: 2.80 | O95: 3.00 | P95: 0.8 | Q95: 0.2197220846
A96: Add3 protein | B96: Add3 | C96: Q05C56 | D96: 2032.89 | E96: 1016.9499 | F96: 2 | G96: 15.87 | H96: TEEVLSPDGSPSKSPSKK | I96: S12; S14 | J96: 3.74 | K96: 3.09 | L96: 3.36 | M96: 2.87 | N96: 3.16 | O96: 3.90 | P96: 0.7 | Q96: 0.2903509015
A97: Add3 protein | B97: Add3 | C97: Q05C56 | D97: 3974.75 | E97: 1325.5883 | F97: 3 | G97: 45.77 | H97: KQQGLDDAEQGSLSDDAASVSQIQSQTQSPQSVPER | I97: S14; S19 | J97: - | K97: - | L97: 2.87 | M97: - | N97: - | O97: - | P97: 0.0 | Q97: 0.08709606877
A98: Adducin 1 (Alpha) | B98: Add1 | C98: Q8K232 | D98: 1613.72 | E98: 538.5776 | F98: 3 | G98: 8.05 | H98: KQKGSEENLDETR | I98: S5 | J98: 2.39 | K98: - | L98: - | M98: - | N98: - | O98: - | P98: 0.8 | Q98: 0.6541458546
A99: Adducin 1 (Alpha) | B99: Add1 | C99: Q8K232 | D99: 1728.70 | E99: 576.9064 | F99: 3 | G99: 10.24 | H99: SRSPGTPAGEGSGSPPK | I99: S1; S3 | J99: 2.99 | K99: 3.21 | L99: 3.08 | M99: 3.00 | N99: 2.96 | O99: 3.45 | P99: 0.5 | Q99: 0.222497073
A100: Adducin 1 (Alpha) | B100: Add1 | C100: Q8K232 | D100: 2156.04 | E100: 719.3489 | F100: 3 | G100: 24.22 | H100: EKSPPDQSAVPNTPPSTPVK | I100: T13 | J100: 3.55 | K100: 3.36 | L100: 3.40 | M100: 3.52 | N100: 3.74 | O100: 3.08 | P100: 0.6 | Q100: 0.2191791709
A101: Adducin 1 (Alpha) | B101: Add1 | C101: Q8K232 | D101: 1553.77 | E101: 777.3914 | F101: 2 | G101: 17.57 | H101: AAVVTSPPPTTAPHK | I101: S6 | J101: 2.88 | K101: 2.78 | L101: 2.76 | M101: 2.95 | N101: 2.48 | O101: 3.10 | P101: 0.8 | Q101: 0.2654677952
A102: Adducin 1 (Alpha) | B102: Add1 | C102: Q8K232 | D102: 1557.57 | E102: 779.2899 | F102: 2 | G102: 8.10 | H102: GDDASEEGQNGSSPK | I102: S13 | J102: 3.21 | K102: - | L102: - | M102: - | N102: - | O102: - | P102: 2.1 | Q102: 0.2560627191
A103: Adducin 1 (Alpha) | B103: Add1 | C103: Q8K232 | D103: 3630.67 | E103: 908.4225 | F103: 4 | G103: 46.15 | H103: EKSPPDQSAVPNTPPSTPVKLEEDLPQEPTSR | I103: T13; T17 | J103: - | K103: 2.77 | L103: 2.69 | M103: - | N103: - | O103: 2.65 | P103: 0.4 | Q103: 0.2158357374
A104: Adducin 1 (Alpha) | B104: Add1 | C104: Q8K232 | D104: 2236.00 | E104: 1118.5033 | F104: 2 | G104: 28.46 | H104: EKSPPDQSAVPNTPPSTPVK | I104: S3; S8 | J104: 2.23 | K104: 2.62 | L104: 2.78 | M104: 2.26 | N104: 2.32 | O104: 2.52 | P104: 0.7 | Q104: 0.3429953768
A105: Adducin 1 (Alpha) | B105: Add1 | C105: Q8K232 | D105: 3373.53 | E105: 1125.1808 | F105: 3 | G105: 51.81 | H105: SPPDQSAVPNTPPSTPVKLEEDLPQEPTSR | I105: T11; T15 | J105: - | K105: - | L105: 2.64 | M105: 2.48 | N105: - | O105: 2.53 | P105: 0.5 | Q105: 0.2043421131
A106: Adducin 1 (Alpha) | B106: Add1 | C106: Q8K232 | D106: 3710.63 | E106: 1237.5509 | F106: 3 | G106: 50.17 | H106: EKSPPDQSAVPNTPPSTPVKLEEDLPQEPTSR | I106: S3; S8; S16 | J106: 2.61 | K106: 2.83 | L106: 2.72 | M106: - | N106: - | O106: 3.30 | P106: 0.6 | Q106: 0.2488728861
A107: Adenomatous polyposis coli protein isoform 3 | B107: Apc | C107: Q61315-3 | D107: 1555.79 | E107: 519.2681 | F107: 3 | G107: 12.75 | H107: SKTPPPPPQTVQAK | I107: T3 | J107: 3.33 | K107: - | L107: 2.00 | M107: 4.04 | N107: 3.61 | O107: 3.68 | P107: 0.8 | Q107: 0.3799237031
A108: Adenomatous polyposis coli protein isoform 3 | B108: Apc | C108: Q61315-3 | D108: 1860.87 | E108: 620.9614 | F108: 3 | G108: 50.69 | H108: DANIMSPGSSLPSLHVR | I108: S6 | J108: - | K108: 2.31 | L108: 2.83 | M108: - | N108: - | O108: - | P108: 0.5 | Q108: 0.1850092892
A109: Adenomatous polyposis coli protein isoform 3 | B109: Apc | C109: Q61315-3 | D109: 1965.91 | E109: 655.9760 | F109: 3 | G109: 45.40 | H109: SPPEHYVQETPLVFSR | I109: Y6 | J109: - | K109: - | L109: 2.79 | M109: - | N109: - | O109: - | P109: 0.3 | Q109: 0.2998684536
A110: Adenomatous polyposis coli protein isoform 3 | B110: Apc | C110: Q61315-3 | D110: 1430.64 | E110: 715.8258 | F110: 2 | G110: 42.06 | H110: QASSDSDSILSLK | I110: S3 | J110: - | K110: - | L110: 2.31 | M110: - | N110: - | O110: - | P110: 0.5 | Q110: 0.4408535744
A111: Adenomatous polyposis coli protein isoform 3 | B111: Apc | C111: Q61315-3 | D111: 2446.05 | E111: 816.0209 | F111: 3 | G111: 8.79 | H111: QHEGHGVAESNTAASSSGQSPATR | I111: S20 | J111: - | K111: - | L111: - | M111: 2.55 | N111: - | O111: 2.49 | P111: 0.7 | Q111: 0.5533225437
A112: Adenomatous polyposis coli protein isoform 3 | B112: Apc | C112: Q61315-3 | D112: 1707.79 | E112: 854.3993 | F112: 2 | G112: 33.92 | H112: SPTGNTPPVIDSVSEK | I112: S1 | J112: - | K112: 3.48 | L112: 3.59 | M112: 4.06 | N112: 3.20 | O112: - | P112: 0.7 | Q112: 0.2175166381
A113: Adenomatous polyposis coli protein isoform 3 | B113: Apc | C113: Q61315-3 | D113: 2007.94 | E113: 1004.4768 | F113: 2 | G113: 26.23 | H113: SGRSPTGNTPPVIDSVSEK | I113: T6 | J113: 3.30 | K113: - | L113: 2.28 | M113: - | N113: - | O113: 3.76 | P113: 0.7 | Q113: 0.5312658312
A114: Adenomatous polyposis coli protein isoform 3 | B114: Apc | C114: Q61315-3 | D114: 2107.84 | E114: 1054.4207 | F114: 2 | G114: 59.24 | H114: NDSLSSLDFDDDDVDLSR | I114: S3 | J114: 3.98 | K114: - | L114: - | M114: - | N114: 4.29 | O114: - | P114: 0.5 | Q114: 0.1174096811
A115: Adenylate cyclase type 5 | B115: Adcy5 | C115: P84309 | D115: 1111.50 | E115: 556.2547 | F115: 2 | G115: 34.74 | H115: SVELGLEER | I115: S1 | J115: - | K115: - | L115: 2.88 | M115: - | N115: - | O115: - | P115: 0.8 | Q115: 0.600161925
A116: Adenylate cyclase type 9 | B116: Adcy9 | C116: E9Q706 | D116: 2288.98 | E116: 763.6663 | F116: 3 | G116: 38.23 | H116: AIEKDSCEDIGVEEASELSK | I116: S6 | J116: - | K116: - | L116: 3.54 | M116: - | N116: - | O116: - | P116: 0.7 | Q116: 0.3916708637
A117: Adenylate cyclase type 9 | B117: Adcy9 | C117: E9Q706 | D117: 1782.83 | E117: 891.9194 | F117: 2 | G117: 39.24 | H117: GQGTASPGSVSDLAQTVK | I117: S6 | J117: 3.49 | K117: 4.13 | L117: 3.53 | M117: 3.56 | N117: 3.32 | O117: 3.71 | P117: 0.8 | Q117: 0.5068829932
A118: Adenylate cyclase type 9 | B118: Adcy9 | C118: E9Q706 | D118: 1862.80 | E118: 931.9030 | F118: 2 | G118: 44.62 | H118: GQGTASPGSVSDLAQTVK | I118: S6; S9 | J118: - | K118: - | L118: - | M118: - | N118: - | O118: 3.33 | P118: 0.4 | Q118: 0.235029123
A119: Adenylate cyclase type 9 | B119: Adcy9 | C119: E9Q706 | D119: 1923.82 | E119: 962.4124 | F119: 2 | G119: 58.11 | H119: LTNSQTSLCEILQEK | I119: S4; S7 | J119: - | K119: - | L119: - | M119: - | N119: - | O119: 2.17 | P119: 0.6 | Q119: 0.33394
A120: Adenylate cyclase type 9 | B120: Adcy9 | C120: E9Q706 | D120: 2042.94 | E120: 1021.9720 | F120: 2 | G120: 59.77 | H120: SPTDEIANLVPSVQYSDK | I120: T3 | J120: - | K120: - | L120: - | M120: - | N120: 3.46 | O120: - | P120: 0.8 | Q120: 0.6514214178
A121: Adenylyl cyclase-associated protein 1 | B121: Cap1 | C121: P40124 | D121: 2257.89 | E121: 753.3012 | F121: 3 | G121: 18.54 | H121: LEAVSHTSDMHCGYGDSPSK | I121: S17 | J121: - | K121: 3.64 | L121: - | M121: 3.51 | N121: 3.66 | O121: 3.63 | P121: 0.4 | Q121: 0.1333422916
A122: Adenylyl cyclase-associated protein 1 | B122: Cap1 | C122: P40124 | D122: 2273.89 | E122: 758.6336 | F122: 3 | G122: 14.44 | H122: LEAVSHTSDMoHCGYGDSPSK | I122: S17 | J122: 3.76 | K122: 3.43 | L122: 2.51 | M122: 3.07 | N122: - | O122: 2.79 | P122: 0.9 | Q122: 0.361756372
A123: Adenylyl cyclase-associated protein 1 | B123: Cap1 | C123: P40124 | D123: 2315.18 | E123: 772.3995 | F123: 3 | G123: 16.41 | H123: SGPKPFSAPKPQTSPSPKPATK | I123: T21 | J123: - | K123: - | L123: 2.48 | M123: - | N123: - | O123: 2.34 | P123: 0.7 | Q123: 0.1621533728
A124: Adhesion G protein-coupled receptor B3 | B124: Adgrb3 | C124: Q80ZF8 | D124: 1564.66 | E124: 782.8331 | F124: 2 | G124: 35.43 | H124: SETGSTISMSSLER | I124: S11 | J124: 2.05 | K124: - | L124: 2.56 | M124: - | N124: - | O124: - | P124: 0.2 | Q124: 0.1497620161
A125: Adhesion G protein-coupled receptor B3 | B125: Adgrb3 | C125: Q80ZF8 | D125: 1580.65 | E125: 790.8277 | F125: 2 | G125: 22.49 | H125: SETGSTISMoSSLER | I125: S11 | J125: 2.01 | K125: - | L125: - | M125: - | N125: - | O125: 2.29 | P125: 0.9 | Q125: 0.8163829963
A126: Adhesion G protein-coupled receptor B3 | B126: Adgrb3 | C126: Q80ZF8 | D126: 1644.62 | E126: 822.8174 | F126: 2 | G126: 43.90 | H126: SETGSTISMSSLER | I126: T3; S11 | J126: - | K126: 2.49 | L126: 3.12 | M126: - | N126: - | O126: 2.56 | P126: 0.2 | Q126: 0.2662464145
A127: Adhesion G protein-coupled receptor B3 | B127: Adgrb3 | C127: Q80ZF8 | D127: 3186.48 | E127: 1062.8302 | F127: 3 | G127: 53.27 | H127: ISLNDDEEEKGTNPEGLSYSTLPGNVISK | I127: S2 | J127: - | K127: 3.33 | L127: 3.75 | M127: 4.22 | N127: 3.12 | O127: - | P127: 0.4 | Q127: 0.06285128693
A128: Adhesion G protein-coupled receptor L1 | B128: Adgrl1 | C128: Q80TR1 | D128: 3590.57 | E128: 1197.5267 | F128: 3 | G128: 42.73 | H128: AQSVLYQSDLDESESCTAEDGATSRPLSSPPGR | I128: S29 | J128: - | K128: - | L128: 3.14 | M128: - | N128: - | O128: - | P128: 0.0 | Q128: 0.2313173344
A129: Adhesion G protein-coupled receptor L3 | B129: Adgrl3 | C129: F6WMY5 | D129: 974.47 | E129: 487.7396 | F129: 2 | G129: 38.55 | H129: GPAHLVTSL | I129: S8 | J129: - | K129: - | L129: 2.23 | M129: - | N129: - | O129: - | P129: 0.6 | Q129: 0.2890450839
A130: Afadin | B130: Mllt4 | C130: Q9QZQ1 | D130: 1197.56 | E130: 599.2835 | F130: 2 | G130: 31.75 | H130: TISNPEVVMK | I130: S3 | J130: - | K130: - | L130: 2.32 | M130: - | N130: - | O130: - | P130: 0.8 | Q130: 0.6488571296
A131: Afadin | B131: Mllt4 | C131: Q9QZQ1 | D131: 1323.67 | E131: 662.3391 | F131: 2 | G131: 56.15 | H131: LPYLVELSPGR | I131: S8 | J131: 2.22 | K131: 2.36 | L131: 3.19 | M131: 2.38 | N131: 2.24 | O131: 2.10 | P131: 0.7 | Q131: 0.384716046
A132: Afadin | B132: Mllt4 | C132: Q9QZQ1 | D132: 1486.72 | E132: 743.8638 | F132: 2 | G132: 57.24 | H132: TQVLSPDSLFTAK | I132: S5 | J132: 2.96 | K132: 2.91 | L132: 3.22 | M132: 3.21 | N132: 2.87 | O132: 2.88 | P132: 0.6 | Q132: 0.3068621039
A133: Afadin | B133: Mllt4 | C133: Q9QZQ1 | D133: 1516.68 | E133: 758.8439 | F133: 2 | G133: 15.12 | H133: SSPNVANQPPSPGGK | I133: S11 | J133: 2.07 | K133: - | L133: 2.35 | M133: - | N133: 2.21 | O133: - | P133: 0.7 | Q133: 0.2791400287
A134: Afadin | B134: Mllt4 | C134: Q9QZQ1 | D134: 1596.65 | E134: 798.8260 | F134: 2 | G134: 20.53 | H134: SSPNVANQPPSPGGK | I134: S2; S11 | J134: 2.47 | K134: - | L134: - | M134: - | N134: - | O134: 2.71 | P134: 0.9 | Q134: 0.4625801741
A135: Aff4 protein | B135: Aff4 | C135: B7ZNX0 | D135: 1965.90 | E135: 655.9717 | F135: 3 | G135: 13.55 | H135: SSSPGKPQAVSSLSSSHSR | I135: S2 | J135: 2.64 | K135: 2.26 | L135: - | M135: 2.36 | N135: 2.47 | O135: 2.34 | P135: 0.8 | Q135: 0.3140763441
A136: AHNAK | B136: Ahnak | C136: Q6UIL4 | D136: 1920.79 | E136: 960.8974 | F136: 2 | G136: 69.30 | H136: ASLGSLEGEVEAEASSPK | I136: S2; S5 | J136: - | K136: 2.57 | L136: - | M136: 3.80 | N136: - | O136: 2.33 | P136: 0.6 | Q136: 0.3182908509
A137: AHNAK nucleoprotein 2 | B137: Ahnak2 | C137: Q3URZ6 | D137: 1772.85 | E137: 591.6208 | F137: 3 | G137: 12.07 | H137: DTTQRSPVHVQPTAR | I137: S6 | J137: - | K137: - | L137: - | M137: - | N137: - | O137: 2.29 | P137: 0.9 | Q137: 0.7277699707
A138: A-kinase anchor protein 1, mitochondrial isoform 2 | B138: Akap1 | C138: O08715-2 | D138: 2501.22 | E138: 834.4115 | F138: 3 | G138: 45.59 | H138: RLSEEACPGVLSVAPTVTQPPGR | I138: S3 | J138: 2.78 | K138: 2.65 | L138: 2.71 | M138: 2.79 | N138: 2.80 | O138: 3.20 | P138: 0.6 | Q138: 0.2026156911
A139: A-kinase anchor protein 12 | B139: Akap12 | C139: Q9WTQ5 | D139: 2124.04 | E139: 531.7648 | F139: 4 | G139: 13.41 | H139: VRRPSESDKEEELDKVK | I139: S5 | J139: - | K139: 3.43 | L139: - | M139: - | N139: - | O139: 3.25 | P139: 0.6 | Q139: 0.05436268513
A140: A-kinase anchor protein 12 | B140: Akap12 | C140: Q9WTQ5 | D140: 1641.70 | E140: 547.9052 | F140: 3 | G140: 9.52 | H140: RPSESDKEEELDK | I140: S3 | J140: - | K140: 2.44 | L140: - | M140: - | N140: - | O140: - | P140: 0.2 | Q140: 0.3991398915
A141: A-kinase anchor protein 12 | B141: Akap12 | C141: Q9WTQ5 | D141: 2204.01 | E141: 551.7564 | F141: 4 | G141: 15.11 | H141: VRRPSESDKEEELDKVK | I141: S5; S7 | J141: 2.61 | K141: 2.77 | L141: 2.95 | M141: 3.33 | N141: 3.18 | O141: 2.90 | P141: 0.5 | Q141: 0.03378537278
A142: A-kinase anchor protein 12 | B142: Akap12 | C142: Q9WTQ5 | D142: 1868.87 | E142: 623.6271 | F142: 3 | G142: 13.08 | H142: RPSESDKEEELDKVK | I142: S3 | J142: 3.28 | K142: 3.09 | L142: 3.21 | M142: 3.19 | N142: 2.55 | O142: 2.49 | P142: 0.7 | Q142: 0.1574890727
A143: A-kinase anchor protein 12 | B143: Akap12 | C143: Q9WTQ5 | D143: 1976.84 | E143: 659.6172 | F143: 3 | G143: 11.53 | H143: VRRPSESDKEEELDK | I143: S5; S7 | J143: - | K143: - | L143: - | M143: 2.37 | N143: - | O143: - | P143: 0.7 | Q143: 0.07233472141
A144: A-kinase anchor protein 12 | B144: Akap12 | C144: Q9WTQ5 | D144: 2081.91 | E144: 694.6405 | F144: 3 | G144: 16.61 | H144: AEADASGNLTKESPDTNGPK | I144: S13 | J144: 3.77 | K144: 3.18 | L144: 3.11 | M144: 3.51 | N144: 3.70 | O144: 3.71 | P144: 0.7 | Q144: 0.254470942
A145: A-kinase anchor protein 12 | B145: Akap12 | C145: Q9WTQ5 | D145: 2453.05 | E145: 818.3549 | F145: 3 | G145: 14.60 | H145: GPSEAPQEAEAEEGATSDGEKKR | I145: T16 | J145: - | K145: - | L145: - | M145: 2.34 | N145: - | O145: 2.30 | P145: 0.4 | Q145: 0.08805462685
A146: A-kinase anchor protein 12 | B146: Akap12 | C146: Q9WTQ5 | D146: 2510.11 | E146: 837.3762 | F146: 3 | G146: 27.21 | H146: TKEVCVSGGDHTQLTDLSPEEK | I146: S18 | J146: 2.58 | K146: - | L146: - | M146: - | N146: 2.57 | O146: 2.28 | P146: 0.6 | Q146: 0.2011620567
A147: A-kinase anchor protein 12 | B147: Akap12 | C147: Q9WTQ5 | D147: 2780.24 | E147: 927.4166 | F147: 3 | G147: 33.05 | H147: EKEPTKPLESPTSPVSNETTSSFK | I147: T5; T12 | J147: 2.75 | K147: 2.45 | L147: 2.61 | M147: 2.43 | N147: 2.63 | O147: 3.17 | P147: 0.5 | Q147: 0.1457364652
A148: A-kinase anchor protein 12 | B148: Akap12 | C148: Q9WTQ5 | D148: 2908.33 | E148: 970.1146 | F148: 3 | G148: 27.58 | H148: EKEPTKPLESPTSPVSNETTSSFKK | I148: T5; T12 | J148: - | K148: - | L148: 2.36 | M148: - | N148: - | O148: - | P148: 0.4 | Q148: 0.1430385829
A149: A-kinase anchor protein 12 | B149: Akap12 | C149: Q9WTQ5 | D149: 1948.83 | E149: 974.9208 | F149: 2 | G149: 15.81 | H149: RPSESDKEEELDKVK | I149: S3; S5 | J149: - | K149: 2.30 | L149: 2.33 | M149: - | N149: - | O149: - | P149: 0.7 | Q149: 0.07055092045
A150: A-kinase anchor protein 12 | B150: Akap12 | C150: Q9WTQ5 | D150: 2036.86 | E150: 1018.9315 | F150: 2 | G150: 33.44 | H150: SATLSSTESTASGMQDEVR | I150: S12 | J150: - | K150: 2.20 | L150: - | M150: - | N150: - | O150: - | P150: 0.3 | Q150: 0.2814288149
A151: A-kinase anchor protein 12 | B151: Akap12 | C151: Q9WTQ5 | D151: 2063.98 | E151: 1032.4948 | F151: 2 | G151: 64.18 | H151: VELPLEDQVGDLEALSEK | I151: S16 | J151: 4.67 | K151: 4.11 | L151: 4.87 | M151: 3.62 | N151: 5.02 | O151: - | P151: 0.4 | Q151: 0.09291
A152: A-kinase anchor protein 12 | B152: Akap12 | C152: Q9WTQ5 | D152: 2116.82 | E152: 1058.9124 | F152: 2 | G152: 42.73 | H152: SATLSSTESTASGMQDEVR | I152: S5; S6 | J152: 2.08 | K152: 2.69 | L152: 3.32 | M152: 4.03 | N152: - | O152: - | P152: 0.2 | Q152: 0.3185732114
A153: A-kinase anchor protein 12 | B153: Akap12 | C153: Q9WTQ5 | D153: 2168.85 | E153: 1084.9292 | F153: 2 | G153: 21.03 | H153: GPSEAPQEAEAEEGATSDGEK | I153: S17 | J153: 3.72 | K153: 4.44 | L153: 4.21 | M153: 3.79 | N153: 3.69 | O153: 3.94 | P153: 0.7 | Q153: 0.2320113184
A154: A-kinase anchor protein 12 | B154: Akap12 | C154: Q9WTQ5 | D154: 2280.97 | E154: 1140.9901 | F154: 2 | G154: 33.14 | H154: EVCVSGGDHTQLTDLSPEEK | I154: S16 | J154: 3.49 | K154: 3.78 | L154: 2.79 | M154: 3.25 | N154: 3.21 | O154: 2.95 | P154: 0.6 | Q154: 0.09375799077
A155: A-kinase anchor protein 12 | B155: Akap12 | C155: Q9WTQ5 | D155: 2523.09 | E155: 1262.0520 | F155: 2 | G155: 38.22 | H155: EPTKPLESPTSPVSNETTSSFK | I155: S8; S11 | J155: - | K155: 2.24 | L155: 2.89 | M155: 2.62 | N155: 2.39 | O155: 2.48 | P155: 0.8 | Q155: 0.366342689
A156: A-kinase anchor protein 12 | B156: Akap12 | C156: Q9WTQ5 | D156: 3910.69 | E156: 1304.2404 | F156: 3 | G156: 42.87 | H156: SPEQPAESDTPSELELSGHGPAAEASGAAGDPADADPATK | I156: S1 | J156: - | K156: 2.28 | L156: 2.70 | M156: - | N156: - | O156: - | P156: 0.2 | Q156: 0.2966025225
A157: A-kinase anchor protein 2 | B157: Akap2 | C157: A2API9 | D157: 1431.65 | E157: 716.3298 | F157: 2 | G157: 18.02 | H157: LEPAASSLSPDHK | I157: S9 | J157: 3.16 | K157: 2.94 | L157: 2.81 | M157: 2.78 | N157: 2.97 | O157: 2.90 | P157: 0.8 | Q157: 0.4404728604
A158: A-kinase anchor protein 5 | B158: Akap5 | C158: D3YVF0 | D158: 1325.61 | E158: 663.3104 | F158: 2 | G158: 26.76 | H158: ASLLESSAAGSPR | I158: S11 | J158: 2.94 | K158: - | L158: - | M158: 3.02 | N158: 2.96 | O158: 3.13 | P158: 0.8 | Q158: 0.3489968631
A159: A-kinase anchor protein 5 | B159: Akap5 | C159: D3YVF0 | D159: 1405.58 | E159: 703.2925 | F159: 2 | G159: 32.62 | H159: ASLLESSAAGSPR | I159: S2; S6 | J159: 2.06 | K159: - | L159: - | M159: - | N159: - | O159: - | P159: 0.8 | Q159: 0.7139176382
A160: A-kinase anchor protein 5 | B160: Akap5 | C160: D3YVF0 | D160: 1470.65 | E160: 735.8315 | F160: 2 | G160: 34.85 | H160: SSAIQMGTPELEK | I160: T8 | J160: 2.28 | K160: 2.52 | L160: 2.53 | M160: - | N160: 2.58 | O160: 2.48 | P160: 0.4 | Q160: 0.2322140596
A161: A-kinase anchor protein 5 | B161: Akap5 | C161: D3YVF0 | D161: 1486.65 | E161: 743.8282 | F161: 2 | G161: 23.36 | H161: SSAIQMoGTPELEK | I161: T8 | J161: - | K161: - | L161: - | M161: - | N161: - | O161: 2.61 | P161: 2.5 | Q161: 0.1005058556
A162: A-kinase anchor protein 5 | B162: Akap5 | C162: D3YVF0 | D162: 2690.26 | E162: 897.4240 | F162: 3 | G162: 46.24 | H162: AQTQPDDQAIQAGSTQGLQEGVLVR | I162: T15 | J162: - | K162: 2.59 | L162: - | M162: - | N162: - | O162: - | P162: 0.3 | Q162: 0.09735549761
A163: A-kinase anchor protein 8 | B163: Akap8 | C163: Q9DBR0 | D163: 1981.67 | E163: 991.3378 | F163: 2 | G163: 34.46 | H163: ADSDGDLSENDDGAGDLR | I163: S3; S8 | J163: 2.65 | K163: 4.44 | L163: - | M163: 4.26 | N163: - | O163: 3.58 | P163: 0.7 | Q163: 0.2960998476
A164: A-kinase anchor protein SPHKAP | B164: Sphkap | C164: A0A0R4J1Y6 | D164: 1625.62 | E164: 813.3111 | F164: 2 | G164: 37.64 | H164: QSSCESITDEFSR | I164: S3 | J164: - | K164: 2.58 | L164: 2.21 | M164: - | N164: - | O164: - | P164: 0.8 | Q164: 0.563593273
A165: A-kinase anchor protein SPHKAP | B165: Sphkap | C165: A0A0R4J1Y6 | D165: 1661.72 | E165: 831.3649 | F165: 2 | G165: 12.88 | H165: DAVTEGNHSPVSSPGK | I165: S9 | J165: - | K165: - | L165: - | M165: - | N165: - | O165: 3.24 | P165: 1.8 | Q165: 0.3309286738
A166: A-kinase anchor protein SPHKAP | B166: Sphkap | C166: A0A0R4J1Y6 | D166: 2583.14 | E166: 861.7162 | F166: 3 | G166: 46.28 | H166: ANSLDGFAQNCPQDSVNVQPVSR | I166: S3 | J166: - | K166: 3.80 | L166: 3.93 | M166: - | N166: 3.43 | O166: 4.03 | P166: 0.6 | Q166: 0.3560548852
A167: A-kinase anchor protein SPHKAP | B167: Sphkap | C167: A0A0R4J1Y6 | D167: 1746.66 | E167: 873.8296 | F167: 2 | G167: 21.39 | H167: ASSCESIPEEDSEAR | I167: S6 | J167: - | K167: 2.08 | L167: - | M167: 2.33 | N167: - | O167: - | P167: 0.9 | Q167: 0.2922393811
A168: A-kinase anchor protein SPHKAP | B168: Sphkap | C168: A0A0R4J1Y6 | D168: 1826.63 | E168: 913.8162 | F168: 2 | G168: 26.01 | H168: ASSCESIPEEDSEAR | I168: S3; S6 | J168: - | K168: - | L168: - | M168: - | N168: 2.21 | O168: - | P168: 1.1 | Q168: 0.8268577613
A169: A-kinase anchoring protein beta | B169: Akap6 | C169: Q2VEB3 | D169: 1908.91 | E169: 636.9748 | F169: 3 | G169: 10.11 | H169: KQSVSGTPEENAASAKPK | I169: S3 | J169: - | K169: - | L169: - | M169: - | N169: 3.62 | O169: 4.50 | P169: 1.0 | Q169: 0.952516394
A170: A-kinase anchoring protein beta | B170: Akap6 | C170: Q2VEB3 | D170: 1352.65 | E170: 676.8277 | F170: 2 | G170: 50.77 | H170: DLLSPESGSLVR | I170: S4 | J170: 2.78 | K170: 3.46 | L170: 3.47 | M170: - | N170: 3.16 | O170: 2.61 | P170: 0.6 | Q170: 0.2983994658
A171: Alanyl-tRNA editing protein Aarsd1 | B171: Aarsd1 | C171: Q3THG9 | D171: 2291.05 | E171: 764.3542 | F171: 3 | G171: 37.19 | H171: GAQADHFTESPLSPGSQVQVR | I171: S13 | J171: 3.05 | K171: 3.16 | L171: 2.71 | M171: 2.36 | N171: 3.34 | O171: 2.49 | P171: 0.4 | Q171: 0.1772722131
A172: Alanyl-tRNA editing protein Aarsd1 | B172: Aarsd1 | C172: Q3THG9 | D172: 2188.98 | E172: 1094.9963 | F172: 2 | G172: 51.88 | H172: RAEAQALLQDYVSTQSAEE | I172: S16 | J172: 2.31 | K172: 3.24 | L172: - | M172: - | N172: - | O172: - | P172: 0.4 | Q172: 0.1414999983
A173: Alpha- and gamma-adaptin-binding protein p34 | B173: Aagab | C173: Q8R2R3 | D173: 2279.92 | E173: 760.6462 | F173: 3 | G173: 12.72 | H173: VASAESCHSEQQEPSPTAER | I173: S15 | J173: 2.84 | K173: - | L173: - | M173: 2.92 | N173: - | O173: - | P173: 0.7 | Q173: 0.2139924186
A174: Alpha-2A adrenergic receptor | B174: Adra2a | C174: Q01338 | D174: 1334.65 | E174: 667.8271 | F174: 2 | G174: 16.03 | H174: ASQVKPGDSLPR | I174: S9 | J174: 2.11 | K174: 2.83 | L174: 2.78 | M174: 2.37 | N174: 2.78 | O174: 2.53 | P174: 0.8 | Q174: 0.3474815389
A175: Alpha-2A adrenergic receptor | B175: Adra2a | C175: Q01338 | D175: 2691.01 | E175: 897.6750 | F175: 3 | G175: 39.16 | H175: DGDALDLEESSSSEHAERPPGPR | I175: S11; S12; S13 | J175: 2.72 | K175: - | L175: - | M175: - | N175: - | O175: - | P175: 0.5 | Q175: 0.225627
A176: Alpha-2-HS-glycoprotein | B176: Ahsg | C176: P29699 | D176: 2049.82 | E176: 683.9448 | F176: 3 | G176: 12.25 | H176: VMHTQCHSTPDSAEDVR | I176: S12 | J176: 2.69 | K176: 2.71 | L176: 3.33 | M176: 2.76 | N176: 2.79 | O176: 2.69 | P176: 1.0 | Q176: 0.9249131409
A177: Alpha-2-HS-glycoprotein | B177: Ahsg | C177: P29699 | D177: 2065.81 | E177: 689.2759 | F177: 3 | G177: 9.90 | H177: VMoHTQCHSTPDSAEDVR | I177: S12 | J177: 2.67 | K177: 3.16 | L177: 2.74 | M177: 3.24 | N177: 3.45 | O177: 3.25 | P177: 1.6 | Q177: 0.5366474305
A178: Alpha-2-HS-glycoprotein | B178: Ahsg | C178: P29699 | D178: 2177.91 | E178: 726.6426 | F178: 3 | G178: 9.76 | H178: VMHTQCHSTPDSAEDVRK | I178: S12 | J178: 3.29 | K178: 3.22 | L178: 2.72 | M178: 3.09 | N178: 3.14 | O178: 3.05 | P178: 0.9 | Q178: 0.8320743978
A179: Alpha-2-HS-glycoprotein | B179: Ahsg | C179: P29699 | D179: 2193.91 | E179: 731.9749 | F179: 3 | G179: 8.18 | H179: VMoHTQCHSTPDSAEDVRK | I179: S12 | J179: 3.07 | K179: 3.21 | L179: 3.14 | M179: 3.69 | N179: 3.68 | O179: 3.38 | P179: 0.7 | Q179: 0.6031449484
A180: Alpha-2-HS-glycoprotein | B180: Ahsg | C180: P29699 | D180: 2218.03 | E180: 740.0125 | F180: 3 | G180: 31.49 | H180: HAFSPVASVESASGETLHSPK | I180: S13 | J180: 3.19 | K180: 3.68 | L180: 2.91 | M180: 4.64 | N180: 3.16 | O180: 3.42 | P180: 0.9 | Q180: 0.8938765337
A181: Alpha-2-HS-glycoprotein | B181: Ahsg | C181: P29699 | D181: 2297.99 | E181: 766.6671 | F181: 3 | G181: 34.91 | H181: HAFSPVASVESASGETLHSPK | I181: S11; S13 | J181: 2.42 | K181: 3.28 | L181: 3.89 | M181: 4.07 | N181: 3.61 | O181: 4.20 | P181: 0.7 | Q181: 0.6622397444
A182: Alpha-2-HS-glycoprotein | B182: Ahsg | C182: P29699 | D182: 2377.97 | E182: 1189.4863 | F182: 2 | G182: 41.06 | H182: HAFSPVASVESASGETLHSPK | I182: S8; S11; S13 | J182: 4.29 | K182: - | L182: - | M182: 3.76 | N182: 3.04 | O182: 3.76 | P182: 0.7 | Q182: 0.3321929998
A183: Alpha-adducin | B183: Add1 | C183: E9Q1K3 | D183: 2938.26 | E183: 980.0917 | F183: 3 | G183: 37.70 | H183: SPPDQSAVPNTPPSTPVKLEEGDGCAK | I183: T11; T15 | J183: - | K183: - | L183: - | M183: - | N183: - | O183: 2.41 | P183: 0.4 | Q183: 0.152055735
A184: Alpha-adducin isoform 2 | B184: Add1 | C184: Q9QYC0-2 | D184: 2929.33 | E184: 977.1185 | F184: 3 | G184: 37.88 | H184: SPPDQSAVPNTPPSTPVKLEEAGDGCAK | I184: T11 | J184: 2.78 | K184: 2.98 | L184: 2.89 | M184: 2.70 | N184: - | O184: 3.19 | P184: 0.4 | Q184: 0.2852370322
A185: Alpha-adducin isoform 2 | B185: Add1 | C185: Q9QYC0-2 | D185: 3009.30 | E185: 1003.7699 | F185: 3 | G185: 38.74 | H185: SPPDQSAVPNTPPSTPVKLEEAGDGCAK | I185: T11; T15 | J185: 2.36 | K185: 2.56 | L185: 2.42 | M185: - | N185: - | O185: 2.47 | P185: 0.6 | Q185: 0.2251318829
A186: Alpha-adducin isoform 2 | B186: Add1 | C186: Q9QYC0-2 | D186: 3266.44 | E186: 1089.4836 | F186: 3 | G186: 34.47 | H186: EKSPPDQSAVPNTPPSTPVKLEEAGDGCAK | I186: T13; T17 | J186: 2.91 | K186: 2.41 | L186: 2.67 | M186: - | N186: - | O186: 3.83 | P186: 0.8 | Q186: 0.4642848313
A187: Alpha-adducin isoform 2 | B187: Add1 | C187: Q9QYC0-2 | D187: 3346.41 | E187: 1116.1404 | F187: 3 | G187: 38.20 | H187: EKSPPDQSAVPNTPPSTPVKLEEAGDGCAK | I187: S3; S8; S16 | J187: 2.88 | K187: 2.91 | L187: 3.08 | M187: 3.27 | N187: 2.73 | O187: 2.80 | P187: 0.6 | Q187: 0.2990192113
A188: Alpha-endosulfine isoform 2 | B188: Ensa | C188: P60840-2 | D188: 929.47 | E188: 465.2395 | F188: 2 | G188: 7.91 | H188: KSSLVTSK | I188: S3 | J188: 2.57 | K188: - | L188: - | M188: - | N188: 2.21 | O188: - | P188: 1.7 | Q188: 0.4425491013
A189: Alpha-enolase | B189: Eno1 | C189: Q6PHC1 | D189: 1634.67 | E189: 817.8408 | F189: 2 | G189: 35.27 | H189: YDLDFKSPDDPSR | I189: S7 | J189: - | K189: 2.40 | L189: 2.41 | M189: - | N189: - | O189: - | P189: 0.3 | Q189: 0.1389602043
A190: Alpha-tubulin N-acetyltransferase 1 | B190: Atat1 | C190: F6RPX5 | D190: 1475.73 | E190: 738.3676 | F190: 2 | G190: 35.48 | H190: LLLATDPGGSPAQR | I190: S10 | J190: 2.85 | K190: 2.30 | L190: 3.20 | M190: - | N190: 2.96 | O190: - | P190: 0.9 | Q190: 0.9291311215
A191: Alsin isoform 2 | B191: Als2 | C191: Q920R0-2 | D191: 1682.84 | E191: 841.9235 | F191: 2 | G191: 63.35 | H191: RLSLPGLLSQVSPR | I191: S3; S9 | J191: - | K191: 2.61 | L191: 2.57 | M191: - | N191: - | O191: - | P191: 0.4 | Q191: 0.06097220479
A192: Amino acid transporter | B192: Slc1a2 | C192: X2D841 | D192: 2911.23 | E192: 728.5620 | F192: 4 | G192: 20.20 | H192: NHRESNSNQCVYAAHNSVVIDECK | I192: S5 | J192: - | K192: - | L192: - | M192: - | N192: - | O192: 2.95 | P192: 0.4 | Q192: 0.1296356861
A193: Amino acid transporter | B193: Slc1a2 | C193: X2D841 | D193: 1542.54 | E193: 771.7722 | F193: 2 | G193: 12.96 | H193: MHDSHLSSDEPK | I193: S4; S7 | J193: - | K193: - | L193: - | M193: 2.32 | N193: 2.42 | O193: - | P193: 0.6 | Q193: 0.2457214497
A194: Amino acid transporter | B194: Slc1a2 | C194: X2D841 | D194: 2504.02 | E194: 835.3458 | F194: 3 | G194: 28.67 | H194: ESNSNQCVYAAHNSVVIDECK | I194: S14 | J194: 3.11 | K194: 2.51 | L194: 2.40 | M194: 2.25 | N194: 3.03 | O194: 2.54 | P194: 1.5 | Q194: 0.5632918186
A195: Amino acid transporter | B195: Slc1a4 | C195: Q5SSP3 | D195: 2910.38 | E195: 970.8021 | F195: 3 | G195: 47.20 | H195: SEEETSPLVTHQNPAGPVAIAPELESK | I195: T10 | J195: 3.31 | K195: 4.48 | L195: 3.32 | M195: 3.46 | N195: 3.05 | O195: 3.59 | P195: 0.6 | Q195: 0.3201186398
A196: Amphiphysin | B196: Amph | C196: A0A0G2JEG8 | D196: 1391.62 | E196: 696.3145 | F196: 2 | G196: 18.16 | H196: AALPAGEGGSPEGAK | I196: S10 | J196: 2.75 | K196: 2.42 | L196: 2.98 | M196: 2.61 | N196: 2.61 | O196: 2.27 | P196: 0.8 | Q196: 0.3908177862
A197: Amphiphysin | B197: Amph | C197: A0A0G2JEG8 | D197: 1582.73 | E197: 791.8673 | F197: 2 | G197: 44.68 | H197: AFSIQGAPSDSGPLR | I197: S11 | J197: 2.58 | K197: 2.48 | L197: 2.60 | M197: 2.37 | N197: 2.77 | O197: 2.23 | P197: 0.5 | Q197: 0.2630621407
A198: Amphiphysin | B198: Amph | C198: A0A0G2JEG8 | D198: 3904.85 | E198: 976.9686 | F198: 4 | G198: 42.31 | H198: IAKTPSPPEEPSPLPSPTASPNHTLAPASPAPVRPR | I198: S6; S12; S16 | J198: - | K198: - | L198: 2.60 | M198: - | N198: - | O198: - | P198: 0.4 | Q198: 0.2418745823
A199: Amphiphysin | B199: Amph | C199: A0A0G2JEG8 | D199: 3432.71 | E199: 1144.9071 | F199: 3 | G199: 39.81 | H199: TPSPPEEPSPLPSPTASPNHTLAPASPAPVRPR | I199: S3 | J199: 2.90 | K199: 2.53 | L199: 2.75 | M199: 3.32 | N199: - | O199: - | P199: 0.3 | Q199: 0.1492111272
A200: Amphiphysin | B200: Amph | C200: A0A0G2JEG8 | D200: 3512.67 | E200: 1171.5643 | F200: 3 | G200: 43.63 | H200: TPSPPEEPSPLPSPTASPNHTLAPASPAPVRPR | I200: S3; S9 | J200: 3.04 | K200: 3.18 | L200: 3.14 | M200: 3.04 | N200: 3.53 | O200: - | P200: 0.2 | Q200: 0.2521300908
... 3760 more rows

Sheet P40-pSpT
A1: Protein | B1: accession | C1: [M+H] | D1: m/z | E1: z | F1: Δm | G1: Ret. Time | H1: Sequence | I1: Xcorr | J1: Modifications | K1: Modification site in protein | N1: LFQ abundances | R1: Average LFQ | T1: LFQ ratio
F2: pp, | G2: Min | I2: score | L2: CN24-3-8 | M2: CN24-5-5 | N2: CN24-5-6 | O2: CN24-3-7 | P2: CN24-6-7 | Q2: CN24-6-9 | R2: WT | S2: Mut | T2: Mut/WT | U2: p-value
A3: (E3-independent) E2 ubiquitin-conjugating enzyme UBE2O | B3: Q6ZPJ3 | C3: 3120.1773 | D3: 1040.72977 | E3: 3 | F3: -0.82 | G3: 59.4395 | H3: EEPEDVGMAPGEASQGSDSEGGAQGPASASR | I3: 2.06 | J3: 2xPhospho [S17; S] | K3: Q6ZPJ3 2xPhospho [S1196; S] | L3: 1234335.969 | M3: 937722.39 | N3: 476385.8438 | O3: 437751.1369 | P3: 166033.0118 | Q3: 5000 | R3: =AVERAGE(L3:N3) -> 882814.7343 | S3: =AVERAGE(O3:Q3) -> 202928.0496 | T3: =S3/R3 -> 0.23 | U3: =_xlfn.T.TEST(L3:N3,O3:Q3,2,2) -> 0.05548680872
A4: (E3-independent) E2 ubiquitin-conjugating enzyme UBE2O | B4: Q6ZPJ3 | C4: 1694.68399 | D4: 424.42662 | E4: 4 | F4: 0.39 | G4: 23.7846 | H4: DHSMEDPDKKGEAR | I4: 2.21 | J4: 1xPhospho [S3] | K4: Q6ZPJ3 1xPhospho [S406] | L4: 256204.4005 | M4: 55296.69324 | N4: 219432.8711 | O4: 29194.18322 | P4: 113487.1777 | Q4: 5000 | R4: 176977.9883 | S4: 49227.1203 | T4: 0.28 | U4: 0.1419058312
A5: (E3-independent) E2 ubiquitin-conjugating enzyme UBE2O | B5: Q6ZPJ3 | C5: 2788.25118 | D5: 930.08895 | E5: 3 | F5: 0.4 | G5: 70.969 | H5: NMoTVEQLLTGSPTSPTVEPEKPTR | I5: 3.33 | J5: 2xPhospho [S/T] | K5: Q6ZPJ3 2xPhospho [S/T] | L5: 1799345.202 | M5: 772071.5951 | N5: 1754499.781 | O5: 1130832.204 | P5: 460290.5051 | Q5: 541709.1316 | R5: 1441972.193 | S5: 710943.9468 | T5: 0.49 | U5: 0.1387885728
A6: (E3-independent) E2 ubiquitin-conjugating enzyme UBE2O | B6: Q6ZPJ3 | C6: 3136.17222 | D6: 1046.06231 | E6: 3 | F6: 0.05 | G6: 52.7514 | H6: EEPEDVGMoAPGEASQGSDSEGGAQGPASASR | I6: 2.48 | J6: 2xPhospho [S17; S] | K6: Q6ZPJ3 2xPhospho [S1196; S] | L6: 520990.6592 | M6: 343965.7539 | N6: 5000 | O6: 444034.6391 | P6: 5000 | Q6: 5000 | R6: 289985.471 | S6: 151344.8797 | T6: 0.52 | U6: 0.5462140282
A7: (E3-independent) E2 ubiquitin-conjugating enzyme UBE2O | B7: Q6ZPJ3 | C7: 2772.25627 | D7: 924.75735 | E7: 3 | F7: 0.45 | G7: 80.554 | H7: NMTVEQLLTGSPTSPTVEPEKPTR | I7: 3.28 | J7: 2xPhospho [T/S] | K7: Q6ZPJ3 2xPhospho [S/T] | L7: 2755375.932 | M7: 661229.4625 | N7: 6768794.625 | O7: 1552634.55 | P7: 2243881.663 | Q7: 2504473.31 | R7: 3395133.34 | S7: 2100329.841 | T7: 0.62 | U7: 0.5148526239
A8: (E3-independent) E2 ubiquitin-conjugating enzyme UBE2O | B8: Q6ZPJ3 | C8: 1093.63807 | D8: 547.32296 | E8: 2 | F8: 0.52 | G8: 41.8898 | H8: KKSIPLSIK | I8: 2.75 | J8: 1xPhospho [S3] | K8: Q6ZPJ3 1xPhospho [S510] | L8: 811282.6838 | M8: 5000 | N8: 1556798.25 | O8: 1586814 | P8: 5000 | Q8: 5000 | R8: 791026.9779 | S8: 532271.3334 | T8: 0.67 | U8: 0.7274171099
A9: (E3-independent) E2 ubiquitin-conjugating enzyme UBE2O | B9: Q6ZPJ3 | C9: 2708.28485 | D9: 903.43468 | E9: 3 | F9: 1.71 | G9: 67.4061 | H9: NMoTVEQLLTGSPTSPTVEPEKPTR | I9: 2.31 | J9: 1xPhospho [S/T] | K9: Q6ZPJ3 1xPhospho [S/T] | L9: 1743359.398 | M9: 923946.0701 | N9: 1172979.312 | O9: 764014.4492 | P9: 1136638.36 | Q9: 904586.212 | R9: 1280094.927 | S9: 935079.6738 | T9: 0.73 | U9: 0.2639947215
A10: (E3-independent) E2 ubiquitin-conjugating enzyme UBE2O | B10: Q6ZPJ3 | C10: 2692.28994 | D10: 898.10153 | E10: 3 | F10: 0.04 | G10: 81.8801 | H10: NMTVEQLLTGSPTSPTVEPEKPTR | I10: 4.16 | J10: 1xPhospho [S/T] | K10: Q6ZPJ3 1xPhospho [S/T] | L10: 2245762.813 | M10: 1875262.474 | N10: 3511658.188 | O10: 1653332.941 | P10: 2126796.883 | Q10: 2864708.268 | R10: 2544227.825 | S10: 2214946.031 | T10: 0.87 | U10: 0.6168550003
A11: (E3-independent) E2 ubiquitin-conjugating enzyme UBE2O | B11: Q6ZPJ3 | C11: 1349.63484 | D11: 675.32078 | E11: 2 | F11: -0.41 | G11: 31.6755 | H11: EEKPEVQSPVK | I11: 2.29 | J11: 1xPhospho [S8] | K11: Q6ZPJ3 1xPhospho [S893] | L11: 695006.6009 | M11: 1554050.812 | N11: 2402745.75 | O11: 1091538.495 | P11: 1199139.98 | Q11: 2190215.642 | R11: 1550601.054 | S11: 1493631.372 | T11: 0.96 | U11: 0.929437533
A12: (E3-independent) E2 ubiquitin-conjugating enzyme UBE2O | B12: Q6ZPJ3 | C12: 837.44815 | D12: 419.22758 | E12: 2 | F12: -0.32 | G12: 61.576 | H12: SIPLSIK | I12: 1.53 | J12: 1xPhospho [S1] | K12: Q6ZPJ3 1xPhospho [S510] | L12: 676461.1544 | M12: 1119969.981 | N12: 766682.75 | O12: 708124.1679 | P12: 1368704.254 | Q12: 863445.1238 | R12: 854371.295 | S12: 980091.1819 | T12: 1.15 | U12: 0.6294551609
A13: (E3-independent) E2 ubiquitin-conjugating enzyme UBE2O | B13: Q6ZPJ3 | C13: 3040.21097 | D13: 1014.07603 | E13: 3 | F13: 0.84 | G13: 53.2412 | H13: EEPEDVGMAPGEASQGSDSEGGAQGPASASR | I13: 5.7 | J13: 1xPhospho [S] | K13: Q6ZPJ3 1xPhospho [S] | L13: 5794309.413 | M13: 5608196.278 | N13: 1873156 | O13: 5566882.036 | P13: 5017383.804 | Q13: 4688626.759 | R13: 4425220.564 | S13: 5090964.199 | T13: 1.15 | U13: 0.6362075916
A14: (E3-independent) E2 ubiquitin-conjugating enzyme UBE2O | B14: Q6ZPJ3 | C14: 3056.20589 | D14: 1019.40714 | E14: 3 | F14: 0.32 | G14: 47.5187 | H14: EEPEDVGMoAPGEASQGSDSEGGAQGPASASR | I14: 3.76 | J14: 1xPhospho [S] | K14: Q6ZPJ3 1xPhospho [S] | L14: 1646371.188 | M14: 1732330.539 | N14: 5000 | O14: 1709267.572 | P14: 1116763.939 | Q14: 1139851.947 | R14: 1127900.576 | S14: 1321961.153 | T14: 1.17 | U14: 0.760453363
A15: (E3-independent) E2 ubiquitin-conjugating enzyme UBE2O | B15: Q6ZPJ3 | C15: 1876.627 | D15: 626.2131 | E15: 3 | F15: -1.21 | G15: 36.2956 | H15: LIHGEDSDSEGDDDGR | I15: 5.04 | J15: 2xPhospho [S7; S9] | K15: Q6ZPJ3 2xPhospho [S82; S84] | L15: 5182366.09 | M15: 4809514.85 | N15: 2509895.219 | O15: 3710609.735 | P15: 8166152.09 | Q15: 7480072.502 | R15: 4167258.72 | S15: 6452278.109 | T15: 1.55 | U15: 0.2306455265
A16: (E3-independent) E2 ubiquitin-conjugating enzyme UBE2O | B16: Q6ZPJ3 | C16: 1902.77868 | D16: 951.89549 | E16: 2 | F16: 2.64 | G16: 68.2748 | H16: DSSSLEPMAAAELSDSGR | I16: 3.68 | J16: 1xPhospho [S14] | K16: Q6ZPJ3 1xPhospho [S1175] | L16: 438889.9526 | M16: 440962.1253 | N16: 5000 | O16: 1063535.642 | P16: 514894.3745 | Q16: 588375.3712 | R16: 294950.6926 | S16: 722268.4625 | T16: 2.45 | U16: 0.1302448798
A17: (E3-independent) E2 ubiquitin-conjugating enzyme UBE2O | B17: Q6ZPJ3 | C17: 1796.66067 | D17: 898.83387 | E17: 2 | F17: -0.11 | G17: 32.4425 | H17: LIHGEDSDSEGDDDGR | I17: 1.28 | J17: 1xPhospho [S7] | K17: Q6ZPJ3 1xPhospho [S82] | L17: 5000 | M17: 5000 | N17: 5000 | O17: 5000 | P17: 374000.1451 | Q17: 5000 | R17: 5000 | S17: 128000.0484 | T17: 25.60 | U17: 0.3739009663
A18: [3-methyl-2-oxobutanoate dehydrogenase [lipoamide]] kinase, mitochondrial | B18: O55028 | C18: 1604.70644 | D18: 802.85673 | E18: 2 | F18: -0.16 | G18: 34.386 | H18: STSATDTHHVELAR | I18: 4.36 | J18: 1xPhospho [S/T] | K18: O55028 1xPhospho [T/S] | L18: 15668883.45 | M18: 14439368.94 | N18: 24700199 | O18: 25249722.82 | P18: 20145408.59 | Q18: 5020146.262 | R18: 18269483.8 | S18: 16805092.56 | T18: 0.92 | U18: 0.8418902097
A19: [F-actin]-methionine sulfoxide oxidase MICAL1 | B19: Q8VDP3 | C19: 1301.62494 | D19: 651.31644 | E19: 2 | F19: 0.51 | G19: 42.5609 | H19: VSPVPSPSQPAR | I19: 2.65 | J19: 1xPhospho [S2] | K19: Q8VDP3 1xPhospho [S777] | L19: 885574.6968 | M19: 1001396.313 | N19: 247114.9219 | O19: 1040511.896 | P19: 1249529.765 | Q19: 1623181.394 | R19: 711361.9773 | S19: 1304407.685 | T19: 1.83 | U19: 0.1102316599
A20: [F-actin]-methionine sulfoxide oxidase MICAL3 | B20: Q8CJ19 | C20: 1652.72757 | D20: 551.58025 | E20: 3 | F20: -0.82 | G20: 29.6271 | H20: RKTSQSEEEEPPR | I20: 2.98 | J20: 1xPhospho [S/T] | K20: Q8CJ19 1xPhospho [T/S] | L20: 1363699.594 | M20: 443188.2989 | N20: 434365.3438 | O20: 89314.47286 | P20: 328160.3331 | Q20: 5000 | R20: 747084.4121 | S20: 140824.9353 | T20: 0.19 | U20: 0.1338847049
A21: [F-actin]-methionine sulfoxide oxidase MICAL3 | B21: Q8CJ19 | C21: 1495.70398 | D21: 748.35572 | E21: 2 | F21: 0.13 | G21: 36.3873 | H21: SPGTEEAKSPLATK | I21: 2.58 | J21: 1xPhospho [S1] | K21: Q8CJ19 1xPhospho [S1171] | L21: 403012.1436 | M21: 5000 | N21: 755526.3125 | O21: 347771.2284 | P21: 5000 | Q21: 5000 | R21: 387846.152 | S21: 119257.0761 | T21: 0.31 | U21: 0.3346261019
A22: [F-actin]-methionine sulfoxide oxidase MICAL3 | B22: Q8CJ19 | C22: 835.44373 | D22: 418.22482 | E22: 2 | F22: -1.65 | G22: 52.9495 | H22: AVLSPIR | I22: 2.15 | J22: 1xPhospho [S4] | K22: Q8CJ19 1xPhospho [S1216] | L22: 2043293.567 | M22: 950262.0046 | N22: 1107577.75 | O22: 1312256.439 | P22: 996637.7898 | Q22: 864807.7196 | R22: 1367044.441 | S22: 1057900.65 | T22: 0.77 | U22: 0.4459521539
A23: [F-actin]-methionine sulfoxide oxidase MICAL3 | B23: Q8CJ19 | C23: 3823.68096 | D23: 1275.23081 | E23: 3 | F23: -0.81 | G23: 74.4219 | H23: TLGSQSFNTSDSTMoLTPPSSPPPPPPPNEEPATLR | I23: 3.14 | J23: 2xPhospho [S/T] | K23: Q8CJ19 2xPhospho [T/S] | L23: 492661.9481 | M23: 5000 | N23: 5000 | O23: 131738.3717 | P23: 268370.7713 | Q23: 5000 | R23: 167553.9827 | S23: 135036.381 | T23: 0.81 | U23: 0.8650259169
A24: [F-actin]-methionine sulfoxide oxidase MICAL3 | B24: Q8CJ19 | C24: 1314.55732 | D24: 657.78195 | E24: 2 | F24: -0.52 | G24: 29.6754 | H24: GRSEEELEASK | I24: 3.98 | J24: 1xPhospho [S3] | K24: Q8CJ19 1xPhospho [S977] | L24: 1658402.367 | M24: 1935132.622 | N24: 168287.7812 | O24: 357427.1641 | P24: 1183347.29 | Q24: 1772372.567 | R24: 1253940.923 | S24: 1104382.34 | T24: 0.88 | U24: 0.8378923403
A25: [F-actin]-methionine sulfoxide oxidase MICAL3 | B25: Q8CJ19 | C25: 3068.28518 | D25: 1023.43275 | E25: 3 | F25: -0.49 | G25: 54.3994 | H25: HEATSEEILSPPSDSGGPDGSVTSSEGSSGK | I25: 1.61 | J25: 1xPhospho [S10] | K25: Q8CJ19 1xPhospho [S1665] | L25: 5000 | M25: 5000 | N25: 5000 | O25: 5000 | P25: 5000 | Q25: 5000 | R25: 5000 | S25: 5000 | T25: 1.00
A26: [F-actin]-methionine sulfoxide oxidase MICAL3 | B26: Q8CJ19 | C26: 1508.66284 | D26: 754.83553 | E26: 2 | F26: 0.63 | G26: 31.8896 | H26: GTSQVSSPSQPPEK | I26: 3.39 | J26: 1xPhospho [S] | K26: Q8CJ19 1xPhospho [S] | L26: 6963370.112 | M26: 13340192.72 | N26: 6663706.5 | O26: 5361410.128 | P26: 9264578.785 | Q26: 15166232.47 | R26: 8989089.778 | S26: 9930740.462 | T26: 1.10 | U26: 0.8058597303
A27: [F-actin]-methionine sulfoxide oxidase MICAL3 | B27: Q8CJ19 | C27: 3807.68604 | D27: 1269.8994 | E27: 3 | F27: -0.63 | G27: 78.173 | H27: TLGSQSFNTSDSTMLTPPSSPPPPPPPNEEPATLR | I27: 5.35 | J27: 2xPhospho [T/S] | K27: Q8CJ19 2xPhospho [T/S] | L27: 840381.3775 | M27: 561273.6266 | N27: 971311.9375 | O27: 856725.8215 | P27: 1250156.055 | Q27: 572190.529 | R27: 790988.9805 | S27: 893024.1353 | T27: 1.13 | U27: 0.6812303941
A28: [F-actin]-methionine sulfoxide oxidase MICAL3 | B28: Q8CJ19 | C28: 4969.29069 | D28: 1243.07713 | E28: 4 | F28: -0.81 | G28: 100.5115 | H28: SPTSPTSLQPESLLAPPTPPTPPPTQLPICSQPQPSSDASIPSPTK | I28: 2.14 | J28: 3xPhospho [T3; T6; T18] | K28: Q8CJ19 3xPhospho [T1232; T1235; T1247] | L28: 5000 | M28: 5000 | N28: 174293.5156 | O28: 172541.4424 | P28: 45896.41001 | Q28: 5000 | R28: 61431.17188 | S28: 74479.28412 | T28: 1.21 | U28: 0.871490721
A29: [F-actin]-methionine sulfoxide oxidase MICAL3 | B29: Q8CJ19 | C29: 1916.02928 | D29: 639.34796 | E29: 3 | F29: 0.03 | G29: 88.336 | H29: VKSPEEPLFPTPLLLR | I29: 2.79 | J29: 1xPhospho [S3] | K29: Q8CJ19 1xPhospho [S1187] | L29: 132664.8275 | M29: 63619.30914 | N29: 356945.3438 | O29: 219043.987 | P29: 248240.1691 | Q29: 302843.2667 | R29: 184409.8268 | S29: 256709.1409 | T29: 1.39 | U29: 0.4753651539
A30: [F-actin]-methionine sulfoxide oxidase MICAL3 | B30: Q8CJ19 | C30: 1496.62646 | D30: 748.81652 | E30: 2 | F30: -0.47 | G30: 28.239 | H30: KTSQSEEEEPPR | I30: 1.55 | J30: 1xPhospho [S/T] | K30: Q8CJ19 1xPhospho [T/S] | L30: 5000 | M30: 255681.8424 | N30: 5000 | O30: 29807.999 | P30: 151015.0568 | Q30: 555683.6168 | R30: 88560.61414 | S30: 245502.2242 | T30: 2.77 | U30: 0.4315542894
A31: 14-3-3 protein eta | B31: P68510; P68254; P61982; Q9CQV8 | C31: 983.4809 | D31: 492.24418 | E31: 2 | F31: 0.18 | G31: 38.9087 | H31: VLSSIEQK | I31: 2.26 | J31: 1xPhospho [S] | K31: P68510 1xPhospho [S]; P68254 1xPhospho [S]; P61982 1xPhospho [S]; Q9CQV8 1xPhospho [S] | L31: 3208815.386 | M31: 3083544.741 | N31: 4434968 | O31: 2417874.602 | P31: 3635038.313 | Q31: 2828544.56 | R31: 3575776.042 | S31: 2960485.825 | T31: 0.83 | U31: 0.333622404
A32: 14-3-3 protein gamma | B32: P61982 | C32: 1785.82661 | D32: 595.94635 | E32: 3 | F32: -1.19 | G32: 36.4988 | H32: VISSIEQKTSADGNEK | I32: 3.98 | J32: 1xPhospho [T/S] | K32: P61982 1xPhospho [S/T] | L32: 176967.8197 | M32: 5000 | N32: 2917786.875 | O32: 613065.2885 | P32: 5000 | Q32: 5000 | R32: 1033251.565 | S32: 207688.4295 | T32: 0.20 | U32: 0.4405328738
A33: 14-3-3 protein theta | B33: P68254 | C33: 2534.95011 | D33: 1267.97845 | E33: 2 | F33: -0.19 | G33: 86.0592 | H33: DNLTLWTSDSAGEECDAAEGAEN | I33: 1.54 | J33: 1xPhospho [S/T] | K33: P68254 1xPhospho [T/S] | L33: 944609.7229 | M33: 734998.3971 | N33: 999329.125 | O33: 1139091.9 | P33: 2025590.435 | Q33: 1383916.249 | R33: 892979.0817 | S33: 1516199.528 | T33: 1.70 | U33: 0.08712117558
A34: 14-3-3 protein zeta/delta | B34: P63101 | C34: 969.46525 | D34: 485.23603 | E34: 2 | F34: -0.48 | G34: 34.5595 | H34: VVSSIEQK | I34: 1.96 | J34: 1xPhospho [S4] | K34: P63101 1xPhospho [S64] | L34: 598925.2298 | M34: 3105220.604 | N34: 1051483.625 | O34: 1544053.639 | P34: 1840798.122 | Q34: 2487913.555 | R34: 1585209.82 | S34: 1957588.439 | T34: 1.23 | U34: 0.6732753302
A35: 14-3-3 protein zeta/delta | B35: P63101 | C35: 1359.61919 | D35: 680.3128 | E35: 2 | F35: -0.64 | G35: 37.8194 | H35: YLAEVAAGDDKK | I35: 1.35 | J35: 1xPhospho [Y1] | K35: P63101 1xPhospho [Y128] | L35: 5000 | M35: 5000 | N35: 5000 | O35: 515083.8209 | P35: 5000 | Q35: 5000 | R35: 5000 | S35: 175027.9403 | T35: 35.01 | U35: 0.3739009663
A36: 14-3-3 protein zeta/delta | B36: P63101 | C36: 2488.96239 | D36: 1244.98635 | E36: 2 | F36: 1.22 | G36: 82.8979 | H36: DNLTLWTSDTQGDEAEAGEGGEN | I36: 2.01 | J36: 1xPhospho [T/S] | K36: P63101 1xPhospho [T/S] | L36: 5000 | M36: 5000 | N36: 5000 | O36: 437268.3995 | P36: 598955.1765 | Q36: 5000 | R36: 5000 | S36: 347074.5253 | T36: 69.41 | U36: 0.1258955567
A37: 182 kDa tankyrase-1-binding protein | B37: P58871 | C37: 1420.68319 | D37: 710.84511 | E37: 2 | F37: -0.17 | G37: 53.9389 | H37: LANISVPASESPR | I37: 4.01 | J37: 1xPhospho [S] | K37: P58871 1xPhospho [S] | L37: 1197670.785 | M37: 5000 | N37: 165230.5469 | O37: 5000 | P37: 356367.0607 | Q37: 5000 | R37: 455967.1105 | S37: 122122.3536 | T37: 0.27 | U37: 0.4420173742
A38: 182 kDa tankyrase-1-binding protein | B38: P58871 | C38: 2059.92534 | D38: 1030.46656 | E38: 2 | F38: 0.24 | G38: 72.006 | H38: SPPSGSQSLLEGIMoTASSSK | I38: 3.58 | J38: 1xPhospho [S1] | K38: P58871 1xPhospho [S1437] | L38: 1049899.868 | M38: 743704.2466 | N38: 830845.6406 | O38: 355597.6926 | P38: 358790.8849 | Q38: 589705.2561 | R38: 874816.5851 | S38: 434697.9445 | T38: 0.50 | U38: 0.02120505338
A39: 182 kDa tankyrase-1-binding protein | B39: P58871 | C39: 3822.82117 | D39: 1274.9543 | E39: 3 | F39: 7.11 | G39: 63.21 | H39: GEGVSQVGPGTPPAPESPRKPISGVQGNDPGISLPQR | I39: 3.54 | J39: 2xPhospho [S/T] | K39: P58871 2xPhospho [S/T] | L39: 3500945.804 | M39: 922207.7774 | N39: 744980.375 | O39: 658702.9304 | P39: 411827.4141 | Q39: 1533315.349 | R39: 1722711.319 | S39: 867948.5644 | T39: 0.50 | U39: 0.4206281659
A40: 182 kDa tankyrase-1-binding protein | B40: P58871 | C40: 2004.81989 | D40: 1002.91445 | E40: 2 | F40: 0.87 | G40: 76.595 | H40: SSGSLSPGLETEDPLEAR | I40: 3.26 | J40: 2xPhospho [S] | K40: P58871 2xPhospho [S] | L40: 2510404.228 | M40: 906618.6046 | N40: 1707989.875 | O40: 851332.9067 | P40: 1064179.735 | Q40: 1127252.637 | R40: 1708337.569 | S40: 1014255.093 | T40: 0.59 | U40: 0.2141362522
A41: 182 kDa tankyrase-1-binding protein | B41: P58871 | C41: 1049.42993 | D41: 525.21862 | E41: 2 | F41: 0.03 | G41: 53.578 | H41: DSLGSFSTR | I41: 2.38 | J41: 1xPhospho [S2] | K41: P58871 1xPhospho [S866] | L41: 1863752.806 | M41: 1026899.816 | N41: 483269.3438 | O41: 482902.021 | P41: 958273.1305 | Q41: 751430.1335 | R41: 1124640.655 | S41: 730868.4283 | T41: 0.65 | U41: 0.406037383
A42: 182 kDa tankyrase-1-binding protein | B42: P58871 | C42: 1846.71436 | D42: 923.86085 | E42: 2 | F42: 0.04 | G42: 54.8323 | H42: VPSSDEEVVEEPQSR | I42: 4.48 | J42: 2xPhospho [S3; S4] | K42: P58871 2xPhospho [S1611; S1612] | L42: 8752227.869 | M42: 3958281.267 | N42: 6896658.5 | O42: 4471066.522 | P42: 4446966.991 | Q42: 5051909.755 | R42: 6535722.545 | S42: 4656647.756 | T42: 0.71 | U42: 0.2533576386
A43: 182 kDa tankyrase-1-binding protein | B43: P58871 | C43: 1766.74803 | D43: 883.87755 | E43: 2 | F43: -0.11 | G43: 48.7654 | H43: VPSSDEEVVEEPQSR | I43: 4.28 | J43: 1xPhospho [S] | K43: P58871 1xPhospho [S] | L43: 3804728.032 | M43: 4145515.43 | N43: 4110091.125 | O43: 2222349.409 | P43: 2746061.328 | Q43: 3821432.788 | R43: 4020111.529 | S43: 2929947.842 | T43: 0.73 | U43: 0.08694144964
A44: 182 kDa tankyrase-1-binding protein | B44: P58871 | C44: 2043.93043 | D44: 1022.46987 | E44: 2 | F44: 1 | G44: 85.8237 | H44: SPPSGSQSLLEGIMTASSSK | I44: 5.65 | J44: 1xPhospho [S] | K44: P58871 1xPhospho [S] | L44: 5344869.55 | M44: 2818770.63 | N44: 7436994 | O44: 3150524.18 | P44: 3529992.71 | Q44: 5186034.047 | R44: 5200211.393 | S44: 3955516.979 | T44: 0.76 | U44: 0.4460148022
A45: 182 kDa tankyrase-1-binding protein | B45: P58871 | C45: 2123.89676 | D45: 1062.44994 | E45: 2 | F45: -1.96 | G45: 96.119 | H45: SPPSGSQSLLEGIMTASSSK | I45: 1.12 | J45: 2xPhospho [S] | K45: P58871 2xPhospho [S] | L45: 112852.6895 | M45: 5000 | N45: 108861.0469 | O45: 55311.9765 | P45: 63474.59194 | Q45: 61318.7686 | R45: 75571.24546 | S45: 60035.11235 | T45: 0.79 | U45: 0.6833250561
A46: 182 kDa tankyrase-1-binding protein | B46: P58871 | C46: 1924.85356 | D46: 962.93011 | E46: 2 | F46: -0.32 | G46: 69.2325 | H46: SSGSLSPGLETEDPLEAR | I46: 3.87 | J46: 1xPhospho [S] | K46: P58871 1xPhospho [S] | L46: 1662821.703 | M46: 1400779.85 | N46: 1349547.375 | O46: 1482492.724 | P46: 1060271.718 | Q46: 1067659.61 | R46: 1471049.643 | S46: 1203474.684 | T46: 0.82 | U46: 0.1904864728
A47: 182 kDa tankyrase-1-binding protein | B47: P58871 | C47: 1978.83073 | D47: 989.92078 | E47: 2 | F47: 1.79 | G47: 54.2182 | H47: GEGVSQVGPGTPPAPESPR | I47: 3.49 | J47: 2xPhospho [S17; T/S] | K47: P58871 2xPhospho [S539; T/S] | L47: 787934.6393 | M47: 491768.0085 | N47: 5000 | O47: 259690.7523 | P47: 392934.7898 | Q47: 431396.6943 | R47: 428234.2159 | S47: 361340.7455 | T47: 0.84 | U47: 0.789249265
A48: 182 kDa tankyrase-1-binding protein | B48: P58871 | C48: 2172.91148 | D48: 724.97705 | E48: 3 | F48: 2.35 | G48: 40.8439 | H48: MoQAESQSPTNVDLEDKER | I48: 4.32 | J48: 1xPhospho [S/T] | K48: P58871 1xPhospho [S/T] | L48: 1097563.162 | M48: 877288.9446 | N48: 185202.8438 | O48: 1493947.853 | P48: 5000 | Q48: 459232.5245 | R48: 720018.3168 | S48: 652726.7927 | T48: 0.91 | U48: 0.9031498891
A49: 182 kDa tankyrase-1-binding protein | B49: P58871 | C49: 2156.91657 | D49: 719.64357 | E49: 3 | F49: -0.2 | G49: 43.9283 | H49: MQAESQSPTNVDLEDKER | I49: 5.6 | J49: 1xPhospho [S/T] | K49: P58871 1xPhospho [S/T] | L49: 4975446.337 | M49: 2709338.365 | N49: 4090797.375 | O49: 4526203.825 | P49: 3538897.18 | Q49: 3457779.34 | R49: 3925194.026 | S49: 3840960.115 | T49: 0.98 | U49: 0.9152514859
A50: 182 kDa tankyrase-1-binding protein | B50: P58871 | C50: 1924.88005 | D50: 962.9418 | E50: 2 | F50: -1.93 | G50: 56.0075 | H50: RFSEGVLQPPSQDQEK | I50: 3.02 | J50: 1xPhospho [S3] | K50: P58871 1xPhospho [S429] | L50: 5000 | M50: 5000 | N50: 5000 | O50: 5000 | P50: 5000 | Q50: 5000 | R50: 5000 | S50: 5000 | T50: 1.00
A51: 182 kDa tankyrase-1-binding protein | B51: P58871 | C51: 1010.46665 | D51: 505.73739 | E51: 2 | F51: 0.83 | G51: 36.7037 | H51: VSGAGLSPSR | I51: 3.1 | J51: 1xPhospho [S] | K51: P58871 1xPhospho [S] | L51: 262589.4882 | M51: 615046.8469 | N51: 5000 | O51: 165544.01 | P51: 777111.4986 | Q51: 695859.839 | R51: 294212.1117 | S51: 546171.7825 | T51: 1.86 | U51: 0.3887518919
A52: 1-phosphatidylinositol 3-phosphate 5-kinase | B52: Q9Z1T6 | C52: 1878.90693 | D52: 626.97402 | E52: 3 | F52: 0.3 | G52: 60.9601 | H52: SSSPIRLPEISGGQTNR | I52: 2.71 | J52: 1xPhospho [S] | K52: Q9Z1T6 1xPhospho [S] | L52: 5000 | M52: 169150.1684 | N52: 223888.8125 | O52: 5000 | P52: 219875.8103 | Q52: 5000 | R52: 132679.6603 | S52: 76625.27011 | T52: 0.58 | U52: 0.5951884611
A53: 1-phosphatidylinositol 3-phosphate 5-kinase | B53: Q9Z1T6 | C53: 1256.58822 | D53: 628.7969 | E53: 2 | F53: -1.36 | G53: 60.8402 | H53: SASITNLSLDR | I53: 2.88 | J53: 1xPhospho [S] | K53: Q9Z1T6 1xPhospho [S] | L53: 310618.3107 | M53: 640928.1641 | N53: 662248.5625 | O53: 423047.3311 | P53: 682970.7014 | Q53: 755812.7576 | R53: 537931.6791 | S53: 620610.2634 | T53: 1.15 | U53: 0.6157639049
A54: 1-phosphatidylinositol 4,5-bisphosphate phosphodiesterase beta-1 | B54: Q9Z1B3 | C54: 1647.70267 | D54: 549.90508 | E54: 3 | F54: -1.21 | G54: 48.918 | H54: VNLKSPSSEEIER | I54: 4.15 | J54: 2xPhospho [S5; S7] | K54: Q9Z1B3 2xPhospho [S1197; S1199] | L54: 14742397.7 | M54: 6107474.859 | N54: 2346692.25 | O54: 2995668.333 | P54: 5405702.452 | Q54: 3711366.396 | R54: 7732188.268 | S54: 4037579.061 | T54: 0.52 | U54: 0.3789498711
A55: 1-phosphatidylinositol 4,5-bisphosphate phosphodiesterase beta-1 | B55: Q9Z1B3 | C55: 1567.73634 | D55: 784.37416 | E55: 2 | F55: 3 | G55: 44.2581 | H55: VNLKSPSSEEIER | I55: 3.16 | J55: 1xPhospho [S] | K55: Q9Z1B3 1xPhospho [S] | L55: 4455728.787 | M55: 2306259.01 | N55: 741823.5 | O55: 2907197.068 | P55: 2004463.604 | Q55: 5000 | R55: 2501270.432 | S55: 1638886.891 | T55: 0.66 | U55: 0.5649121373
A56: 1-phosphatidylinositol 4,5-bisphosphate phosphodiesterase beta-1 | B56: Q9Z1B3 | C56: 2910.23467 | D56: 970.7482 | E56: 3 | F56: -1.59 | G56: 77.1847 | H56: SEPSSPDHGSSAIEQDLAALDAEMoTQK | I56: 2.96 | J56: 1xPhospho [S] | K56: Q9Z1B3 1xPhospho [S] | L56: 923129.3588 | M56: 1463482.512 | N56: 916193.75 | O56: 949304.063 | P56: 964084.3628 | Q56: 1296882.352 | R56: 1100935.207 | S56: 1070090.259 | T56: 0.97 | U56: 0.8922997661
A57: 1-phosphatidylinositol 4,5-bisphosphate phosphodiesterase beta-1 | B57: Q9Z1B3 | C57: 1742.67526 | D57: 871.84109 | E57: 2 | F57: -0.21 | G57: 35.2998 | H57: EADPGETSSEAPSETR | I57: 3.35 | J57: 1xPhospho [S/T] | K57: Q9Z1B3 1xPhospho [S] | L57: 1608071.258 | M57: 1854873.342 | N57: 513463.5625 | O57: 984304.9628 | P57: 1667248.829 | Q57: 1560549.76 | R57: 1325469.387 | S57: 1404034.517 | T57: 1.06 | U57: 0.8736487225
A58: 1-phosphatidylinositol 4,5-bisphosphate phosphodiesterase beta-1 | B58: Q9Z1B3 | C58: 1113.44598 | D58: 557.22627 | E58: 2 | F58: -0.64 | G58: 33.5979 | H58: SPSSEEIER | I58: 2.06 | J58: 1xPhospho [S3] | K58: Q9Z1B3 1xPhospho [S1199] | L58: 1017740.027 | M58: 3748561.528 | N58: 231328.5938 | O58: 5000 | P58: 2640367.715 | Q58: 3044282.07 | R58: 1665876.716 | S58: 1896549.928 | T58: 1.14 | U58: 0.8796432302
A59: 1-phosphatidylinositol 4,5-bisphosphate phosphodiesterase beta-1 | B59: Q9Z1B3 | C59: 2894.23975 | D59: 965.42038 | E59: 3 | F59: 2.37 | G59: 92.9141 | H59: SEPSSPDHGSSAIEQDLAALDAEMTQK | I59: 1.45 | J59: 1xPhospho [S] | K59: Q9Z1B3 1xPhospho [S] | L59: 101693.1938 | M59: 76267.91344 | N59: 875120.1875 | O59: 254194.5158 | P59: 472103.4278 | Q59: 604263.6262 | R59: 351027.0982 | S59: 443520.5233 | T59: 1.26 | U59: 0.7588093733
A60: 1-phosphatidylinositol 4,5-bisphosphate phosphodiesterase beta-1 | B60: Q9Z1B3 | C60: 1291.56061 | D60: 646.28387 | E60: 2 | F60: -0.12 | G60: 60.8774 | H60: SPVEFVEYNK | I60: 2.87 | J60: 1xPhospho [S1] | K60: Q9Z1B3 1xPhospho [S582] | L60: 455428.5138 | M60: 598052.608 | N60: 317447.1875 | O60: 542041.9162 | P60: 804333.0427 | Q60: 613589.691 | R60: 456976.1031 | S60: 653321.55 | T60: 1.43 | U60: 0.1562935601
A61: 1-phosphatidylinositol 4,5-bisphosphate phosphodiesterase beta-1 | B61: Q9Z1B3 | C61: 1193.41231 | D61: 597.21032 | E61: 2 | F61: 0.89 | G61: 41.0429 | H61: SPSSEEIER | I61: 2.41 | J61: 2xPhospho [S3; S4] | K61: Q9Z1B3 2xPhospho [S1199; S1200] | L61: 895887.7801 | M61: 999897.8349 | N61: 5000 | O61: 345989.1579 | P61: 1211185.801 | Q61: 1211403.335 | R61: 633595.205 | S61: 922859.4315 | T61: 1.46 | U61: 0.5358728145
A62: 1-phosphatidylinositol 4,5-bisphosphate phosphodiesterase beta-3 | B62: P51432 | C62: 1057.45615 | D62: 529.23145 | E62: 2 | F62: -0.49 | G62: 46.3894 | H62: SLGEESLSR | I62: 2.06 | J62: 1xPhospho [S1] | K62: P51432 1xPhospho [S537] | L62: 5000 | M62: 5000 | N62: 5000 | O62: 5000 | P62: 5000 | Q62: 5000 | R62: 5000 | S62: 5000 | T62: 1.00
A63: 1-phosphatidylinositol 4,5-bisphosphate phosphodiesterase delta-1 | B63: Q8R3B1 | C63: 3423.44176 | D63: 1141.8163 | E63: 3 | F63: -2.16 | G63: 78.9703 | H63: LGGLLPAGGENGPEATDVSDEDEAAEMEDEAVR | I63: 2.04 | J63: 1xPhospho [S/T] | K63: Q8R3B1 1xPhospho [T/S] | L63: 232039.3539 | M63: 119368.4831 | N63: 91503.90625 | O63: 43297.83452 | P63: 118271.6509 | Q63: 170644.5889 | R63: 147637.2477 | S63: 110738.0248 | T63: 0.75 | U63: 0.5504652807
A64: 1-phosphatidylinositol 4,5-bisphosphate phosphodiesterase delta-1 | B64: Q8R3B1 | C64: 3503.40809 | D64: 1168.47513 | E64: 3 | F64: 0.79 | G64: 86.0293 | H64: LGGLLPAGGENGPEATDVSDEDEAAEMEDEAVR | I64: 2.18 | J64: 2xPhospho [T16; S19] | K64: Q8R3B1 2xPhospho [T457; S460] | L64: 5000 | M64: 5000 | N64: 5000 | O64: 5000 | P64: 5000 | Q64: 5000 | R64: 5000 | S64: 5000 | T64: 1.00
A65: 1-phosphatidylinositol 4,5-bisphosphate phosphodiesterase eta-2 | B65: A2AP18 | C65: 3403.22741 | D65: 1135.08052 | E65: 3 | F65: -0.12 | G65: 57.1668 | H65: KLPANISEDAEEGEVSDEDSADEMoEDDCK | I65: 2.81 | J65: 2xPhospho [S16; S20] | K65: A2AP18 2xPhospho [S561; S565] | L65: 1159633.818 | M65: 5000 | N65: 5000 | O65: 5000 | P65: 5000 | Q65: 5000 | R65: 389877.9392 | S65: 5000 | T65: 0.01 | U65: 0.3739009663
A66: 1-phosphatidylinositol 4,5-bisphosphate phosphodiesterase eta-2 | B66: A2AP18 | C66: 3745.6865 | D66: 1249.2339 | E66: 3 | F66: 0.17 | G66: 80.8566 | H66: GFPELALGTQDAGSEGAADDVAPSSPNPALEAPTQER | I66: 1.65 | J66: 1xPhospho [S] | K66: A2AP18 1xPhospho [S] | L66: 349705.9252 | M66: 5000 | N66: 5000 | O66: 43682.29652 | P66: 5000 | Q66: 5000 | R66: 119901.9751 | S66: 17894.09884 | T66: 0.15 | U66: 0.4274736464
A67: 1-phosphatidylinositol 4,5-bisphosphate phosphodiesterase eta-2 | B67: A2AP18 | C67: 2122.82135 | D67: 1061.91176 | E67: 2 | F67: -2.41 | G67: 54.869 | H67: VASVEEGDETLDSPGSQSR | I67: 4.12 | J67: 2xPhospho [S3; S13] | K67: A2AP18 2xPhospho [S676; S686] | L67: 1802621.675 | M67: 464113.272 | N67: 575820.4375 | O67: 303486.1429 | P67: 556986.1518 | Q67: 297793.293 | R67: =AVERAGE(L67:N67) -> 947518.4615 | S67: =AVERAGE(O67:Q67) -> 386088.5292 | T67: =S67/R67 -> 0.41 | U67: =_xlfn.T.TEST(L67:N67,O67:Q67,2,2) -> 0.2684229652
A68: 1-phosphatidylinositol 4,5-bisphosphate phosphodiesterase eta-2 | B68: A2AP18 | C68: 2042.85501 | D68: 1021.93165 | E68: 2 | F68: 0.49 | G68: 49.8874 | H68: VASVEEGDETLDSPGSQSR | I68: 5.34 | J68: 1xPhospho [S] | K68: A2AP18 1xPhospho [S] | L68: 7030389.737 | M68: 5086947.265 | N68: 4452021.562 | O68: 2365271.68 | P68: 3725350.565 | Q68: 3569707.478 | R68: 5523119.522 | S68: 3220109.908 | T68: 0.58 | U68: 0.06022324212
A69: 1-phosphatidylinositol 4,5-bisphosphate phosphodiesterase eta-2 | B69: A2AP18 | C69: 2170.94998 | D69: 1085.97835 | E69: 2 | F69: -0.26 | G69: 45.4072 | H69: KVASVEEGDETLDSPGSQSR | I69: 4.97 | J69: 1xPhospho [S/T] | K69: A2AP18 1xPhospho [S/T] | L69: 1634700.965 | M69: 871509.0041 | N69: 1625171.75 | O69: 839340.7961 | P69: 1023551.796 | Q69: 558276.6233 | R69: 1377127.24 | S69: 807056.4052 | T69: 0.59 | U69: 0.1177059917
A70: 1-phosphatidylinositol 4,5-bisphosphate phosphodiesterase eta-2 | B70: A2AP18 | C70: 3387.23249 | D70: 1129.75 | E70: 3 | F70: 0.87 | G70: 61.3793 | H70: KLPANISEDAEEGEVSDEDSADEMEDDCK | I70: 5.44 | J70: 2xPhospho [S16; S20] | K70: A2AP18 2xPhospho [S561; S565] | L70: 5449867.322 | M70: 3119692.643 | N70: 3943471 | O70: 2593189.899 | P70: 3823916.074 | Q70: 2451886.677 | R70: 4171010.322 | S70: 2956330.883 | T70: 0.71 | U70: 0.2078610484
A71: 1-phosphatidylinositol 4,5-bisphosphate phosphodiesterase eta-2 | B71: A2AP18 | C71: 2250.91631 | D71: 750.9762 | E71: 3 | F71: -1 | G71: 46.6877 | H71: KVASVEEGDETLDSPGSQSR | I71: 3.8 | J71: 2xPhospho [S4; S14] | K71: A2AP18 2xPhospho [S676; S686] | L71: 5000 | M71: 5000 | N71: 5000 | O71: 5000 | P71: 5000 | Q71: 5000 | R71: 5000 | S71: 5000 | T71: 1.00
A72: 1-phosphatidylinositol 4,5-bisphosphate phosphodiesterase eta-2 | B72: A2AP18 | C72: 3259.13753 | D72: 1087.05146 | E72: 3 | F72: 0.7 | G72: 66.3334 | H72: LPANISEDAEEGEVSDEDSADEMEDDCK | I72: 3.46 | J72: 2xPhospho [S15; S19] | K72: A2AP18 2xPhospho [S561; S565] | L72: 5000 | M72: 5000 | N72: 703950.6875 | O72: 489613.3084 | P72: 868077.3804 | Q72: 784575.4512 | R72: 237983.5625 | S72: 714088.7133 | T72: 3.00 | U72: 0.140724117
A73: 2',3'-cyclic-nucleotide 3'-phosphodiesterase | B73: P16330 | C73: 909.423 | D73: 455.21489 | E73: 2 | F73: -0.53 | G73: 43.6944 | H73: SHTFLPK | I73: 2.82 | J73: 1xPhospho [S1] | K73: P16330 1xPhospho [S9] | L73: 3656721.092 | M73: 2927165.335 | N73: 3338708.562 | O73: 4493733.974 | P73: 5076910.434 | Q73: 524853.2974 | R73: 3307531.663 | S73: 3365165.902 | T73: 1.02 | U73: 0.970108514
A74: 2',3'-cyclic-nucleotide 3'-phosphodiesterase | B74: P16330 | C74: 1106.47002 | D74: 553.73809 | E74: 2 | F74: -1.01 | G74: 51.0543 | H74: ace-MNTSFTRK | I74: 2.46 | J74: 1xPhospho [S4] | K74: P16330 1xAcetyl [N-Term]; 1xPhospho [S4] | L74: 5552388.817 | M74: 2280932.588 | N74: 7517990 | O74: 5383155.35 | P74: 3862593.051 | Q74: 8241235.407 | R74: 5117103.802 | S74: 5828994.603 | T74: 1.14 | U74: 0.7392515919
A75: 2',3'-cyclic-nucleotide 3'-phosphodiesterase | B75: P16330 | C75: 978.37506 | D75: 489.69192 | E75: 2 | F75: 1.54 | G75: 64.5617 | H75: ace-MNTSFTR | I75: 2.3 | J75: 1xPhospho [S4] | K75: P16330 1xAcetyl [N-Term]; 1xPhospho [S4] | L75: 7258761.186 | M75: 5665111.198 | N75: 6807077 | O75: 5397228.435 | P75: 9902554.142 | Q75: 13288161.68 | R75: 6576983.128 | S75: 9529314.753 | T75: 1.45 | U75: 0.2746120921
A76: 2',3'-cyclic-nucleotide 3'-phosphodiesterase | B76: P16330 | C76: 1336.58929 | D76: 668.79879 | E76: 2 | F76: 0.76 | G76: 50.5795 | H76: GGSQGEAVGELPR | I76: 2.6 | J76: 1xPhospho [S3] | K76: P16330 1xPhospho [S358] | L76: 494520.3297 | M76: 5000 | N76: 275609.5312 | O76: 358899.8319 | P76: 399547.4854 | Q76: 430279.2403 | R76: 258376.6203 | S76: 396242.1859 | T76: 1.53 | U76: 0.3898217918
A77: 26S proteasome non-ATPase regulatory subunit 1 | B77: Q3TXS7 | C77: 2372.07823 | D77: 791.36324 | E77: 3 | F77: -1.3 | G77: 39.2777 | H77: TASAVAGKTPDASPEPKDQTLK | I77: 6.38 | J77: 2xPhospho [T9; T20] | K77: Q3TXS7 2xPhospho [T311; T322] | L77: 442200.9951 | M77: 5000 | N77: 2474303 | O77: 5000 | P77: 5000 | Q77: 5000 | R77: 973834.665 | S77: 5000 | T77: 0.01 | U77: 0.2718180827
A78: 26S proteasome non-ATPase regulatory subunit 1 | B78: Q3TXS7 | C78: 2237.0697 | D78: 1119.03898 | E78: 2 | F78: 0.44 | G78: 56.925 | H78: TVGTPIASVPGSTNTGTVPGSEK | I78: 1.64 | J78: 1xPhospho [T] | K78: Q3TXS7 1xPhospho [T] | L78: 703825.6881 | M78: 70152.09856 | N78: 5000 | O78: 5000 | P78: 75525.97477 | Q78: 5000 | R78: 259659.2622 | S78: 28508.65826 | T78: 0.11 | U78: 0.3606330658
A79: 26S proteasome non-ATPase regulatory subunit 1 | B79: Q3TXS7 | C79: 1706.79967 | D79: 569.60507 | E79: 3 | F79: 0.58 | G79: 33.3815 | H79: TASAVAGKTPDASPEPK | I79: 3.37 | J79: 1xPhospho [T/S] | K79: Q3TXS7 1xPhospho [T/S] | L79: 224780.7449 | M79: 682407.1268 | N79: 893966.9688 | O79: 445545.8859 | P79: 679741.8421 | Q79: 5000 | R79: 600384.9468 | S79: 376762.576 | T79: 0.63 | U79: 0.4684901551
A80: 26S proteasome non-ATPase regulatory subunit 1 | B80: Q3TXS7 | C80: 3398.51928 | D80: 1133.51111 | E80: 3 | F80: -0.15 | G80: 59.7453 | H80: TVGTPIASVPGSTNTGTVPGSEKDSDPMETEEK | I80: 2.9 | J80: 1xPhospho [T] | K80: Q3TXS7 1xPhospho [T] | L80: 5000 | M80: 120385.2143 | N80: 771917.75 | O80: 66663.52368 | P80: 214355.5441 | Q80: 424981.7812 | R80: 299100.9881 | S80: 235333.6163 | T80: 0.79 | U80: 0.8185966594
A81: 26S proteasome non-ATPase regulatory subunit 1 | B81: Q3TXS7 | C81: 1786.766 | D81: 893.88586 | E81: 2 | F81: -0.87 | G81: 35.9305 | H81: TASAVAGKTPDASPEPK | I81: 4.66 | J81: 2xPhospho [S13; S/T] | K81: Q3TXS7 2xPhospho [S315; S/T] | L81: 53066449.75 | M81: 28343156.46 | N81: 55472200 | O81: 32597050.6 | P81: 34562565.36 | Q81: 41456801.15 | R81: 45627268.73 | S81: 36205472.37 | T81: 0.79 | U81: 0.3578788875
A82: 26S proteasome non-ATPase regulatory subunit 2 | B82: Q8VDM4 | C82: 3033.25443 | D82: 1011.75727 | E82: 3 | F82: 0.93 | G82: 44.791 | H82: ace-MEEGGRDKTPVQSQQPSATTPSGADEK | I82: 2.7 | J82: 2xPhospho [T/S] | K82: Q8VDM4 1xAcetyl [N-Term]; 2xPhospho [S/T] | L82: 751114.7416 | M82: 5000 | N82: 805647.875 | O82: 5000 | P82: 5000 | Q82: 5000 | R82: 520587.5389 | S82: 5000 | T82: 0.01 | U82: 0.1166106957
A83: 26S proteasome non-ATPase regulatory subunit 2 | B83: Q8VDM4 | C83: 1247.50522 | D83: 624.25684 | E83: 2 | F83: 0.95 | G83: 36.7092 | H83: FGGSGSQVDSAR | I83: 2.99 | J83: 1xPhospho [S4] | K83: Q8VDM4 1xPhospho [S361] | L83: 990217.6292 | M83: 729408.9172 | N83: 883951.8125 | O83: 1059213.128 | P83: 811862.1277 | Q83: 681333.6152 | R83: 867859.4529 | S83: 850802.9568 | T83: 0.98 | U83: 0.9050015995
A84: 26S proteasome non-ATPase regulatory subunit 2 | B84: Q8VDM4 | C84: 2252.00783 | D84: 751.34077 | E84: 3 | F84: -0.03 | G84: 35.8235 | H84: DKTPVQSQQPSATTPSGADEK | I84: 4.66 | J84: 1xPhospho [T/S] | K84: Q8VDM4 1xPhospho [T/S] | L84: 7798674.683 | M84: 4912423.231 | N84: 5684318.625 | O84: 5967856.91 | P84: 6263260.04 | Q84: 6481850.221 | R84: 6131805.513 | S84: 6237655.724 | T84: 1.02 | U84: 0.9095948924
A85: 26S proteasome non-ATPase regulatory subunit 2 | B85: Q8VDM4 | C85: 2008.88592 | D85: 1004.94631 | E85: 2 | F85: -0.29 | G85: 36.5322 | H85: TPVQSQQPSATTPSGADEK | I85: 4.99 | J85: 1xPhospho [T] | K85: Q8VDM4 1xPhospho [T] | L85: 1911075.533 | M85: 1768575.454 | N85: 1407893.5 | O85: 1390615.883 | P85: 1836107.158 | Q85: 2277173.303 | R85: 1695848.162 | S85: 1834632.115 | T85: 1.08 | U85: 0.6641128097
A86: 26S proteasome non-ATPase regulatory subunit 4 | B86: O35226 | C86: 2396.08647 | D86: 799.36932 | E86: 3 | F86: 2.89 | G86: 65.3245 | H86: AAAASAAEAGIATPGTEDSDDALLK | I86: 4.19 | J86: 1xPhospho [T/S] | K86: O35226 1xPhospho [T/S] | L86: 697193.3465 | M86: 397016.9891 | N86: 453808.6562 | O86: 333654.1691 | P86: 345557.5887 | Q86: 362260.4421 | R86: 516006.3306 | S86: 347157.4 | T86: 0.67 | U86: 0.1417832396
A87: 26S proteasome regulatory subunit 6A | B87: O88685 | C87: 2044.85206 | D87: 1022.92899 | E87: 2 | F87: -0.66 | G87: 106.7079 | H87: ace-MQEMNLLPTPESPVTR | I87: 2.28 | J87: 2xPhospho [T9; S/T] | K87: O88685 1xAcetyl [N-Term]; 2xPhospho [T9; S/T] | L87: 876002.9272 | M87: 249127.3945 | N87: 563271.1875 | O87: 256694.2557 | P87: 252642.1108 | Q87: 5000 | R87: 562800.5031 | S87: 171445.4555 | T87: 0.30 | U87: 0.1208919579
A88: 26S proteasome regulatory subunit 6A | B88: O88685 | C88: 1980.88064 | D88: 990.9424 | E88: 2 | F88: -1.57 | G88: 83.6836 | H88: ace-MQEMoNLLPTPESPVTR | I88: 3.59 | J88: 1xPhospho [S/T] | K88: O88685 1xAcetyl [N-Term]; 1xPhospho [S/T] | L88: 1477246.199 | M88: 1026659.119 | N88: 437012.5625 | O88: 1210992.523 | P88: 994220.4525 | Q88: 498753.7336 | R88: 980305.96 | S88: 901322.2364 | T88: 0.92 | U88: 0.8403911304
A89: 26S proteasome regulatory subunit 6A | B89: O88685 | C89: 1964.88573 | D89: 982.94666 | E89: 2 | F89: 0.16 | G89: 94.729 | H89: ace-MQEMNLLPTPESPVTR | I89: 3.29 | J89: 1xPhospho [T/S] | K89: O88685 1xAcetyl [N-Term]; 1xPhospho [T/S] | L89: 2854236.611 | M89: 1978863.715 | N89: 2252891.25 | O89: 2408423.331 | P89: 2936577.313 | Q89: 1216709.717 | R89: 2361997.192 | S89: 2187236.787 | T89: 0.93 | U89: 0.7746665857
A90: 26S proteasome regulatory subunit 6A | B90: O88685 | C90: 2060.84697 | D90: 1030.92691 | E90: 2 | F90: -0.21 | G90: 93.623 | H90: ace-MQEMiNLLPTPESPVTR | I90: 1.83 | J90: 2xPhospho [T9; S12] | K90: O88685 1xAcetyl [N-Term]; 2xPhospho [T9; S12] | L90: 5000 | M90: 5000 | N90: 96909.61719 | O90: 64950.96094 | P90: 87019.84334 | Q90: 5000 | R90: 35636.53906 | S90: 52323.60143 | T90: 1.47 | U90: 0.6924638217
A91: 28 kDa heat- and acid-stable phosphoprotein | B91: Q3UHX2 | C91: 2461.89161 | D91: 821.30194 | E91: 3 | F91: -0.13 | G91: 37.9244 | H91: KSLDSDESEDEDDDYQQKR | I91: 6.09 | J91: 2xPhospho [S5; S8] | K91: Q3UHX2 2xPhospho [S60; S63] | L91: 5000 | M91: 351316.3323 | N91: 1122030.75 | O91: 779032.4489 | P91: 5000 | Q91: 5000 | R91: 492782.3608 | S91: 263010.8163 | T91: 0.53 | U91: 0.6125909294
A92: 28 kDa heat- and acid-stable phosphoprotein | B92: Q3UHX2 | C92: 2381.92528 | D92: 794.64673 | E92: 3 | F92: 0.15 | G92: 35.4555 | H92: KSLDSDESEDEDDDYQQKR | I92: 4.75 | J92: 1xPhospho [S] | K92: Q3UHX2 1xPhospho [S] | L92: 5000 | M92: 5000 | N92: 804466.8125 | O92: 435085.6031 | P92: 5000 | Q92: 5000 | R92: 271488.9375 | S92: 148361.8677 | T92: 0.55 | U92: 0.7049187006
A93: 28 kDa heat- and acid-stable phosphoprotein | B93: Q3UHX2 | C93: 2333.79665 | D93: 1167.40247 | E93: 2 | F93: 0.44 | G93: 42.8514 | H93: SLDSDESEDEDDDYQQKR | I93: 5.19 | J93: 2xPhospho [S4; S7] | K93: Q3UHX2 2xPhospho [S60; S63] | L93: 3997075.145 | M93: 2657166.002 | N93: 4024238.375 | O93: 2632755.703 | P93: 1596544.994 | Q93: 2190117.834 | R93: 3559493.174 | S93: 2139806.177 | T93: 0.60 | U93: 0.05882762448
A94: 28 kDa heat- and acid-stable phosphoprotein | B94: Q3UHX2 | C94: 2253.83032 | D94: 751.94763 | E94: 3 | F94: -0.88 | G94: 40.1446 | H94: SLDSDESEDEDDDYQQKR | I94: 5.91 | J94: 1xPhospho [S] | K94: Q3UHX2 1xPhospho [S] | L94: 1798861.908 | M94: 4699849.372 | N94: 3006647.125 | O94: 5005338.644 | P94: 1491062.43 | Q94: 1351501.952 | R94: 3168452.802 | S94: 2615967.675 | T94: 0.83 | U94: 0.724663118
A95: 28 kDa heat- and acid-stable phosphoprotein | B95: Q3UHX2 | C95: 2177.69554 | D95: 1089.35172 | E95: 2 | F95: 0.29 | G95: 49.5059 | H95: SLDSDESEDEDDDYQQK | I95: 6.19 | J95: 2xPhospho [S4; S] | K95: Q3UHX2 2xPhospho [S60; S] | L95: 19541230.03 | M95: 13308646.94 | N95: 11151290.47 | O95: 10289590.53 | P95: 12815211.25 | Q95: 13537340.76 | R95: 14667055.81 | S95: 12214047.51 | T95: 0.83 | U95: 0.4151833363
A96: 28 kDa heat- and acid-stable phosphoprotein | B96: Q3UHX2 | C96: 2305.7905 | D96: 1153.39656 | E96: 2 | F96: -2.02 | G96: 42.279 | H96: KSLDSDESEDEDDDYQQK | I96: 6.13 | J96: 2xPhospho [S/Y] | K96: Q3UHX2 2xPhospho [S60; S] | L96: 11788691.22 | M96: 7976870.23 | N96: 4816239.125 | O96: 5025337.897 | P96: 8264120.697 | Q96: 7815622.333 | R96: 8193933.525 | S96: 7035026.975 | T96: 0.86 | U96: 0.634535153
A97: 28 kDa heat- and acid-stable phosphoprotein | B97: Q3UHX2 | C97: 2257.66187 | D97: 1129.33491 | E97: 2 | F97: 0.3 | G97: 60.6154 | H97: SLDSDESEDEDDDYQQK | I97: 1.76 | J97: 3xPhospho [S1; S4; S7] | K97: Q3UHX2 3xPhospho [S57; S60; S63] | L97: 509682.8142 | M97: 5000 | N97: 5000 | O97: 5000 | P97: 512135.0424 | Q97: 5000 | R97: 173227.6047 | S97: 174045.0141 | T97: 1.00 | U97: 0.997429412
A98: 28 kDa heat- and acid-stable phosphoprotein | B98: Q3UHX2 | C98: 2097.7292 | D98: 1049.36643 | E98: 2 | F98: -1.72 | G98: 44.5462 | H98: SLDSDESEDEDDDYQQK | I98: 5.23 | J98: 1xPhospho [S] | K98: Q3UHX2 1xPhospho [S] | L98: 11215078.41 | M98: 11289400 | N98: 11744131.62 | O98: 12097931.21 | P98: 11661133.12 | Q98: 13930626.33 | R98: 11416203.35 | S98: 12563230.22 | T98: 1.10 | U98: 0.183746791
A99: 28 kDa heat- and acid-stable phosphoprotein | B99: Q3UHX2 | C99: 2225.82417 | D99: 1113.41584 | E99: 2 | F99: 0.1 | G99: 38.6209 | H99: KSLDSDESEDEDDDYQQK | I99: 7.01 | J99: 1xPhospho [S] | K99: Q3UHX2 1xPhospho [S] | L99: 4157022.562 | M99: 3918021.923 | N99: 6416988.562 | O99: 6221385.98 | P99: 5635609.238 | Q99: 4285699.305 | R99: 4830677.682 | S99: 5380898.174 | T99: 1.11 | U99: 0.6048033548
A100: 2-oxoisovalerate dehydrogenase subunit alpha, mitochondrial | B100: P50136 | C100: 1612.63875 | D100: 538.21741 | E100: 3 | F100: -0.67 | G100: 26.3088 | H100: IGHHSTSDDSSAYR | I100: 3.44 | J100: 1xPhospho [T/S] | K100: P50136 1xPhospho [T/S] | L100: 901542.1119 | M100: 523768.0354 | N100: 498139.3125 | O100: 370214.5186 | P100: 763924.2739 | Q100: 86848.40291 | R100: 641149.8199 | S100: 406995.7318 | T100: 0.63 | U100: 0.3766957041
A101: 2-oxoisovalerate dehydrogenase subunit alpha, mitochondrial | B101: P50136 | C101: 1334.53004 | D101: 667.76992 | E101: 2 | F101: 1.89 | G101: 63.2319 | H101: SVDEVNYWDK | I101: 2.59 | J101: 1xPhospho [S1] | K101: P50136 1xPhospho [S344] | L101: 310076.1347 | M101: 260255.7297 | N101: 5000 | O101: 373902.5625 | P101: 619650.4037 | Q101: 180197.2023 | R101: 191777.2881 | S101: 391250.0562 | T101: 2.04 | U101: 0.2764484622
A102: 3-phosphoinositide-dependent protein kinase 1 | B102: Q9Z2A0 | C102: 2134.01039 | D102: 1067.50906 | E102: 2 | F102: 0.21 | G102: 79.7528 | H102: ANSFVGTAQYVSPELLTEK | I102: 3.9 | J102: 1xPhospho [S/T] | K102: Q9Z2A0 1xPhospho [S/T] | L102: 1664543.784 | M102: 1115013.275 | N102: 2200260.844 | O102: 2930932.15 | P102: 3231012.776 | Q102: 2764119.962 | R102: 1659939.301 | S102: 2975354.963 | T102: 1.79 | U102: 0.0183219928
A103: 40S ribosomal protein S27 | B103: Q6ZWU9 | C103: 1657.79453 | D103: 553.27016 | E103: 3 | F103: 0.85 | G103: 39.2031 | H103: DLLHPSPEEEKRK | I103: 2.81 | J103: 1xPhospho [S6] | K103: Q6ZWU9 1xPhospho [S11] | L103: 5000 | M103: 5000 | N103: 5000 | O103: 950252.4564 | P103: 5000 | Q103: 5000 | R103: 5000 | S103: 320084.1521 | T103: 64.02 | U103: 0.3739009663
A104: 40S ribosomal protein S3 | B104: P62908 | C104: 1550.73495 | D104: 775.87145 | E104: 2 | F104: 0.43 | G104: 63.1249 | H104: DEILPTTPISEQK | I104: 2.96 | J104: 1xPhospho [T7] | K104: P62908 1xPhospho [T221] | L104: 10680009.22 | M104: 10190967.14 | N104: 6747974.5 | O104: 10687796.19 | P104: 7374740.577 | Q104: 4428400.26 | R104: 9206316.954 | S104: 7496979.009 | T104: 0.81 | U104: 0.4788398256
A105: 40S ribosomal protein S6 | B105: P62754 | C105: 1855.81983 | D105: 619.27768 | E105: 3 | F105: -0.73 | G105: 30.5235 | H105: LSSLRASTSKSESSQK | I105: 3.66 | J105: 2xPhospho [S] | K105: P62754 2xPhospho [S236; S] | L105: 476000.9261 | M105: 261583.0405 | N105: 4203459.125 | O105: 2004456.855 | P105: 5000 | Q105: 740956.459 | R105: 1647014.364 | S105: 916804.4381 | T105: 0.56 | U105: 0.6310729548
A106: 40S ribosomal protein S6 | B106: P62754 | C106: 1365.62872 | D106: 683.31918 | E106: 2 | F106: 1.73 | G106: 36.8934 | H106: RLSSLRASTSK | I106: 4.04 | J106: 2xPhospho [S4; S] | K106: P62754 2xPhospho [S236; S] | L106: 873391.338 | M106: 1161909.791 | N106: 4021943.625 | O106: 6613725.387 | P106: 2666239.139 | Q106: 210053.4343 | R106: 2019081.585 | S106: 3163339.32 | T106: 1.57 | U106: 0.6178072064
A107: 40S ribosomal protein S6 | B107: P62754 | C107: 1445.59505 | D107: 723.30153 | E107: 2 | F107: 0.5 | G107: 43.4591 | H107: RLSSLRASTSK | I107: 4.17 | J107: 3xPhospho [S3; S4; S8] | K107: P62754 3xPhospho [S235; S236; S240] | L107: 1657191.476 | M107: 5000 | N107: 691455.375 | O107: 3214315.761 | P107: 668043.4779 | Q107: 888943.3812 | R107: 784548.9503 | S107: 1590434.207 | T107: 2.03 | U107: 0.4418147442
A108: 40S ribosomal protein S6 | B108: P62754 | C108: 1209.52761 | D108: 605.26705 | E108: 2 | F108: -0.65 | G108: 35.657 | H108: LSSLRASTSK | I108: 3.28 | J108: 2xPhospho [S3; S7] | K108: P62754 2xPhospho [S236; S240] | L108: 3499365.616 | M108: 7574002.058 | N108: 3321399.25 | O108: 16311077.56 | P108: 9402903.72 | Q108: 12510507.69 | R108: 4798255.641 | S108: 12741496.32 | T108: 2.66 | U108: 0.03093730697
A109: 5'-3' exoribonuclease 2 | B109: Q9DBR1 | C109: 2484.129 | D109: 1242.56323 | E109: 2 | F109: -3.96 | G109: 72.4127 | H109: NSSPSISPNTSFASDGSPSPLGGIK | I109: 3.58 | J109: 1xPhospho [S/T] | K109: Q9DBR1 1xPhospho [S] | L109: 1982689.969 | M109: 1539743.215 | N109: 1732653.438 | O109: 857175.396 | P109: 1442904.618 | Q109: 999986.4441 | R109: 1751695.541 | S109: 1100022.153 | T109: 0.63 | U109: 0.04037556462
A110: 5'-3' exoribonuclease 2 | B110: Q9DBR1 | C110: 1848.62085 | D110: 924.81242 | E110: 2 | F110: -1.78 | G110: 45.1443 | H110: AEDSDSEPEPEDNVR | I110: 3.8 | J110: 2xPhospho [S4; S6] | K110: Q9DBR1 2xPhospho [S499; S501] | L110: 2411936.171 | M110: 1782566.523 | N110: 1763757.75 | O110: 1084477.288 | P110: 1228652.904 | Q110: 1444027.005 | R110: 1986086.815 | S110: 1252385.732 | T110: 0.63 | U110: 0.03647767848
A111: 5'-3' exoribonuclease 2 | B111: Q9DBR1 | C111: 1976.71582 | D111: 988.86186 | E111: 2 | F111: 0.32 | G111: 38.2862 | H111: KAEDSDSEPEPEDNVR | I111: 6 | J111: 2xPhospho [S5; S7] | K111: Q9DBR1 2xPhospho [S499; S501] | L111: 10901560.43 | M111: 6670365.936 | N111: 13890949.5 | O111: 5764687.722 | P111: 7818137.98 | Q111: 7955879.182 | R111: 10487625.29 | S111: 7179568.295 | T111: 0.68 | U111: 0.2089822899
A112: 5'-3' exoribonuclease 2 | B112: Q9DBR1 | C112: 2132.81693 | D112: 711.60952 | E112: 3 | F112: -1.37 | G112: 33.3559 | H112: RKAEDSDSEPEPEDNVR | I112: 5.4 | J112: 2xPhospho [S6; S8] | K112: Q9DBR1 2xPhospho [S499; S501] | L112: 1500913.092 | M112: 472102.8378 | N112: 3175657.5 | O112: 1582333.045 | P112: 1506937.558 | Q112: 468317.4004 | R112: 1716224.477 | S112: 1185862.668 | T112: 0.69 | U112: 0.5733413908
A113: 5'-3' exoribonuclease 2 | B113: Q9DBR1 | C113: 2564.09533 | D113: 1282.54957 | E113: 2 | F113: -1.35 | G113: 79.1098 | H113: NSSPSISPNTSFASDGSPSPLGGIK | I113: 3.76 | J113: 2xPhospho [S] | K113: Q9DBR1 2xPhospho [S] | L113: 858508.7769 | M113: 652382.3828 | N113: 1029472.172 | O113: 444955.5981 | P113: 586653.6598 | Q113: 797646.071 | R113: 846787.7772 | S113: 609751.7763 | T113: 0.72 | U113: 0.1882889306
A114: 5'-AMP-activated protein kinase catalytic subunit alpha-1 | B114: Q5EG47 | C114: 963.39315 | D114: 482.19933 | E114: 2 | F114: -1.84 | G114: 37.238 | H114: SGSISNYR | I114: 2.03 | J114: 1xPhospho [S3] | K114: Q5EG47 1xPhospho [S496] | L114: 180725.9489 | M114: 1213563.903 | N114: 5000 | O114: 1301764.285 | P114: 1615618.701 | Q114: 1536638.684 | R114: 466429.9508 | S114: 1484673.89 | T114: 3.18 | U114: 0.0587813034
A115: 5'-AMP-activated protein kinase catalytic subunit alpha-2 | B115: Q8BRK8 | C115: 1148.54212 | D115: 574.7748 | E115: 2 | F115: 0.18 | G115: 61.609 | H115: MPPLIADSPK | I115: 3.03 | J115: 1xPhospho [S8] | K115: Q8BRK8 1xPhospho [S377] | L115: 307908.512 | M115: 366210.8094 | N115: 562853.8125 | O115: 393998.3874 | P115: 536131.5092 | Q115: 278320.9744 | R115: 412324.378 | S115: 402816.957 | T115: 0.98 | U115: 0.9336340183
A116: 5'-AMP-activated protein kinase subunit beta-2 | B116: Q6PAM0 | C116: 1974.8766 | D116: 987.94163 | E116: 2 | F116: -0.31 | G116: 80.1293 | H116: IMVGSTDDPSVFSLPDSK | I116: 2.23 | J116: 1xPhospho [S/T] | K116: Q6PAM0 1xPhospho [S/T] | L116: 444554.8112 | M116: 188316.4347 | N116: 330593.7812 | O116: 293789.6076 | P116: 344873.2577 | Q116: 5000 | R116: 321155.0091 | S116: 214554.2885 | T116: 0.67 | U116: 0.4556475073
A117: 5'-AMP-activated protein kinase subunit gamma-2 | B117: Q91WG5 | C117: 1666.70683 | D117: 833.85777 | E117: 2 | F117: 0.86 | G117: 39.1575 | H117: ESSPNSNPSTSPGGIR | I117: 2.13 | J117: 1xPhospho [S2] | K117: Q91WG5 1xPhospho [S134] | L117: 5000 | M117: 5000 | N117: 5000 | O117: 5000 | P117: 5000 | Q117: 5000 | R117: 5000 | S117: 5000 | T117: 1.00
A118: 5'-AMP-activated protein kinase subunit gamma-2 | B118: Q91WG5 | C118: 1458.62606 | D118: 729.81597 | E118: 2 | F118: -0.96 | G118: 40.216 | H118: IYASSSPPDTGQR | I118: 2.94 | J118: 1xPhospho [S] | K118: Q91WG5 1xPhospho [S] | L118: 4483943.132 | M118: 3283590.001 | N118: 4787048.5 | O118: 6888691.818 | P118: 4575125.894 | Q118: 3024999.608 | R118: 4184860.544 | S118: 4829605.773 | T118: 1.15 | U118: 0.6231488171
A119: 5-hydroxytryptamine receptor 2A | B119: P35363 | C119: 1431.61854 | D119: 716.31344 | E119: 2 | F119: 0.74 | G119: 57.1986 | H119: EATLCVSDLSTR | I119: 2.88 | J119: 1xPhospho [S10] | K119: P35363 1xPhospho [S273] | L119: 493945.654 | M119: 5000 | N119: 5000 | O119: 5000 | P119: 5000 | Q119: 5000 | R119: 167981.8847 | S119: 5000 | T119: 0.03 | U119: 0.3739009663
A120: 5-hydroxytryptamine receptor 2A | B120: P35363 | C120: 1409.63215 | D120: 470.54835 | E120: 3 | F120: -1.17 | G120: 29.5387 | H120: SIHREPGSYAGR | I120: 3.19 | J120: 1xPhospho [S1] | K120: P35363 1xPhospho [S298] | L120: 334521.352 | M120: 478666.438 | N120: 1389438.094 | O120: 526422.3383 | P120: 5000 | Q120: 5000 | R120: 734208.6279 | S120: 178807.4461 | T120: 0.24 | U120: 0.2109088719
A121: 60S acidic ribosomal protein P1 | B121: P47955 | C121: 2139.70254 | D121: 1070.35531 | E121: 2 | F121: 0.38 | G121: 91.1813 | H121: KEESEESEDDMoGFGLFD | I121: 5.27 | J121: 2xPhospho [S4; S7] | K121: P47955 2xPhospho [S101; S104] | L121: 8424774.577 | M121: 6051059.55 | N121: 7285763.5 | O121: 9493089.124 | P121: 7380172.994 | Q121: 6631897.576 | R121: 7253865.875 | S121: 7835053.232 | T121: 1.08 | U121: 0.6243397828
A122: 60S acidic ribosomal protein P1 | B122: P47955 | C122: 2123.70762 | D122: 1062.35693 | E122: 2 | F122: -0.49 | G122: 100.203 | H122: KEESEESEDDMGFGLFD | I122: 4.8 | J122: 2xPhospho [S4; S7] | K122: P47955 2xPhospho [S101; S104] | L122: 5627537.437 | M122: 3133580.91 | N122: 9020468 | O122: 6706050.344 | P122: 9324001.729 | Q122: 5129413.218 | R122: 5927195.449 | S122: 7053155.097 | T122: 1.19 | U122: 0.6201430167
A123: 60S acidic ribosomal protein P1 | B123: P47955 | C123: 2043.74129 | D123: 1022.37463 | E123: 2 | F123: 0.34 | G123: 89.0401 | H123: KEESEESEDDMGFGLFD | I123: 3.89 | J123: 1xPhospho [S4] | K123: P47955 1xPhospho [S101] | L123: 901759.4071 | M123: 509594.4136 | N123: 1829095.5 | O123: 1516935.687 | P123: 2289998.668 | Q123: 1327909.714 | R123: 1080149.774 | S123: 1711614.689 | T123: 1.58 | U123: 0.2666090494
A124: 60S acidic ribosomal protein P2 | B124: P99027 | C124: 2125.68689 | D124: 1063.34724 | E124: 2 | F124: 0.15 | G124: 91.2242 | H124: KEESEESDDDMoGFGLFD | I124: 5.79 | J124: 2xPhospho [S4; S7] | K124: P99027 2xPhospho [S102; S105] | L124: 8427481.317 | M124: 5861346.539 | N124: 5480553 | O124: 8710692.387 | P124: 7085487.036 | Q124: 6941854.468 | R124: 6589793.619 | S124: 7579344.63 | T124: 1.15 | U124: 0.413500047
A125: 60S acidic ribosomal protein P2 | B125: P99027 | C125: 2029.72564 | D125: 1015.36633 | E125: 2 | F125: -0.13 | G125: 88.6231 | H125: KEESEESDDDMGFGLFD | I125: 3.37 | J125: 1xPhospho [S4] | K125: P99027 1xPhospho [S102] | L125: 690526.3427 | M125: 500594.0122 | N125: 1095391.25 | O125: 1388851.081 | P125: 1656826.681 | Q125: 5000 | R125: 762170.535 | S125: 1016892.587 | T125: 1.33 | U125: 0.6623128732
A126: 60S acidic ribosomal protein P2 | B126: P99027 | C126: 2109.69197 | D126: 1055.35164 | E126: 2 | F126: 1.91 | G126: 100.4488 | H126: KEESEESDDDMGFGLFD | I126: 5.84 | J126: 2xPhospho [S4; S7] | K126: P99027 2xPhospho [S102; S105] | L126: 6261568.609 | M126: 3544293.445 | N126: 7317108 | O126: 7293116.367 | P126: 9560917.806 | Q126: 6147196.251 | R126: 5707656.685 | S126: 7667076.808 | T126: 1.34 | U126: 0.2632004707
A127: 60S ribosomal export protein NMD3 | B127: Q99L48 | C127: 1867.75932 | D127: 934.38413 | E127: 2 | F127: 0.89 | G127: 54.8028 | H127: DATIPVESDTDDEGAPR | I127: 1.97 | J127: 1xPhospho [S8] | K127: Q99L48 1xPhospho [S468] | L127: 5000 | M127: 5000 | N127: 5000 | O127: 5000 | P127: 5000 | Q127: 5000 | R127: 5000 | S127: 5000 | T127: 1.00
A128: 60S ribosomal protein L13 | B128: P47963 | C128: 1143.49293 | D128: 572.24999 | E128: 2 | F128: -0.2 | G128: 25.7852 | H128: KGDSSAEELK | I128: 1.29 | J128: 1xPhospho [S] | K128: P47963 1xPhospho [S] | L128: 5000 | M128: 5000 | N128: 5000 | O128: 5000 | P128: 5000 | Q128: 349800.87 | R128: 5000 | S128: 119933.6233 | T128: 23.99 | U128: 0.3739009663
A129: 60S ribosomal protein L14 | B129: Q9CR57 | C129: 978.53836 | D129: 489.77288 | E129: 2 | F129: 0.12 | G129: 34.9803 | H129: AAILKASPK | I129: 3.36 | J129: 1xPhospho [S7] | K129: Q9CR57 1xPhospho [S139] | L129: 4180483.243 | M129: 5987444.512 | N129: 4050723.25 | O129: 3207339.545 | P129: 4775543.549 | Q129: 5102011.539 | R129: 4739550.335 | S129: 4361631.544 | T129: 0.92 | U129: 0.6816630129
A130: 6-phosphofructo-2-kinase/fructose-2,6-bisphosphatase 2 | B130: P70265 | C130: 1503.68391 | D130: 752.34411 | E130: 2 | F130: -1.97 | G130: 61.2454 | H130: NSFTPLSSSNTIR | I130: 2.25 | J130: 1xPhospho [S2] | K130: P70265 1xPhospho [S469] | L130: 178581.0945 | M130: 221464.45 | N130: 299992.3125 | O130: 310874.5625 | P130: 474210.9686 | Q130: 5000 | R130: 233345.9523 | S130: 263361.8437 | T130: 1.13 | U130: 0.842964604
A131: 6-phosphofructo-2-kinase/fructose-2,6-bisphosphatase 2 | B131: P70265 | C131: 1129.45615 | D131: 565.23148 | E131: 2 | F131: -0.4 | G131: 36.7214 | H131: VSSPDYPER | I131: 1.5 | J131: 1xPhospho [S3] | K131: P70265 1xPhospho [S178] | L131: 385641.1646 | M131: 5000 | N131: 330151.1875 | O131: 356394.9884 | P131: 368837.7626 | Q131: 250453.8309 | R131: =AVERAGE(L131:N131) -> 240264.1174 | S131: =AVERAGE(O131:Q131) -> 325228.8606 | T131: =S131/R131 -> 1.35 | U131: =_xlfn.T.TEST(L131:N131,O131:Q131,2,2) -> 0.5324834872
A132: 72 kDa inositol polyphosphate 5-phosphatase | B132: Q9JII1 | C132: 1542.66966 | D132: 514.89507 | E132: 3 | F132: 0.65 | G132: 30.1105 | H132: SPLAGDDHSIHSAR | I132: 2.16 | J132: 1xPhospho [S1] | K132: Q9JII1 1xPhospho [S245] | L132: 178625.7043 | M132: 192201.16 | N132: 5000 | O132: 5000 | P132: 5000 | Q132: 5000 | R132: 125275.6214 | S132: 5000 | T132: 0.04 | U132: 0.1166792374
A133: 72 kDa inositol polyphosphate 5-phosphatase | B133: Q9JII1 | C133: 871.38086 | D133: 436.19439 | E133: 2 | F133: 0.75 | G133: 45.4695 | H133: TLSLDDK | I133: 1.71 | J133: 1xPhospho [S3] | K133: Q9JII1 1xPhospho [S89] | L133: 467782.712 | M133: 5000 | N133: 5000 | O133: 358175.6633 | P133: 977056.5275 | Q133: 5000 | R133: 159260.904 | S133: 446744.0636 | T133: 2.81 | U133: 0.424083285
A134: 7SK snRNA methylphosphate capping enzyme | B134: Q8K3A9 | C134: 3551.67487 | D134: 1184.57016 | E134: 3 | F134: 5.93 | G134: 75.0042 | H134: DEVVSPLPSALQGSSGSLSAPPAASVTSAPSTSSSSR | I134: 2.62 | J134: 1xPhospho [S] | K134: Q8K3A9 1xPhospho [S] | L134: 143958.9095 | M134: 314729.7179 | N134: 214588.9688 | O134: 234437.5904 | P134: 311559.8628 | Q134: 5000 | R134: 224425.8654 | S134: 183665.8177 | T134: 0.82 | U134: 0.7165042155
A135: 7SK snRNA methylphosphate capping enzyme | B135: Q8K3A9 | C135: 1683.77545 | D135: 842.39129 | E135: 2 | F135: -0.08 | G135: 44.2803 | H135: ALNAETPKSSPLPAK | I135: 5.34 | J135: 2xPhospho [S10; T/S] | K135: Q8K3A9 2xPhospho [S192; T/S] | L135: 4098864.718 | M135: 2059310.88 | N135: 3873811.25 | O135: 2350907.711 | P135: 2720960.613 | Q135: 3326747.19 | R135: 3343995.616 | S135: 2799538.505 | T135: 0.84 | U135: 0.4833311791
A136: Abelson tyrosine-protein kinase 2 | B136: Q4JIM5 | C136: 1338.60494 | D136: 669.80498 | E136: 2 | F136: -1.69 | G136: 40.556 | H136: STQASSGSPALPR | I136: 3.14 | J136: 1xPhospho [S8] | K136: Q4JIM5 1xPhospho [S621] | L136: 6149063.167 | M136: 2028522.14 | N136: 3971634.688 | O136: 1826462.442 | P136: 1973751.255 | Q136: 1352761.601 | R136: 4049739.998 | S136: 1717658.433 | T136: 0.42 | U136: 0.1249977467
A137: Abelson tyrosine-protein kinase 2 | B137: Q4JIM5 | C137: 1369.62467 | D137: 685.31671 | E137: 2 | F137: 1.07 | G137: 53.1189 | H137: DKSPSSLLEDAK | I137: 2.3 | J137: 1xPhospho [S3] | K137: Q4JIM5 1xPhospho [S632] | L137: 2111699.804 | M137: 650995.0742 | N137: 695867.4375 | O137: 857527.1273 | P137: 699601.0179 | Q137: 5000 | R137: 1152854.105 | S137: 520709.3817 | T137: 0.45 | U137: 0.3117078067
A138: Abelson tyrosine-protein kinase 2 | B138: Q4JIM5 | C138: 1762.69495 | D138: 881.85174 | E138: 2 | F138: 0.72 | G138: 46.8859 | H138: SNSTSSMSSGLPEQDR | I138: 4.39 | J138: 1xPhospho [S/T] | K138: Q4JIM5 1xPhospho [S/T] | L138: 1215920.768 | M138: 644131.7853 | N138: 789922.4375 | O138: 552415.8337 | P138: 939918.0279 | Q138: 503821.7499 | R138: 883324.9971 | S138: 665385.2039 | T138: 0.75 | U138: 0.3782286854
A139: Abelson tyrosine-protein kinase 2 | B139: Q4JIM5 | C139: 1146.65339 | D139: 573.83016 | E139: 2 | F139: -0.31 | G139: 69.4562 | H139: VPVLISPTLK | I139: 2.43 | J139: 1xPhospho [S6] | K139: Q4JIM5 1xPhospho [S936] | L139: 278774.8164 | M139: 5000 | N139: 138931.5625 | O139: 5000 | P139: 180307.8531 | Q139: 172830.2256 | R139: 140902.1263 | S139: 119379.3596 | T139: 0.85 | U139: 0.8362355716
A140: Abelson tyrosine-protein kinase 2 | B140: Q4JIM5 | C140: 1628.67995 | D140: 814.84406 | E140: 2 | F140: 0.54 | G140: 36.5329 | H140: TVSTSSQPEENVDR | I140: 2.02 | J140: 1xPhospho [T/S] | K140: Q4JIM5 1xPhospho [S/T] | L140: 5000 | M140: 5000 | N140: 5000 | O140: 5000 | P140: 5000 | Q140: 5000 | R140: 5000 | S140: 5000 | T140: 1.00
A141: Abl interactor 1 | B141: Q8CBW3 | C141: 1739.84762 | D141: 580.62071 | E141: 3 | F141: -0.02 | G141: 39.5536 | H141: TNPPTQKPPSPPVSGR | I141: 4.59 | J141: 1xPhospho [S10] | K141: Q8CBW3 1xPhospho [S183] | L141: 23025925.14 | M141: 26955457.56 | N141: 29215556 | O141: 23800815.16 | P141: 27912343.57 | Q141: 26159433.3 | R141: 26398979.57 | S141: 25957530.67 | T141: 0.98 | U141: 0.8484109822
A142: Abl interactor 2 | B142: P62484 | C142: 1310.55588 | D142: 655.78102 | E142: 2 | F142: -0.84 | G142: 29.6655 | H142: NMoAPSQQSPVR | I142: 2.28 | J142: 1xPhospho [S] | K142: P62484 1xPhospho [S] | L142: 2039771.308 | M142: 480307.5058 | N142: 512594.7969 | O142: 360354.2101 | P142: 723712.0957 | Q142: 982578.6878 | R142: 1010891.204 | S142: 688881.6645 | T142: 0.68 | U142: 0.5865628403
A143: Abl interactor 2 | B143: P62484 | C143: 1810.78463 | D143: 905.89578 | E143: 2 | F143: -0.19 | G143: 45.4455 | H143: TTPPTQKPPSPPMSGK | I143: 2.31 | J143: 2xPhospho [T2; T5] | K143: P62484 2xPhospho [T169; T172] | L143: 1270144.917 | M143: 746884.5501 | N143: 1702298.75 | O143: 676437.6456 | P143: 1044424.718 | Q143: 984400.0282 | R143: 1239776.072 | S143: 901754.1305 | T143: 0.73 | U143: 0.3211935088
A144: Abl interactor 2 | B144: P62484 | C144: 1730.8183 | D144: 577.6106 | E144: 3 | F144: -0.61 | G144: 43.346 | H144: TTPPTQKPPSPPMSGK | I144: 4.27 | J144: 1xPhospho [S] | K144: P62484 1xPhospho [S] | L144: 17842875.88 | M144: 18096024.23 | N144: 22373520 | O144: 10617658.41 | P144: 19001012.24 | Q144: 18676765.49 | R144: 19437473.37 | S144: 16098478.71 | T144: 0.83 | U144: 0.3435939547
A145: Abl interactor 2 | B145: P62484 | C145: 1475.70426 | D145: 738.35591 | E145: 2 | F145: 0.19 | G145: 57.3618 | H145: HTPPTIGGSLPYR | I145: 2.18 | J145: 1xPhospho [S9] | K145: P62484 1xPhospho [S301] | L145: 834155.0963 | M145: 5000 | N145: 471459.9688 | O145: 482176.0609 | P145: 143222.7984 | Q145: 503403.9753 | R145: 436871.6884 | S145: 376267.6115 | T145: 0.86 | U145: 0.8314701809
A146: Abl interactor 2 | B146: P62484 | C146: 1746.81321 | D146: 582.94247 | E146: 3 | F146: -0.2 | G146: 34.6171 | H146: TTPPTQKPPSPPMoSGK | I146: 2.81 | J146: 1xPhospho [S/T] | K146: P62484 1xPhospho [T/S] | L146: 4277714.954 | M146: 5235993.851 | N146: 4554256 | O146: 3799784.463 | P146: 3991225.21 | Q146: 4716744.042 | R146: 4689321.602 | S146: 4169251.239 | T146: 0.89 | U146: 0.2622289055
A147: Abl interactor 2 | B147: P62484 | C147: 1294.56096 | D147: 647.78395 | E147: 2 | F147: -0.27 | G147: 35.2963 | H147: NMAPSQQSPVR | I147: 3.01 | J147: 1xPhospho [S] | K147: P62484 1xPhospho [S] | L147: 2852714.44 | M147: 4469605.289 | N147: 7295890.5 | O147: 3352634.883 | P147: 5596358.523 | Q147: 6649497.116 | R147: 4872736.743 | S147: 5199496.841 | T147: 1.07 | U147: 0.8501740077
A148: Abscission/NoCut checkpoint regulator | B148: Q9DAZ9 | C148: 1099.46084 | D148: 550.23353 | E148: 2 | F148: -0.97 | G148: 52.4815 | H148: WSPPQNYK | I148: 1.85 | J148: 1xPhospho [S2] | K148: Q9DAZ9 1xPhospho [S69] | L148: 1368209.633 | M148: 1698196.895 | N148: 700692.3125 | O148: 1260203.873 | P148: 2802340.347 | Q148: 2065566.103 | R148: 1255699.613 | S148: 2042703.441 | T148: 1.63 | U148: 0.2140446758
A149: Abscission/NoCut checkpoint regulator | B149: Q9DAZ9 | C149: 2554.0981 | D149: 852.03817 | E149: 3 | F149: 0.73 | G149: 70.4599 | H149: VTLQDYHLPDSDEDEETAIQR | I149: 2.8 | J149: 1xPhospho [S11] | K149: Q9DAZ9 1xPhospho [S280] | L149: 384615.2626 | M149: 314184.9547 | N149: 614183 | O149: 1039253.704 | P149: 435099.1576 | Q149: 1193879.389 | R149: 437661.0724 | S149: 889410.7503 | T149: 2.03 | U149: 0.1433311369
A150: Acetyl-coenzyme A synthetase, cytoplasmic | B150: Q9QXG4 | C150: 1736.75609 | D150: 868.88237 | E150: 2 | F150: 0.79 | G150: 51.3411 | H150: AELGMNDSPSQSPPVK | I150: 3.83 | J150: 1xPhospho [S] | K150: Q9QXG4 1xPhospho [S] | L150: 2347003.011 | M150: 2470335.989 | N150: 1569341.688 | O150: 1402417.39 | P150: 3629624.91 | Q150: 2645774.539 | R150: 2128893.563 | S150: 2559272.28 | T150: 1.20 | U150: 0.5737071603
A151: Acetyl-coenzyme A synthetase, cytoplasmic | B151: Q9QXG4 | C151: 1752.75101 | D151: 876.87934 | E151: 2 | F151: 0.23 | G151: 44.5511 | H151: AELGMoNDSPSQSPPVK | I151: 1.74 | J151: 1xPhospho [S8] | K151: Q9QXG4 1xPhospho [S263] | L151: 5000 | M151: 5000 | N151: 777959.5625 | O151: 5000 | P151: 691404.7515 | Q151: 435980.8928 | R151: 262653.1875 | S151: 377461.8814 | T151: 1.44 | U151: 0.7427413401
A152: Acetyl-coenzyme A synthetase, cytoplasmic | B152: Q9QXG4 | C152: 1104.48739 | D152: 552.74728 | E152: 2 | F152: -0.09 | G152: 59.5622 | H152: GWSPPPEVR | I152: 1.54 | J152: 1xPhospho [S3] | K152: Q9QXG4 1xPhospho [S30] | L152: 5000 | M152: 5000 | N152: 469311.4688 | O152: 287883.563 | P152: 1326208.659 | Q152: 1213485.771 | R152: 159770.4896 | S152: 942525.9977 | T152: 5.90 | U152: 0.09762782253
A153: Aconitate hydratase, mitochondrial | B153: Q99KI0 | C153: 1068.47213 | D153: 534.73969 | E153: 2 | F153: -0.02 | G153: 34.8308 | H153: VDVSPTSQR | I153: 2.32 | J153: 1xPhospho [S/T] | K153: Q99KI0 1xPhospho [S/T] | L153: 286132.469 | M153: 1358318.471 | N153: 645383.0625 | O153: 908585.5558 | P153: 1249637.968 | Q153: 1710988.496 | R153: 763278.0007 | S153: 1289737.34 | T153: 1.69 | U153: 0.249977913
A154: Actin filament-associated protein 1 | B154: Q80YS6 | C154: 1329.58347 | D154: 665.29586 | E154: 2 | F154: 0.73 | G154: 46.506 | H154: SGTSSPQSPVFR | I154: 3 | J154: 1xPhospho [S] | K154: Q80YS6 1xPhospho [S] | L154: 988020.8742 | M154: 619686.4598 | N154: 675158.9375 | O154: 772599.0885 | P154: 1019756.552 | Q154: 481519.3724 | R154: 760955.4238 | S154: 757958.3377 | T154: 1.00 | U154: 0.9883682793
A155: Actin, cytoplasmic 1 | B155: P60710 | C155: 1212.49326 | D155: 606.74978 | E155: 2 | F155: -0.8 | G155: 51.301 | H155: GYSFTTTAER | I155: 2.61 | J155: 1xPhospho [T] | K155: P60710 1xPhospho [T] | L155: 635359.5183 | M155: 723229.027 | N155: 297661.6875 | O155: 802897.9334 | P155: 694668.8555 | Q155: 620060.6801 | R155: 552083.411 | S155: 705875.823 | T155: 1.28 | U155: 0.3341277979
A156: Actin, cytoplasmic 1 | B156: P60710 | C156: 1241.58472 | D156: 621.29627 | E156: 2 | F156: 0.43 | G156: 60.1211 | H156: EITALAPSTMK | I156: 2.62 | J156: 1xPhospho [S8] | K156: P60710 1xPhospho [S323] | L156: 5000 | M156: 5000 | N156: 562035.4375 | O156: 261777.1428 | P156: 292170.897 | Q156: 310456.9807 | R156: 190678.4792 | S156: 288135.0068 | T156: 1.51 | U156: 0.6283912109
A157: Actin, cytoplasmic 1 | B157: P60710 | C157: 1434.58968 | D157: 478.86811 | E157: 3 | F157: 0.06 | G157: 32.3419 | H157: DSYVGDEAQSKR | I157: 3.26 | J157: 1xPhospho [S10] | K157: P60710 1xPhospho [S60] | L157: 311927.967 | M157: 2053524.196 | N157: 1568862.625 | O157: 2195111.554 | P157: 2198062.007 | Q157: 1824239.643 | R157: 1311438.263 | S157: 2072471.068 | T157: 1.58 | U157: 0.226958337
A158: Actin, cytoplasmic 1 | B158: P60710 | C158: 1278.48857 | D158: 639.74847 | E158: 2 | F158: 0.86 | G158: 36.4854 | H158: DSYVGDEAQSK | I158: 1.96 | J158: 1xPhospho [Y/S] | K158: P60710 1xPhospho [S/Y] | L158: 5000 | M158: 5000 | N158: 5000 | O158: 5000 | P158: 501047.3419 | Q158: 653491.4602 | R158: 5000 | S158: 386512.934 | T158: 77.30 | U158: 0.1231247612
A159: Actin-binding LIM protein 1 | B159: Q8K4G5 | C159: 1642.65097 | D159: 821.82982 | E159: 2 | F159: 0.85 | G159: 50.7798 | H159: STSQGSINSPVYSR | I159: 2.38 | J159: 2xPhospho [S3; S6] | K159: Q8K4G5 2xPhospho [S496; S499] | L159: 2153321.25 | M159: 5000 | N159: 292010.7812 | O159: 394200.9063 | P159: 5000 | Q159: 519217.2364 | R159: 816777.3436 | S159: 306139.3809 | T159: 0.37 | U159: 0.5009090336
A160: Actin-binding LIM protein 1 | B160: Q8K4G5 | C160: 989.43395 | D160: 495.22024 | E160: 2 | F160: -0.75 | G160: 43.0316 | H160: TSSLPGYGK | I160: 2.37 | J160: 1xPhospho [S3] | K160: Q8K4G5 1xPhospho [S738] | L160: 6081958.4 | M160: 3062457.453 | N160: 2615660.25 | O160: 1053513.185 | P160: 2724184.64 | Q160: 2239944.263 | R160: 3920025.368 | S160: 2005880.696 | T160: 0.51 | U160: 0.1848717283
A161: Actin-binding LIM protein 1 | B161: Q8K4G5 | C161: 1628.67995 | D161: 814.84381 | E161: 2 | F161: 0.25 | G161: 49.4387 | H161: SSGREEDEEELLR | I161: 2.7 | J161: 1xPhospho [S] | K161: Q8K4G5 1xPhospho [S] | L161: 2422617.007 | M161: 1873732.4 | N161: 1555249.812 | O161: 1809350.449 | P161: 1242188.039 | Q161: 5000 | R161: 1950533.073 | S161: 1018846.163 | T161: 0.52 | U161: 0.1893734346
A162: Actin-binding LIM protein 1 | B162: Q8K4G5 | C162: 1282.55712 | D162: 641.78221 | E162: 2 | F162: 0.01 | G162: 70.3211 | H162: GVSMPNMLEPK | I162: 2.65 | J162: 1xPhospho [S3] | K162: Q8K4G5 1xPhospho [S789] | L162: 912491.6495 | M162: 433542.9527 | N162: 611469.75 | O162: 307571.6004 | P162: 392597.2598 | Q162: 390740.4968 | R162: 652501.4508 | S162: 363636.4523 | T162: 0.56 | U162: 0.1126878804
A163: Actin-binding LIM protein 1 | B163: Q8K4G5 | C163: 1562.68464 | D163: 781.84531 | E163: 2 | F163: -0.83 | G163: 47.1211 | H163: STSQGSINSPVYSR | I163: 3.42 | J163: 1xPhospho [T/S] | K163: Q8K4G5 1xPhospho [S/T] | L163: 13173605.06 | M163: 7827429.661 | N163: 8237430.406 | O163: 4106592.816 | P163: 7105247.962 | Q163: 8054534.137 | R163: 9746155.044 | S163: 6422124.972 | T163: 0.66 | U163: 0.1868728653
A164: Actin-binding LIM protein 1 | B164: Q8K4G5 | C164: 1961.76252 | D164: 981.38369 | E164: 2 | F164: -1.23 | G164: 61.0354 | H164: DCLCQLCAQPMSSSPK | I164: 3.99 | J164: 1xPhospho [S] | K164: Q8K4G5 1xPhospho [S] | L164: 4324014.189 | M164: 2783481.442 | N164: 3389341.641 | O164: 2067242.466 | P164: 2715896.27 | Q164: 3283370.347 | R164: 3498945.757 | S164: 2688836.361 | T164: 0.77 | U164: 0.2278825791
A165: Actin-binding LIM protein 1 | B165: Q8K4G5 | C165: 1977.75743 | D165: 989.38164 | E165: 2 | F165: -0.73 | G165: 54.6601 | H165: DCLCQLCAQPMoSSSPK | I165: 2.58 | J165: 1xPhospho [S] | K165: Q8K4G5 1xPhospho [S] | L165: 754303.3543 | M165: 521268.5358 | N165: 542638.5 | O165: 595904.1546 | P165: 344202.3471 | Q165: 648675.8141 | R165: 606070.13 | S165: 529594.1053 | T165: 0.87 | U165: 0.5580043773
A166: Actin-binding LIM protein 1 | B166: Q8K4G5 | C166: 1700.75272 | D166: 850.87972 | E166: 2 | F166: -0.32 | G166: 55.081 | H166: TLSPTPSAEGYQDVR | I166: 3.74 | J166: 1xPhospho [S/T] | K166: Q8K4G5 1xPhospho [S/T] | L166: 4541463.834 | M166: 3179340.593 | N166: 3327182.75 | O166: 3006215.481 | P166: 4866406.06 | Q166: 2523114.145 | R166: 3682662.392 | S166: 3465245.229 | T166: 0.94 | U166: 0.8073235141
A167: Actin-binding LIM protein 1 | B167: Q8K4G5 | C167: 1663.71119 | D167: 555.24249 | E167: 3 | F167: 1.04 | G167: 34.0924 | H167: YDSPLHSASHAPSSK | I167: 3.01 | J167: 1xPhospho [S3] | K167: Q8K4G5 1xPhospho [S723] | L167: 711831.2333 | M167: 5000 | N167: 870038.5625 | O167: 338998.2352 | P167: 1065776.936 | Q167: 438790.7632 | R167: 528956.5986 | S167: 614521.9781 | T167: 1.16 | U167: 0.8188616916
A168: Actin-binding LIM protein 1 | B168: Q8K4G5 | C168: 953.4088 | D168: 477.20869 | E168: 2 | F168: 1.36 | G168: 30.494 | H168: QSLGESPR | I168: 2.25 | J168: 1xPhospho [S6] | K168: Q8K4G5 1xPhospho [S470] | L168: 5000 | M168: 307995.2856 | N168: 352281.8125 | O168: 111590.6256 | P168: 175986.8797 | Q168: 615893.381 | R168: 221759.0327 | S168: 301156.9621 | T168: 1.36 | U168: 0.701015951
A169: Actin-binding LIM protein 3 | B169: Q69ZX8 | C169: 1223.465 | D169: 612.23607 | E169: 2 | F169: -0.11 | G169: 49.8352 | H169: YTSDEMLER | I169: 1.93 | J169: 1xPhospho [S3] | K169: Q69ZX8 1xPhospho [S337] | L169: 916301.2777 | M169: 493923.0197 | N169: 677411.625 | O169: 5000 | P169: 565692.8628 | Q169: 356205.9571 | R169: 695878.6408 | S169: 308966.2733 | T169: 0.44 | U169: 0.1310629541
A170: Actin-binding LIM protein 3 | B170: Q69ZX8 | C170: 1090.43872 | D170: 545.7229 | E170: 2 | F170: -0.18 | G170: 48.1843 | H170: QGMSPTFSR | I170: 2.58 | J170: 1xPhospho [T/S] | K170: Q69ZX8 1xPhospho [T/S] | L170: 995031.5341 | M170: 657781.1903 | N170: 817701.375 | O170: 336047.4627 | P170: 657915.0015 | Q170: 464869.1785 | R170: 823504.6998 | S170: 486277.2142 | T170: 0.59 | U170: 0.06695669056
A171: Actin-binding LIM protein 3 | B171: Q69ZX8 | C171: 2089.89512 | D171: 1045.4504 | E171: 2 | F171: -0.76 | G171: 50.9669 | H171: RTSETSISPPGSSIGSPNR | I171: 2.9 | J171: 2xPhospho [S3; S6] | K171: Q69ZX8 2xPhospho [S277; S280] | L171: 716303.3974 | M171: 305513.2964 | N171: 511757.4062 | O171: 273929.2146 | P171: 373775.9129 | Q171: 447806.7158 | R171: 511191.3667 | S171: 365170.6144 | T171: 0.71 | U171: 0.3203998243
A172: Actin-binding LIM protein 3 | B172: Q69ZX8 | C172: 1853.82768 | D172: 927.41827 | E172: 2 | F172: 0.85 | G172: 52.7755 | H172: TSETSISPPGSSIGSPNR | I172: 3.64 | J172: 1xPhospho [T/S] | K172: Q69ZX8 1xPhospho [S/T] | L172: 1875268.809 | M172: 1283165.511 | N172: 1063013.25 | O172: 1040464.901 | P172: 1009648.508 | Q172: 1011285.559 | R172: 1407149.19 | S172: 1020466.323 | T172: 0.73 | U172: 0.1863828911
A173: Actin-related protein 2/3 complex subunit 5-like protein | B173: Q9D898 | C173: 1619.80537 | D173: 810.40567 | E173: 2 | F173: -0.81 | G173: 47.7792 | H173: AFHAALRNSPINTK | I173: 4.24 | J173: 1xPhospho [S9] | K173: Q9D898 1xPhospho [S64] | L173: 1583378.401 | M173: 1638394.626 | N173: 2728508 | O173: 1190637.857 | P173: 875445.5267 | Q173: 1175398.424 | R173: 1983427.009 | S173: 1080493.936 | T173: 0.54 | U173: 0.07983851105
A174: Actin-related protein 2/3 complex subunit 5-like protein | B174: Q9D898 | C174: 1541.68431 | D174: 771.3459 | E174: 2 | F174: 0.14 | G174: 76.4205 | H174: SSEIEQAVQSLDR | I174: 2.35 | J174: 1xPhospho [S] | K174: Q9D898 1xPhospho [S] | L174: 140348.2027 | M174: 5000 | N174: 5000 | O174: 190260.4094 | P174: 202734.1957 | Q174: 150944.9874 | R174: 50116.06758 | S174: 181313.1975 | T174: 3.62 | U174: 0.05146773065
A175: Actin-related protein 3B | B175: Q641P0 | C175: 1083.43291 | D175: 542.21991 | E175: 2 | F175: -0.34 | G175: 56.5718 | H175: HNPVFGVMoS | I175: 2.58 | J175: 1xPhospho [S9] | K175: Q641P0 1xPhospho [S418] | L175: 5999964.831 | M175: 1417090.62 | N175: 4925195 | O175: 29705.25013 | P175: 30839.7501 | Q175: 295929.2321 | R175: 4114083.483 | S175: 118824.7441 | T175: 0.03 | U175: 0.04494883581
A176: Actin-related protein 3B | B176: Q641P0 | C176: 1067.43799 | D176: 534.22251 | E176: 2 | F176: -0.23 | G176: 70.2934 | H176: HNPVFGVMS | I176: 2.89 | J176: 1xPhospho [S9] | K176: Q641P0 1xPhospho [S418] | L176: 10579312.15 | M176: 7579732.468 | N176: 20026538 | O176: 8278614.279 | P176: 6689895.917 | Q176: 6578888.573 | R176: 12728527.54 | S176: 7182466.256 | T176: 0.56 | U176: 0.2172406311
A177: Activated RNA polymerase II transcriptional coactivator p15 | B177: P11031 | C177: 1779.73675 | D177: 890.37071 | E177: 2 | F177: -1.46 | G177: 56.3276 | H177: QSSSSRDDNMFQIGK | I177: 2.39 | J177: 1xPhospho [S] | K177: P11031 1xPhospho [S] | L177: 1187451.092 | M177: 5000 | N177: 1479741.875 | O177: 594751.6592 | P177: 5000 | Q177: 5000 | R177: 890730.9889 | S177: 201583.8864 | T177: 0.23 | U177: 0.2337698672
A178: Activating transcription factor 7-interacting protein 1 | B178: Q7TT18 | C178: 1577.65129 | D178: 526.55418 | E178: 3 | F178: -2.1 | G178: 29.5414 | H178: SKSEDMDSVESKR | I178: 3.31 | J178: 1xPhospho [S3] | K178: Q7TT18 1xPhospho [S593] | L178: 5000 | M178: 5000 | N178: 240251.8125 | O178: 5000 | P178: 5000 | Q178: 5000 | R178: 83417.27083 | S178: 5000 | T178: 0.06 | U178: 0.3739009663
A179: Activin receptor type-1B | B179: Q61271 | C179: 1794.64542 | D179: 897.82575 | E179: 2 | F179: -0.66 | G179: 65.4369 | H179: LDMEDPSCEMCLSK | I179: 1.84 | J179: 1xPhospho [S7] | K179: Q61271 1xPhospho [S168] | L179: 5000 | M179: 5000 | N179: 5000 | O179: 5000 | P179: 5000 | Q179: 5000 | R179: 5000 | S179: 5000 | T179: 1.00
A180: Acylamino-acid-releasing enzyme | B180: Q8R146 | C180: 1698.74044 | D180: 566.91838 | E180: 3 | F180: 0.08 | G180: 50.5106 | H180: ALDVSASDEEMARPK | I180: 4 | J180: 1xPhospho [S7] | K180: Q8R146 1xPhospho [S187] | L180: 1337373.257 | M180: 1198296.872 | N180: 2226192.438 | O180: 1494296.273 | P180: 964473.3681 | Q180: 617372.4206 | R180: 1587287.522 | S180: 1025380.687 | T180: 0.65 | U180: 0.2430736559
A181: Acyl-coenzyme A thioesterase 1 | B181: O55137 | C181: 1434.64469 | D181: 717.82563 | E181: 2 | F181: -0.49 | G181: 48.4385 | H181: QLGSECLHVSPK | I181: 3.67 | J181: 1xPhospho [S10] | K181: O55137 1xPhospho [S416] | L181: 642483.6182 | M181: 407032.3919 | N181: 5000 | O181: 1588994.922 | P181: 5000 | Q181: 5000 | R181: 351505.3367 | S181: 532998.3072 | T181: 1.52 | U181: 0.762039514
A182: Adapter molecule crk | B182: Q64010 | C182: 1979.82299 | D182: 660.61238 | E182: 3 | F182: -0.2 | G182: 70.4464 | H182: DSSTSPGDYVLSVSENSR | I182: 3.88 | J182: 1xPhospho [S/T] | K182: Q64010 1xPhospho [S/T] | L182: 6745315.207 | M182: 5610387.758 | N182: 4696677.438 | O182: 3787328.946 | P182: 7028446.893 | Q182: 6136161.704 | R182: 5684126.801 | S182: 5650645.848 | T182: 0.99 | U182: 0.9778560712
A183: Adapter molecule crk | B183: Q64010 | C183: 909.45536 | D183: 455.23122 | E183: 2 | F183: -0.22 | G183: 45.2463 | H183: QGSGVILR | I183: 2.03 | J183: 1xPhospho [S3] | K183: Q64010 1xPhospho [S125] | L183: 5000 | M183: 5000 | N183: 5000 | O183: 5000 | P183: 5000 | Q183: 5000 | R183: 5000 | S183: 5000 | T183: 1.00
A184: Adaptin ear-binding coat-associated protein 1 | B184: Q9CR95 | C184: 2415.26834 | D184: 805.76067 | E184: 3 | F184: -0.37 | G184: 70.0332 | H184: VTIPPPSSSVAISNHVTPPPIPK | I184: 1.84 | J184: 1xPhospho [S/T] | K184: Q9CR95 1xPhospho [S] | L184: 214446.9323 | M184: 194484.0923 | N184: 218489.6562 | O184: 164508.8034 | P184: 212599.1375 | Q184: 219757.8143 | R184: 209140.2269 | S184: 198955.2518 | T184: 0.95 | U184: 0.617967989
A185: Adenomatous polyposis coli protein | B185: Q61315 | C185: 1707.78369 | D185: 854.39464 | E185: 2 | F185: -0.99 | G185: 55.168 | H185: SPTGNTPPVIDSVSEK | I185: 3.09 | J185: 1xPhospho [T/S] | K185: Q61315 1xPhospho [S/T] | L185: 2752851.245 | M185: 1280382.633 | N185: 414945.5312 | O185: 697854.2804 | P185: 5000 | Q185: 5000 | R185: 1482726.47 | S185: 235951.4268 | T185: 0.16 | U185: 0.1585834453
A186: Adenomatous polyposis coli protein | B186: Q61315 | C186: 1723.72696 | D186: 862.36956 | E186: 2 | F186: 2.84 | G186: 50.0223 | H186: TGSSSSILSASSESSEK | I186: 2.39 | J186: 1xPhospho [T1] | K186: Q61315 1xPhospho [T2567] | L186: 5000 | M186: 3260767.491 | N186: 5000 | O186: 945866.6993 | P186: 5000 | Q186: 711998.1489 | R186: 1090255.83 | S186: 554288.2827 | T186: 0.51 | U186: 0.6576647863
A187: Adenomatous polyposis coli protein | B187: Q61315 | C187: 2174.90984 | D187: 725.64198 | E187: 3 | F187: 0.71 | G187: 33.922 | H187: YSDEQLNSGRQSPSQNER | I187: 3.49 | J187: 1xPhospho [S] | K187: Q61315 1xPhospho [S] | L187: 1123052.539 | M187: 5000 | N187: 5000 | O187: 5000 | P187: 5000 | Q187: 612247.1989 | R187: 377684.1798 | S187: 207415.733 | T187: 0.55 | U187: 0.7085936966
A188: Adenomatous polyposis coli protein | B188: Q61315 | C188: 1781.84293 | D188: 891.42547 | E188: 2 | F188: 0.41 | G188: 55.4899 | H188: QSVGSGSPVQTVGLETR | I188: 4.12 | J188: 1xPhospho [S] | K188: Q61315 1xPhospho [S] | L188: 2289093.116 | M188: 1526210.734 | N188: 2219268.75 | O188: 1766520.804 | P188: 1848977.003 | Q188: 5000 | R188: 2011524.2 | S188: 1206832.602 | T188: 0.60 | U188: 0.2826618238
A189: Adenomatous polyposis coli protein | B189: Q61315 | C189: 2007.93829 | D189: 669.98477 | E189: 3 | F189: 0.73 | G189: 49.5855 | H189: SGRSPTGNTPPVIDSVSEK | I189: 2.66 | J189: 1xPhospho [T/S] | K189: Q61315 1xPhospho [S/T] | L189: 418380.5315 | M189: 5000 | N189: 437445.8125 | O189: 280936.5104 | P189: 314438.2181 | Q189: 5000 | R189: 286942.1147 | S189: 200124.9095 | T189: 0.70 | U189: 0.6398935848
A190: Adenomatous polyposis coli protein | B190: Q61315 | C190: 1510.60738 | D190: 755.80739 | E190: 2 | F190: 0.08 | G190: 77.8297 | H190: QASSDSDSILSLK | I190: 3.44 | J190: 2xPhospho [S] | K190: Q61315 2xPhospho [S] | L190: 453447.3934 | M190: 458819.915 | N190: 1559290.75 | O190: 558738.4565 | P190: 623560.3373 | Q190: 728273.8676 | R190: 823852.6861 | S190: 636857.5538 | T190: 0.77 | U190: 0.6407569
A191: Adenomatous polyposis coli protein | B191: Q61315 | C191: 950.43429 | D191: 475.72076 | E191: 2 | F191: -0.05 | G191: 37.605 | H191: EAPSPTLR | I191: 1.79 | J191: 1xPhospho [S4] | K191: Q61315 1xPhospho [S2449] | L191: 504124.3209 | M191: 1056486.977 | N191: 271858.0312 | O191: 432134.3515 | P191: 1017362.431 | Q191: 5000 | R191: 610823.1097 | S191: 484832.2609 | T191: 0.79 | U191: 0.7534600004
A192: Adenomatous polyposis coli protein | B192: Q61315 | C192: 1555.78798 | D192: 519.26912 | E192: 3 | F192: 3.11 | G192: 33.2682 | H192: SKTPPPPPQTVQAK | I192: 4.81 | J192: 1xPhospho [T/S] | K192: Q61315 1xPhospho [T/S] | L192: 3703478.164 | M192: 5093265.932 | N192: 2069565.125 | O192: 1062364.44 | P192: 3498054.358 | Q192: 4243194.52 | R192: 3622103.074 | S192: 2934537.773 | T192: 0.81 | U192: 0.6244765156
A193: Adenomatous polyposis coli protein | B193: Q61315 | C193: 2107.83394 | D193: 1054.42431 | E193: 2 | F193: 3.51 | G193: 79.416 | H193: NDSLSSLDFDDDDVDLSR | I193: 3.54 | J193: 1xPhospho [S3] | K193: Q61315 1xPhospho [S1859] | L193: 558951.6906 | M193: 250616.8881 | N193: 214463.6719 | O193: 315221.0949 | P193: 359786.7457 | Q193: 184226.3021 | R193: 341344.0835 | S193: 286411.3809 | T193: 0.84 | U193: 0.6742179354
A194: Adenomatous polyposis coli protein | B194: Q61315 | C194: 1430.64105 | D194: 715.82421 | E194: 2 | F194: 0.06 | G194: 65.8538 | H194: QASSDSDSILSLK | I194: 3.19 | J194: 1xPhospho [S] | K194: Q61315 1xPhospho [S] | L194: 806049.8668 | M194: 690207.5736 | N194: 1007305.625 | O194: 767019.049 | P194: 689867.4821 | Q194: 740011.5814 | R194: 834521.0218 | S194: 732299.3708 | T194: 0.88 | U194: 0.3440920006
A195: Adenomatous polyposis coli protein | B195: Q61315 | C195: 1139.54563 | D195: 570.276 | E195: 2 | F195: -0.8 | G195: 38.0428 | H195: QLSQQNLTK | I195: 2.35 | J195: 1xPhospho [S3] | K195: Q61315 1xPhospho [S2374] | L195: 401477.4612 | M195: 374219.0153 | N195: 480381.8438 | O195: 271655.1369 | P195: 526188.4485 | Q195: 360662.7563 | R195: =AVERAGE(L195:N195) -> 418692.7734 | S195: =AVERAGE(O195:Q195) -> 386168.7806 | T195: =S195/R195 -> 0.92 | U195: =_xlfn.T.TEST(L195:N195,O195:Q195,2,2) -> 0.7088448842
A196: Adenomatous polyposis coli protein | B196: Q61315 | C196: 1590.57371 | D196: 795.79045 | E196: 2 | F196: -0.05 | G196: 93.2614 | H196: QASSDSDSILSLK | I196: 1.89 | J196: 3xPhospho [S4; S6; S] | K196: Q61315 3xPhospho [S2130; S2132; S] | L196: 5000 | M196: 5000 | N196: 124688.875 | O196: 59018.64326 | P196: 62752.48845 | Q196: 5000 | R196: 44896.29167 | S196: 42257.0439 | T196: 0.94 | U196: 0.9550916279
A197: Adenomatous polyposis coli protein | B197: Q61315 | C197: 1323.55765 | D197: 662.28163 | E197: 2 | F197: -1.25 | G197: 29.9984 | H197: SPSEGPGATTSPR | I197: 1.81 | J197: 1xPhospho [T/S] | K197: Q61315 1xPhospho [T/S] | L197: 5000 | M197: 5000 | N197: 5000 | O197: 5000 | P197: 5000 | Q197: 5000 | R197: 5000 | S197: 5000 | T197: 1.00
A198: Adenomatous polyposis coli protein | B198: Q61315 | C198: 2187.80028 | D198: 1094.40422 | E198: 2 | F198: 0.41 | G198: 87.9686 | H198: NDSLSSLDFDDDDVDLSR | I198: 1.55 | J198: 2xPhospho [S3; S5] | K198: Q61315 2xPhospho [S1859; S1861] | L198: 5000 | M198: 5000 | N198: 5000 | O198: 5000 | P198: 5000 | Q198: 5000 | R198: 5000 | S198: 5000 | T198: 1.00
A199: Adenomatous polyposis coli protein | B199: Q61315 | C199: 1807.8222 | D199: 603.27876 | E199: 3 | F199: -0.25 | G199: 30.109 | H199: TPASKSPSEGPGATTSPR | I199: 3.83 | J199: 1xPhospho [S] | K199: Q61315 1xPhospho [S] | L199: 76664.16425 | M199: 830419.7883 | N199: 247781.0781 | O199: 477379.2979 | P199: 888265.9447 | Q199: 1042175.809 | R199: 384955.0102 | S199: 802607.0172 | T199: 2.08 | U199: 0.2149139017
A200: Adenomatous polyposis coli protein 2 | B200: Q9Z1K7 | C200: 1507.64244 | D200: 754.32434 | E200: 2 | F200: -0.68 | G200: 35.4733 | H200: VSSPEDSPAGTPQR | I200: 1.85 | J200: 1xPhospho [S] | K200: Q9Z1K7 1xPhospho [S] | L200: 4079512.835 | M200: 3719982.907 | N200: 5000 | O200: 5000 | P200: 866845.0226 | Q200: 761333.956 | R200: 2601498.581 | S200: 544392.9929 | T200: 0.21 | U200: 0.1969407071
... 4300 more rows

Sheet P14-40-pY
A1: CLEVELAND CLINIC PTMSCAN® RESULTS
A3: Table: Mouse Cells; Trypsin Digest; Phosphotyrosine pY-1000 #8954
A5: Samples: WT Hemibrain = CS 26039, 26040; Mutant Hemibrain = CS 26041, 26042; WT Cortex = CS 26043, 26044; Mutant Cortex = CS 26045, 26046 | U5: Normalization Factor | V5: 1.12 | W5: 0.92 | X5: 1.00 | Y5: 0.85 | Z5: 1.35 | AA5: 1.14 | AB5: 1.01 | AC5: 0.88 | AG5: MEDIAN = | AH5: 9% | AI5: 9% | AJ5: 9% | AK5: 7% | AO5: MEDIAN = | AP5: -0.07 | AQ5: -0.18 | AR5: 0.44 | AS5: 0.32
A7: Legend: * - phosphorylation, # - oxidized methionine, § - published site, Blue Text - CST antibody available, Bold Intensity = manually reviewed values, Red intensity = multiple identifications for one m/z.
C10: Normalized Fold Change | V10: Normalized Intensity | AD10: Average Intensity | AH10: % CV | AL10: Raw Ratio | AP10: Log2 Ratio | AT10: Normalized Log2 Ratio | AX10: Raw Fold Change | BB10: Normalized Fold Change
A11: Index | B11: Index in Detail | C11: Hemi Mutant : WT | D11: Cortex Mutant : WT | E11: WT Cortex : Hemi | F11: Mutant Cortex : Hemi | G11: Max Intensity | H11: Area (A) or Height (H) | I11: Max % CV | J11: Gene Name | K11: Protein Name | L11: Site | M11: Description | N11: Accession | O11: URL | P11: Peptide | Q11: Charge | R11: Calc. m/z | S11: Count In Details | T11: Area (A) or Height (H) | U11: Average RT | V11: WT Hemi (CS26039) | W11: WT Hemi (CS26040) | X11: Mutant Hemi (CS26041) | Y11: Mutant Hemi (CS26042) | Z11: WT Cortex (CS26043) | AA11: WT Cortex (CS26044) | AB11: Mutant Cortex (CS26045) | AC11: Mutant Cortex (CS26046) | AD11: WT Hemi | AE11: Mutant Hemi | AF11: WT Cortex | AG11: Mutant Cortex | AH11: WT Hemi | AI11: Mutant Hemi | AJ11: WT Cortex | AK11: Mutant Cortex | AL11: Hemi Mutant : WT | AM11: Cortex Mutant : WT | AN11: WT Cortex : Hemi | AO11: Mutant Cortex : Hemi | AP11: Hemi Mutant : WT | AQ11: Cortex Mutant : WT | AR11: WT Cortex : Hemi | AS11: Mutant Cortex : Hemi | AT11: Hemi Mutant : WT | AU11: Cortex Mutant : WT | AV11: WT Cortex : Hemi | AW11: Mutant Cortex : Hemi | AX11: Hemi Mutant : WT | AY11: Cortex Mutant : WT | AZ11: WT Cortex : Hemi | BA11: Mutant Cortex : Hemi | BB11: Hemi Mutant : WT | BC11: Cortex Mutant : WT | BD11: WT Cortex : Hemi | BE11: Mutant Cortex : Hemi | BF11: Species | BG11: Motif | BH11: Lax
A12: 1 | B12: Actin-binding
A13: 2 | B13: 1 | C13: 1.4 | D13: -1.2 | E13: 2.2 | F13: 1.4 | G13: 15,646,549 | H13: A | I13: 27% | J13: Cap2 | K13: CAP2 | L13: 286 | M13: Adenylyl cyclase-associated protein 2 | N13: Q9CYT6 | O13: http://www.phosphosite.org/proteinAction.do?id=14239&showAllSites=true | P13: HVTDDKKT*YKNPSLR | Q13: 4 | R13: 471.2359 | S13: 3 | T13: A | U13: 20.72 | V13: 4,724,839 | W13: 5,726,875 | X13: 6,623,675 | Y13: 7,033,694 | Z13: 16,598,651 | AA13: 14,694,447 | AB13: 12,897,223 | AC13: 10,632,447 | AD13: 5,225,857 | AE13: 6,828,684 | AF13: 15,646,549 | AG13: 11,764,835 | AH13: 14% | AI13: 4% | AJ13: 9% | AK13: 14% | AL13: 1.31 | AM13: 0.75 | AN13: 2.99 | AO13: 1.72 | AP13: 0.39 | AQ13: -0.41 | AR13: 1.58 | AS13: 0.78 | AT13: 0.46 | AU13: -0.23 | AV13: 1.14 | AW13: 0.46 | AX13: 1.31 | AY13: -1.33 | AZ13: 2.99 | BA13: 1.72 | BB13: 1.37 | BC13: -1.17 | BD13: 2.21 | BE13: 1.38 | BF13: mouse | BH13: 1
A14: 3 | B14: 3 | C14: 1.4 | D14: -1.2 | E14: 2.2 | F14: 1.4 | G14: 15,646,549 | H14: A | I14: 14% | J14: Cap2 | K14: CAP2 | L14: 287 | M14: Adenylyl cyclase-associated protein 2 | N14: Q9CYT6 | O14: http://www.phosphosite.org/proteinAction.do?id=14239&showAllSites=true | P14: HVTDDKKTY*KNPSLR | Q14: 4 | R14: 471.2359 | S14: 1 | T14: A | U14: 20.31 | V14: 4,724,839 | W14: 5,726,875 | X14: 6,623,675 | Y14: 7,033,694 | Z14: 16,598,651 | AA14: 14,694,447 | AB14: 12,897,223 | AC14: 10,632,447 | AD14: 5,225,857 | AE14: 6,828,684 | AF14: 15,646,549 | AG14: 11,764,835 | AH14: 14% | AI14: 4% | AJ14: 9% | AK14: 14% | AL14: 1.31 | AM14: 0.75 | AN14: 2.99 | AO14: 1.72 | AP14: 0.39 | AQ14: -0.41 | AR14: 1.58 | AS14: 0.78 | AT14: 0.46 | AU14: -0.23 | AV14: 1.14 | AW14: 0.46 | AX14: 1.31 | AY14: -1.33 | AZ14: 2.99 | BA14: 1.72 | BB14: 1.37 | BC14: -1.17 | BD14: 2.21 | BE14: 1.38 | BF14: mouse | BG14: 1
A15: 4 | B15: 5 | C15: 1.3 | D15: 1.7 | E15: -2.3 | F15: -1.7 | G15: 473,223,234 | H15: A | I15: 12% | J15: Wdr1 | K15: WDR1 | L15: §238 | M15: WD repeat-containing protein 1 | N15: O88342 | O15: http://www.phosphosite.org/proteinAction.do?id=4288&showAllSites=true | P15: AHDGGIY*AISWSPDSTHLLSASGDKTSK | Q15: 4 | R15: 746.0974 | S15: 14 | T15: A | U15: 70.62 | V15: 381,579,412 | W15: 412,184,200 | X15: 497,616,928 | Y15: 448,829,539 | Z15: 213,852,096 | AA15: 253,924,220 | AB15: 351,618,911 | AC15: 366,661,279 | AD15: 396,881,806 | AE15: 473,223,234 | AF15: 233,888,158 | AG15: 359,140,095 | AH15: 5% | AI15: 7% | AJ15: 12% | AK15: 3% | AL15: 1.19 | AM15: 1.54 | AN15: 0.59 | AO15: 0.76 | AP15: 0.25 | AQ15: 0.62 | AR15: -0.76 | AS15: -0.40 | AT15: 0.32 | AU15: 0.80 | AV15: -1.20 | AW15: -0.72 | AX15: 1.19 | AY15: 1.54 | AZ15: -1.70 | BA15: -1.32 | BB15: 1.25 | BC15: 1.74 | BD15: -2.30 | BE15: -1.65 | BF15: mouse | BG15: 1
A16: 5 | B16: 6 | C16: 1.0 | D16: 4.8 | E16: -1.5 | F16: 3.2 | G16: 25,271,127 | H16: A | I16: 29% | J16: Wdr1 | K16: WDR1 | L16: 300 | M16: WD repeat-containing protein 1 | N16: O88342 | O16: http://www.phosphosite.org/proteinAction.do?id=4288&showAllSites=true | P16: DHLLSISLSGY*INYLDKNNPSKPLR | Q16: 4 | R16: 735.1272 | S16: 2 | T16: A | U16: 81.43 | V16: 5,154,038 | W16: 7,809,783 | X16: 5,708,413 | Y16: 6,748,575 | Z16: 7,027,861 | AA16: 4,806,482 | AB16: 23,703,930 | AC16: 26,838,324 | AD16: 6,481,911 | AE16: 6,228,494 | AF16: 5,917,171 | AG16: 25,271,127 | AH16: 29% | AI16: 12% | AJ16: 27% | AK16: 9% | AL16: 0.96 | AM16: 4.27 | AN16: 0.91 | AO16: 4.06 | AP16: -0.06 | AQ16: 2.09 | AR16: -0.13 | AS16: 2.02 | AT16: 0.01 | AU16: 2.28 | AV16: -0.57 | AW16: 1.70 | AX16: -1.04 | AY16: 4.27 | AZ16: -1.10 | BA16: 4.06 | BB16: 1.01 | BC16: 4.84 | BD16: -1.48 | BE16: 3.24 | BF16: mouse | BG16: 1
A17: 6 | B17: 7 | C17: 1.1 | D17: -1.3 | E17: -3.0 | F17: -4.2 | G17: 39,017,960 | H17: A | I17: 13% | J17: Wdr1;Irx5 | K17: WDR1;IRX5 | L17: 3;475 | M17: WD repeat-containing protein 1 | N17: O88342;Q9JKQ4 | O17: http://www.phosphosite.org/proteinAction.do?id=4288&showAllSites=true | P17: PY*ELKK | Q17: 2 | R17: 429.2121 | S17: 2 | T17: A | U17: 21.54 | V17: 39,636,218 | W17: 35,472,576 | X17: 41,443,220 | Y17: 36,592,701 | Z17: 15,309,756 | AA17: 18,340,945 | AB17: 11,415,127 | AC17: 11,638,664 | AD17: 37,554,397 | AE17: 39,017,960 | AF17: 16,825,350 | AG17: 11,526,895 | AH17: 8% | AI17: 9% | AJ17: 13% | AK17: 1% | AL17: 1.04 | AM17: 0.69 | AN17: 0.45 | AO17: 0.30 | AP17: 0.06 | AQ17: -0.55 | AR17: -1.16 | AS17: -1.76 | AT17: 0.13 | AU17: -0.36 | AV17: -1.60 | AW17: -2.08 | AX17: 1.04 | AY17: -1.46 | AZ17: -2.23 | BA17: -3.38 | BB17: 1.09 | BC17: -1.29 | BD17: -3.02 | BE17: -4.24 | BF17: mouse | BG17: 1
A18: 7 | B18: Adaptor/scaffold
A19: 8 | B19: 8 | C19: -1.1 | D19: 1.5 | E19: -2.0 | F19: -1.2 | G19: 1,165,199 | H19: A | I19: 0% | J19: Abi1;Abi1;Abi1;Abi1 | K19: Abi-1;Abi-1 iso4;Abi-1 iso4;Abi-1 iso4 | L19: §306;300;301;300 | M19: Abl interactor 1 | N19: Q8CBW3;Q8CBW3-2;Q8CBW3-3;Q8CBW3-4 | O19: http://www.phosphosite.org/proteinAction.do?id=3348&showAllSites=true | P19: HNSTTSSTSSGGY*RR | Q19: 3 | R19: 559.9041 | S19: 2 | T19: A | U19: 10.72 | W19: 1,165,199 | Y19: 1,031,386 | AA19: 797,387 | AC19: 1,037,522 | AD19: 1,165,199 | AE19: 1,031,386 | AF19: 797,387 | AG19: 1,037,522 | AL19: 0.89 | AM19: 1.30 | AN19: 0.68 | AO19: 1.01 | AP19: -0.18 | AQ19: 0.38 | AR19: -0.55 | AS19: 0.01 | AT19: -0.11 | AU19: 0.56 | AV19: -0.99 | AW19: -0.32 | AX19: -1.13 | AY19: 1.30 | AZ19: -1.46 | BA19: 1.01 | BB19: -1.08 | BC19: 1.48 | BD19: -1.98 | BE19: -1.25 | BF19: mouse | BG19: 1
A20: 9 | B20: 9 | C20: -1.3 | D20: 2.0 | E20: 1.3 | F20: 3.3 | G20: 105,652,791 | H20: A | I20: 20% | J20: Abi1;Abi1;Abi1;Abi1;Abi1 | K20: Abi-1;Abi-1 iso4;Abi-1 iso4;Abi-1 iso4;Abi-1 iso4 | L20: §213;208;208;208;208 | M20: Abl interactor 1 | N20: Q8CBW3;Q8CBW3-2;Q8CBW3-3;Q8CBW3-4;Q8CBW3-5 | O20: http://www.phosphosite.org/proteinAction.do?id=3348&showAllSites=true | P20: TLEPVKPPTVPNDY*MTSPAR | Q20: 3 | R20: 765.036 | S20: 1 | T20: A | U20: 64.68 | V20: 39,799,052 | W20: 29,992,469 | X20: 26,725,942 | Y20: 23,921,547 | Z20: 54,085,455 | AA20: 64,534,999 | AB20: 99,427,915 | AC20: 111,877,667 | AD20: 34,895,761 | AE20: 25,323,744 | AF20: 59,310,227 | AG20: 105,652,791 | AH20: 20% | AI20: 8% | AJ20: 12% | AK20: 8% | AL20: 0.73 | AM20: 1.78 | AN20: 1.70 | AO20: 4.17 | AP20: -0.46 | AQ20: 0.83 | AR20: 0.77 | AS20: 2.06 | AT20: -0.39 | AU20: 1.01 | AV20: 0.33 | AW20: 1.74 | AX20: -1.38 | AY20: 1.78 | AZ20: 1.70 | BA20: 4.17 | BB20: -1.31 | BC20: 2.02 | BD20: 1.25 | BE20: 3.33 | BF20: mouse | BG20: 1
A21: 10 | B21: 10 | C21: -1.3 | D21: -1.3 | E21: 1.3 | F21: 1.3 | G21: 98,949,451 | H21: A | I21: 9% | J21: Abi1;Abi1;Abi1;Abi1;Abi1 | K21: Abi-1;Abi-1 iso4;Abi-1 iso4;Abi-1 iso4;Abi-1 iso4 | L21: §23;23;23;23;23 | M21: Abl interactor 1 | N21: Q8CBW3;Q8CBW3-2;Q8CBW3-3;Q8CBW3-4;Q8CBW3-5 | O21: http://www.phosphosite.org/proteinAction.do?id=3348&showAllSites=true | P21: ALIESY*QNLTR | Q21: 2 | R21: 694.3345 | S21: 6 | T21: A | U21: 60.08 | V21: 57,772,194 | W21: 53,464,034 | X21: 40,355,664 | Y21: 41,765,134 | Z21: 92,999,459 | AA21: 104,899,444 | AB21: 72,140,155 | AC21: 66,052,906 | AD21: 55,618,114 | AE21: 41,060,399 | AF21: 98,949,451 | AG21: 69,096,530 | AH21: 5% | AI21: 2% | AJ21: 9% | AK21: 6% | AL21: 0.74 | AM21: 0.70 | AN21: 1.78 | AO21: 1.68 | AP21: -0.44 | AQ21: -0.52 | AR21: 0.83 | AS21: 0.75 | AT21: -0.37 | AU21: -0.34 | AV21: 0.39 | AW21: 0.43 | AX21: -1.35 | AY21: -1.43 | AZ21: 1.78 | BA21: 1.68 | BB21: -1.29 | BC21: -1.26 | BD21: 1.31 | BE21: 1.34 | BF21: mouse | BG21: 1
A22: 11 | B22: 11 | C22: -1.1 | D22: -1.2 | E22: -1.6 | F22: -1.7 | G22: 16,955,506 | H22: A | I22: 20% | J22: Abi1;Abi1;Abi1;Abi1;Abi1 | K22: Abi-1;Abi-1 iso4;Abi-1 iso4;Abi-1 iso4;Abi-1 iso4 | L22: 143;143;143;143;143 | M22: Abl interactor 1 | N22: Q8CBW3;Q8CBW3-2;Q8CBW3-3;Q8CBW3-4;Q8CBW3-5 | O22: http://www.phosphosite.org/proteinAction.do?id=3348&showAllSites=true | P22: KPIDY*TVLDDVGHGVK | Q22: 3 | R22: 612.6362 | S22: 1 | T22: A | U22: 65.92 | V22: 16,295,959 | W22: 17,615,054 | X22: 13,838,036 | Y22: 15,424,324 | Z22: 16,609,995 | AA22: 12,464,804 | AB22: 11,769,813 | AC22: 9,232,890 | AD22: 16,955,506 | AE22: 14,631,180 | AF22: 14,537,400 | AG22: 10,501,351 | AH22: 6% | AI22: 8% | AJ22: 20% | AK22: 17% | AL22: 0.86 | AM22: 0.72 | AN22: 0.86 | AO22: 0.72 | AP22: -0.21 | AQ22: -0.47 | AR22: -0.22 | AS22: -0.48 | AT22: -0.14 | AU22: -0.29 | AV22: -0.66 | AW22: -0.80 | AX22: -1.16 | AY22: -1.38 | AZ22: -1.17 | BA22: -1.39 | BB22: -1.10 | BC22: -1.22 | BD22: -1.58 | BE22: -1.75 | BF22: mouse | BG22: 1
A23: 12 | B23: 12 | C23: -1.3 | D23: -1.3 | E23: 1.3 | F23: 1.3 | G23: 98,949,451 | H23: A | I23: 139% | J23: Abi1;Abi1;Abi1;Abi1;Abi1 | K23: Abi-1;Abi-1 iso4;Abi-1 iso4;Abi-1 iso4;Abi-1 iso4 | L23: 22;22;22;22;22 | M23: Abl interactor 1 | N23: Q8CBW3;Q8CBW3-2;Q8CBW3-3;Q8CBW3-4;Q8CBW3-5 | O23: http://www.phosphosite.org/proteinAction.do?id=3348&showAllSites=true | P23: ALIES*YQNLTR | Q23: 2 | R23: 694.3345 | S23: 1 | T23: A | U23: 60.13 | V23: 57,772,194 | W23: 53,464,034 | X23: 40,355,664 | Y23: 41,765,134 | Z23: 92,999,459 | AA23: 104,899,444 | AB23: 72,140,155 | AC23: 66,052,906 | AD23: 55,618,114 | AE23: 41,060,399 | AF23: 98,949,451 | AG23: 69,096,530 | AH23: 5% | AI23: 2% | AJ23: 9% | AK23: 6% | AL23: 0.74 | AM23: 0.70 | AN23: 1.78 | AO23: 1.68 | AP23: -0.44 | AQ23: -0.52 | AR23: 0.83 | AS23: 0.75 | AT23: -0.37 | AU23: -0.34 | AV23: 0.39 | AW23: 0.43 | AX23: -1.35 | AY23: -1.43 | AZ23: 1.78 | BA23: 1.68 | BB23: -1.29 | BC23: -1.26 | BD23: 1.31 | BE23: 1.34 | BF23: mouse | BH23: 1
A24: 13 | B24: 13 | C24: -1.0 | D24: 1.6 | E24: -2.3 | F24: -1.4 | G24: 11,032,825 | H24: A | I24: 30% | J24: Abi2 | K24: Abi-2 | L24: 143 | M24: Abl interactor 2 | N24: P62484 | O24: http://www.phosphosite.org/proteinAction.do?id=6880&showAllSites=true | P24: KPIDY*TILDDIGHGVK | Q24: 3 | R24: 621.9799 | S24: 1 | T24: A | U24: 78.54 | V24: 9,503,646 | W24: 12,562,004 | X24: 12,648,829 | Y24: 8,176,888 | Z24: 5,700,519 | AA24: 7,388,219 | AB24: 9,470,219 | AC24: 8,764,386 | AD24: 11,032,825 | AE24: 10,412,858 | AF24: 6,544,369 | AG24: 9,117,302 | AH24: 20% | AI24: 30% | AJ24: 18% | AK24: 5% | AL24: 0.94 | AM24: 1.39 | AN24: 0.59 | AO24: 0.88 | AP24: -0.08 | AQ24: 0.48 | AR24: -0.75 | AS24: -0.19 | AT24: -0.01 | AU24: 0.66 | AV24: -1.19 | AW24: -0.52 | AX24: -1.06 | AY24: 1.39 | AZ24: -1.69 | BA24: -1.14 | BB24: -1.01 | BC24: 1.58 | BD24: -2.28 | BE24: -1.43 | BF24: mouse | BG24: 1
A25: 14 | B25: 14 | C25: 1.6 | D25: 1.1 | E25: 1.2 | F25: -1.2 | G25: 31,580,716 | H25: A | I25: 44% | J25: Ank1;Ank3;Ank3;Ank3;Ank2;Ank2;Ank2;Ank2;Ank1;Ank1;Ank1;Ank1;Ank1 | K25: ANK1;ANK3;ANK3 iso2;ANK3 iso10;ANK2;ANK2 iso2;ANK2 iso7;ANK2 iso7;ANK1 iso2;ANK1 iso7;ANK1 iso7;ANK1 iso7;ANK1 iso7 | L25: 599;615;615;615;630;626;630;576;607;599;599;636;636 | M25: Ankyrin-1 | N25: Q02357;G5E8K5;G5E8K5-2;G5E8K5-3;Q8C8R3;Q8C8R3-2;Q8C8R3-4;Q8C8R3-5;Q02357-2;Q02357-3;Q02357-4;Q02357-5;Q02357-6 | O25: http://www.phosphosite.org/proteinAction.do?id=11179&showAllSites=true | P25: NGY*TPLHIAAK | Q25: 2 | R25: 632.8079 | S25: 3 | T25: A | U25: 49.54 | V25: 13,689,463 | W25: 26,184,632 | X25: 35,035,680 | Y25: 24,602,091 | Z25: 31,044,317 | AA25: 32,117,115 | AB25: 25,005,604 | AC25: 36,456,897 | AD25: 19,937,047 | AE25: 29,818,885 | AF25: 31,580,716 | AG25: 30,731,251 | AH25: 44% | AI25: 25% | AJ25: 2% | AK25: 26% | AL25: 1.50 | AM25: 0.97 | AN25: 1.58 | AO25: 1.03 | AP25: 0.58 | AQ25: -0.04 | AR25: 0.66 | AS25: 0.04 | AT25: 0.65 | AU25: 0.14 | AV25: 0.23 | AW25: -0.28 | AX25: 1.50 | AY25: -1.03 | AZ25: 1.58 | BA25: 1.03 | BB25: 1.57 | BC25: 1.10 | BD25: 1.17 | BE25: -1.22 | BF25: mouse | BG25: 1
A26: 15 | B26: 19 | C26: -1.9 | D26: 1.9 | E26: -1.1 | F26: 3.2 | G26: 72,849,096 | H26: A | I26: 40% | J26: Ank2;Ank2;Ank2;Ank2 | K26: ANK2 iso2;ANK2;ANK2 iso7;ANK2 iso7 | L26: 527;531;531;510 | M26: Ankyrin-2 | N26: Q8C8R3-2;Q8C8R3;Q8C8R3-4;Q8C8R3-5 | O26: http://www.phosphosite.org/proteinAction.do?id=8303&showAllSites=true | P26: TEIVQLLLQHMAHPDAATTNGY*TPLHISAR | Q26: 4 | R26: 845.4221 | S26: 26 | T26: A | U26: 88.11 | V26: 32,110,257 | W26: 39,722,159 | X26: 23,425,166 | Y26: 13,059,980 | Z26: 48,628,798 | AA26: 36,373,615 | AB26: 74,488,704 | AC26: 71,209,487 | AD26: 35,916,208 | AE26: 18,242,573 | AF26: 42,501,207 | AG26: 72,849,096 | AH26: 15% | AI26: 40% | AJ26: 20% | AK26: 3% | AL26: 0.51 | AM26: 1.71 | AN26: 1.18 | AO26: 3.99 | AP26: -0.98 | AQ26: 0.78 | AR26: 0.24 | AS26: 2.00 | AT26: -0.91 | AU26: 0.96 | AV26: -0.20 | AW26: 1.67 | AX26: -1.97 | AY26: 1.71 | AZ26: 1.18 | BA26: 3.99 | BB26: -1.87 | BC26: 1.94 | BD26: -1.14 | BE26: 3.19 | BF26: mouse | BG26: 1
A27: 16 | B27: 21 | C27: -1.3 | D27: -1.2 | E27: 1.3 | F27: 1.4 | G27: 650,130,144 | H27: A | I27: 12% | J27: Ank2;Ank2;Ank2;Ank2 | K27: ANK2 iso2;ANK2;ANK2 iso7;ANK2 iso7 | L27: 569;573;573;552 | M27: Ankyrin-2 | N27: Q8C8R3-2;Q8C8R3;Q8C8R3-4;Q8C8R3-5 | O27: http://www.phosphosite.org/proteinAction.do?id=8303&showAllSites=true | P27: Y*GSLDVAK | Q27: 2 | R27: 466.7099 | S27: 8 | T27: A | U27: 41.53 | V27: 388,468,398 | W27: 333,739,642 | X27: 286,663,808 | Y27: 242,391,222 | Z27: 667,564,373 | AA27: 632,695,914 | AB27: 469,430,676 | AC27: 466,381,076 | AD27: 361,104,020 | AE27: 264,527,515 | AF27: 650,130,144 | AG27: 467,905,876 | AH27: 11% | AI27: 12% | AJ27: 4% | AK27: 0% | AL27: 0.73 | AM27: 0.72 | AN27: 1.80 | AO27: 1.77 | AP27: -0.45 | AQ27: -0.47 | AR27: 0.85 | AS27: 0.82 | AT27: -0.38 | AU27: -0.29 | AV27: 0.41 | AW27: 0.50 | AX27: -1.37 | AY27: -1.39 | AZ27: 1.80 | BA27: 1.77 | BB27: -1.30 | BC27: -1.22 | BD27: 1.33 | BE27: 1.41 | BF27: mouse | BG27: 1
A28: 17 | B28: 22 | C28: -1.9 | D28: 1.1 | E28: -1.2 | F28: 1.7 | G28: 1,572,475 | H28: A | I28: 48% | J28: Ank2;Ank2;Ank2;Ank2 | K28: ANK2 iso2;ANK2;ANK2 iso7;ANK2 iso7 | L28: 720;724;724;670 | M28: Ankyrin-2 | N28: Q8C8R3-2;Q8C8R3;Q8C8R3-4;Q8C8R3-5 | O28: http://www.phosphosite.org/proteinAction.do?id=8303&showAllSites=true | P28: HGADRDAY*TK | Q28: 3 | R28: 405.1714 | S28: 4 | T28: A | U28: 8.91 | W28: 1,360,562 | X28: 447,508 | Y28: 907,216 | Z28: 1,304,726 | AA28: 1,840,223 | AB28: 1,387,654 | AC28: 1,536,502 | AD28: 1,360,562 | AE28: 677,362 | AF28: 1,572,475 | AG28: 1,462,078 | AI28: 48% | AJ28: 24% | AK28: 7% | AL28: 0.50 | AM28: 0.93 | AN28: 1.16 | AO28: 2.16 | AP28: -1.01 | AQ28: -0.11 | AR28: 0.21 | AS28: 1.11 | AT28: -0.94 | AU28: 0.08 | AV28: -0.23 | AW28: 0.79 | AX28: -2.01 | AY28: -1.08 | AZ28: 1.16 | BA28: 2.16 | BB28: -1.91 | BC28: 1.05 | BD28: -1.17 | BE28: 1.72 | BF28: mouse | BG28: 1
A29: 18 | B29: 24 | C29: -1.2 | D29: 1.1 | E29: -2.6 | F29: -2.0 | G29: 158,934,713 | H29: A | I29: 33% | J29: Ank2;Ank2;Ank2;Ank2 | K29: ANK2 iso2;ANK2;ANK2 iso7;ANK2 iso7 | L29: 725;729;729;675 | M29: Ankyrin-2 | N29: Q8C8R3-2;Q8C8R3;Q8C8R3-4;Q8C8R3-5 | O29: http://www.phosphosite.org/proteinAction.do?id=8303&showAllSites=true | P29: LGY*TPLIVACHYGNVK | Q29: 3 | R29: 628.9741 | S29: 11 | T29: A | U29: 71.58 | V29: 161,540,449 | W29: 156,328,976 | X29: 126,205,456 | Y29: 134,158,764 | Z29: 62,716,469 | AA29: 100,939,503 | AB29: 84,727,801 | AC29: 80,793,476 | AD29: 158,934,713 | AE29: 130,182,110 | AF29: 81,827,986 | AG29: 82,760,638 | AH29: 2% | AI29: 4% | AJ29: 33% | AK29: 3% | AL29: 0.82 | AM29: 1.01 | AN29: 0.51 | AO29: 0.64 | AP29: -0.29 | AQ29: 0.02 | AR29: -0.96 | AS29: -0.65 | AT29: -0.22 | AU29: 0.20 | AV29: -1.40 | AW29: -0.98 | AX29: -1.22 | AY29: 1.01 | AZ29: -1.94 | BA29: -1.57 | BB29: -1.16 | BC29: 1.15 | BD29: -2.63 | BE29: -1.97 | BF29: mouse | BG29: 1
A30: 19 | B30: 25 | C30: -1.3 | D30: 1.2 | E30: -1.4 | F30: 1.1 | G30: 52,468,524 | H30: A | I30: 19% | J30: Ank2;Ank2;Ank2;Ank2 | K30: ANK2 iso2;ANK2;ANK2 iso7;ANK2 iso7 | L30: 734;738;738;684 | M30: Ankyrin-2 | N30: Q8C8R3-2;Q8C8R3;Q8C8R3-4;Q8C8R3-5 | O30: http://www.phosphosite.org/proteinAction.do?id=8303&showAllSites=true | P30: LGYTPLIVACHY*GNVK | Q30: 2 | R30: 942.9575 | S30: 3 | T30: A | U30: 71.83 | V30: 51,839,330 | W30: 53,097,719 | X30: 38,919,864 | Y30: 38,897,465 | Z30: 57,228,115 | AA30: 43,374,702 | AB30: 49,451,523 | AC30: 53,760,094 | AD30: 52,468,524 | AE30: 38,908,665 | AF30: 50,301,408 | AG30: 51,605,809 | AH30: 2% | AI30: 0% | AJ30: 19% | AK30: 6% | AL30: 0.74 | AM30: 1.03 | AN30: 0.96 | AO30: 1.33 | AP30: -0.43 | AQ30: 0.04 | AR30: -0.06 | AS30: 0.41 | AT30: -0.36 | AU30: 0.22 | AV30: -0.50 | AW30: 0.08 | AX30: -1.35 | AY30: 1.03 | AZ30: -1.04 | BA30: 1.33 | BB30: -1.28 | BC30: 1.16 | BD30: -1.41 | BE30: 1.06 | BF30: mouse | BG30: 1
A31: 20 | B31: 26 | C31: 1.1 | D31: -1.0 | E31: -1.1 | F31: -1.2 | G31: 16,880,131 | H31: A | I31: 16% | J31: Ank2;Ank2;Ank2;Ank2;Ank2 | K31: ANK2 iso2;ANK2;ANK2 iso7;ANK2 iso7;ANK2 iso3 | L31: 1377;§1349;1349;1295;511 | M31: Ankyrin-2 | N31: Q8C8R3-2;Q8C8R3;Q8C8R3-4;Q8C8R3-5;Q8C8R3-3 | O31: http://www.phosphosite.org/proteinAction.do?id=8303&showAllSites=true | P31: SRDVEVLEGKPIY*VDCFGNLVPLTK | Q31: 3 | R31: 976.8241 | S31: 1 | T31: A | U31: 86.24 | V31: 13,810,030 | W31: 13,907,228 | X31: 12,737,260 | Y31: 15,994,365 | Z31: 16,892,553 | AA31: 16,867,709 | AB31: 15,426,297 | AC31: 14,032,330 | AD31: 13,858,629 | AE31: 14,365,813 | AF31: 16,880,131 | AG31: 14,729,314 | AH31: 0% | AI31: 16% | AJ31: 0% | AK31: 7% | AL31: 1.04 | AM31: 0.87 | AN31: 1.22 | AO31: 1.03 | AP31: 0.05 | AQ31: -0.20 | AR31: 0.28 | AS31: 0.04 | AT31: 0.12 | AU31: -0.01 | AV31: -0.15 | AW31: -0.29 | AX31: 1.04 | AY31: -1.15 | AZ31: 1.22 | BA31: 1.03 | BB31: 1.09 | BC31: -1.01 | BD31: -1.11 | BE31: -1.22 | BF31: mouse | BG31: 1
A32: 21 | B32: 27 | C32: 1.0 | D32: 1.2 | E32: 1.2 | F32: 1.4 | G32: 11,883,940 | H32: A | I32: 34% | J32: Ank2;Ank2;Ank2;Ank2;Ank2;Ank2 | K32: ANK2 iso2;ANK2;ANK2 iso7;ANK2 iso7;ANK2 iso7;ANK2 iso7 | L32: 239;243;243;222;258;222 | M32: Ankyrin-2 | N32: Q8C8R3-2;Q8C8R3;Q8C8R3-4;Q8C8R3-5;Q8C8R3-7;Q8C8R3-8 | O32: http://www.phosphosite.org/proteinAction.do?id=8303&showAllSites=true | P32: TTESGFTPLHIAAHY*GNVNVATLLLNR | Q32: 3 | R32: 997.1692 | S32: 1 | T32: A | U32: 92.98 | V32: 8,809,163 | W32: 5,385,720 | X32: 6,435,174 | Y32: 7,452,755 | Z32: 11,069,316 | AA32: 11,119,786 | AB32: 10,903,097 | AC32: 12,864,783 | AD32: 7,097,442 | AE32: 6,943,964 | AF32: 11,094,551 | AG32: 11,883,940 | AH32: 34% | AI32: 10% | AJ32: 0% | AK32: 12% | AL32: 0.98 | AM32: 1.07 | AN32: 1.56 | AO32: 1.71 | AP32: -0.03 | AQ32: 0.10 | AR32: 0.64 | AS32: 0.78 | AT32: 0.04 | AU32: 0.28 | AV32: 0.21 | AW32: 0.45 | AX32: -1.02 | AY32: 1.07 | AZ32: 1.56 | BA32: 1.71 | BB32: 1.03 | BC32: 1.22 | BD32: 1.15 | BE32: 1.37 | BF32: mouse | BG32: 1
A33: 22 | B33: 28 | C33: -1.2 | D33: -1.0 | E33: -1.4 | F33: -1.2 | G33: 86,472,119 | H33: A | I33: 18% | J33: Ank2;Ank2;Ank2;Ank2;Ank2;Ank2;Ank2 | K33: ANK2 iso2;ANK2;ANK2 iso7;ANK2 iso7;ANK2 iso7;ANK2 iso7;ANK2 iso7 | L33: 46;50;50;29;62;65;29 | M33: Ankyrin-2 | N33: Q8C8R3-2;Q8C8R3;Q8C8R3-4;Q8C8R3-5;Q8C8R3-6;Q8C8R3-7;Q8C8R3-8 | O33: http://www.phosphosite.org/proteinAction.do?id=8303&showAllSites=true | P33: AGNLDKVVEY*LK | Q33: 2 | R33: 714.8604 | S33: 6 | T33: A | U33: 72.05 | V33: 91,534,939 | W33: 81,409,299 | X33: 69,372,392 | Y33: 64,562,280 | Z33: 73,339,690 | AA33: 94,923,933 | AB33: 64,949,836 | AC33: 80,129,815 | AD33: 86,472,119 | AE33: 66,967,336 | AF33: 84,131,811 | AG33: 72,539,825 | AH33: 8% | AI33: 5% | AJ33: 18% | AK33: 15% | AL33: 0.77 | AM33: 0.86 | AN33: 0.97 | AO33: 1.08 | AP33: -0.37 | AQ33: -0.21 | AR33: -0.04 | AS33: 0.12 | AT33: -0.30 | AU33: -0.03 | AV33: -0.48 | AW33: -0.21 | AX33: -1.29 | AY33: -1.16 | AZ33: -1.03 | BA33: 1.08 | BB33: -1.23 | BC33: -1.02 | BD33: -1.39 | BE33: -1.16 | BF33: mouse | BG33: 1
A34: 23 | B34: 29 | C34: 1.0 | D34: 1.0 | E34: 1.8 | F34: 1.9 | G34: 39,538,219 | H34: A | I34: 28% | J34: Ank3;Ank3;Ank3 | K34: ANK3;ANK3 iso2;ANK3 iso10 | L34: 514;514;514 | M34: Ankyrin-3 | N34: G5E8K5;G5E8K5-2;G5E8K5-3 | O34: http://www.phosphosite.org/proteinAction.do?id=5260&showAllSites=true | P34: ADIVQQLLQQGASPNAATTS*GYTPLHLAAR | Q34: 3 | R34: 1058.1977 | S34: 3 | T34: A | U34: 93.45 | V34: 14,805,422 | W34: 16,869,764 | X34: 15,487,600 | Y34: 14,955,087 | Z34: 47,364,388 | AA34: 31,712,050 | AB34: 36,793,896 | AC34: 36,399,855 | AD34: 15,837,593 | AE34: 15,221,344 | AF34: 39,538,219 | AG34: 36,596,876 | AH34: 9% | AI34: 2% | AJ34: 28% | AK34: 1% | AL34: 0.96 | AM34: 0.93 | AN34: 2.50 | AO34: 2.40 | AP34: -0.06 | AQ34: -0.11 | AR34: 1.32 | AS34: 1.27 | AT34: 0.01 | AU34: 0.07 | AV34: 0.88 | AW34: 0.94 | AX34: -1.04 | AY34: -1.08 | AZ34: 2.50 | BA34: 2.40 | BB34: 1.01 | BC34: 1.05 | BD34: 1.84 | BE34: 1.92 | BF34: mouse | BH34: 1
A35: 24 | B35: 30 | C35: 1.0 | D35: 1.0 | E35: 1.8 | F35: 1.9 | G35: 39,538,219 | H35: A | I35: 28% | J35: Ank3;Ank3;Ank3 | K35: ANK3;ANK3 iso2;ANK3 iso10 | L35: 516;516;516 | M35: Ankyrin-3 | N35: G5E8K5;G5E8K5-2;G5E8K5-3 | O35: http://www.phosphosite.org/proteinAction.do?id=5260&showAllSites=true | P35: ADIVQQLLQQGASPNAATTSGY*TPLHLAAR | Q35: 3 | R35: 1058.1977 | S35: 14 | T35: A | U35: 93.39 | V35: 14,805,422 | W35: 16,869,764 | X35: 15,487,600 | Y35: 14,955,087 | Z35: 47,364,388 | AA35: 31,712,050 | AB35: 36,793,896 | AC35: 36,399,855 | AD35: 15,837,593 | AE35: 15,221,344 | AF35: 39,538,219 | AG35: 36,596,876 | AH35: 9% | AI35: 2% | AJ35: 28% | AK35: 1% | AL35: 0.96 | AM35: 0.93 | AN35: 2.50 | AO35: 2.40 | AP35: -0.06 | AQ35: -0.11 | AR35: 1.32 | AS35: 1.27 | AT35: 0.01 | AU35: 0.07 | AV35: 0.88 | AW35: 0.94 | AX35: -1.04 | AY35: -1.08 | AZ35: 2.50 | BA35: 2.40 | BB35: 1.01 | BC35: 1.05 | BD35: 1.84 | BE35: 1.92 | BF35: mouse | BG35: 1
A36: 25 | B36: 33 | C36: 1.0 | D36: -1.0 | E36: 2.5 | F36: 2.3 | G36: 24,466,468 | H36: A | I36: 13% | J36: Ank3;Ank3;Ank3 | K36: ANK3;ANK3 iso2;ANK3 iso10 | L36: 558;558;558 | M36: Ankyrin-3 | N36: G5E8K5;G5E8K5-2;G5E8K5-3 | O36: http://www.phosphosite.org/proteinAction.do?id=5260&showAllSites=true | P36: Y*GKLEVASLLLQK | Q36: 2 | R36: 771.4206 | S36: 5 | T36: A | U36: 82.10 | V36: 6,694,967 | W36: 8,004,475 | X36: 7,770,654 | Y36: 6,857,986 | Z36: 25,097,086 | AA36: 23,835,850 | AB36: 21,781,440 | AC36: 20,134,916 | AD36: 7,349,721 | AE36: 7,314,320 | AF36: 24,466,468 | AG36: 20,958,178 | AH36: 13% | AI36: 9% | AJ36: 4% | AK36: 6% | AL36: 1.00 | AM36: 0.86 | AN36: 3.33 | AO36: 2.87 | AP36: -0.01 | AQ36: -0.22 | AR36: 1.74 | AS36: 1.52 | AT36: 0.06 | AU36: -0.04 | AV36: 1.30 | AW36: 1.19 | AX36: -1.00 | AY36: -1.17 | AZ36: 3.33 | BA36: 2.87 | BB36: 1.05 | BC36: -1.03 | BD36: 2.46 | BE36: 2.29 | BF36: mouse | BG36: 1
A37: 26 | B37: 35 | C37: 1.1 | D37: -1.0 | E37: -1.7 | F37: -1.9 | G37: 37,961,011 | H37: A | I37: 13% | J37: Ap1b1;Ap2b1;Ap2b1 | K37: AP1B1;AP2B1;AP2B1 iso 2 | L37: §136;§136;§136 | M37: AP-1 complex subunit beta-1 | N37: O35643;Q9DBG3;Q9DBG3-2 | O37: http://www.phosphosite.org/proteinAction.do?id=8525&showAllSites=true | P37: CLKDEDPY*VRK | Q37: 3 | R37: 501.5618 | S37: 8 | T37: A | U37: 29.77 | V37: 36,816,481 | W37: 36,183,247 | X37: 37,546,164 | Y37: 38,375,858 | Z37: 27,160,785 | AA37: 32,619,504 | AB37: 25,893,829 | AC37: 25,507,837 | AD37: 36,499,864 | AE37: 37,961,011 | AF37: 29,890,145 | AG37: 25,700,833 | AH37: 1% | AI37: 2% | AJ37: 13% | AK37: 1% | AL37: 1.04 | AM37: 0.86 | AN37: 0.82 | AO37: 0.68 | AP37: 0.06 | AQ37: -0.22 | AR37: -0.29 | AS37: -0.56 | AT37: 0.13 | AU37: -0.04 | AV37: -0.73 | AW37: -0.89 | AX37: 1.04 | AY37: -1.16 | AZ37: -1.22 | BA37: -1.48 | BB37: 1.09 | BC37: -1.03 | BD37: -1.65 | BE37: -1.85 | BF37: mouse | BG37: 1
A38: 27 | B38: 36 | C38: -1.1 | D38: 1.8 | E38: -1.3 | F38: 1.6 | G38: 172,280,610 | H38: A | I38: 50% | J38: Ap1b1;Ap2b1;Ap2b1 | K38: AP1B1;AP2B1;AP2B1 iso 2 | L38: 121;121;121 | M38: AP-1 complex subunit beta-1 | N38: O35643;Q9DBG3;Q9DBG3-2 | O38: http://www.phosphosite.org/proteinAction.do?id=8525&showAllSites=true | P38: VDKITEY*LCEPLRK | Q38: 3 | R38: 615.3056 | S38: 2 | T38: A | U38: 64.29 | V38: 112,563,297 | W38: 97,139,650 | X38: 91,547,104 | Y38: 83,683,921 | Z38: 68,307,187 | AA38: 143,690,780 | AB38: 172,018,255 | AC38: 172,542,966 | AD38: 104,851,474 | AE38: 87,615,513 | AF38: 105,998,983 | AG38: 172,280,610 | AH38: 10% | AI38: 6% | AJ38: 50% | AK38: 0% | AL38: 0.84 | AM38: 1.63 | AN38: 1.01 | AO38: 1.97 | AP38: -0.26 | AQ38: 0.70 | AR38: 0.02 | AS38: 0.98 | AT38: -0.19 | AU38: 0.88 | AV38: -0.42 | AW38: 0.65 | AX38: -1.20 | AY38: 1.63 | AZ38: 1.01 | BA38: 1.97 | BB38: -1.14 | BC38: 1.84 | BD38: -1.34 | BE38: 1.57 | BF38: mouse | BG38: 1
A39: 28 | B39: 37 | C39: -1.3 | D39: -1.0 | E39: 2.1 | F39: 2.6 | G39: 251,746,849 | H39: A | I39: 8% | J39: Ap2a1;Ap2a1 | K39: AP2A1;AP2A1 iso 2 | L39: §777;755 | M39: AP-2 complex subunit alpha-1 | N39: P17426;P17426-2 | O39: http://www.phosphosite.org/proteinAction.do?id=6049&showAllSites=true | P39: MY*LFYGNK | Q39: 2 | R39: 558.2352 | S39: 8 | T39: A | U39: 73.89 | V39: 89,875,206 | W39: 84,401,646 | X39: 69,684,312 | Y39: 62,176,398 | Z39: 240,172,430 | AA39: 263,321,268 | AB39: 216,302,683 | AC39: 221,270,720 | AD39: 87,138,426 | AE39: 65,930,355 | AF39: 251,746,849 | AG39: 218,786,701 | AH39: 4% | AI39: 8% | AJ39: 7% | AK39: 2% | AL39: 0.76 | AM39: 0.87 | AN39: 2.89 | AO39: 3.32 | AP39: -0.40 | AQ39: -0.20 | AR39: 1.53 | AS39: 1.73 | AT39: -0.33 | AU39: -0.02 | AV39: 1.09 | AW39: 1.41 | AX39: -1.32 | AY39: -1.15 | AZ39: 2.89 | BA39: 3.32 | BB39: -1.26 | BC39: -1.01 | BD39: 2.13 | BE39: 2.65 | BF39: mouse | BG39: 1
A40: 29 | B40: 39 | C40: 1.2 | D40: 1.0 | E40: 1.7 | F40: 1.5 | G40: 49,676,831 | H40: A | I40: 20% | J40: Ap2a2 | K40: AP2A2 | L40: §807 | M40: AP-2 complex subunit alpha-2 | N40: P17427 | O40: http://www.phosphosite.org/proteinAction.do?id=20132&showAllSites=true | P40: Y*GGTFQNVSVKLPITLNK | Q40: 3 | R40: 687.0256 | S40: 8 | T40: A | U40: 67.52 | V40: 21,613,776 | W40: 21,299,914 | X40: 26,411,904 | Y40: 21,085,137 | Z40: 56,858,247 | AA40: 42,495,415 | AB40: 47,539,965 | AC40: 43,048,023 | AD40: 21,456,845 | AE40: 23,748,521 | AF40: 49,676,831 | AG40: 45,293,994 | AH40: 1% | AI40: 16% | AJ40: 20% | AK40: 7% | AL40: 1.11 | AM40: 0.91 | AN40: 2.32 | AO40: 1.91 | AP40: 0.15 | AQ40: -0.13 | AR40: 1.21 | AS40: 0.93 | AT40: 0.22 | AU40: 0.05 | AV40: 0.77 | AW40: 0.61 | AX40: 1.11 | AY40: -1.10 | AZ40: 2.32 | BA40: 1.91 | BB40: 1.16 | BC40: 1.03 | BD40: 1.71 | BE40: 1.52 | BF40: mouse | BG40: 1
A41: 30 | B41: 41 | C41: -1.6 | D41: 1.1 | E41: 2.2 | F41: 4.2 | G41: 39,403,082 | H41: A | I41: 15% | J41: Ap2m1 | K41: AP2M1 | L41: 205 | M41: AP-2 complex subunit mu | N41: P84091 | O41: http://www.phosphosite.org/proteinAction.do?id=11190&showAllSites=true | P41: VVMKSY*LSGMPECK | Q41: 3 | R41: 570.2551 | S41: 3 | T41: A | U41: 56.00 | V41: 13,037,652 | W41: 12,749,381 | X41: 8,294,818 | Y41: 6,666,028 | Z41: 37,001,362 | AA41: 40,802,871 | AB41: 40,353,778 | AC41: 38,452,385 | AD41: 12,893,517 | AE41: 7,480,423 | AF41: 38,902,116 | AG41: 39,403,082 | AH41: 2% | AI41: 15% | AJ41: 7% | AK41: 3% | AL41: 0.58 | AM41: 1.01 | AN41: 3.02 | AO41: 5.27 | AP41: -0.79 | AQ41: 0.02 | AR41: 1.59 | AS41: 2.40 | AT41: -0.71 | AU41: 0.20 | AV41: 1.16 | AW41: 2.07 | AX41: -1.72 | AY41: 1.01 | AZ41: 3.02 | BA41: 5.27 | BB41: -1.64 | BC41: 1.15 | BD41: 2.23 | BE41: 4.21 | BF41: mouse | BG41: 1
A42: 31 | B42: 43 | C42: -1.3 | D42: 1.2 | E42: -1.8 | F42: -1.1 | G42: 78,693,911 | H42: A | I42: 13% | J42: Ap3m1;Ap3m2 | K42: AP3M1;AP3M2 | L42: 395;395 | M42: AP-3 complex subunit mu-1 | N42: Q9JKC8;Q8R2R9 | O42: http://www.phosphosite.org/proteinAction.do?id=12588&showAllSites=true | P42: VNRLDMY*GEKYKPFK | Q42: 4 | R42: 492.7417 | S42: 12 | T42: A | U42: 51.55 | V42: 81,869,402 | W42: 75,518,421 | X42: 61,894,852 | Y42: 57,137,150 | Z42: 58,052,506 | AA42: 60,758,119 | AB42: 71,408,972 | AC42: 59,455,151 | AD42: 78,693,911 | AE42: 59,516,001 | AF42: 59,405,313 | AG42: 65,432,061 | AH42: 6% | AI42: 6% | AJ42: 3% | AK42: 13% | AL42: 0.76 | AM42: 1.10 | AN42: 0.75 | AO42: 1.10 | AP42: -0.40 | AQ42: 0.14 | AR42: -0.41 | AS42: 0.14 | AT42: -0.33 | AU42: 0.32 | AV42: -0.84 | AW42: -0.19 | AX42: -1.32 | AY42: 1.10 | AZ42: -1.32 | BA42: 1.10 | BB42: -1.26 | BC42: 1.25 | BD42: -1.79 | BE42: -1.14 | BF42: mouse | BG42: 1
A43: 32 | B43: 44 | C43: 1.1 | D43: -1.4 | E43: -1.3 | F43: -2.0 | G43: 68,925,611 | H43: A | I43: 11% | J43: Apbb1ip | K43: RIAM | L43: §343 | M43: Amyloid beta A4 precursor protein-binding family B member 1-interacting protein | N43: Q8R5A3 | O43: http://www.phosphosite.org/proteinAction.do?id=8963&showAllSites=true | P43: ASGIY*YVPK | Q43: 2 | R43: 539.2545 | S43: 7 | T43: A | U43: 57.00 | V43: 64,332,648 | W43: 61,860,189 | X43: 63,929,232 | Y43: 73,921,991 | Z43: 70,694,230 | AA43: 60,163,436 | AB43: 41,373,264 | AC43: 43,249,853 | AD43: 63,096,418 | AE43: 68,925,611 | AF43: 65,428,833 | AG43: 42,311,559 | AH43: 3% | AI43: 10% | AJ43: 11% | AK43: 3% | AL43: 1.09 | AM43: 0.65 | AN43: 1.04 | AO43: 0.61 | AP43: 0.13 | AQ43: -0.63 | AR43: 0.05 | AS43: -0.70 | AT43: 0.20 | AU43: -0.45 | AV43: -0.39 | AW43: -1.03 | AX43: 1.09 | AY43: -1.55 | AZ43: 1.04 | BA43: -1.63 | BB43: 1.15 | BC43: -1.36 | BD43: -1.31 | BE43: -2.04 | BF43: mouse | BG43: 1
A44: 33 | B44: 45 | C44: -1.0 | D44: 1.1 | E44: -1.2 | F44: -1.1 | G44: 8,963,718 | H44: A | I44: 20% | J44: Aplp1 | K44: APLP1 | L44: 641 | M44: Amyloid-like protein 1 | N44: Q03157 | O44: http://www.phosphosite.org/proteinAction.do?id=17081&showAllSites=true | P44: HGY*ENPTYR | Q44: 2 | R44: 608.7428 | S44: 5 | T44: A | U44: 27.75 | V44: 9,246,988 | W44: 6,908,796 | X44: 6,880,606 | Y44: 8,465,890 | Z44: 7,756,271 | AA44: 10,171,166 | AB44: 8,297,607 | AC44: 9,337,103 | AD44: 8,077,892 | AE44: 7,673,248 | AF44: 8,963,718 | AG44: 8,817,355 | AH44: 20% | AI44: 15% | AJ44: 19% | AK44: 8% | AL44: 0.95 | AM44: 0.98 | AN44: 1.11 | AO44: 1.15 | AP44: -0.07 | AQ44: -0.02 | AR44: 0.15 | AS44: 0.20 | AT44: -0.00 | AU44: 0.16 | AV44: -0.29 | AW44: -0.12 | AX44: -1.05 | AY44: -1.02 | AZ44: 1.11 | BA44: 1.15 | BB44: -1.00 | BC44: 1.12 | BD44: -1.22 | BE44: -1.09 | BF44: mouse | BG44: 1
A45: 34 | B45: 46 | C45: 1.4 | D45: -1.1 | E45: 1.2 | F45: -1.2 | G45: 33,415,295 | H45: A | I45: 5% | J45: Arrb1;Arrb1 | K45: ARRB1;ARRB1 iso 2 | L45: 173;173 | M45: Beta-arrestin-1 | N45: Q8BWG8;Q8BWG8-2 | O45: http://www.phosphosite.org/proteinAction.do?id=7464&showAllSites=true | P45: KVQY*APERPGPQPTAETTR | Q45: 3 | R45: 736.0266 | S45: 1 | T45: A | U45: 34.28 | V45: 19,178,228 | W45: 20,704,066 | X45: 25,360,840 | Y45: 27,154,807 | Z45: 34,131,848 | AA45: 32,698,743 | AB45: 28,297,073 | AC45: 27,000,132 | AD45: 19,941,147 | AE45: 26,257,824 | AF45: 33,415,295 | AG45: 27,648,602 | AH45: 5% | AI45: 5% | AJ45: 3% | AK45: 3% | AL45: 1.32 | AM45: 0.83 | AN45: 1.68 | AO45: 1.05 | AP45: 0.40 | AQ45: -0.27 | AR45: 0.74 | AS45: 0.07 | AT45: 0.47 | AU45: -0.09 | AV45: 0.31 | AW45: -0.25 | AX45: 1.32 | AY45: -1.21 | AZ45: 1.68 | BA45: 1.05 | BB45: 1.38 | BC45: -1.07 | BD45: 1.24 | BE45: -1.19 | BF45: mouse | BG45: 1
A46: 35 | B46: 47 | C46: -1.0 | D46: 1.1 | E46: -2.3 | F46: -2.1 | G46: 26,637,182 | H46: A | I46: 21% | J46: Arrb1;Arrb1 | K46: ARRB1;ARRB1 iso 2 | L46: 54;54 | M46: Beta-arrestin-1 | N46: Q8BWG8;Q8BWG8-2 | O46: http://www.phosphosite.org/proteinAction.do?id=7464&showAllSites=true | P46: RVY*VTLTCAFR | Q46: 2 | R46: 733.3547 | S46: 1 | T46: A | U46: 70.53 | V46: 28,344,476 | W46: 24,929,888 | X46: 21,524,692 | Y46: 28,918,360 | Z46: 13,780,768 | AA46: 17,136,885 | AB46: 15,134,046 | AC46: 14,516,822 | AD46: 26,637,182 | AE46: 25,221,526 | AF46: 15,458,826 | AG46: 14,825,434 | AH46: 9% | AI46: 21% | AJ46: 15% | AK46: 3% | AL46: 0.95 | AM46: 0.96 | AN46: 0.58 | AO46: 0.59 | AP46: -0.08 | AQ46: -0.06 | AR46: -0.79 | AS46: -0.77 | AT46: -0.01 | AU46: 0.12 | AV46: -1.22 | AW46: -1.09 | AX46: -1.06 | AY46: -1.04 | AZ46: -1.72 | BA46: -1.70 | BB46: -1.01 | BC46: 1.09 | BD46: -2.33 | BE46: -2.13 | BF46: mouse | BG46: 1
A47: 36 | B47: 48 | C47: -1.0 | D47: 1.1 | E47: -2.3 | F47: -2.1 | G47: 26,637,182 | H47: A | I47: 21% | J47: Arrb1;Arrb1 | K47: ARRB1;ARRB1 iso 2 | L47: 56;56 | M47: Beta-arrestin-1 | N47: Q8BWG8;Q8BWG8-2 | O47: http://www.phosphosite.org/proteinAction.do?id=7464&showAllSites=true | P47: RVYVT*LTCAFR | Q47: 2 | R47: 733.3547 | S47: 1 | T47: A | U47: 70.38 | V47: 28,344,476 | W47: 24,929,888 | X47: 21,524,692 | Y47: 28,918,360 | Z47: 13,780,768 | AA47: 17,136,885 | AB47: 15,134,046 | AC47: 14,516,822 | AD47: 26,637,182 | AE47: 25,221,526 | AF47: 15,458,826 | AG47: 14,825,434 | AH47: 9% | AI47: 21% | AJ47: 15% | AK47: 3% | AL47: 0.95 | AM47: 0.96 | AN47: 0.58 | AO47: 0.59 | AP47: -0.08 | AQ47: -0.06 | AR47: -0.79 | AS47: -0.77 | AT47: -0.01 | AU47: 0.12 | AV47: -1.22 | AW47: -1.09 | AX47: -1.06 | AY47: -1.04 | AZ47: -1.72 | BA47: -1.70 | BB47: -1.01 | BC47: 1.09 | BD47: -2.33 | BE47: -2.13 | BF47: mouse | BH47: 1
A48: 37 | B48: 49 | C48: -1.1 | D48: -1.7 | E48: -2.1 | F48: -3.2 | G48: 3,121,794 | H48: A | I48: 26% | J48: Basp1 | K48: BASP1 | L48: §12 | M48: Brain acid soluble protein 1 | N48: Q91XV3 | O48: http://www.phosphosite.org/proteinAction.do?id=15794&showAllSites=true | P48: KGY*NVNDEK | Q48: 2 | R48: 573.745 | S48: 5 | T48: A | U48: 18.71 | V48: 2,756,720 | W48: 3,486,869 | X48: 2,701,221 | Y48: 2,818,864 | Z48: 1,688,317 | AA48: 2,437,148 | AB48: 1,249,235 | AC48: 883,150 | AD48: 3,121,794 | AE48: 2,760,042 | AF48: 2,062,732 | AG48: 1,066,193 | AH48: 17% | AI48: 3% | AJ48: 26% | AK48: 24% | AL48: 0.88 | AM48: 0.52 | AN48: 0.66 | AO48: 0.39 | AP48: -0.18 | AQ48: -0.95 | AR48: -0.60 | AS48: -1.37 | AT48: -0.11 | AU48: -0.77 | AV48: -1.04 | AW48: -1.70 | AX48: -1.13 | AY48: -1.93 | AZ48: -1.51 | BA48: -2.59 | BB48: -1.08 | BC48: -1.71 | BD48: -2.05 | BE48: -3.24 | BF48: mouse | BG48: 1
A49: 38 | B49: 50 | C49: -1.5 | D49: -1.0 | E49: -1.2 | F49: 1.2 | G49: 296,387,312 | H49: A | I49: 8% | J49: Bcar1;Bcar1 | K49: P130Cas;P130Cas iso 2 | L49: §310;§310 | M49: Breast cancer anti-estrogen resistance protein 1 | N49: Q61140;Q61140-2 | O49: http://www.phosphosite.org/proteinAction.do?id=1791&showAllSites=true | P49: GLLSSSHHSVY*DVPPSVSK | Q49: 3 | R49: 692.6648 | S49: 2 | T49: A | U49: 53.78 | V49: 269,586,383 | W49: 248,040,155 | X49: 166,055,008 | Y49: 164,403,858 | Z49: 312,999,509 | AA49: 279,775,116 | AB49: 261,092,628 | AC49: 245,062,006 | AD49: 258,813,269 | AE49: 165,229,433 | AF49: 296,387,312 | AG49: 253,077,317 | AH49: 6% | AI49: 1% | AJ49: 8% | AK49: 4% | AL49: 0.64 | AM49: 0.85 | AN49: 1.15 | AO49: 1.53 | AP49: -0.65 | AQ49: -0.23 | AR49: 0.20 | AS49: 0.62 | AT49: -0.58 | AU49: -0.05 | AV49: -0.24 | AW49: 0.29 | AX49: -1.57 | AY49: -1.17 | AZ49: 1.15 | BA49: 1.53 | BB49: -1.49 | BC49: -1.03 | BD49: -1.18 | BE49: 1.22 | BF49: mouse | BG49: 1
A50: 39 | B50: 52 | C50: -1.4 | D50: -1.1 | E50: -1.1 | F50: 1.2 | G50: 93,425,802 | H50: A | I50: 13% | J50: Bcar1;Bcar1 | K50: P130Cas;P130Cas iso 2 | L50: §391;§391 | M50: Breast cancer anti-estrogen resistance protein 1 | N50: Q61140;Q61140-2 | O50: http://www.phosphosite.org/proteinAction.do?id=1791&showAllSites=true | P50: RPGPGTLY*DVPRER | Q50: 3 | R50: 564.9454 | S50: 17 | T50: A | U50: 46.93 | V50: 77,300,259 | W50: 75,703,172 | X50: 55,228,404 | Y50: 45,920,703 | Z50: 96,647,062 | AA50: 90,204,543 | AB50: 75,880,484 | AC50: 80,293,615 | AD50: 76,501,715 | AE50: 50,574,553 | AF50: 93,425,802 | AG50: 78,087,049 | AH50: 1% | AI50: 13% | AJ50: 5% | AK50: 4% | AL50: 0.66 | AM50: 0.84 | AN50: 1.22 | AO50: 1.54 | AP50: -0.60 | AQ50: -0.26 | AR50: 0.29 | AS50: 0.63 | AT50: -0.53 | AU50: -0.08 | AV50: -0.15 | AW50: 0.30 | AX50: -1.51 | AY50: -1.20 | AZ50: 1.22 | BA50: 1.54 | BB50: -1.44 | BC50: -1.05 | BD50: -1.11 | BE50: 1.23 | BF50: mouse | BG50: 1
A51: 40 | B51: 54 | C51: -1.1 | D51: 1.6 | E51: -2.2 | F51: -1.3 | G51: 47,571,447 | H51: A | I51: 50% | J51: Bcar1;Bcar1 | K51: P130Cas;P130Cas iso 2 | L51: §556;§556 | M51: Breast cancer anti-estrogen resistance protein 1 | N51: Q61140;Q61140-2 | O51: http://www.phosphosite.org/proteinAction.do?id=1791&showAllSites=true | P51: M#EDVY*QTLVVHGQVLDSGR | Q51: 3 | R51: 748.0118 | S51: 2 | T51: A | U51: 66.92 | V51: 45,889,428 | W51: 49,253,466 | X51: 57,860,160 | Y51: 27,588,338 | Z51: 30,241,652 | AA51: 28,229,856 | AB51: 35,922,605 | AC51: 45,058,309 | AD51: 47,571,447 | AE51: 42,724,249 | AF51: 29,235,754 | AG51: 40,490,457 | AH51: 5% | AI51: 50% | AJ51: 5% | AK51: 16% | AL51: 0.90 | AM51: 1.38 | AN51: 0.61 | AO51: 0.95 | AP51: -0.16 | AQ51: 0.47 | AR51: -0.70 | AS51: -0.08 | AT51: -0.08 | AU51: 0.65 | AV51: -1.14 | AW51: -0.40 | AX51: -1.11 | AY51: 1.38 | AZ51: -1.63 | BA51: -1.06 | BB51: -1.06 | BC51: 1.57 | BD51: -2.20 | BE51: -1.32 | BF51: mouse | BG51: 1
A52: 41 | B52: 55 | C52: 1.0 | D52: 1.3 | E52: -1.7 | F52: -1.3 | G52: 4,799,687 | H52: A | I52: 21% | J52: Bcar1;Bcar1 | K52: P130Cas;P130Cas iso 2 | L52: 819;819 | M52: Breast cancer anti-estrogen resistance protein 1 | N52: Q61140;Q61140-2 | O52: http://www.phosphosite.org/proteinAction.do?id=1791&showAllSites=true | P52: SQVTHY*SNLLCDLLR | Q52: 3 | R52: 633.6325 | S52: 1 | T52: A | U52: 93.44 | V52: 5,034,961 | W52: 4,564,413 | X52: 4,978,449 | Y52: 4,430,628 | Z52: 4,433,362 | AA52: 3,305,017 | AB52: 5,066,117 | AC52: 4,012,976 | AD52: 4,799,687 | AE52: 4,704,538 | AF52: 3,869,190 | AG52: 4,539,546 | AH52: 7% | AI52: 8% | AJ52: 21% | AK52: 16% | AL52: 0.98 | AM52: 1.17 | AN52: 0.81 | AO52: 0.96 | AP52: -0.03 | AQ52: 0.23 | AR52: -0.31 | AS52: -0.05 | AT52: 0.04 | AU52: 0.41 | AV52: -0.75 | AW52: -0.38 | AX52: -1.02 | AY52: 1.17 | AZ52: -1.24 | BA52: -1.04 | BB52: 1.03 | BC52: 1.33 | BD52: -1.68 | BE52: -1.30 | BF52: mouse | BG52: 1
A53: 42 | B53: 56 | C53: -1.8 | D53: -1.7 | E53: -3.9 | F53: -3.7 | G53: 17,332,143 | H53: A | I53: 15% | J53: Bcar3;Bcar3 | K53: BCAR3;BCAR3 iso 2 | L53: §206;86 | M53: Breast cancer anti-estrogen resistance protein 3 | N53: Q9QZK2;Q9QZK2-2 | O53: http://www.phosphosite.org/proteinAction.do?id=7189&showAllSites=true | P53: LSEAY*SR | Q53: 2 | R53: 453.1919 | S53: 2 | T53: A | U53: 25.52 | V53: 18,329,845 | W53: 16,334,442 | X53: 8,877,742 | Y53: 9,899,646 | Z53: 5,847,530 | AA53: 6,155,050 | AB53: 3,486,079 | AC53: 2,819,153 | AD53: 17,332,143 | AE53: 9,388,694 | AF53: 6,001,290 | AG53: 3,152,616 | AH53: 8% | AI53: 8% | AJ53: 4% | AK53: 15% | AL53: 0.54 | AM53: 0.53 | AN53: 0.35 | AO53: 0.34 | AP53: -0.88 | AQ53: -0.93 | AR53: -1.53 | AS53: -1.57 | AT53: -0.81 | AU53: -0.75 | AV53: -1.97 | AW53: -1.90 | AX53: -1.85 | AY53: -1.90 | AZ53: -2.89 | BA53: -2.98 | BB53: -1.76 | BC53: -1.68 | BD53: -3.91 | BE53: -3.73 | BF53: mouse | BG53: 1
A54: 43 | B54: 57 | C54: 1.2 | D54: 1.3 | E54: -1.7 | F54: -1.6 | G54: 49,864,122 | H54: A | I54: 26% | J54: Cab39 | K54: CAB39 | L54: 223 | M54: Calcium-binding protein 39 | N54: Q06138 | O54: http://www.phosphosite.org/proteinAction.do?id=10190&showAllSites=true | P54: LLHSENY*VTKR | Q54: 3 | R54: 480.5729 | S54: 8 | T54: A | U54: 32.66 | V54: 40,514,289 | W54: 49,188,205 | X54: 40,845,032 | Y54: 58,883,213 | Z54: 32,715,390 | AA54: 38,481,566 | AB54: 41,460,645 | AC54: 38,834,365 | AD54: 44,851,247 | AE54: 49,864,122 | AF54: 35,598,478 | AG54: 40,147,505 | AH54: 14% | AI54: 26% | AJ54: 11% | AK54: 5% | AL54: 1.11 | AM54: 1.13 | AN54: 0.79 | AO54: 0.81 | AP54: 0.15 | AQ54: 0.17 | AR54: -0.33 | AS54: -0.31 | AT54: 0.22 | AU54: 0.36 | AV54: -0.77 | AW54: -0.64 | AX54: 1.11 | AY54: 1.13 | AZ54: -1.26 | BA54: -1.24 | BB54: 1.17 | BC54: 1.28 | BD54: -1.71 | BE54: -1.56 | BF54: mouse | BG54: 1
A55: 44 | B55: 58 | C55: -1.8 | D55: 1.1 | E55: -1.4 | F55: 1.5 | G55: 49,342,869 | H55: A | I55: 11% | J55: Caskin1;Caskin1;Caskin1 | K55: CASKIN1;CASKIN1 iso 2;CASKIN1 iso 3 | L55: 909;838;909 | M55: Caskin-1 | N55: Q6P9K8;Q6P9K8-2;Q6P9K8-3 | O55: http://www.phosphosite.org/proteinAction.do?id=7164&showAllSites=true | P55: YAASDSEPERDELLVPAAAGPY*ATVQR | Q55: 3 | R55: 986.129 | S55: 7 | T55: A | U55: 69.00 | V55: 47,803,365 | W55: 50,882,374 | X55: 27,708,136 | Y55: 23,804,954 | Z55: 46,556,035 | AA55: 51,805,558 | AB55: 47,298,591 | AC55: 46,703,649 | AD55: 49,342,869 | AE55: 25,756,545 | AF55: 49,180,797 | AG55: 47,001,120 | AH55: 4% | AI55: 11% | AJ55: 8% | AK55: 1% | AL55: 0.52 | AM55: 0.96 | AN55: 1.00 | AO55: 1.82 | AP55: -0.94 | AQ55: -0.07 | AR55: -0.00 | AS55: 0.87 | AT55: -0.87 | AU55: 0.12 | AV55: -0.44 | AW55: 0.54 | AX55: -1.92 | AY55: -1.05 | AZ55: -1.00 | BA55: 1.82 | BB55: -1.82 | BC55: 1.08 | BD55: -1.36 | BE55: 1.46 | BF55: mouse | BG55: 1
A56: 45 | B56: 60 | C56: -1.1 | D56: -1.0 | E56: -1.9 | F56: -1.8 | G56: 148,182,787 | H56: A | I56: 12% | J56: Caskin1;Caskin1;Caskin1;Caskin1 | K56: CASKIN1;CASKIN1 iso 2;CASKIN1 iso 3;CASKIN1 iso 4 | L56: 253;253;253;253 | M56: Caskin-1 | N56: Q6P9K8;Q6P9K8-2;Q6P9K8-3;Q6P9K8-4 | O56: http://www.phosphosite.org/proteinAction.do?id=7164&showAllSites=true | P56: NTY*SQTALDIVHQFTTSQASK | Q56: 3 | R56: 807.3758 | S56: 8 | T56: A | U56: 87.89 | V56: 158,602,537 | W56: 137,763,037 | X56: 134,951,840 | Y56: 127,503,686 | Z56: 109,270,307 | AA56: 99,138,139 | AB56: 98,580,816 | AC56: 83,216,228 | AD56: 148,182,787 | AE56: 131,227,763 | AF56: 104,204,223 | AG56: 90,898,522 | AH56: 10% | AI56: 4% | AJ56: 7% | AK56: 12% | AL56: 0.89 | AM56: 0.87 | AN56: 0.70 | AO56: 0.69 | AP56: -0.18 | AQ56: -0.20 | AR56: -0.51 | AS56: -0.53 | AT56: -0.10 | AU56: -0.02 | AV56: -0.95 | AW56: -0.85 | AX56: -1.13 | AY56: -1.15 | AZ56: -1.42 | BA56: -1.44 | BB56: -1.08 | BC56: -1.01 | BD56: -1.93 | BE56: -1.81 | BF56: mouse | BG56: 1
